{"text_format":"1","workbook":"xlsx","n_sheets":4,"sheets":["Data Definition","2024-2026 tracker","ITNs","Drop down"],"not_rendered":{"charts":0,"images":0,"macros":1,"external_links":0,"defined_names":11,"comments":8,"pivot_tables":0},"unopened":[],"bounds":{"document_bytes":16777216,"sheet_cells":100000,"rows_first":2000,"rows_last":500,"rows_between":2000,"halvings":0,"cell_chars":16384,"cell_head_chars":4096},"cells_cut":0,"cells_raw":0,"read":"whole","date_system":"1900"}

{"sheet":"Data Definition","index":0,"n_rows":59,"n_cols":6,"rows_kept":59,"cut":false,"hidden":false,"merged":[[25,2,29,2],[25,3,29,3],[2,0,2,3],[25,0,29,0]]}
["ITN Mass Campaign Tracker 2024-2026"]
[]
["The ITN Mass Campaign Tracker has been developed for national malaria programmes and partners to have greater visibility of planned ITN mass campaigns and their status. It is a “living document” outlining the campaigns scheduled for the next three years, encompassing the total ITN requirement (campaign + routine/CD), the total number of ITNs funded, etc. The data presented here is gathered from Global Fund applications, PMI malaria operational plans, and ongoing communication with national malaria programs via RBM. \n- Updates to the table will be made quarterly.\n- The date of the update can be used to determine whether there is new information available for a country. "]
[]
["Variable ","Variable Definition","Type","Example",null,"Comments / discussion points for the call"]
["Country","Name of country","Text","Angola"]
["Geographic target","Geographic target refers to the specific geographic areas or regions targeted for the campaign. \"National\" indicates targeting at the level of the entire country, while \"Sub-national\" indicates targeting at a more localized level, such as specific regions, districts, or communities within the country.\n- National\n- Sub-national","Drop down","National"]
["Campaign rollout strategy","The ITN campaign rollout strategy outlines how the distribution methods for ITN will be executed.\n- Single-phase distribution, where all ITNs are distributed at once.\n- Rolling distribution, where ITNs are distributed continuously over a period.\n- Multi-phase distribution, involving multiple stages of distribution over time (e.g. pilot distribution first and then remaining targeted areas)\n- Not available, indicating that specific details on the distribution strategy are not provided or accessible","Drop down","National rolling",null,"Are the proposed options still valid?\nDo we want to merge the geographic target and  roll out strategy?"]
["Detailed geographic target ","The detailed geographic target specifies the approach to prioritizing the distribution of ITNs within a country, particularly in relation to urban and non-urban areas, when deprioritization is occurring. \nThe options include\n- National focus with prioritization of ITNs in urban areas over non-urban areas,\n- National focus with prioritization of ITNs in non-urban areas over urban areas, or\n- No prioritization.\n","Drop down","No deprioritization",null,"Do we wish to monitor this?"]
["State/Region/Province or equivalent","Disaggregated data or information by states, province, or region where available","Text","National"]
["Name of the district or equivalent","Disaggregated data or information by district (or equivalent) level where available","Text","Sub-national"]
["Integration","Integration refers to the coordination between different components within the National Malaria Control Program both internally and externally. Internally, integration involves the alignment between interventions such as Seasonal Malaria Chemoprevention (SMC), Indoor Residual Spraying (IRS), and Malaria Vaccine programs. Externally, integration refers to the NMCP's coordination with other health programs like the Expanded Program on Immunization (EPI), Neglected Tropical Diseases (NTDs), and Vitamin A supplementation initiatives.\n- Internal NMCP - SCM, IRS, Malaria Vaccine\n- External NMCP- EPI, NTDs, Vit A (e.g. administration of vitamin A and/or mebendazole, polio vaccination, and so on).\n- Microplanning\n- Digital Platform\n- No integration\n","Drop down","External NMCP- EPI, NTDs, Vit A",null,"Are there any further integrations of ITN distribution with other health interventions that should be considered/added?"]
["Distribution strategy","- Door to door: distribution teams go from house to house to directly distribute ITNs to residents.\n- Fixed distribution sites:  designated sites such as health centers, schools, or other community locations are set up where beneficiaries can go to receive their ITNs.\n- Hybrid approach: For example, a distribution campaign might start with door-to-door distribution in scattered rural areas, followed by fixed distribution sites in urban or densely populated areas.\n"]
["Previous campaign - Month & Year - MMM-YY","The calendar year when the previous campaign occurred, specified by the stated year, serves as a reference point to verify if the ongoing campaign is a continuation from the previous year.","Date","2021-11-01"]
["Planned ITN distribution campaign year ","Calendar year campaign will take place, stated in year","Year",2023]
["Month planned (start date) for distribution (in GF grant or PMI MOP or other)","Planned date for start of campaign activity in month/year","Date","2021-11-01"]
["Population targeted","Number of people targeted for the mass ITN campaign disaggregated to sub-national levels if available","Number",100000]
["Number of ITNs planned for campaign distribution ","ITNs planned for the campaign based on RBM gap analysis or national malaria programme information","Number",100000]
["ITN type","AlphaCypermethrin + Chlorfenapyr (IG2)\nPyrethroid-Chlorfenapyr (CFP Dual a.i.)\nPyrethroid+Piperonyl Butoxide -PBO\nPyrethroid-ONLY (standard)\nPyrethroid-pyriproxyfen\nOther\nMulti-products","Drop down","CFP Dual a.i"]
["Net brand  (hidden on the AMP website)","Brand of the ITN (not publicly disclosed on the AMP website)","Drop down"]
["Number of ITNs distributed  (hidden on the AMP website)","Total count of ITNs that have been distributed (not publicly disclosed on the AMP website)","Number"]
["Distribution completion month -  MMM-YY","Specific month during which the distribution of the ITNs is completed.","Date","2021-11-01"]
["Comments on distribution","Additional remarks or notes regarding the distribution process, including any challenges encountered, successes achieved, or other relevant information related to the distribution of ITNs. e.g. more ITNs have been distributed than planned, ITN carried over from previous campaigns etc.","Text"]
["Funding partner (if applicable) for commodities","Partner(s) responsible for financing the procurement of ITNs","Text","PMI"]
["Funding partner (if applicable) for operations ","Partner(s) responsible for financing the implementation of the distribution of ITNs","Text","Global Fund"]
["Current campaign phase","Implementation: Ongoing trainings, household registration, ITN distribution or other campaign processes","Drop down","Implementation"]
[null,"Macroplanning: Defining the strategy for all campaign technical areas and developing key documents, timeline and budget (operations, M&E, logistics, social and behaviour change, etc.) "]
[null,"Microplanning: Updating the macroplans for each district targeted for the campaign with information from decentralized levels to reflect actual context for implementation "]
[null,"Not started: Campaign planning has not yet started\n"]
[null,"Complete : All campaign processes and ITN distribution have been successfully completed\nNot available : Data is currently unavailable\nPostponed : The campaign has been delayed or rescheduled for a later time\nNo campaign : No campaign is planned or scheduled\nPilot implementation: The campaign is being tested on a smaller scale as a trial run before full implementation."]
["ITN delivery status","Current condition or progress of the distribution process of ITNs indicating whether ITNs have been received, or are still pending delivery:\n- Pending ITN arrival\n- Delivered in-country\n- Other","Drop down","Pending ITN arrival"]
["Campaign status based on currently planned dates","Refers to the current status of the campaign as determined by the scheduled dates for its various activities and milestones. This status provides an indication of whether the campaign is on track, ahead of schedule, delayed, or completed based on the planned timeline.\nOff Track: Significant concerns and campaign at risk of significant delay/not taking place in the calendar year planned; intervention required to address bottlenecks and move country planning back to on track\nAt Risk: Some risk that the campaign will run into delays/not take place in calendar year planned; a situation not yet critical but important to watch and ensure that the bottlenecks do not grow and move the country off-track\nOn Track: The campaign is on track to take place in the same calendar year initially planned/there are no significant bottlenecks identified as of the last report date that would move the campaign off track\nComplete : All campaign processes and ITN distribution have been successfully completed\nNot available : Data is currently unavailable\nNo campaign : No campaign is planned or scheduled","Color/Text","Off Track"]
["Details on status  (hidden on the AMP website)","Additional information or elaboration regarding the current status of the campaign, not visible to users on the AMP website.","Text"]
["Campaign components that will be digitalized","The components of the campaign set to undergo digitalization.","Drop down"]
["Scale of digital data collection","Scale of the deployment of the digital data collection","Text","Full deployment"]
["Platform being used","Digital platform in use","Drop down"]
["Packaging type of nets (individual/bale)","Packaging for mosquito nets typically comes in two primary types: individual packaging and bale packaging.\n- Individual Packaging: In this approach, each mosquito net is packaged separately in its own packaging\n- Bale Packaging: In contrast, bale packaging involves bundling multiple mosquito nets together into a larger package or bale. ","Drop down"," Individual Packaging"]
["Waste management approach","- Reverse Logistics: This approach involves the collection and return of used ITNs to designated collection points or distribution centers. Reverse Logistics systems may include partnerships with local communities, health facilities, or retailers to facilitate the return of ITNs after their useful life. Once collected, ITNs can be refurbished, recycled, or disposed of properly.\n- Incineration: Incineration is a waste management method that involves burning ITNs at high temperatures to decompose organic materials and destroy any contaminants, including residual insecticides. Incineration can be an effective way to dispose of used ITNs safely, but it requires specialized facilities to ensure proper combustion and emission control to prevent environmental pollution.\n- Combination approach: Some waste management programs utilize a Combination of methods to address different aspects of ITN disposal. For example, a program might implement Reverse Logistics to collect ITNs from households and health facilities, followed by sorting and segregation of materials For recycling or refurbishment. any ITNs that cannot be recycled or refurbished may then be sent For Incineration or other disposal methods.\n- Burial in a controlled waste disposal site:  If recycling or controlled high temperature incineration are not possible, burial of the insecticide-tainted packaging is an option. ","Drop down"]
["Last updated (date)","Date the main data source was last updated","Date","2021-11-01"]
["Comments/ Details on Status","Provide additional information or details regarding the status.","Text"]
[]
[]
[]
["Specific questions"]
["Do any columns or data points require inclusion in the ITN tracker?"]
["Are there any columns or data points that are unnecessary and can be removed?"]
["Contribution to the update / Frequency and timing of the update: is quarterly updating of the tracker satisfactory"]
["Is it necessary for this team to review the ITN tracker quarterly prior to online publication to AMP website?"]
["How should archived data be handled?"]
["Should any alerts be incorporated into the ITN tracker backend Excel to flag or indicate actions that need to be taken?"]
["USAID/PMI or just PMI?"]
["ops funders?"]
["commodities funders"]
[]
["Update procedure:"]
["Orianne will revise the tracker using data from sitreps, the AMP weekly call, and emails."]
["Orianne will arrange a meeting with Marcy and Giovanni a week before quarterly ends"]
["Emails will be sent to partners during the first week of each month."]
["Orianne will send updates to Todd on the second Monday of each month"]

{"sheet":"2024-2026 tracker","index":1,"n_rows":490,"n_cols":63,"rows_kept":490,"cut":false,"hidden":false,"merged":[[6,21,6,23],[6,24,6,25],[6,16,6,17]]}
["ITN Maaa Campaign Tracker 2024-2026"]
[]
[]
[]
[]
[]
[null,null,null,null,null,null,null,null,null,null,null,null,null,null,null,null,"Funding partner",null,null,null,null,"Digitalization",null,null,"Waste management"]
["Country","Environment  - Rainy season period","Planned ITN distribution campaign year ","Geographic target",null,"Distribution strategy","Detailed geographic target  (if prioritization of specific areas for ITN distribution)","State/Region/Province or equivalent","Name of the district or equivalent","Integration","Month planned (start date) for distribution","Population targeted","ITN Types","Total ","Distribution completion month - \nMMM-YY","Comments on distribution","Funding partner for commodities","Funding partner for operations","Current campaign phase","ITN delivery status","Campaign status based on currently planned dates","Campaign components that will be digitalized","Scale of digital data collection","Platform being used","Packaging type of nets (individual/bulk)","Waste management approach","Comments/ details on status"]
["Afghanistan","Spring rainy season: The first rainy season occurs during spring, typically from March to May. During this time, rainfall is more frequent in the northern and central regions of the country, including Kabul and the Hindu Kush mountain range.\nSummer Rainy Season: The second rainy season occurs during summer, usually from June to September. This period is characterized by the arrival of the southwest monsoon, which brings heavy rainfall to the southern and eastern parts of Afghanistan, particularly in the provinces bordering Pakistan.",2024,"No campaign this year",null,null,"National focus with prioritization of ITNs in non-urban areas over urban areas","Nangarhar","Behsood & Chaprahar",null,"2024-02-24",null,"Multi-products",{"$f":"IF(M9=ITNs!$E$8, ITNs!E9, IF(M9=ITNs!$B$8, ITNs!B9, IF(M9=ITNs!$C$8, ITNs!C9, IF(M9=ITNs!$D$8, ITNs!D9, IF(M9=ITNs!$E$8, ITNs!E9, IF(M9=ITNs!$F$8, ITNs!F9, IF(M9=ITNs!$G$8, ITNs!G9, IF(M9=ITNs!$H$8, ITNs!H9, \"ERROR\"))))))))","v":300000},null,null,null,null,null,null,null,null,null,null,null,null,"This is routine. No campaign in 2024"]
["Afghanistan","Spring Rainy Season: The first rainy season occurs during spring, typically from March to May. During this time, rainfall is more frequent in the northern and central regions of the country, including Kabul and the Hindu Kush mountain range.\nSummer Rainy Season: The second rainy season occurs during summer, usually from June to September. This period is characterized by the arrival of the southwest monsoon, which brings heavy rainfall to the southern and eastern parts of Afghanistan, particularly in the provinces bordering Pakistan.",2025,null,null,null,null,null,null,null,null,null,"PBO",{"$f":"IF(M10=ITNs!$E$8, ITNs!E10, IF(M10=ITNs!$B$8, ITNs!B10, IF(M10=ITNs!$C$8, ITNs!C10, IF(M10=ITNs!$D$8, ITNs!D10, IF(M10=ITNs!$E$8, ITNs!E10, IF(M10=ITNs!$F$8, ITNs!F10, IF(M10=ITNs!$G$8, ITNs!G10, IF(M10=ITNs!$H$8, ITNs!H10, \"ERROR\"))))))))","v":2579711},null,null,null,null,null,null,null,"Microplanning",null,null,null,null,"Next campaign is planned in 2025, only around 300,000 BPO-nets provided with the support of WHO/WHE, will be distributed in some targeted districts that are not covered since more than 3 years, and this distribution is planned for Behsood district of Nangarhar and then Chaprahar district"]
["Afghanistan","Spring Rainy Season: The first rainy season occurs during spring, typically from March to May. During this time, rainfall is more frequent in the northern and central regions of the country, including Kabul and the Hindu Kush mountain range.\nSummer Rainy Season: The second rainy season occurs during summer, usually from June to September. This period is characterized by the arrival of the southwest monsoon, which brings heavy rainfall to the southern and eastern parts of Afghanistan, particularly in the provinces bordering Pakistan.",2026,null,null,null,null,null,null,null,null,null,"PBO",{"$f":"IF(M11=ITNs!$E$8, ITNs!E11, IF(M11=ITNs!$B$8, ITNs!B11, IF(M11=ITNs!$C$8, ITNs!C11, IF(M11=ITNs!$D$8, ITNs!D11, IF(M11=ITNs!$E$8, ITNs!E11, IF(M11=ITNs!$F$8, ITNs!F11, IF(M11=ITNs!$G$8, ITNs!G11, IF(M11=ITNs!$H$8, ITNs!H11, \"ERROR\"))))))))","v":211953}]
["Angola","Short Rainy Season: The first rainy season, known as the short rainy season or \"small rains,\" typically occurs from September to November. \nLong Rainy Season: The second rainy season usually takes place from December to April.",2024,"No campaign this year",null,null,null,null,null,null,null,null,"Multi-products",{"$f":"IF(M12=ITNs!$E$8, ITNs!E12, IF(M12=ITNs!$B$8, ITNs!B12, IF(M12=ITNs!$C$8, ITNs!C12, IF(M12=ITNs!$D$8, ITNs!D12, IF(M12=ITNs!$E$8, ITNs!E12, IF(M12=ITNs!$F$8, ITNs!F12, IF(M12=ITNs!$G$8, ITNs!G12, IF(M12=ITNs!$H$8, ITNs!H12, \"ERROR\"))))))))","v":288643}]
["Angola",null,2025,null,null,null,null,"10 Provinces to be covered in 2024",null,null,null,null,"Multi-products",{"$f":"IF(M13=ITNs!$E$8, ITNs!E13, IF(M13=ITNs!$B$8, ITNs!B13, IF(M13=ITNs!$C$8, ITNs!C13, IF(M13=ITNs!$D$8, ITNs!D13, IF(M13=ITNs!$E$8, ITNs!E13, IF(M13=ITNs!$F$8, ITNs!F13, IF(M13=ITNs!$G$8, ITNs!G13, IF(M13=ITNs!$H$8, ITNs!H13, \"ERROR\"))))))))","v":4515723},null,null,"PMI "]
["Angola",null,2026,"No campaign this year",null,null,null,null,null,null,null,null,"Multi-products",{"$f":"IF(M14=ITNs!$E$8, ITNs!E14, IF(M14=ITNs!$B$8, ITNs!B14, IF(M14=ITNs!$C$8, ITNs!C14, IF(M14=ITNs!$D$8, ITNs!D14, IF(M14=ITNs!$E$8, ITNs!E14, IF(M14=ITNs!$F$8, ITNs!F14, IF(M14=ITNs!$G$8, ITNs!G14, IF(M14=ITNs!$H$8, ITNs!H14, \"ERROR\"))))))))","v":688360}]
["Bangladesh","Pre-Monsoon Season: usually begins in April and continues through May with thunderstorms and occasional rainfall occur.\nMonsoon Season: The monsoon season generally starts in June and extends through September. ",2024,null,null,null,null,null,null,null,null,null,"Pyrethroid-only",{"$f":"IF(M15=ITNs!$E$8, ITNs!E15, IF(M15=ITNs!$B$8, ITNs!B15, IF(M15=ITNs!$C$8, ITNs!C15, IF(M15=ITNs!$D$8, ITNs!D15, IF(M15=ITNs!$E$8, ITNs!E15, IF(M15=ITNs!$F$8, ITNs!F15, IF(M15=ITNs!$G$8, ITNs!G15, IF(M15=ITNs!$H$8, ITNs!H15, \"ERROR\"))))))))","v":108155}]
["Bangladesh",null,2025,null,null,null,null,null,null,null,null,null,"Pyrethroid-only",{"$f":"IF(M16=ITNs!$E$8, ITNs!E16, IF(M16=ITNs!$B$8, ITNs!B16, IF(M16=ITNs!$C$8, ITNs!C16, IF(M16=ITNs!$D$8, ITNs!D16, IF(M16=ITNs!$E$8, ITNs!E16, IF(M16=ITNs!$F$8, ITNs!F16, IF(M16=ITNs!$G$8, ITNs!G16, IF(M16=ITNs!$H$8, ITNs!H16, \"ERROR\"))))))))","v":84374}]
["Bangladesh",null,2026,null,null,null,null,null,null,null,null,null,"Pyrethroid-only",{"$f":"IF(M17=ITNs!$E$8, ITNs!E17, IF(M17=ITNs!$B$8, ITNs!B17, IF(M17=ITNs!$C$8, ITNs!C17, IF(M17=ITNs!$D$8, ITNs!D17, IF(M17=ITNs!$E$8, ITNs!E17, IF(M17=ITNs!$F$8, ITNs!F17, IF(M17=ITNs!$G$8, ITNs!G17, IF(M17=ITNs!$H$8, ITNs!H17, \"ERROR\"))))))))","v":823614}]
["Benin - ROUTINE","Rainy Season: Generally from April to October, with peak rainfall in July and August.",2024,"No campaign this year",null,null,null,null,null,null,null,null,"Dual a.i.",{"$f":"IF(M18=ITNs!$E$8, ITNs!E18, IF(M18=ITNs!$B$8, ITNs!B18, IF(M18=ITNs!$C$8, ITNs!C18, IF(M18=ITNs!$D$8, ITNs!D18, IF(M18=ITNs!$E$8, ITNs!E18, IF(M18=ITNs!$F$8, ITNs!F18, IF(M18=ITNs!$G$8, ITNs!G18, IF(M18=ITNs!$H$8, ITNs!H18, \"ERROR\"))))))))","v":27223}]
["Benin",null,2025,null,null,null,null,null,null,null,null,null,"Dual a.i.",{"$f":"IF(M19=ITNs!$E$8, ITNs!E19, IF(M19=ITNs!$B$8, ITNs!B19, IF(M19=ITNs!$C$8, ITNs!C19, IF(M19=ITNs!$D$8, ITNs!D19, IF(M19=ITNs!$E$8, ITNs!E19, IF(M19=ITNs!$F$8, ITNs!F19, IF(M19=ITNs!$G$8, ITNs!G19, IF(M19=ITNs!$H$8, ITNs!H19, \"ERROR\"))))))))","v":6787230}]
["Benin - ROUTINE",null,2026,null,null,null,null,null,null,null,null,null,"Dual a.i.",{"$f":"IF(M20=ITNs!$E$8, ITNs!E20, IF(M20=ITNs!$B$8, ITNs!B20, IF(M20=ITNs!$C$8, ITNs!C20, IF(M20=ITNs!$D$8, ITNs!D20, IF(M20=ITNs!$E$8, ITNs!E20, IF(M20=ITNs!$F$8, ITNs!F20, IF(M20=ITNs!$G$8, ITNs!G20, IF(M20=ITNs!$H$8, ITNs!H20, \"ERROR\"))))))))","v":29167}]
["Bhutan","Monsoon season, typically occurs from June to September.",2025,null,null,null,null,null,null,null,null,null,"Pyrethroid-only",{"$f":"IF(M21=ITNs!$E$8, ITNs!E21, IF(M21=ITNs!$B$8, ITNs!B21, IF(M21=ITNs!$C$8, ITNs!C21, IF(M21=ITNs!$D$8, ITNs!D21, IF(M21=ITNs!$E$8, ITNs!E21, IF(M21=ITNs!$F$8, ITNs!F21, IF(M21=ITNs!$G$8, ITNs!G21, IF(M21=ITNs!$H$8, ITNs!H21, \"ERROR\"))))))))","v":124000}]
["Botswana","Generally from November to March, with peak rainfall usually occurring from December to February. However, Botswana is mostly arid or semi-arid, and rainfall amounts are relatively low compared to other countries in the region.",2024,"No campaign this year",null,null,null,null,null,null,null,null,null,{"$f":"IF(M22=ITNs!$E$8, ITNs!E22, IF(M22=ITNs!$B$8, ITNs!B22, IF(M22=ITNs!$C$8, ITNs!C22, IF(M22=ITNs!$D$8, ITNs!D22, IF(M22=ITNs!$E$8, ITNs!E22, IF(M22=ITNs!$F$8, ITNs!F22, IF(M22=ITNs!$G$8, ITNs!G22, IF(M22=ITNs!$H$8, ITNs!H22, \"ERROR\"))))))))","v":0}]
["Botswana","Generally from November to March, with peak rainfall usually occurring from December to February. However, Botswana is mostly arid or semi-arid, and rainfall amounts are relatively low compared to other countries in the region.",2025,null,null,null,null,null,null,null,null,null,null,{"$f":"IF(M23=ITNs!$E$8, ITNs!E23, IF(M23=ITNs!$B$8, ITNs!B23, IF(M23=ITNs!$C$8, ITNs!C23, IF(M23=ITNs!$D$8, ITNs!D23, IF(M23=ITNs!$E$8, ITNs!E23, IF(M23=ITNs!$F$8, ITNs!F23, IF(M23=ITNs!$G$8, ITNs!G23, IF(M23=ITNs!$H$8, ITNs!H23, \"ERROR\"))))))))","v":0}]
["Burkina Faso","Rainy Season: Generally from May to October, with peak rainfall usually occurring between June and September.",2024,"No campaign this year",null,null,null,null,"2 remaining DS from 2022 campaign - one being done through routine / second one by campaign",null,null,null,"Dual a.i.",{"$f":"IF(M24=ITNs!$E$8, ITNs!E24, IF(M24=ITNs!$B$8, ITNs!B24, IF(M24=ITNs!$C$8, ITNs!C24, IF(M24=ITNs!$D$8, ITNs!D24, IF(M24=ITNs!$E$8, ITNs!E24, IF(M24=ITNs!$F$8, ITNs!F24, IF(M24=ITNs!$G$8, ITNs!G24, IF(M24=ITNs!$H$8, ITNs!H24, \"ERROR\"))))))))","v":18972664}]
["Burkina Faso",null,2025,"National - one phase",null,null,null,null,null,null,null,null,"Dual a.i.",{"$f":"IF(M25=ITNs!$E$8, ITNs!E25, IF(M25=ITNs!$B$8, ITNs!B25, IF(M25=ITNs!$C$8, ITNs!C25, IF(M25=ITNs!$D$8, ITNs!D25, IF(M25=ITNs!$E$8, ITNs!E25, IF(M25=ITNs!$F$8, ITNs!F25, IF(M25=ITNs!$G$8, ITNs!G25, IF(M25=ITNs!$H$8, ITNs!H25, \"ERROR\"))))))))","v":1879488}]
["Burundi","Long rainy season from March to May and the short rainy season from September to November.",2025,"National - multi-phases",null,"Hybrid approach",null,null,"47 DS",null,"2025-04-01",{"$f":"SUM(L27:L73)","v":12595686},"Multi-products",{"$f":"IF(M26=ITNs!$E$8, ITNs!E26, IF(M26=ITNs!$B$8, ITNs!B26, IF(M26=ITNs!$C$8, ITNs!C26, IF(M26=ITNs!$D$8, ITNs!D26, IF(M26=ITNs!$E$8, ITNs!E26, IF(M26=ITNs!$F$8, ITNs!F26, IF(M26=ITNs!$G$8, ITNs!G26, IF(M26=ITNs!$H$8, ITNs!H26, \"ERROR\"))))))))","v":7976121},null,"Pilot distribution in April / remaining provinces after Presidential elections- door to doo HHR and fixed sites distrib",null,null,"Macroplanning","Pending ITN arrival","On track","Microplaning (Bujumbura mairie and Gitega), Log SP, HHR, ITN distrib",null,null,null,null,"42 DS sur les 49 DS ciblés / remaining DS targeted by CD"]
["Burundi",null,2025,"National - multi-phases",null,null,"No prioritization","BUBANZA","Bubanza","No integration","2024-06-24",280227,"Dual a.i.",{"$f":"IF(M27=ITNs!$E$8, ITNs!E27, IF(M27=ITNs!$B$8, ITNs!B27, IF(M27=ITNs!$C$8, ITNs!C27, IF(M27=ITNs!$D$8, ITNs!D27, IF(M27=ITNs!$E$8, ITNs!E27, IF(M27=ITNs!$F$8, ITNs!F27, IF(M27=ITNs!$G$8, ITNs!G27, IF(M27=ITNs!$H$8, ITNs!H27, \"ERROR\"))))))))","v":180679},null,null,"Global Fund","Global Fund","Macroplanning","Pending ITN arrival","On track","Training, Household Registration, Logistics and supply-chain, Distribution, Monitoring, Payment","National","DIGIT-HCM (eGov)","Individual Packaging","Incineration"]
["Burundi",null,2025,"National - multi-phases",null,null,"No prioritization","BUBANZA","Mpanda","No integration","2024-07-24",290790,"Dual a.i.",{"$f":"IF(M28=ITNs!$E$8, ITNs!E28, IF(M28=ITNs!$B$8, ITNs!B28, IF(M28=ITNs!$C$8, ITNs!C28, IF(M28=ITNs!$D$8, ITNs!D28, IF(M28=ITNs!$E$8, ITNs!E28, IF(M28=ITNs!$F$8, ITNs!F28, IF(M28=ITNs!$G$8, ITNs!G28, IF(M28=ITNs!$H$8, ITNs!H28, \"ERROR\"))))))))","v":177705},null,null,"Global Fund","Global Fund","Macroplanning","Pending ITN arrival","On track","Training, Household Registration, Logistics and supply-chain, Distribution, Monitoring, Payment","National","DIGIT-HCM (eGov)","Individual Packaging","Incineration"]
["Burundi",null,2025,"National - multi-phases",null,null,"No prioritization","BUJUMBURA MAIRIE","Zone centre","No integration","2024-06-24",212946,"Pyrethroid-only",{"$f":"IF(M29=ITNs!$E$8, ITNs!E29, IF(M29=ITNs!$B$8, ITNs!B29, IF(M29=ITNs!$C$8, ITNs!C29, IF(M29=ITNs!$D$8, ITNs!D29, IF(M29=ITNs!$E$8, ITNs!E29, IF(M29=ITNs!$F$8, ITNs!F29, IF(M29=ITNs!$G$8, ITNs!G29, IF(M29=ITNs!$H$8, ITNs!H29, \"ERROR\"))))))))","v":164580},null,null,"Global Fund","Global Fund","Macroplanning","Pending ITN arrival","On track","Training, Household Registration, Logistics and supply-chain, Distribution, Monitoring, Payment","National","DIGIT-HCM (eGov)","Bale Packaging","Incineration"]
["Burundi",null,2025,"National - multi-phases",null,null,"No prioritization","BUJUMBURA MAIRIE","Zone nord","No integration","2024-06-24",417550,"Pyrethroid-only",{"$f":"IF(M30=ITNs!$E$8, ITNs!E30, IF(M30=ITNs!$B$8, ITNs!B30, IF(M30=ITNs!$C$8, ITNs!C30, IF(M30=ITNs!$D$8, ITNs!D30, IF(M30=ITNs!$E$8, ITNs!E30, IF(M30=ITNs!$F$8, ITNs!F30, IF(M30=ITNs!$G$8, ITNs!G30, IF(M30=ITNs!$H$8, ITNs!H30, \"ERROR\"))))))))","v":255169},null,null,"Global Fund","Global Fund","Macroplanning","Pending ITN arrival","On track","Training, Household Registration, Logistics and supply-chain, Distribution, Monitoring, Payment","National","DIGIT-HCM (eGov)","Bale Packaging","Incineration"]
["Burundi",null,2025,"National - multi-phases",null,null,"No prioritization","BUJUMBURA MAIRIE","Zone sud","No integration","2024-06-24",209358,"Pyrethroid-only",{"$f":"IF(M31=ITNs!$E$8, ITNs!E31, IF(M31=ITNs!$B$8, ITNs!B31, IF(M31=ITNs!$C$8, ITNs!C31, IF(M31=ITNs!$D$8, ITNs!D31, IF(M31=ITNs!$E$8, ITNs!E31, IF(M31=ITNs!$F$8, ITNs!F31, IF(M31=ITNs!$G$8, ITNs!G31, IF(M31=ITNs!$H$8, ITNs!H31, \"ERROR\"))))))))","v":127941},null,null,"Global Fund","Global Fund","Macroplanning","Pending ITN arrival","On track","Training, Household Registration, Logistics and supply-chain, Distribution, Monitoring, Payment","National","DIGIT-HCM (eGov)","Bale Packaging","Incineration"]
["Burundi",null,2025,"National - multi-phases",null,null,"No prioritization","BUJUMBURA RURAL ","Isare","No integration","2024-06-24",320886,"Pyrethroid-only",{"$f":"IF(M32=ITNs!$E$8, ITNs!E32, IF(M32=ITNs!$B$8, ITNs!B32, IF(M32=ITNs!$C$8, ITNs!C32, IF(M32=ITNs!$D$8, ITNs!D32, IF(M32=ITNs!$E$8, ITNs!E32, IF(M32=ITNs!$F$8, ITNs!F32, IF(M32=ITNs!$G$8, ITNs!G32, IF(M32=ITNs!$H$8, ITNs!H32, \"ERROR\"))))))))","v":200765},null,null,"Global Fund","Global Fund","Macroplanning","Pending ITN arrival","On track","Training, Household Registration, Logistics and supply-chain, Distribution, Monitoring, Payment","National","DIGIT-HCM (eGov)","Bale Packaging","Incineration"]
["Burundi",null,2025,"National - multi-phases",null,null,"No prioritization","BUJUMBURA RURAL ","Kabezi","No integration","2024-06-24",289990,"Pyrethroid-only",{"$f":"IF(M33=ITNs!$E$8, ITNs!E33, IF(M33=ITNs!$B$8, ITNs!B33, IF(M33=ITNs!$C$8, ITNs!C33, IF(M33=ITNs!$D$8, ITNs!D33, IF(M33=ITNs!$E$8, ITNs!E33, IF(M33=ITNs!$F$8, ITNs!F33, IF(M33=ITNs!$G$8, ITNs!G33, IF(M33=ITNs!$H$8, ITNs!H33, \"ERROR\"))))))))","v":177216},null,null,"Global Fund","Global Fund","Macroplanning","Pending ITN arrival","On track","Training, Household Registration, Logistics and supply-chain, Distribution, Monitoring, Payment","National","DIGIT-HCM (eGov)","Bale Packaging","Incineration"]
["Burundi",null,2025,"National - multi-phases",null,null,"No prioritization","BUJUMBURA RURAL ","Rwibaga","No integration","2024-06-24",174333,"Pyrethroid-only",{"$f":"IF(M34=ITNs!$E$8, ITNs!E34, IF(M34=ITNs!$B$8, ITNs!B34, IF(M34=ITNs!$C$8, ITNs!C34, IF(M34=ITNs!$D$8, ITNs!D34, IF(M34=ITNs!$E$8, ITNs!E34, IF(M34=ITNs!$F$8, ITNs!F34, IF(M34=ITNs!$G$8, ITNs!G34, IF(M34=ITNs!$H$8, ITNs!H34, \"ERROR\"))))))))","v":106537},null,null,"Global Fund","Global Fund","Macroplanning","Pending ITN arrival","On track","Training, Household Registration, Logistics and supply-chain, Distribution, Monitoring, Payment","National","DIGIT-HCM (eGov)","Bale Packaging","Incineration"]
["Burundi",null,2025,"National - multi-phases",null,null,"No prioritization","BURURI","Bururi","No integration","2024-06-24",191394,"Pyrethroid-only",{"$f":"IF(M35=ITNs!$E$8, ITNs!E35, IF(M35=ITNs!$B$8, ITNs!B35, IF(M35=ITNs!$C$8, ITNs!C35, IF(M35=ITNs!$D$8, ITNs!D35, IF(M35=ITNs!$E$8, ITNs!E35, IF(M35=ITNs!$F$8, ITNs!F35, IF(M35=ITNs!$G$8, ITNs!G35, IF(M35=ITNs!$H$8, ITNs!H35, \"ERROR\"))))))))","v":120839},null,null,"Global Fund","Global Fund","Macroplanning","Pending ITN arrival","On track","Training, Household Registration, Logistics and supply-chain, Distribution, Monitoring, Payment","National","DIGIT-HCM (eGov)","Bale Packaging","Incineration"]
["Burundi",null,2025,"National - multi-phases",null,null,"No prioritization","BURURI","Matana","No integration","2024-06-24",172072,"Pyrethroid-only",{"$f":"IF(M36=ITNs!$E$8, ITNs!E36, IF(M36=ITNs!$B$8, ITNs!B36, IF(M36=ITNs!$C$8, ITNs!C36, IF(M36=ITNs!$D$8, ITNs!D36, IF(M36=ITNs!$E$8, ITNs!E36, IF(M36=ITNs!$F$8, ITNs!F36, IF(M36=ITNs!$G$8, ITNs!G36, IF(M36=ITNs!$H$8, ITNs!H36, \"ERROR\"))))))))","v":105155},null,null,"Global Fund","Global Fund","Macroplanning","Pending ITN arrival","On track","Training, Household Registration, Logistics and supply-chain, Distribution, Monitoring, Payment","National","DIGIT-HCM (eGov)","Bale Packaging","Incineration"]
["Burundi",null,2025,"National - multi-phases",null,null,"No prioritization","BURURI","Rutovu","No integration","2024-06-24",165452,"Pyrethroid-only",{"$f":"IF(M37=ITNs!$E$8, ITNs!E37, IF(M37=ITNs!$B$8, ITNs!B37, IF(M37=ITNs!$C$8, ITNs!C37, IF(M37=ITNs!$D$8, ITNs!D37, IF(M37=ITNs!$E$8, ITNs!E37, IF(M37=ITNs!$F$8, ITNs!F37, IF(M37=ITNs!$G$8, ITNs!G37, IF(M37=ITNs!$H$8, ITNs!H37, \"ERROR\"))))))))","v":101110},null,null,"Global Fund","Global Fund","Macroplanning","Pending ITN arrival","On track","Training, Household Registration, Logistics and supply-chain, Distribution, Monitoring, Payment","National","DIGIT-HCM (eGov)","Bale Packaging","Incineration"]
["Burundi",null,2025,"National - multi-phases",null,null,"No prioritization","CANKUZO","Cankuzo","No integration","2024-06-24",204746,"Dual a.i.",{"$f":"IF(M38=ITNs!$E$8, ITNs!E38, IF(M38=ITNs!$B$8, ITNs!B38, IF(M38=ITNs!$C$8, ITNs!C38, IF(M38=ITNs!$D$8, ITNs!D38, IF(M38=ITNs!$E$8, ITNs!E38, IF(M38=ITNs!$F$8, ITNs!F38, IF(M38=ITNs!$G$8, ITNs!G38, IF(M38=ITNs!$H$8, ITNs!H38, \"ERROR\"))))))))","v":157752},null,null,"Global Fund","Global Fund","Macroplanning","Pending ITN arrival","On track","Training, Household Registration, Logistics and supply-chain, Distribution, Monitoring, Payment","National","DIGIT-HCM (eGov)","Individual Packaging","Incineration"]
["Burundi",null,2025,"National - multi-phases",null,null,"No prioritization","CANKUZO","Murore","No integration","2024-06-24","            181’885","Dual a.i.",{"$f":"IF(M39=ITNs!$E$8, ITNs!E39, IF(M39=ITNs!$B$8, ITNs!B39, IF(M39=ITNs!$C$8, ITNs!C39, IF(M39=ITNs!$D$8, ITNs!D39, IF(M39=ITNs!$E$8, ITNs!E39, IF(M39=ITNs!$F$8, ITNs!F39, IF(M39=ITNs!$G$8, ITNs!G39, IF(M39=ITNs!$H$8, ITNs!H39, \"ERROR\"))))))))","v":111152},null,null,"Global Fund","Global Fund","Macroplanning","Pending ITN arrival","On track","Training, Household Registration, Logistics and supply-chain, Distribution, Monitoring, Payment","National","DIGIT-HCM (eGov)","Individual Packaging","Incineration"]
["Burundi",null,2025,"National - multi-phases",null,null,"No prioritization","CIBITOKE","Bukinanyana","No integration","2024-06-24",266881,"Dual a.i.",{"$f":"IF(M40=ITNs!$E$8, ITNs!E40, IF(M40=ITNs!$B$8, ITNs!B40, IF(M40=ITNs!$C$8, ITNs!C40, IF(M40=ITNs!$D$8, ITNs!D40, IF(M40=ITNs!$E$8, ITNs!E40, IF(M40=ITNs!$F$8, ITNs!F40, IF(M40=ITNs!$G$8, ITNs!G40, IF(M40=ITNs!$H$8, ITNs!H40, \"ERROR\"))))))))","v":163094},null,null,"Global Fund","Global Fund","Macroplanning","Pending ITN arrival","On track","Training, Household Registration, Logistics and supply-chain, Distribution, Monitoring, Payment","National","DIGIT-HCM (eGov)","Individual Packaging","Incineration"]
["Burundi",null,2025,"National - multi-phases",null,null,"No prioritization","CIBITOKE","Cibitoke","No integration","2024-06-24",260348,"Dual a.i.",{"$f":"IF(M41=ITNs!$E$8, ITNs!E41, IF(M41=ITNs!$B$8, ITNs!B41, IF(M41=ITNs!$C$8, ITNs!C41, IF(M41=ITNs!$D$8, ITNs!D41, IF(M41=ITNs!$E$8, ITNs!E41, IF(M41=ITNs!$F$8, ITNs!F41, IF(M41=ITNs!$G$8, ITNs!G41, IF(M41=ITNs!$H$8, ITNs!H41, \"ERROR\"))))))))","v":159102},null,null,"Global Fund","Global Fund","Macroplanning","Pending ITN arrival","On track","Training, Household Registration, Logistics and supply-chain, Distribution, Monitoring, Payment","National","DIGIT-HCM (eGov)","Individual Packaging","Incineration"]
["Burundi",null,2025,"National - multi-phases",null,null,"No prioritization","CIBITOKE","Mabayi","No integration","2024-06-24",261532,"Dual a.i.",{"$f":"IF(M42=ITNs!$E$8, ITNs!E42, IF(M42=ITNs!$B$8, ITNs!B42, IF(M42=ITNs!$C$8, ITNs!C42, IF(M42=ITNs!$D$8, ITNs!D42, IF(M42=ITNs!$E$8, ITNs!E42, IF(M42=ITNs!$F$8, ITNs!F42, IF(M42=ITNs!$G$8, ITNs!G42, IF(M42=ITNs!$H$8, ITNs!H42, \"ERROR\"))))))))","v":159825},null,null,"Global Fund","Global Fund","Macroplanning","Pending ITN arrival","On track","Training, Household Registration, Logistics and supply-chain, Distribution, Monitoring, Payment","National","DIGIT-HCM (eGov)","Individual Packaging","Incineration"]
["Burundi",null,2025,"National - multi-phases",null,null,"No prioritization","GITEGA ","Gitega","No integration","2024-06-24",385193,"Dual a.i.",{"$f":"IF(M43=ITNs!$E$8, ITNs!E43, IF(M43=ITNs!$B$8, ITNs!B43, IF(M43=ITNs!$C$8, ITNs!C43, IF(M43=ITNs!$D$8, ITNs!D43, IF(M43=ITNs!$E$8, ITNs!E43, IF(M43=ITNs!$F$8, ITNs!F43, IF(M43=ITNs!$G$8, ITNs!G43, IF(M43=ITNs!$H$8, ITNs!H43, \"ERROR\"))))))))","v":244531},null,null,"Global Fund","Global Fund","Macroplanning","Pending ITN arrival","On track","Training, Household Registration, Logistics and supply-chain, Distribution, Monitoring, Payment","National","DIGIT-HCM (eGov)","Individual Packaging","Incineration"]
["Burundi",null,2025,"National - multi-phases",null,null,"No prioritization","GITEGA ","Kibuye","No integration","2024-06-24",322305,"Dual a.i.",{"$f":"IF(M44=ITNs!$E$8, ITNs!E44, IF(M44=ITNs!$B$8, ITNs!B44, IF(M44=ITNs!$C$8, ITNs!C44, IF(M44=ITNs!$D$8, ITNs!D44, IF(M44=ITNs!$E$8, ITNs!E44, IF(M44=ITNs!$F$8, ITNs!F44, IF(M44=ITNs!$G$8, ITNs!G44, IF(M44=ITNs!$H$8, ITNs!H44, \"ERROR\"))))))))","v":196964},null,null,"Global Fund","Global Fund","Macroplanning","Pending ITN arrival","On track","Training, Household Registration, Logistics and supply-chain, Distribution, Monitoring, Payment","National","DIGIT-HCM (eGov)","Individual Packaging","Incineration"]
["Burundi",null,2025,"National - multi-phases",null,null,"No prioritization","GITEGA ","Mutaho","No integration","2024-06-24",293497,"Dual a.i.",{"$f":"IF(M45=ITNs!$E$8, ITNs!E45, IF(M45=ITNs!$B$8, ITNs!B45, IF(M45=ITNs!$C$8, ITNs!C45, IF(M45=ITNs!$D$8, ITNs!D45, IF(M45=ITNs!$E$8, ITNs!E45, IF(M45=ITNs!$F$8, ITNs!F45, IF(M45=ITNs!$G$8, ITNs!G45, IF(M45=ITNs!$H$8, ITNs!H45, \"ERROR\"))))))))","v":179359},null,null,"Global Fund","Global Fund","Macroplanning","Pending ITN arrival","On track","Training, Household Registration, Logistics and supply-chain, Distribution, Monitoring, Payment","National","DIGIT-HCM (eGov)","Individual Packaging","Incineration"]
["Burundi",null,2025,"National - multi-phases",null,null,"No prioritization","GITEGA ","Ryansoro","No integration","2024-06-24",224110,"Pyrethroid-only",{"$f":"IF(M46=ITNs!$E$8, ITNs!E46, IF(M46=ITNs!$B$8, ITNs!B46, IF(M46=ITNs!$C$8, ITNs!C46, IF(M46=ITNs!$D$8, ITNs!D46, IF(M46=ITNs!$E$8, ITNs!E46, IF(M46=ITNs!$F$8, ITNs!F46, IF(M46=ITNs!$G$8, ITNs!G46, IF(M46=ITNs!$H$8, ITNs!H46, \"ERROR\"))))))))","v":136956},null,null,"Global Fund","Global Fund","Macroplanning","Pending ITN arrival","On track","Training, Household Registration, Logistics and supply-chain, Distribution, Monitoring, Payment","National","DIGIT-HCM (eGov)","Bale Packaging","Incineration"]
["Burundi",null,2025,"National - multi-phases",null,null,"No prioritization","KAYANZA","Gahombo","No integration","2024-06-24",284179,"Dual a.i.",{"$f":"IF(M47=ITNs!$E$8, ITNs!E47, IF(M47=ITNs!$B$8, ITNs!B47, IF(M47=ITNs!$C$8, ITNs!C47, IF(M47=ITNs!$D$8, ITNs!D47, IF(M47=ITNs!$E$8, ITNs!E47, IF(M47=ITNs!$F$8, ITNs!F47, IF(M47=ITNs!$G$8, ITNs!G47, IF(M47=ITNs!$H$8, ITNs!H47, \"ERROR\"))))))))","v":177655},null,null,"Global Fund","Global Fund","Macroplanning","Pending ITN arrival","On track","Training, Household Registration, Logistics and supply-chain, Distribution, Monitoring, Payment","National","DIGIT-HCM (eGov)","Individual Packaging","Incineration"]
["Burundi",null,2025,"National - multi-phases",null,null,"No prioritization","KAYANZA","Kayanza","No integration","2024-06-24",367322,"Dual a.i.",{"$f":"IF(M48=ITNs!$E$8, ITNs!E48, IF(M48=ITNs!$B$8, ITNs!B48, IF(M48=ITNs!$C$8, ITNs!C48, IF(M48=ITNs!$D$8, ITNs!D48, IF(M48=ITNs!$E$8, ITNs!E48, IF(M48=ITNs!$F$8, ITNs!F48, IF(M48=ITNs!$G$8, ITNs!G48, IF(M48=ITNs!$H$8, ITNs!H48, \"ERROR\"))))))))","v":224475},null,null,"Global Fund","Global Fund","Macroplanning","Pending ITN arrival","On track","Training, Household Registration, Logistics and supply-chain, Distribution, Monitoring, Payment","National","DIGIT-HCM (eGov)","Individual Packaging","Incineration"]
["Burundi",null,2025,"National - multi-phases",null,null,"No prioritization","KAYANZA","Musema","No integration","2024-06-24",337424,"Dual a.i.",{"$f":"IF(M49=ITNs!$E$8, ITNs!E49, IF(M49=ITNs!$B$8, ITNs!B49, IF(M49=ITNs!$C$8, ITNs!C49, IF(M49=ITNs!$D$8, ITNs!D49, IF(M49=ITNs!$E$8, ITNs!E49, IF(M49=ITNs!$F$8, ITNs!F49, IF(M49=ITNs!$G$8, ITNs!G49, IF(M49=ITNs!$H$8, ITNs!H49, \"ERROR\"))))))))","v":206204},null,null,"Global Fund","Global Fund","Macroplanning","Pending ITN arrival","On track","Training, Household Registration, Logistics and supply-chain, Distribution, Monitoring, Payment","National","DIGIT-HCM (eGov)","Individual Packaging","Incineration"]
["Burundi",null,2025,"National - multi-phases",null,null,"No prioritization","KARUSI","Buhiga","No integration","2024-06-24",391124,"Dual a.i.",{"$f":"IF(M50=ITNs!$E$8, ITNs!E50, IF(M50=ITNs!$B$8, ITNs!B50, IF(M50=ITNs!$C$8, ITNs!C50, IF(M50=ITNs!$D$8, ITNs!D50, IF(M50=ITNs!$E$8, ITNs!E50, IF(M50=ITNs!$F$8, ITNs!F50, IF(M50=ITNs!$G$8, ITNs!G50, IF(M50=ITNs!$H$8, ITNs!H50, \"ERROR\"))))))))","v":239020},null,null,"Global Fund","Global Fund","Macroplanning","Pending ITN arrival","On track","Training, Household Registration, Logistics and supply-chain, Distribution, Monitoring, Payment","National","DIGIT-HCM (eGov)","Individual Packaging","Incineration"]
["Burundi",null,2025,"National - multi-phases",null,null,"No prioritization","KARUSI","Nyabikere","No integration","2024-06-24",346153,"Dual a.i.",{"$f":"IF(M51=ITNs!$E$8, ITNs!E51, IF(M51=ITNs!$B$8, ITNs!B51, IF(M51=ITNs!$C$8, ITNs!C51, IF(M51=ITNs!$D$8, ITNs!D51, IF(M51=ITNs!$E$8, ITNs!E51, IF(M51=ITNs!$F$8, ITNs!F51, IF(M51=ITNs!$G$8, ITNs!G51, IF(M51=ITNs!$H$8, ITNs!H51, \"ERROR\"))))))))","v":211538},null,"pilot distribution","Global Fund","Global Fund","Macroplanning","Pending ITN arrival","On track","Training, Household Registration, Logistics and supply-chain, Distribution, Monitoring, Payment","National","DIGIT-HCM (eGov)","Individual Packaging","Incineration"]
["Burundi",null,2025,"National - multi-phases",null,null,"No prioritization","KIRUNDO ","Busoni","No integration","2024-02-24",245662,"Dual a.i.",{"$f":"IF(M52=ITNs!$E$8, ITNs!E52, IF(M52=ITNs!$B$8, ITNs!B52, IF(M52=ITNs!$C$8, ITNs!C52, IF(M52=ITNs!$D$8, ITNs!D52, IF(M52=ITNs!$E$8, ITNs!E52, IF(M52=ITNs!$F$8, ITNs!F52, IF(M52=ITNs!$G$8, ITNs!G52, IF(M52=ITNs!$H$8, ITNs!H52, \"ERROR\"))))))))","v":152757},null,"pilot distribution","Global Fund","Global Fund","Macroplanning","Pending ITN arrival","On track","Training, Household Registration, Logistics and supply-chain, Distribution, Monitoring, Payment","National","DIGIT-HCM (eGov)","Individual Packaging","Incineration"]
["Burundi",null,2025,"National - multi-phases",null,null,"No prioritization","KIRUNDO ","Kirundo","No integration","2024-02-24",308073,"Dual a.i.",{"$f":"IF(M53=ITNs!$E$8, ITNs!E53, IF(M53=ITNs!$B$8, ITNs!B53, IF(M53=ITNs!$C$8, ITNs!C53, IF(M53=ITNs!$D$8, ITNs!D53, IF(M53=ITNs!$E$8, ITNs!E53, IF(M53=ITNs!$F$8, ITNs!F53, IF(M53=ITNs!$G$8, ITNs!G53, IF(M53=ITNs!$H$8, ITNs!H53, \"ERROR\"))))))))","v":188267},null,"pilot distribution","Global Fund","Global Fund","Macroplanning","Pending ITN arrival","On track","Training, Household Registration, Logistics and supply-chain, Distribution, Monitoring, Payment","National","DIGIT-HCM (eGov)","Individual Packaging","Incineration"]
["Burundi",null,2025,"National - multi-phases",null,null,"No prioritization","KIRUNDO ","Mukenke","No integration","2024-02-24",209711,"Dual a.i.",{"$f":"IF(M54=ITNs!$E$8, ITNs!E54, IF(M54=ITNs!$B$8, ITNs!B54, IF(M54=ITNs!$C$8, ITNs!C54, IF(M54=ITNs!$D$8, ITNs!D54, IF(M54=ITNs!$E$8, ITNs!E54, IF(M54=ITNs!$F$8, ITNs!F54, IF(M54=ITNs!$G$8, ITNs!G54, IF(M54=ITNs!$H$8, ITNs!H54, \"ERROR\"))))))))","v":128157},null,"pilot distribution","Global Fund","Global Fund","Macroplanning","Pending ITN arrival","On track","Training, Household Registration, Logistics and supply-chain, Distribution, Monitoring, Payment","National","DIGIT-HCM (eGov)","Individual Packaging","Incineration"]
["Burundi",null,2025,"National - multi-phases",null,null,"No prioritization","KIRUNDO ","Vumbi","No integration","2024-02-24",297856,"Dual a.i.",{"$f":"IF(M55=ITNs!$E$8, ITNs!E55, IF(M55=ITNs!$B$8, ITNs!B55, IF(M55=ITNs!$C$8, ITNs!C55, IF(M55=ITNs!$D$8, ITNs!D55, IF(M55=ITNs!$E$8, ITNs!E55, IF(M55=ITNs!$F$8, ITNs!F55, IF(M55=ITNs!$G$8, ITNs!G55, IF(M55=ITNs!$H$8, ITNs!H55, \"ERROR\"))))))))","v":182023},null,"pilot distribution","Global Fund","Global Fund","Macroplanning","Pending ITN arrival","On track","Training, Household Registration, Logistics and supply-chain, Distribution, Monitoring, Payment","National","DIGIT-HCM (eGov)","Individual Packaging","Incineration"]
["Burundi",null,2025,"National - multi-phases",null,null,"No prioritization","MAKAMBA","Makamba","No integration","2024-06-24",383616,"Dual a.i.",{"$f":"IF(M56=ITNs!$E$8, ITNs!E56, IF(M56=ITNs!$B$8, ITNs!B56, IF(M56=ITNs!$C$8, ITNs!C56, IF(M56=ITNs!$D$8, ITNs!D56, IF(M56=ITNs!$E$8, ITNs!E56, IF(M56=ITNs!$F$8, ITNs!F56, IF(M56=ITNs!$G$8, ITNs!G56, IF(M56=ITNs!$H$8, ITNs!H56, \"ERROR\"))))))))","v":240205},null,"pilot distribution","Global Fund","Global Fund","Macroplanning","Pending ITN arrival","On track","Training, Household Registration, Logistics and supply-chain, Distribution, Monitoring, Payment","National","DIGIT-HCM (eGov)","Individual Packaging","Incineration"]
["Burundi",null,2025,"National - multi-phases",null,null,"No prioritization","MAKAMBA","Nyanza-lac","No integration","2024-06-24",344294,"Dual a.i.",{"$f":"IF(M57=ITNs!$E$8, ITNs!E57, IF(M57=ITNs!$B$8, ITNs!B57, IF(M57=ITNs!$C$8, ITNs!C57, IF(M57=ITNs!$D$8, ITNs!D57, IF(M57=ITNs!$E$8, ITNs!E57, IF(M57=ITNs!$F$8, ITNs!F57, IF(M57=ITNs!$G$8, ITNs!G57, IF(M57=ITNs!$H$8, ITNs!H57, \"ERROR\"))))))))","v":210402},null,"pilot distribution","Global Fund","Global Fund","Macroplanning","Pending ITN arrival","On track","Training, Household Registration, Logistics and supply-chain, Distribution, Monitoring, Payment","National","DIGIT-HCM (eGov)","Individual Packaging","Incineration"]
["Burundi",null,2025,"National - multi-phases",null,null,"No prioritization","MURAMVYA","Kiganda","No integration","2024-06-24",245355,"Pyrethroid-only",{"$f":"IF(M58=ITNs!$E$8, ITNs!E58, IF(M58=ITNs!$B$8, ITNs!B58, IF(M58=ITNs!$C$8, ITNs!C58, IF(M58=ITNs!$D$8, ITNs!D58, IF(M58=ITNs!$E$8, ITNs!E58, IF(M58=ITNs!$F$8, ITNs!F58, IF(M58=ITNs!$G$8, ITNs!G58, IF(M58=ITNs!$H$8, ITNs!H58, \"ERROR\"))))))))","v":155166},null,null,"Global Fund","Global Fund","Macroplanning","Pending ITN arrival","On track","Training, Household Registration, Logistics and supply-chain, Distribution, Monitoring, Payment","National","DIGIT-HCM (eGov)","Bale Packaging","Incineration"]
["Burundi",null,2025,"National - multi-phases",null,null,"No prioritization","MURAMVYA","Muramvya","No integration","2024-06-24",248911,"Pyrethroid-only",{"$f":"IF(M59=ITNs!$E$8, ITNs!E59, IF(M59=ITNs!$B$8, ITNs!B59, IF(M59=ITNs!$C$8, ITNs!C59, IF(M59=ITNs!$D$8, ITNs!D59, IF(M59=ITNs!$E$8, ITNs!E59, IF(M59=ITNs!$F$8, ITNs!F59, IF(M59=ITNs!$G$8, ITNs!G59, IF(M59=ITNs!$H$8, ITNs!H59, \"ERROR\"))))))))","v":152112},null,null,"Global Fund","Global Fund","Macroplanning","Pending ITN arrival","On track","Training, Household Registration, Logistics and supply-chain, Distribution, Monitoring, Payment","National","DIGIT-HCM (eGov)","Bale Packaging","Incineration"]
["Burundi",null,2025,"National - multi-phases",null,null,"No prioritization","MUYINGA","Gashoho","No integration","2024-06-24",250191,"Pyrethroid-only",{"$f":"IF(M60=ITNs!$E$8, ITNs!E60, IF(M60=ITNs!$B$8, ITNs!B60, IF(M60=ITNs!$C$8, ITNs!C60, IF(M60=ITNs!$D$8, ITNs!D60, IF(M60=ITNs!$E$8, ITNs!E60, IF(M60=ITNs!$F$8, ITNs!F60, IF(M60=ITNs!$G$8, ITNs!G60, IF(M60=ITNs!$H$8, ITNs!H60, \"ERROR\"))))))))","v":152895},null,null,"Global Fund","Global Fund","Macroplanning","Pending ITN arrival","On track","Training, Household Registration, Logistics and supply-chain, Distribution, Monitoring, Payment","National","DIGIT-HCM (eGov)","Bale Packaging","Incineration"]
["Burundi",null,2025,"National - multi-phases",null,null,"No prioritization","MUYINGA","Muyinga","No integration","2024-06-24",398983,"Pyrethroid-only",{"$f":"IF(M61=ITNs!$E$8, ITNs!E61, IF(M61=ITNs!$B$8, ITNs!B61, IF(M61=ITNs!$C$8, ITNs!C61, IF(M61=ITNs!$D$8, ITNs!D61, IF(M61=ITNs!$E$8, ITNs!E61, IF(M61=ITNs!$F$8, ITNs!F61, IF(M61=ITNs!$G$8, ITNs!G61, IF(M61=ITNs!$H$8, ITNs!H61, \"ERROR\"))))))))","v":249344},null,null,"Global Fund","Global Fund","Macroplanning","Pending ITN arrival","On track","Training, Household Registration, Logistics and supply-chain, Distribution, Monitoring, Payment","National","DIGIT-HCM (eGov)","Bale Packaging","Incineration"]
["Burundi",null,2025,"National - multi-phases",null,null,"No prioritization","MWARO","Fota","No integration","2024-06-24",218813,"Pyrethroid-only",{"$f":"IF(M62=ITNs!$E$8, ITNs!E62, IF(M62=ITNs!$B$8, ITNs!B62, IF(M62=ITNs!$C$8, ITNs!C62, IF(M62=ITNs!$D$8, ITNs!D62, IF(M62=ITNs!$E$8, ITNs!E62, IF(M62=ITNs!$F$8, ITNs!F62, IF(M62=ITNs!$G$8, ITNs!G62, IF(M62=ITNs!$H$8, ITNs!H62, \"ERROR\"))))))))","v":135603},null,null,"Global Fund","Global Fund","Macroplanning","Pending ITN arrival","On track","Training, Household Registration, Logistics and supply-chain, Distribution, Monitoring, Payment","National","DIGIT-HCM (eGov)","Bale Packaging","Incineration"]
["Burundi",null,2025,"National - multi-phases",null,null,"No prioritization","MWARO","Kibumbu","No integration","2024-06-24",242602,"Pyrethroid-only",{"$f":"IF(M63=ITNs!$E$8, ITNs!E63, IF(M63=ITNs!$B$8, ITNs!B63, IF(M63=ITNs!$C$8, ITNs!C63, IF(M63=ITNs!$D$8, ITNs!D63, IF(M63=ITNs!$E$8, ITNs!E63, IF(M63=ITNs!$F$8, ITNs!F63, IF(M63=ITNs!$G$8, ITNs!G63, IF(M63=ITNs!$H$8, ITNs!H63, \"ERROR\"))))))))","v":148257},null,null,"Global Fund","Global Fund","Macroplanning","Pending ITN arrival","On track","Training, Household Registration, Logistics and supply-chain, Distribution, Monitoring, Payment","National","DIGIT-HCM (eGov)","Bale Packaging","Incineration"]
["Burundi",null,2025,"National - multi-phases",null,null,"No prioritization","NGOZI","Buye","No integration","2024-06-24",297097,"Pyrethroid-only",{"$f":"IF(M64=ITNs!$E$8, ITNs!E64, IF(M64=ITNs!$B$8, ITNs!B64, IF(M64=ITNs!$C$8, ITNs!C64, IF(M64=ITNs!$D$8, ITNs!D64, IF(M64=ITNs!$E$8, ITNs!E64, IF(M64=ITNs!$F$8, ITNs!F64, IF(M64=ITNs!$G$8, ITNs!G64, IF(M64=ITNs!$H$8, ITNs!H64, \"ERROR\"))))))))","v":181559},null,null,"Global Fund","Global Fund","Macroplanning","Pending ITN arrival","On track","Training, Household Registration, Logistics and supply-chain, Distribution, Monitoring, Payment","National","DIGIT-HCM (eGov)","Bale Packaging","Incineration"]
["Burundi",null,2025,"National - multi-phases",null,null,"No prioritization","NGOZI","Kiremba","No integration","2024-06-24",400035,"Pyrethroid-only",{"$f":"IF(M65=ITNs!$E$8, ITNs!E65, IF(M65=ITNs!$B$8, ITNs!B65, IF(M65=ITNs!$C$8, ITNs!C65, IF(M65=ITNs!$D$8, ITNs!D65, IF(M65=ITNs!$E$8, ITNs!E65, IF(M65=ITNs!$F$8, ITNs!F65, IF(M65=ITNs!$G$8, ITNs!G65, IF(M65=ITNs!$H$8, ITNs!H65, \"ERROR\"))))))))","v":250464},null,null,"Global Fund","Global Fund","Macroplanning","Pending ITN arrival","On track","Training, Household Registration, Logistics and supply-chain, Distribution, Monitoring, Payment","National","DIGIT-HCM (eGov)","Bale Packaging","Incineration"]
["Burundi",null,2025,"National - multi-phases",null,null,"No prioritization","RUMONGE","Bugarama","No integration","2024-06-24",250490,"Pyrethroid-only",{"$f":"IF(M66=ITNs!$E$8, ITNs!E66, IF(M66=ITNs!$B$8, ITNs!B66, IF(M66=ITNs!$C$8, ITNs!C66, IF(M66=ITNs!$D$8, ITNs!D66, IF(M66=ITNs!$E$8, ITNs!E66, IF(M66=ITNs!$F$8, ITNs!F66, IF(M66=ITNs!$G$8, ITNs!G66, IF(M66=ITNs!$H$8, ITNs!H66, \"ERROR\"))))))))","v":0},null,null,"Global Fund","Global Fund","Macroplanning","Pending ITN arrival","On track","Training, Household Registration, Logistics and supply-chain, Distribution, Monitoring, Payment","National","DIGIT-HCM (eGov)","Individual Packaging","Incineration"]
["Burundi",null,2025,"National - multi-phases",null,null,"No prioritization","RUMONGE","Rumonge","No integration","2024-06-24",344181,"Dual a.i.",{"$f":"IF(M67=ITNs!$E$8, ITNs!E67, IF(M67=ITNs!$B$8, ITNs!B67, IF(M67=ITNs!$C$8, ITNs!C67, IF(M67=ITNs!$D$8, ITNs!D67, IF(M67=ITNs!$E$8, ITNs!E67, IF(M67=ITNs!$F$8, ITNs!F67, IF(M67=ITNs!$G$8, ITNs!G67, IF(M67=ITNs!$H$8, ITNs!H67, \"ERROR\"))))))))","v":210333},null,null,"Global Fund","Global Fund","Macroplanning","Pending ITN arrival","On track","Training, Household Registration, Logistics and supply-chain, Distribution, Monitoring, Payment","National","DIGIT-HCM (eGov)","Individual Packaging","Incineration"]
["Burundi",null,2025,"National - multi-phases",null,null,"No prioritization","RUTANA","Gihofi","No integration","2024-06-24",291508,"Dual a.i.",{"$f":"IF(M68=ITNs!$E$8, ITNs!E68, IF(M68=ITNs!$B$8, ITNs!B68, IF(M68=ITNs!$C$8, ITNs!C68, IF(M68=ITNs!$D$8, ITNs!D68, IF(M68=ITNs!$E$8, ITNs!E68, IF(M68=ITNs!$F$8, ITNs!F68, IF(M68=ITNs!$G$8, ITNs!G68, IF(M68=ITNs!$H$8, ITNs!H68, \"ERROR\"))))))))","v":180131},null,null,"Global Fund","Global Fund","Macroplanning","Pending ITN arrival","On track","Training, Household Registration, Logistics and supply-chain, Distribution, Monitoring, Payment","National","DIGIT-HCM (eGov)","Individual Packaging","Incineration"]
["Burundi",null,2025,"National - multi-phases",null,null,"No prioritization","RUTANA","Rutana","No integration","2024-06-24",271886,"Dual a.i.",{"$f":"IF(M69=ITNs!$E$8, ITNs!E69, IF(M69=ITNs!$B$8, ITNs!B69, IF(M69=ITNs!$C$8, ITNs!C69, IF(M69=ITNs!$D$8, ITNs!D69, IF(M69=ITNs!$E$8, ITNs!E69, IF(M69=ITNs!$F$8, ITNs!F69, IF(M69=ITNs!$G$8, ITNs!G69, IF(M69=ITNs!$H$8, ITNs!H69, \"ERROR\"))))))))","v":166153},null,null,"Global Fund","Global Fund","Macroplanning","Pending ITN arrival","On track","Training, Household Registration, Logistics and supply-chain, Distribution, Monitoring, Payment","National","DIGIT-HCM (eGov)","Individual Packaging","Incineration"]
["Burundi",null,2025,"National - multi-phases",null,null,"No prioritization"," RUYIGI ","Butezi","No integration","2024-06-24",172922,"Dual a.i.",{"$f":"IF(M70=ITNs!$E$8, ITNs!E70, IF(M70=ITNs!$B$8, ITNs!B70, IF(M70=ITNs!$C$8, ITNs!C70, IF(M70=ITNs!$D$8, ITNs!D70, IF(M70=ITNs!$E$8, ITNs!E70, IF(M70=ITNs!$F$8, ITNs!F70, IF(M70=ITNs!$G$8, ITNs!G70, IF(M70=ITNs!$H$8, ITNs!H70, \"ERROR\"))))))))","v":131122},null,null,"Global Fund","Global Fund","Macroplanning","Pending ITN arrival","On track","Training, Household Registration, Logistics and supply-chain, Distribution, Monitoring, Payment","National","DIGIT-HCM (eGov)","Individual Packaging","Incineration"]
["Burundi",null,2025,"National - multi-phases",null,null,"No prioritization"," RUYIGI ","Gisuru","No integration","2024-06-24",168018,"Dual a.i.",{"$f":"IF(M71=ITNs!$E$8, ITNs!E71, IF(M71=ITNs!$B$8, ITNs!B71, IF(M71=ITNs!$C$8, ITNs!C71, IF(M71=ITNs!$D$8, ITNs!D71, IF(M71=ITNs!$E$8, ITNs!E71, IF(M71=ITNs!$F$8, ITNs!F71, IF(M71=ITNs!$G$8, ITNs!G71, IF(M71=ITNs!$H$8, ITNs!H71, \"ERROR\"))))))))","v":102678},null,null,"Global Fund","Global Fund","Macroplanning","Pending ITN arrival","On track","Training, Household Registration, Logistics and supply-chain, Distribution, Monitoring, Payment","National","DIGIT-HCM (eGov)","Individual Packaging","Incineration"]
["Burundi",null,2025,"National - multi-phases",null,null,"No prioritization"," RUYIGI ","Kinyinya","No integration","2024-06-24",176652,"Dual a.i.",{"$f":"IF(M72=ITNs!$E$8, ITNs!E72, IF(M72=ITNs!$B$8, ITNs!B72, IF(M72=ITNs!$C$8, ITNs!C72, IF(M72=ITNs!$D$8, ITNs!D72, IF(M72=ITNs!$E$8, ITNs!E72, IF(M72=ITNs!$F$8, ITNs!F72, IF(M72=ITNs!$G$8, ITNs!G72, IF(M72=ITNs!$H$8, ITNs!H72, \"ERROR\"))))))))","v":107954},null,null,"Global Fund","Global Fund","Macroplanning","Pending ITN arrival","On track","Training, Household Registration, Logistics and supply-chain, Distribution, Monitoring, Payment","National","DIGIT-HCM (eGov)","Individual Packaging","Incineration"]
["Burundi",null,2025,"National - multi-phases",null,null,"No prioritization"," RUYIGI ","Ruyigi","No integration","2024-06-24",159018,"Dual a.i.",{"$f":"IF(M73=ITNs!$E$8, ITNs!E73, IF(M73=ITNs!$B$8, ITNs!B73, IF(M73=ITNs!$C$8, ITNs!C73, IF(M73=ITNs!$D$8, ITNs!D73, IF(M73=ITNs!$E$8, ITNs!E73, IF(M73=ITNs!$F$8, ITNs!F73, IF(M73=ITNs!$G$8, ITNs!G73, IF(M73=ITNs!$H$8, ITNs!H73, \"ERROR\"))))))))","v":109324},null,null,"Global Fund","Global Fund","Macroplanning","Pending ITN arrival","On track","Training, Household Registration, Logistics and supply-chain, Distribution, Monitoring, Payment","National","DIGIT-HCM (eGov)","Individual Packaging","Incineration"]
["Cabo Verde","The rainy season typically extends from August to October, with the peak of rainfall usually occurring in September.",2025,"No campaign this year",null,null,null,null,null,null,null,null,"Multi-products",{"$f":"IF(M74=ITNs!$E$8, ITNs!E74, IF(M74=ITNs!$B$8, ITNs!B74, IF(M74=ITNs!$C$8, ITNs!C74, IF(M74=ITNs!$D$8, ITNs!D74, IF(M74=ITNs!$E$8, ITNs!E74, IF(M74=ITNs!$F$8, ITNs!F74, IF(M74=ITNs!$G$8, ITNs!G74, IF(M74=ITNs!$H$8, ITNs!H74, \"ERROR\"))))))))","v":0}]
["Cambodia","Monsoon season, typically occurs from May to October. ",2025,"National - one phase",null,null,null,null,null,null,null,null,"Multi-products",{"$f":"IF(M75=ITNs!$E$8, ITNs!E75, IF(M75=ITNs!$B$8, ITNs!B75, IF(M75=ITNs!$C$8, ITNs!C75, IF(M75=ITNs!$D$8, ITNs!D75, IF(M75=ITNs!$E$8, ITNs!E75, IF(M75=ITNs!$F$8, ITNs!F75, IF(M75=ITNs!$G$8, ITNs!G75, IF(M75=ITNs!$H$8, ITNs!H75, \"ERROR\"))))))))","v":170000},null,null,"PMI "]
["Cameroon","Generally from March to November, with two main rainy seasons: the long rainy season from March to June and the short rainy season from September to November.",2025,"Sub-national - one phase ",null,null,null,null,null,null,null,null,"Dual a.i.",{"$f":"IF(M76=ITNs!$E$8, ITNs!E76, IF(M76=ITNs!$B$8, ITNs!B76, IF(M76=ITNs!$C$8, ITNs!C76, IF(M76=ITNs!$D$8, ITNs!D76, IF(M76=ITNs!$E$8, ITNs!E76, IF(M76=ITNs!$F$8, ITNs!F76, IF(M76=ITNs!$G$8, ITNs!G76, IF(M76=ITNs!$H$8, ITNs!H76, \"ERROR\"))))))))","v":794200},null,null,"Global Fund"]
["Cameroon",null,2025,"Sub-national - one phase ",null,"Hybrid approach","No prioritization","Nord Ouest","Ako ","No integration","2024-03-24",64144,"Dual a.i.",{"$f":"IF(M77=ITNs!$E$8, ITNs!E77, IF(M77=ITNs!$B$8, ITNs!B77, IF(M77=ITNs!$C$8, ITNs!C77, IF(M77=ITNs!$D$8, ITNs!D77, IF(M77=ITNs!$E$8, ITNs!E77, IF(M77=ITNs!$F$8, ITNs!F77, IF(M77=ITNs!$G$8, ITNs!G77, IF(M77=ITNs!$H$8, ITNs!H77, \"ERROR\"))))))))","v":35650},"June","Distribution ongoing, Remaining Health districts from 2021-22 campaign","Global Fund",null,"Implementation","Delivered in-country","On track","Distribution","National","DHIS2","Individual Packaging"]
["Cameroon",null,2025,"Sub-national - one phase ",null,"Hybrid approach","No prioritization","Nord Ouest","Bali","No integration","2024-03-24",28944,"Dual a.i.",{"$f":"IF(M78=ITNs!$E$8, ITNs!E78, IF(M78=ITNs!$B$8, ITNs!B78, IF(M78=ITNs!$C$8, ITNs!C78, IF(M78=ITNs!$D$8, ITNs!D78, IF(M78=ITNs!$E$8, ITNs!E78, IF(M78=ITNs!$F$8, ITNs!F78, IF(M78=ITNs!$G$8, ITNs!G78, IF(M78=ITNs!$H$8, ITNs!H78, \"ERROR\"))))))))","v":16000},"June","Distribution ongoing, Remaining Health districts from 2021-22 campaign","Global Fund",null,"Implementation","Delivered in-country","On track","Distribution","National","DHIS2","Individual Packaging"]
["Cameroon",null,2025,"Sub-national - one phase ",null,"Hybrid approach","No prioritization","Nord Ouest","Batibo","No integration","2024-03-24",73906,"Dual a.i.",{"$f":"IF(M79=ITNs!$E$8, ITNs!E79, IF(M79=ITNs!$B$8, ITNs!B79, IF(M79=ITNs!$C$8, ITNs!C79, IF(M79=ITNs!$D$8, ITNs!D79, IF(M79=ITNs!$E$8, ITNs!E79, IF(M79=ITNs!$F$8, ITNs!F79, IF(M79=ITNs!$G$8, ITNs!G79, IF(M79=ITNs!$H$8, ITNs!H79, \"ERROR\"))))))))","v":40950},"June","Distribution ongoing, Remaining Health districts from 2021-22 campaign","Global Fund",null,"Implementation","Delivered in-country","On track","Distribution","National","DHIS2","Individual Packaging"]
["Cameroon",null,2025,"Sub-national - one phase ",null,"Hybrid approach","No prioritization","Nord Ouest","Fundong","No integration","2024-03-24",164557,"Dual a.i.",{"$f":"IF(M80=ITNs!$E$8, ITNs!E80, IF(M80=ITNs!$B$8, ITNs!B80, IF(M80=ITNs!$C$8, ITNs!C80, IF(M80=ITNs!$D$8, ITNs!D80, IF(M80=ITNs!$E$8, ITNs!E80, IF(M80=ITNs!$F$8, ITNs!F80, IF(M80=ITNs!$G$8, ITNs!G80, IF(M80=ITNs!$H$8, ITNs!H80, \"ERROR\"))))))))","v":91500},"June","Distribution ongoing, Remaining Health districts from 2021-22 campaign","Global Fund",null,"Implementation","Delivered in-country","On track","Distribution","National","DHIS2","Individual Packaging"]
["Cameroon",null,2025,"Sub-national - one phase ",null,"Hybrid approach","No prioritization","Nord Ouest","Mbengwi","No integration","2024-03-24",48034,"Dual a.i.",{"$f":"IF(M81=ITNs!$E$8, ITNs!E81, IF(M81=ITNs!$B$8, ITNs!B81, IF(M81=ITNs!$C$8, ITNs!C81, IF(M81=ITNs!$D$8, ITNs!D81, IF(M81=ITNs!$E$8, ITNs!E81, IF(M81=ITNs!$F$8, ITNs!F81, IF(M81=ITNs!$G$8, ITNs!G81, IF(M81=ITNs!$H$8, ITNs!H81, \"ERROR\"))))))))","v":26750},"June","Distribution ongoing, Remaining Health districts from 2021-22 campaign","Global Fund",null,"Implementation","Delivered in-country","On track","Distribution","National","DHIS2","Individual Packaging"]
["Cameroon",null,2025,"Sub-national - one phase ",null,"Hybrid approach","No prioritization","Nord Ouest","Ndop","No integration","2024-03-24",252950,"Dual a.i.",{"$f":"IF(M82=ITNs!$E$8, ITNs!E82, IF(M82=ITNs!$B$8, ITNs!B82, IF(M82=ITNs!$C$8, ITNs!C82, IF(M82=ITNs!$D$8, ITNs!D82, IF(M82=ITNs!$E$8, ITNs!E82, IF(M82=ITNs!$F$8, ITNs!F82, IF(M82=ITNs!$G$8, ITNs!G82, IF(M82=ITNs!$H$8, ITNs!H82, \"ERROR\"))))))))","v":140550},"June","Distribution ongoing, Remaining Health districts from 2021-22 campaign","Global Fund",null,"Implementation","Delivered in-country","On track","Distribution","National","DHIS2","Individual Packaging"]
["Cameroon",null,2025,"Sub-national - one phase ",null,"Hybrid approach","No prioritization","Nord Ouest","Njikwa","No integration","2024-03-24",20749,"Dual a.i.",{"$f":"IF(M83=ITNs!$E$8, ITNs!E83, IF(M83=ITNs!$B$8, ITNs!B83, IF(M83=ITNs!$C$8, ITNs!C83, IF(M83=ITNs!$D$8, ITNs!D83, IF(M83=ITNs!$E$8, ITNs!E83, IF(M83=ITNs!$F$8, ITNs!F83, IF(M83=ITNs!$G$8, ITNs!G83, IF(M83=ITNs!$H$8, ITNs!H83, \"ERROR\"))))))))","v":11500},"June","Distribution ongoing, Remaining Health districts from 2021-22 campaign","Global Fund",null,"Implementation","Delivered in-country","On track","Distribution","National","DHIS2","Individual Packaging"]
["Cameroon",null,2025,"Sub-national - one phase ",null,"Hybrid approach","No prioritization","Nord Ouest","Nkambe","No integration","2024-03-24",136278,"Dual a.i.",{"$f":"IF(M84=ITNs!$E$8, ITNs!E84, IF(M84=ITNs!$B$8, ITNs!B84, IF(M84=ITNs!$C$8, ITNs!C84, IF(M84=ITNs!$D$8, ITNs!D84, IF(M84=ITNs!$E$8, ITNs!E84, IF(M84=ITNs!$F$8, ITNs!F84, IF(M84=ITNs!$G$8, ITNs!G84, IF(M84=ITNs!$H$8, ITNs!H84, \"ERROR\"))))))))","v":75750},"June","Distribution ongoing, Remaining Health districts from 2021-22 campaign","Global Fund",null,"Implementation","Delivered in-country","On track","Distribution","National","DHIS2","Individual Packaging"]
["Cameroon",null,2025,"Sub-national - one phase ",null,"Hybrid approach","No prioritization","Nord Ouest","Nwa","No integration","2024-03-24",63895,"Dual a.i.",{"$f":"IF(M85=ITNs!$E$8, ITNs!E85, IF(M85=ITNs!$B$8, ITNs!B85, IF(M85=ITNs!$C$8, ITNs!C85, IF(M85=ITNs!$D$8, ITNs!D85, IF(M85=ITNs!$E$8, ITNs!E85, IF(M85=ITNs!$F$8, ITNs!F85, IF(M85=ITNs!$G$8, ITNs!G85, IF(M85=ITNs!$H$8, ITNs!H85, \"ERROR\"))))))))","v":35450},"June","Distribution ongoing, Remaining Health districts from 2021-22 campaign","Global Fund",null,"Implementation","Delivered in-country","On track","Distribution","National","DHIS2","Individual Packaging"]
["Cameroon",null,2025,"Sub-national - one phase ",null,"Hybrid approach","No prioritization","Nord Ouest","Oku","No integration","2024-03-24",88155,"Dual a.i.",{"$f":"IF(M86=ITNs!$E$8, ITNs!E86, IF(M86=ITNs!$B$8, ITNs!B86, IF(M86=ITNs!$C$8, ITNs!C86, IF(M86=ITNs!$D$8, ITNs!D86, IF(M86=ITNs!$E$8, ITNs!E86, IF(M86=ITNs!$F$8, ITNs!F86, IF(M86=ITNs!$G$8, ITNs!G86, IF(M86=ITNs!$H$8, ITNs!H86, \"ERROR\"))))))))","v":48950},"June","Distribution ongoing, Remaining Health districts from 2021-22 campaign","Global Fund",null,"Implementation","Delivered in-country","On track","Distribution","National","DHIS2","Individual Packaging"]
["Cameroon",null,2025,"Sub-national - one phase ",null,"Hybrid approach","No prioritization","Nord Ouest","Wum","No integration","2024-03-24",135656,"Dual a.i.",{"$f":"IF(M87=ITNs!$E$8, ITNs!E87, IF(M87=ITNs!$B$8, ITNs!B87, IF(M87=ITNs!$C$8, ITNs!C87, IF(M87=ITNs!$D$8, ITNs!D87, IF(M87=ITNs!$E$8, ITNs!E87, IF(M87=ITNs!$F$8, ITNs!F87, IF(M87=ITNs!$G$8, ITNs!G87, IF(M87=ITNs!$H$8, ITNs!H87, \"ERROR\"))))))))","v":75350},"June","Distribution ongoing, Remaining Health districts from 2021-22 campaign","Global Fund",null,"Implementation","Delivered in-country","On track","Distribution","National","DHIS2","Individual Packaging"]
["Cameroon",null,2025,"Sub-national - one phase ",null,"Hybrid approach","No prioritization","Sud Ouest","Akwaya","No integration","2024-03-24",68866,"Dual a.i.",{"$f":"IF(M88=ITNs!$E$8, ITNs!E88, IF(M88=ITNs!$B$8, ITNs!B88, IF(M88=ITNs!$C$8, ITNs!C88, IF(M88=ITNs!$D$8, ITNs!D88, IF(M88=ITNs!$E$8, ITNs!E88, IF(M88=ITNs!$F$8, ITNs!F88, IF(M88=ITNs!$G$8, ITNs!G88, IF(M88=ITNs!$H$8, ITNs!H88, \"ERROR\"))))))))","v":38250},"June","Distribution ongoing, Remaining Health districts from 2021-22 campaign","Global Fund",null,"Implementation","Delivered in-country","On track","Distribution","National","DHIS2","Individual Packaging"]
["Cameroon",null,2025,"Sub-national - one phase ",null,"Hybrid approach","No prioritization","Sud Ouest","Bangem","No integration","2024-03-24",25059,"Dual a.i.",{"$f":"IF(M89=ITNs!$E$8, ITNs!E89, IF(M89=ITNs!$B$8, ITNs!B89, IF(M89=ITNs!$C$8, ITNs!C89, IF(M89=ITNs!$D$8, ITNs!D89, IF(M89=ITNs!$E$8, ITNs!E89, IF(M89=ITNs!$F$8, ITNs!F89, IF(M89=ITNs!$G$8, ITNs!G89, IF(M89=ITNs!$H$8, ITNs!H89, \"ERROR\"))))))))","v":13950},"June","Distribution ongoing, Remaining Health districts from 2021-22 campaign","Global Fund",null,"Implementation","Delivered in-country","On track","Distribution","National","DHIS2","Individual Packaging"]
["Cameroon",null,2025,"Sub-national - one phase ",null,"Hybrid approach","No prioritization","Sud Ouest","Fontem","No integration","2024-03-24",123879,"Dual a.i.",{"$f":"IF(M90=ITNs!$E$8, ITNs!E90, IF(M90=ITNs!$B$8, ITNs!B90, IF(M90=ITNs!$C$8, ITNs!C90, IF(M90=ITNs!$D$8, ITNs!D90, IF(M90=ITNs!$E$8, ITNs!E90, IF(M90=ITNs!$F$8, ITNs!F90, IF(M90=ITNs!$G$8, ITNs!G90, IF(M90=ITNs!$H$8, ITNs!H90, \"ERROR\"))))))))","v":68900},"June","Distribution ongoing, Remaining Health districts from 2021-22 campaign","Global Fund",null,"Implementation","Delivered in-country","On track","Distribution","National","DHIS2","Individual Packaging"]
["Cameroon",null,2025,"Sub-national - one phase ",null,"Hybrid approach","No prioritization","Sud Ouest","Tombel","No integration","2024-03-24",86029,"Dual a.i.",{"$f":"IF(M91=ITNs!$E$8, ITNs!E91, IF(M91=ITNs!$B$8, ITNs!B91, IF(M91=ITNs!$C$8, ITNs!C91, IF(M91=ITNs!$D$8, ITNs!D91, IF(M91=ITNs!$E$8, ITNs!E91, IF(M91=ITNs!$F$8, ITNs!F91, IF(M91=ITNs!$G$8, ITNs!G91, IF(M91=ITNs!$H$8, ITNs!H91, \"ERROR\"))))))))","v":47750},"June","Distribution ongoing, Remaining Health districts from 2021-22 campaign","Global Fund",null,"Implementation","Delivered in-country","On track","Distribution","National","DHIS2","Individual Packaging"]
["Cameroon",null,2025,"Sub-national - one phase ",null,"Hybrid approach","No prioritization","Sud Ouest","Wabane","No integration","2024-03-24",48438,"Dual a.i.",{"$f":"IF(M92=ITNs!$E$8, ITNs!E92, IF(M92=ITNs!$B$8, ITNs!B92, IF(M92=ITNs!$C$8, ITNs!C92, IF(M92=ITNs!$D$8, ITNs!D92, IF(M92=ITNs!$E$8, ITNs!E92, IF(M92=ITNs!$F$8, ITNs!F92, IF(M92=ITNs!$G$8, ITNs!G92, IF(M92=ITNs!$H$8, ITNs!H92, \"ERROR\"))))))))","v":26950},"June","Distribution ongoing, Remaining Health districts from 2021-22 campaign","Global Fund",null,"Implementation","Delivered in-country","On track","Distribution","National","DHIS2","Individual Packaging"]
["Cameroon","Generally from March to November, with two main rainy seasons: the long rainy season from March to June and the short rainy season from September to November.",2025,"Sub-national - multi phases",null,null,null,null,null,null,null,null,"Dual a.i.",{"$f":"IF(M93=ITNs!$E$8, ITNs!E93, IF(M93=ITNs!$B$8, ITNs!B93, IF(M93=ITNs!$C$8, ITNs!C93, IF(M93=ITNs!$D$8, ITNs!D93, IF(M93=ITNs!$E$8, ITNs!E93, IF(M93=ITNs!$F$8, ITNs!F93, IF(M93=ITNs!$G$8, ITNs!G93, IF(M93=ITNs!$H$8, ITNs!H93, \"ERROR\"))))))))","v":10793346},null,null,"Global Fund"]
["Cameroon",null,2025,"Sub-national - multi phases",null,null,"No prioritization","Adamaoua",null,null,"2025-06-01",null,"Dual a.i.",{"$f":"IF(M94=ITNs!$E$8, ITNs!E94, IF(M94=ITNs!$B$8, ITNs!B94, IF(M94=ITNs!$C$8, ITNs!C94, IF(M94=ITNs!$D$8, ITNs!D94, IF(M94=ITNs!$E$8, ITNs!E94, IF(M94=ITNs!$F$8, ITNs!F94, IF(M94=ITNs!$G$8, ITNs!G94, IF(M94=ITNs!$H$8, ITNs!H94, \"ERROR\"))))))))","v":856541},null,"Phase 1","Global Fund",null,"Not started","Pending ITN arrival",null,"Household registration "]
["Cameroon",null,2025,"Sub-national - multi phases",null,null,"National focus with prioritization of ITNs in non-urban areas over urban areas, National focus with prioritization of ITNs in urban areas over non-urban areas","Littoral (Douala)",null,null,"2025-06-01",null,"Dual a.i.",{"$f":"IF(M95=ITNs!$E$8, ITNs!E95, IF(M95=ITNs!$B$8, ITNs!B95, IF(M95=ITNs!$C$8, ITNs!C95, IF(M95=ITNs!$D$8, ITNs!D95, IF(M95=ITNs!$E$8, ITNs!E95, IF(M95=ITNs!$F$8, ITNs!F95, IF(M95=ITNs!$G$8, ITNs!G95, IF(M95=ITNs!$H$8, ITNs!H95, \"ERROR\"))))))))","v":2120296},null,"Phase 1","Global Fund",null,"Not started","Pending ITN arrival",null,"Household registration "]
["Cameroon",null,2025,"Sub-national - multi phases",null,null,"No prioritization","Est",null,null,"2025-06-01",null,"Dual a.i.",{"$f":"IF(M96=ITNs!$E$8, ITNs!E96, IF(M96=ITNs!$B$8, ITNs!B96, IF(M96=ITNs!$C$8, ITNs!C96, IF(M96=ITNs!$D$8, ITNs!D96, IF(M96=ITNs!$E$8, ITNs!E96, IF(M96=ITNs!$F$8, ITNs!F96, IF(M96=ITNs!$G$8, ITNs!G96, IF(M96=ITNs!$H$8, ITNs!H96, \"ERROR\"))))))))","v":713206},null,"Phase 1","Global Fund",null,"Not started","Pending ITN arrival",null,"Household registration "]
["Cameroon",null,2025,"Sub-national - multi phases",null,null,"No prioritization","Extreme Nord",null,null,"2025-06-01",null,"Dual a.i.",{"$f":"IF(M97=ITNs!$E$8, ITNs!E97, IF(M97=ITNs!$B$8, ITNs!B97, IF(M97=ITNs!$C$8, ITNs!C97, IF(M97=ITNs!$D$8, ITNs!D97, IF(M97=ITNs!$E$8, ITNs!E97, IF(M97=ITNs!$F$8, ITNs!F97, IF(M97=ITNs!$G$8, ITNs!G97, IF(M97=ITNs!$H$8, ITNs!H97, \"ERROR\"))))))))","v":3055063},null,"Phase 1","Global Fund",null,"Not started","Pending ITN arrival",null,"Household registration "]
["Cameroon",null,2025,"Sub-national - multi phases",null,null,"National focus with prioritization of ITNs in non-urban areas over urban areas","Littoral rural",null,null,"2025-06-01",null,"Dual a.i.",{"$f":"IF(M98=ITNs!$E$8, ITNs!E98, IF(M98=ITNs!$B$8, ITNs!B98, IF(M98=ITNs!$C$8, ITNs!C98, IF(M98=ITNs!$D$8, ITNs!D98, IF(M98=ITNs!$E$8, ITNs!E98, IF(M98=ITNs!$F$8, ITNs!F98, IF(M98=ITNs!$G$8, ITNs!G98, IF(M98=ITNs!$H$8, ITNs!H98, \"ERROR\"))))))))","v":379076},null,"Phase 1","Global Fund",null,"Not started","Pending ITN arrival",null,"Household registration "]
["Cameroon",null,2025,"Sub-national - multi phases",null,null,"No prioritization","Nord",null,null,"2025-06-01",null,"Dual a.i.",{"$f":"IF(M99=ITNs!$E$8, ITNs!E99, IF(M99=ITNs!$B$8, ITNs!B99, IF(M99=ITNs!$C$8, ITNs!C99, IF(M99=ITNs!$D$8, ITNs!D99, IF(M99=ITNs!$E$8, ITNs!E99, IF(M99=ITNs!$F$8, ITNs!F99, IF(M99=ITNs!$G$8, ITNs!G99, IF(M99=ITNs!$H$8, ITNs!H99, \"ERROR\"))))))))","v":1936619},null,"Phase 1","Global Fund",null,"Not started","Pending ITN arrival",null,"Household registration "]
["Cameroon",null,2025,"Sub-national - multi phases",null,null,"No prioritization","Ouest",null,null,"2025-06-01",null,"Dual a.i.",{"$f":"IF(M100=ITNs!$E$8, ITNs!E100, IF(M100=ITNs!$B$8, ITNs!B100, IF(M100=ITNs!$C$8, ITNs!C100, IF(M100=ITNs!$D$8, ITNs!D100, IF(M100=ITNs!$E$8, ITNs!E100, IF(M100=ITNs!$F$8, ITNs!F100, IF(M100=ITNs!$G$8, ITNs!G100, IF(M100=ITNs!$H$8, ITNs!H100, \"ERROR\"))))))))","v":1240468},null,"Phase 1","Global Fund",null,"Not started","Pending ITN arrival",null,"Household registration "]
["Cameroon",null,2025,"Sub-national - multi phases",null,null,"No prioritization","Sud",null,null,"2025-06-01",null,"Dual a.i.",{"$f":"IF(M101=ITNs!$E$8, ITNs!E101, IF(M101=ITNs!$B$8, ITNs!B101, IF(M101=ITNs!$C$8, ITNs!C101, IF(M101=ITNs!$D$8, ITNs!D101, IF(M101=ITNs!$E$8, ITNs!E101, IF(M101=ITNs!$F$8, ITNs!F101, IF(M101=ITNs!$G$8, ITNs!G101, IF(M101=ITNs!$H$8, ITNs!H101, \"ERROR\"))))))))","v":492077},null,"Phase 1","Global Fund",null,"Not started","Pending ITN arrival",null,"Household registration "]
["Cameroon",null,2026,"Sub-national - multi phases",null,null,null,null,null,null,null,null,"Dual a.i.",{"$f":"IF(M102=ITNs!$E$8, ITNs!E102, IF(M102=ITNs!$B$8, ITNs!B102, IF(M102=ITNs!$C$8, ITNs!C102, IF(M102=ITNs!$D$8, ITNs!D102, IF(M102=ITNs!$E$8, ITNs!E102, IF(M102=ITNs!$F$8, ITNs!F102, IF(M102=ITNs!$G$8, ITNs!G102, IF(M102=ITNs!$H$8, ITNs!H102, \"ERROR\"))))))))","v":5697026},null,null,"Government"]
["Cameroon",null,2026,"Sub-national - multi phases",null,null,"National focus with prioritization of ITNs in urban areas over non-urban areas","Centre",null,null,"2026-02-26",null,"Dual a.i.",{"$f":"IF(M103=ITNs!$E$8, ITNs!E103, IF(M103=ITNs!$B$8, ITNs!B103, IF(M103=ITNs!$C$8, ITNs!C103, IF(M103=ITNs!$D$8, ITNs!D103, IF(M103=ITNs!$E$8, ITNs!E103, IF(M103=ITNs!$F$8, ITNs!F103, IF(M103=ITNs!$G$8, ITNs!G103, IF(M103=ITNs!$H$8, ITNs!H103, \"ERROR\"))))))))","v":981169},null,"Phase 2","Government",null,"Not started","Pending ITN arrival"]
["Cameroon",null,2026,"Sub-national - multi phases",null,null,"No prioritization","Nord Ouest",null,null,"2026-02-26",null,"Dual a.i.",{"$f":"IF(M104=ITNs!$E$8, ITNs!E104, IF(M104=ITNs!$B$8, ITNs!B104, IF(M104=ITNs!$C$8, ITNs!C104, IF(M104=ITNs!$D$8, ITNs!D104, IF(M104=ITNs!$E$8, ITNs!E104, IF(M104=ITNs!$F$8, ITNs!F104, IF(M104=ITNs!$G$8, ITNs!G104, IF(M104=ITNs!$H$8, ITNs!H104, \"ERROR\"))))))))","v":1381361},null,"Phase 2","Government",null,"Not started","Pending ITN arrival"]
["Cameroon",null,2026,"Sub-national - multi phases",null,null,"No prioritization","Sud Ouest",null,null,"2026-02-26",null,"Dual a.i.",{"$f":"IF(M105=ITNs!$E$8, ITNs!E105, IF(M105=ITNs!$B$8, ITNs!B105, IF(M105=ITNs!$C$8, ITNs!C105, IF(M105=ITNs!$D$8, ITNs!D105, IF(M105=ITNs!$E$8, ITNs!E105, IF(M105=ITNs!$F$8, ITNs!F105, IF(M105=ITNs!$G$8, ITNs!G105, IF(M105=ITNs!$H$8, ITNs!H105, \"ERROR\"))))))))","v":1193807},null,"Phase 2","Government",null,"Not started","Pending ITN arrival"]
["Cameroon",null,2026,"Sub-national - multi phases",null,null,"National focus with prioritization of ITNs in non-urban areas over urban areas, National focus with prioritization of ITNs in urban areas over non-urban areas","Yaounde",null,null,"2026-02-26",null,"Dual a.i.",{"$f":"IF(M106=ITNs!$E$8, ITNs!E106, IF(M106=ITNs!$B$8, ITNs!B106, IF(M106=ITNs!$C$8, ITNs!C106, IF(M106=ITNs!$D$8, ITNs!D106, IF(M106=ITNs!$E$8, ITNs!E106, IF(M106=ITNs!$F$8, ITNs!F106, IF(M106=ITNs!$G$8, ITNs!G106, IF(M106=ITNs!$H$8, ITNs!H106, \"ERROR\"))))))))","v":2140689},null,"Phase 2","Government",null,"Not started","Pending ITN arrival"]
["CAR","Typically from March to November, with peak rainfall usually occurring from May to October. The rainy season is characterized by two peaks, one in May and June and another in September and October.",2024,"No campaign this year",null,null,null,null,null,null,null,null,"PBO",{"$f":"IF(M107=ITNs!$E$8, ITNs!E107, IF(M107=ITNs!$B$8, ITNs!B107, IF(M107=ITNs!$C$8, ITNs!C107, IF(M107=ITNs!$D$8, ITNs!D107, IF(M107=ITNs!$E$8, ITNs!E107, IF(M107=ITNs!$F$8, ITNs!F107, IF(M107=ITNs!$G$8, ITNs!G107, IF(M107=ITNs!$H$8, ITNs!H107, \"ERROR\"))))))))","v":4290650}]
["CAR",null,2025,"National - one phase",null,null,null,"7 Régions sanitaires",null,null,null,6723431,"PBO",{"$f":"IF(M108=ITNs!$E$8, ITNs!E108, IF(M108=ITNs!$B$8, ITNs!B108, IF(M108=ITNs!$C$8, ITNs!C108, IF(M108=ITNs!$D$8, ITNs!D108, IF(M108=ITNs!$E$8, ITNs!E108, IF(M108=ITNs!$F$8, ITNs!F108, IF(M108=ITNs!$G$8, ITNs!G108, IF(M108=ITNs!$H$8, ITNs!H108, \"ERROR\"))))))))","v":4290650},null,null,"Global Fund"]
["CAR - ROUTINE",null,2025,null,null,null,null,null,null,null,null,null,"Dual a.i.",{"$f":"IF(M109=ITNs!$E$8, ITNs!E109, IF(M109=ITNs!$B$8, ITNs!B109, IF(M109=ITNs!$C$8, ITNs!C109, IF(M109=ITNs!$D$8, ITNs!D109, IF(M109=ITNs!$E$8, ITNs!E109, IF(M109=ITNs!$F$8, ITNs!F109, IF(M109=ITNs!$G$8, ITNs!G109, IF(M109=ITNs!$H$8, ITNs!H109, \"ERROR\"))))))))","v":744750},null,null,null,null,null,null,null,null,null,null,null,null,"La campagne de 2025 sera une campagne unique qui va se dérouler simultanément dans toutes les régions sanitaires du pays. L'arrivée des moustiquaires au pays est prévue pour le mois de mai 2025. Aucun mois n'ayant été pour l'instant retenu pour la distribution, la campagne ne pourra donc être menée qu'après l'arrivée des moustiquaires c'est-à-dire après le mois de mai 2025."]
["Chad","Generally from June to September, with peak rainfall usually occurring from July to August. Chad's rainy season is shorter compared to other Central African countries.",2026,null,null,null,null,null,null,null,null,null,"Multi-products",{"$f":"IF(M110=ITNs!$E$8, ITNs!E110, IF(M110=ITNs!$B$8, ITNs!B110, IF(M110=ITNs!$C$8, ITNs!C110, IF(M110=ITNs!$D$8, ITNs!D110, IF(M110=ITNs!$E$8, ITNs!E110, IF(M110=ITNs!$F$8, ITNs!F110, IF(M110=ITNs!$G$8, ITNs!G110, IF(M110=ITNs!$H$8, ITNs!H110, \"ERROR\"))))))))","v":0}]
["Comoros","Rainy season typically occurs from November to April.",2025,null,null,null,null,null,null,null,null,null,"Pyrethroid-only",{"$f":"IF(M111=ITNs!$E$8, ITNs!E111, IF(M111=ITNs!$B$8, ITNs!B111, IF(M111=ITNs!$C$8, ITNs!C111, IF(M111=ITNs!$D$8, ITNs!D111, IF(M111=ITNs!$E$8, ITNs!E111, IF(M111=ITNs!$F$8, ITNs!F111, IF(M111=ITNs!$G$8, ITNs!G111, IF(M111=ITNs!$H$8, ITNs!H111, \"ERROR\"))))))))","v":121400}]
["Congo Brazzaville","Typically from March to November, with peak rainfall usually occurring from April to June and a secondary peak from September to November.",2024,null,null,null,null,null,null,null,null,null,"Multi-products",{"$f":"IF(M112=ITNs!$E$8, ITNs!E112, IF(M112=ITNs!$B$8, ITNs!B112, IF(M112=ITNs!$C$8, ITNs!C112, IF(M112=ITNs!$D$8, ITNs!D112, IF(M112=ITNs!$E$8, ITNs!E112, IF(M112=ITNs!$F$8, ITNs!F112, IF(M112=ITNs!$G$8, ITNs!G112, IF(M112=ITNs!$H$8, ITNs!H112, \"ERROR\"))))))))","v":4643261}]
["Congo Brazzaville",null,2025,null,null,null,null,null,null,null,null,null,"Multi-products",{"$f":"IF(M113=ITNs!$E$8, ITNs!E113, IF(M113=ITNs!$B$8, ITNs!B113, IF(M113=ITNs!$C$8, ITNs!C113, IF(M113=ITNs!$D$8, ITNs!D113, IF(M113=ITNs!$E$8, ITNs!E113, IF(M113=ITNs!$F$8, ITNs!F113, IF(M113=ITNs!$G$8, ITNs!G113, IF(M113=ITNs!$H$8, ITNs!H113, \"ERROR\"))))))))","v":436295}]
["Congo (Democratic Republic)","Typically from March to November, with peak rainfall usually occurring from April to June and a secondary peak from September to November.",2024,"Sub-national - one phase ",null,null,null,null,null,null,null,null,"Multi-products",{"$f":"IF(M114=ITNs!$E$8, ITNs!E114, IF(M114=ITNs!$B$8, ITNs!B114, IF(M114=ITNs!$C$8, ITNs!C114, IF(M114=ITNs!$D$8, ITNs!D114, IF(M114=ITNs!$E$8, ITNs!E114, IF(M114=ITNs!$F$8, ITNs!F114, IF(M114=ITNs!$G$8, ITNs!G114, IF(M114=ITNs!$H$8, ITNs!H114, \"ERROR\"))))))))","v":10164004}]
["Congo (Democratic Republic)","Typically from March to November, with peak rainfall usually occurring from April to June and a secondary peak from September to November.",2024,"Sub-national - one phase ",null,null,null,"KINSHASA",null,null,"2023-10-01",12723186,"Dual a.i.",{"$f":"IF(M115=ITNs!$E$8, ITNs!E115, IF(M115=ITNs!$B$8, ITNs!B115, IF(M115=ITNs!$C$8, ITNs!C115, IF(M115=ITNs!$D$8, ITNs!D115, IF(M115=ITNs!$E$8, ITNs!E115, IF(M115=ITNs!$F$8, ITNs!F115, IF(M115=ITNs!$G$8, ITNs!G115, IF(M115=ITNs!$H$8, ITNs!H115, \"ERROR\"))))))))","v":10164004},"2024-01-01",null,"AMF"]
["Congo (Democratic Republic)","Typically from March to November, with peak rainfall usually occurring from April to June and a secondary peak from September to November.",2025,null,null,null,null,null,null,null,null,null,"Multi-products",{"$f":"IF(M116=ITNs!$E$8, ITNs!E116, IF(M116=ITNs!$B$8, ITNs!B116, IF(M116=ITNs!$C$8, ITNs!C116, IF(M116=ITNs!$D$8, ITNs!D116, IF(M116=ITNs!$E$8, ITNs!E116, IF(M116=ITNs!$F$8, ITNs!F116, IF(M116=ITNs!$G$8, ITNs!G116, IF(M116=ITNs!$H$8, ITNs!H116, \"ERROR\"))))))))","v":6641966}]
["Cote d'Ivoire","Rainy Season: Typically from May to October, with the heaviest rainfall occurring between June and September.",2024,"Sub-national - one phase ",null,null,null,"101 health districts excluding the ten health districts in Abidjan where ITN distribution is postponed to 2025 , as well as the two health districts of Nassian and Sakassou that conducted the 2023 ITN mini campaign. In addition, forty-seven villages in Beoumi and forty villages in Tiebissou where trial studies are being carried out (EaveTube with In2Care and ITN Standard/PBO/IG2 with Global Fund) will also be excluded from the 2024 mass distribution. ",null,null,null,null,"Dual a.i.",{"$f":"IF(M117=ITNs!$E$8, ITNs!E117, IF(M117=ITNs!$B$8, ITNs!B117, IF(M117=ITNs!$C$8, ITNs!C117, IF(M117=ITNs!$D$8, ITNs!D117, IF(M117=ITNs!$E$8, ITNs!E117, IF(M117=ITNs!$F$8, ITNs!F117, IF(M117=ITNs!$G$8, ITNs!G117, IF(M117=ITNs!$H$8, ITNs!H117, \"ERROR\"))))))))","v":14731533},null,null,null,null,null,null,"On track","Real-time tracking, household registration, distribution, and supervision","Selected province/region",null,"Individual Packaging","Burial ","PMI Evolve facilitated the distribution of PBO ITNs in 28 districts, while the Global Fund\nsupported the remaining 73 districts with Dual AI, PBO, and standard nets.\n16 of the 101 districts nationwide piloted mass campaign digitalization efforts, including\nthree districts supported by PMI Evolve\nPMI Evolve shared key messages emphasizing that the individual packaging should not be reused for food storage\nand should instead be either returned to the health facility or deeply buried for proper disposal. PMI Evolve recommends a system where community health workers would collect ITN waste and return it to health facilities for proper disposal."]
["Cote d'Ivoire","Rainy Season: Typically from May to October, with the heaviest rainfall occurring between June and September.",2025,null,null,null,null,null,null,null,null,null,"Multi-products",{"$f":"IF(M118=ITNs!$E$8, ITNs!E118, IF(M118=ITNs!$B$8, ITNs!B118, IF(M118=ITNs!$C$8, ITNs!C118, IF(M118=ITNs!$D$8, ITNs!D118, IF(M118=ITNs!$E$8, ITNs!E118, IF(M118=ITNs!$F$8, ITNs!F118, IF(M118=ITNs!$G$8, ITNs!G118, IF(M118=ITNs!$H$8, ITNs!H118, \"ERROR\"))))))))","v":701602}]
["Cote d'Ivoire","Rainy Season: Typically from May to October, with the heaviest rainfall occurring between June and September.",2026,null,null,null,null,null,null,null,null,null,"Multi-products",{"$f":"IF(M119=ITNs!$E$8, ITNs!E119, IF(M119=ITNs!$B$8, ITNs!B119, IF(M119=ITNs!$C$8, ITNs!C119, IF(M119=ITNs!$D$8, ITNs!D119, IF(M119=ITNs!$E$8, ITNs!E119, IF(M119=ITNs!$F$8, ITNs!F119, IF(M119=ITNs!$G$8, ITNs!G119, IF(M119=ITNs!$H$8, ITNs!H119, \"ERROR\"))))))))","v":12209385}]
["Djibouti","Rainy season typically occurs from late June to early September. ",2024,"No campaign this year",null,null,null,null,null,null,null,null,"Dual a.i.",{"$f":"IF(M120=ITNs!$E$8, ITNs!E120, IF(M120=ITNs!$B$8, ITNs!B120, IF(M120=ITNs!$C$8, ITNs!C120, IF(M120=ITNs!$D$8, ITNs!D120, IF(M120=ITNs!$E$8, ITNs!E120, IF(M120=ITNs!$F$8, ITNs!F120, IF(M120=ITNs!$G$8, ITNs!G120, IF(M120=ITNs!$H$8, ITNs!H120, \"ERROR\"))))))))","v":39858}]
["Djibouti","Rainy season typically occurs from late June to early September. ",2025,null,null,null,null,null,null,null,null,null,"Dual a.i.",{"$f":"IF(M121=ITNs!$E$8, ITNs!E121, IF(M121=ITNs!$B$8, ITNs!B121, IF(M121=ITNs!$C$8, ITNs!C121, IF(M121=ITNs!$D$8, ITNs!D121, IF(M121=ITNs!$E$8, ITNs!E121, IF(M121=ITNs!$F$8, ITNs!F121, IF(M121=ITNs!$G$8, ITNs!G121, IF(M121=ITNs!$H$8, ITNs!H121, \"ERROR\"))))))))","v":256779}]
["Djibouti","Rainy season typically occurs from late June to early September. ",2026,null,null,null,null,null,null,null,null,null,"Dual a.i.",{"$f":"IF(M122=ITNs!$E$8, ITNs!E122, IF(M122=ITNs!$B$8, ITNs!B122, IF(M122=ITNs!$C$8, ITNs!C122, IF(M122=ITNs!$D$8, ITNs!D122, IF(M122=ITNs!$E$8, ITNs!E122, IF(M122=ITNs!$F$8, ITNs!F122, IF(M122=ITNs!$G$8, ITNs!G122, IF(M122=ITNs!$H$8, ITNs!H122, \"ERROR\"))))))))","v":40580}]
["Equatorial Guinea - mainland","Rainy season generally from February to May and from September to December, with peak rainfall usually occurring from March to May and from October to December.",2025,null,null,null,null,null,null,null,null,null,"Multi-products",{"$f":"IF(M123=ITNs!$E$8, ITNs!E123, IF(M123=ITNs!$B$8, ITNs!B123, IF(M123=ITNs!$C$8, ITNs!C123, IF(M123=ITNs!$D$8, ITNs!D123, IF(M123=ITNs!$E$8, ITNs!E123, IF(M123=ITNs!$F$8, ITNs!F123, IF(M123=ITNs!$G$8, ITNs!G123, IF(M123=ITNs!$H$8, ITNs!H123, \"ERROR\"))))))))","v":0},null,null,"Global Fund"]
["Equatorial Guinea - Bioko",null,2025,null,null,null,null,null,null,null,null,null,"Multi-products",{"$f":"IF(M124=ITNs!$E$8, ITNs!E124, IF(M124=ITNs!$B$8, ITNs!B124, IF(M124=ITNs!$C$8, ITNs!C124, IF(M124=ITNs!$D$8, ITNs!D124, IF(M124=ITNs!$E$8, ITNs!E124, IF(M124=ITNs!$F$8, ITNs!F124, IF(M124=ITNs!$G$8, ITNs!G124, IF(M124=ITNs!$H$8, ITNs!H124, \"ERROR\"))))))))","v":0},null,null,"Other"]
["Eritrea","Rainy season typically occurs from June to September.",2024,"No campaign this year",null,null,null,null,null,null,null,null,"Pyrethroid-only",{"$f":"IF(M125=ITNs!$E$8, ITNs!E125, IF(M125=ITNs!$B$8, ITNs!B125, IF(M125=ITNs!$C$8, ITNs!C125, IF(M125=ITNs!$D$8, ITNs!D125, IF(M125=ITNs!$E$8, ITNs!E125, IF(M125=ITNs!$F$8, ITNs!F125, IF(M125=ITNs!$G$8, ITNs!G125, IF(M125=ITNs!$H$8, ITNs!H125, \"ERROR\"))))))))","v":120276}]
["Eritrea","Rainy season typically occurs from June to September.",2025,null,null,null,null,null,null,null,null,null,"Pyrethroid-only",{"$f":"IF(M126=ITNs!$E$8, ITNs!E126, IF(M126=ITNs!$B$8, ITNs!B126, IF(M126=ITNs!$C$8, ITNs!C126, IF(M126=ITNs!$D$8, ITNs!D126, IF(M126=ITNs!$E$8, ITNs!E126, IF(M126=ITNs!$F$8, ITNs!F126, IF(M126=ITNs!$G$8, ITNs!G126, IF(M126=ITNs!$H$8, ITNs!H126, \"ERROR\"))))))))","v":143773}]
["Eritrea","Rainy season typically occurs from June to September.",2026,null,null,null,null,null,null,null,null,null,"Multi-products",{"$f":"IF(M127=ITNs!$E$8, ITNs!E127, IF(M127=ITNs!$B$8, ITNs!B127, IF(M127=ITNs!$C$8, ITNs!C127, IF(M127=ITNs!$D$8, ITNs!D127, IF(M127=ITNs!$E$8, ITNs!E127, IF(M127=ITNs!$F$8, ITNs!F127, IF(M127=ITNs!$G$8, ITNs!G127, IF(M127=ITNs!$H$8, ITNs!H127, \"ERROR\"))))))))","v":468284}]
["Eswatini","Generally from October to April, with peak rainfall usually occurring from December to February.",2025,null,null,null,null,null,null,null,null,null,"PBO",{"$f":"IF(M128=ITNs!$E$8, ITNs!E128, IF(M128=ITNs!$B$8, ITNs!B128, IF(M128=ITNs!$C$8, ITNs!C128, IF(M128=ITNs!$D$8, ITNs!D128, IF(M128=ITNs!$E$8, ITNs!E128, IF(M128=ITNs!$F$8, ITNs!F128, IF(M128=ITNs!$G$8, ITNs!G128, IF(M128=ITNs!$H$8, ITNs!H128, \"ERROR\"))))))))","v":10000}]
["Eswatini","Generally from October to April, with peak rainfall usually occurring from December to February.",2026,null,null,null,null,null,null,null,null,null,"PBO",{"$f":"IF(M129=ITNs!$E$8, ITNs!E129, IF(M129=ITNs!$B$8, ITNs!B129, IF(M129=ITNs!$C$8, ITNs!C129, IF(M129=ITNs!$D$8, ITNs!D129, IF(M129=ITNs!$E$8, ITNs!E129, IF(M129=ITNs!$F$8, ITNs!F129, IF(M129=ITNs!$G$8, ITNs!G129, IF(M129=ITNs!$H$8, ITNs!H129, \"ERROR\"))))))))","v":10500}]
["Ethiopia","The main rainy season in Ethiopia, known as the Belg season, typically occurs from February to May, with peak rainfall in April.\nKiremt Season: The second rainy season, known as the Kiremt season, occurs from June to September, with peak rainfall in July and August.\nRainfall patterns in Ethiopia can vary significantly across different regions, with the highlands and central plateau receiving the most rainfall.",2024,"Sub-national - one phase ",null,null,null,null,null,null,null,null,"Dual a.i.",{"$f":"IF(M130=ITNs!$E$8, ITNs!E130, IF(M130=ITNs!$B$8, ITNs!B130, IF(M130=ITNs!$C$8, ITNs!C130, IF(M130=ITNs!$D$8, ITNs!D130, IF(M130=ITNs!$E$8, ITNs!E130, IF(M130=ITNs!$F$8, ITNs!F130, IF(M130=ITNs!$G$8, ITNs!G130, IF(M130=ITNs!$H$8, ITNs!H130, \"ERROR\"))))))))","v":8066144},null,null,"Multiple"]
["Ethiopia",null,2024,"Sub-national - one phase ",null,null,null,"Oromia",null,null,"2024-06-01",7516256,"Dual a.i.",{"$f":"IF(M131=ITNs!$E$8, ITNs!E131, IF(M131=ITNs!$B$8, ITNs!B131, IF(M131=ITNs!$C$8, ITNs!C131, IF(M131=ITNs!$D$8, ITNs!D131, IF(M131=ITNs!$E$8, ITNs!E131, IF(M131=ITNs!$F$8, ITNs!F131, IF(M131=ITNs!$G$8, ITNs!G131, IF(M131=ITNs!$H$8, ITNs!H131, \"ERROR\"))))))))","v":3382612},null,null,"Multiple"]
["Ethiopia",null,2024,"Sub-national - one phase ",null,null,null,"Amhara",null,null,"2024-06-01",5623388,"Dual a.i.",{"$f":"IF(M132=ITNs!$E$8, ITNs!E132, IF(M132=ITNs!$B$8, ITNs!B132, IF(M132=ITNs!$C$8, ITNs!C132, IF(M132=ITNs!$D$8, ITNs!D132, IF(M132=ITNs!$E$8, ITNs!E132, IF(M132=ITNs!$F$8, ITNs!F132, IF(M132=ITNs!$G$8, ITNs!G132, IF(M132=ITNs!$H$8, ITNs!H132, \"ERROR\"))))))))","v":2424706},null,null,"Multiple"]
["Ethiopia",null,2024,"Sub-national - one phase ",null,null,null,"Somali",null,null,"2024-06-01",3519908,"Dual a.i.",{"$f":"IF(M133=ITNs!$E$8, ITNs!E133, IF(M133=ITNs!$B$8, ITNs!B133, IF(M133=ITNs!$C$8, ITNs!C133, IF(M133=ITNs!$D$8, ITNs!D133, IF(M133=ITNs!$E$8, ITNs!E133, IF(M133=ITNs!$F$8, ITNs!F133, IF(M133=ITNs!$G$8, ITNs!G133, IF(M133=ITNs!$H$8, ITNs!H133, \"ERROR\"))))))))","v":1553104},null,null,"Multiple"]
["Ethiopia",null,2024,"Sub-national - one phase ",null,null,null,"Gambella",null,null,"2024-02-01",138663,"Dual a.i.",{"$f":"IF(M134=ITNs!$E$8, ITNs!E134, IF(M134=ITNs!$B$8, ITNs!B134, IF(M134=ITNs!$C$8, ITNs!C134, IF(M134=ITNs!$D$8, ITNs!D134, IF(M134=ITNs!$E$8, ITNs!E134, IF(M134=ITNs!$F$8, ITNs!F134, IF(M134=ITNs!$G$8, ITNs!G134, IF(M134=ITNs!$H$8, ITNs!H134, \"ERROR\"))))))))","v":77035},null,null,"USAID/PMI "]
["Ethiopia",null,2024,"Sub-national - one phase ",null,null,null,"South Ethiopia",null,null,"2024-06-01",485438,"Dual a.i.",{"$f":"IF(M135=ITNs!$E$8, ITNs!E135, IF(M135=ITNs!$B$8, ITNs!B135, IF(M135=ITNs!$C$8, ITNs!C135, IF(M135=ITNs!$D$8, ITNs!D135, IF(M135=ITNs!$E$8, ITNs!E135, IF(M135=ITNs!$F$8, ITNs!F135, IF(M135=ITNs!$G$8, ITNs!G135, IF(M135=ITNs!$H$8, ITNs!H135, \"ERROR\"))))))))","v":190084},null,null,"USAID/PMI "]
["Ethiopia",null,2024,"Sub-national - one phase ",null,null,null,"Central Ethiopia",null,null,"2024-06-01",300859,"Dual a.i.",{"$f":"IF(M136=ITNs!$E$8, ITNs!E136, IF(M136=ITNs!$B$8, ITNs!B136, IF(M136=ITNs!$C$8, ITNs!C136, IF(M136=ITNs!$D$8, ITNs!D136, IF(M136=ITNs!$E$8, ITNs!E136, IF(M136=ITNs!$F$8, ITNs!F136, IF(M136=ITNs!$G$8, ITNs!G136, IF(M136=ITNs!$H$8, ITNs!H136, \"ERROR\"))))))))","v":167144},null,null,"USAID/PMI "]
["Ethiopia",null,2024,"Sub-national - one phase ",null,null,null,"Dire Dawa Rural kebeles",null,null,"2024-06-01",181077,"Dual a.i.",{"$f":"IF(M137=ITNs!$E$8, ITNs!E137, IF(M137=ITNs!$B$8, ITNs!B137, IF(M137=ITNs!$C$8, ITNs!C137, IF(M137=ITNs!$D$8, ITNs!D137, IF(M137=ITNs!$E$8, ITNs!E137, IF(M137=ITNs!$F$8, ITNs!F137, IF(M137=ITNs!$G$8, ITNs!G137, IF(M137=ITNs!$H$8, ITNs!H137, \"ERROR\"))))))))","v":100598},null,null,"USAID/PMI "]
["Ethiopia",null,2024,"Sub-national - one phase ",null,null,null,"Benishangul Gumuz",null,null,"2024-05-01",164313,"Dual a.i.",{"$f":"IF(M138=ITNs!$E$8, ITNs!E138, IF(M138=ITNs!$B$8, ITNs!B138, IF(M138=ITNs!$C$8, ITNs!C138, IF(M138=ITNs!$D$8, ITNs!D138, IF(M138=ITNs!$E$8, ITNs!E138, IF(M138=ITNs!$F$8, ITNs!F138, IF(M138=ITNs!$G$8, ITNs!G138, IF(M138=ITNs!$H$8, ITNs!H138, \"ERROR\"))))))))","v":91285},null,null,"USAID/PMI "]
["Ethiopia",null,2024,"Sub-national - one phase ",null,null,null,"Tigray",null,null,"2024-05-01",143286,"Dual a.i.",{"$f":"IF(M139=ITNs!$E$8, ITNs!E139, IF(M139=ITNs!$B$8, ITNs!B139, IF(M139=ITNs!$C$8, ITNs!C139, IF(M139=ITNs!$D$8, ITNs!D139, IF(M139=ITNs!$E$8, ITNs!E139, IF(M139=ITNs!$F$8, ITNs!F139, IF(M139=ITNs!$G$8, ITNs!G139, IF(M139=ITNs!$H$8, ITNs!H139, \"ERROR\"))))))))","v":79576},null,null,"USAID/PMI "]
["Gabon","Typically from February to May and from September to December, with peak rainfall usually occurring from March to May and from October to December.",2025,null,null,null,null,null,null,null,null,null,"Multi-products",{"$f":"IF(M140=ITNs!$E$8, ITNs!E140, IF(M140=ITNs!$B$8, ITNs!B140, IF(M140=ITNs!$C$8, ITNs!C140, IF(M140=ITNs!$D$8, ITNs!D140, IF(M140=ITNs!$E$8, ITNs!E140, IF(M140=ITNs!$F$8, ITNs!F140, IF(M140=ITNs!$G$8, ITNs!G140, IF(M140=ITNs!$H$8, ITNs!H140, \"ERROR\"))))))))","v":0}]
["Gambia (The)","Rainy season typically spans from June to October.",2024,"No campaign this year",null,null,null,null,null,null,null,null,"Dual a.i.",{"$f":"IF(M141=ITNs!$E$8, ITNs!E141, IF(M141=ITNs!$B$8, ITNs!B141, IF(M141=ITNs!$C$8, ITNs!C141, IF(M141=ITNs!$D$8, ITNs!D141, IF(M141=ITNs!$E$8, ITNs!E141, IF(M141=ITNs!$F$8, ITNs!F141, IF(M141=ITNs!$G$8, ITNs!G141, IF(M141=ITNs!$H$8, ITNs!H141, \"ERROR\"))))))))","v":1608391}]
["Gambia (The)","Rainy season typically spans from June to October.",2025,null,null,null,null,null,null,null,null,null,"Dual a.i.",{"$f":"IF(M142=ITNs!$E$8, ITNs!E142, IF(M142=ITNs!$B$8, ITNs!B142, IF(M142=ITNs!$C$8, ITNs!C142, IF(M142=ITNs!$D$8, ITNs!D142, IF(M142=ITNs!$E$8, ITNs!E142, IF(M142=ITNs!$F$8, ITNs!F142, IF(M142=ITNs!$G$8, ITNs!G142, IF(M142=ITNs!$H$8, ITNs!H142, \"ERROR\"))))))))","v":50000}]
["Gambia (The)","Rainy season typically spans from June to October.",2026,null,null,null,null,null,null,null,null,null,"Dual a.i.",{"$f":"IF(M143=ITNs!$E$8, ITNs!E143, IF(M143=ITNs!$B$8, ITNs!B143, IF(M143=ITNs!$C$8, ITNs!C143, IF(M143=ITNs!$D$8, ITNs!D143, IF(M143=ITNs!$E$8, ITNs!E143, IF(M143=ITNs!$F$8, ITNs!F143, IF(M143=ITNs!$G$8, ITNs!G143, IF(M143=ITNs!$H$8, ITNs!H143, \"ERROR\"))))))))","v":80000}]
["Ghana","Rainy season typically spans from June to October.",2024,null,null,null,null,null,null,null,null,null,"Pyrethroid-only",{"$f":"IF(M144=ITNs!$E$8, ITNs!E144, IF(M144=ITNs!$B$8, ITNs!B144, IF(M144=ITNs!$C$8, ITNs!C144, IF(M144=ITNs!$D$8, ITNs!D144, IF(M144=ITNs!$E$8, ITNs!E144, IF(M144=ITNs!$F$8, ITNs!F144, IF(M144=ITNs!$G$8, ITNs!G144, IF(M144=ITNs!$H$8, ITNs!H144, \"ERROR\"))))))))","v":274070}]
["Ghana","Rainy Season: Generally from April to October, with the heaviest rainfall occurring between June and September.",2025,null,null,null,null,null,null,null,null,null,"Multi-products",{"$f":"IF(M145=ITNs!$E$8, ITNs!E145, IF(M145=ITNs!$B$8, ITNs!B145, IF(M145=ITNs!$C$8, ITNs!C145, IF(M145=ITNs!$D$8, ITNs!D145, IF(M145=ITNs!$E$8, ITNs!E145, IF(M145=ITNs!$F$8, ITNs!F145, IF(M145=ITNs!$G$8, ITNs!G145, IF(M145=ITNs!$H$8, ITNs!H145, \"ERROR\"))))))))","v":2414155}]
["Ghana","Rainy Season: Generally from April to October, with the heaviest rainfall occurring between June and September.",2026,null,null,null,null,null,null,null,null,null,"Multi-products",{"$f":"IF(M146=ITNs!$E$8, ITNs!E146, IF(M146=ITNs!$B$8, ITNs!B146, IF(M146=ITNs!$C$8, ITNs!C146, IF(M146=ITNs!$D$8, ITNs!D146, IF(M146=ITNs!$E$8, ITNs!E146, IF(M146=ITNs!$F$8, ITNs!F146, IF(M146=ITNs!$G$8, ITNs!G146, IF(M146=ITNs!$H$8, ITNs!H146, \"ERROR\"))))))))","v":4566912}]
["Guinea","Rainy Season: Generally from May to October, with peak rainfall usually occurring between June and September.",2024,"No campaign this year",null,null,null,null,null,null,null,null,"Dual a.i.",{"$f":"IF(M147=ITNs!$E$8, ITNs!E147, IF(M147=ITNs!$B$8, ITNs!B147, IF(M147=ITNs!$C$8, ITNs!C147, IF(M147=ITNs!$D$8, ITNs!D147, IF(M147=ITNs!$E$8, ITNs!E147, IF(M147=ITNs!$F$8, ITNs!F147, IF(M147=ITNs!$G$8, ITNs!G147, IF(M147=ITNs!$H$8, ITNs!H147, \"ERROR\"))))))))","v":191350}]
["Guinea","Rainy Season: Generally from May to October, with peak rainfall usually occurring between June and September.",2025,"National - one phase",null,null,null,null,null,null,null,null,"Dual a.i.",{"$f":"IF(M148=ITNs!$E$8, ITNs!E148, IF(M148=ITNs!$B$8, ITNs!B148, IF(M148=ITNs!$C$8, ITNs!C148, IF(M148=ITNs!$D$8, ITNs!D148, IF(M148=ITNs!$E$8, ITNs!E148, IF(M148=ITNs!$F$8, ITNs!F148, IF(M148=ITNs!$G$8, ITNs!G148, IF(M148=ITNs!$H$8, ITNs!H148, \"ERROR\"))))))))","v":5334800}]
["Guinea Bissau","Rainy season typically extends from June to October.",2024,"No campaign this year",null,null,null,null,null,null,null,null,"Multi-products",{"$f":"IF(M149=ITNs!$E$8, ITNs!E149, IF(M149=ITNs!$B$8, ITNs!B149, IF(M149=ITNs!$C$8, ITNs!C149, IF(M149=ITNs!$D$8, ITNs!D149, IF(M149=ITNs!$E$8, ITNs!E149, IF(M149=ITNs!$F$8, ITNs!F149, IF(M149=ITNs!$G$8, ITNs!G149, IF(M149=ITNs!$H$8, ITNs!H149, \"ERROR\"))))))))","v":1770860}]
["Guinea Bissau","Rainy season typically extends from June to October.",2025,null,null,null,null,null,null,null,null,null,"Multi-products",{"$f":"IF(M150=ITNs!$E$8, ITNs!E150, IF(M150=ITNs!$B$8, ITNs!B150, IF(M150=ITNs!$C$8, ITNs!C150, IF(M150=ITNs!$D$8, ITNs!D150, IF(M150=ITNs!$E$8, ITNs!E150, IF(M150=ITNs!$F$8, ITNs!F150, IF(M150=ITNs!$G$8, ITNs!G150, IF(M150=ITNs!$H$8, ITNs!H150, \"ERROR\"))))))))","v":190208}]
["Guinea Bissau","Rainy season typically extends from June to October.",2026,null,null,null,null,null,null,null,null,null,"Multi-products",{"$f":"IF(M151=ITNs!$E$8, ITNs!E151, IF(M151=ITNs!$B$8, ITNs!B151, IF(M151=ITNs!$C$8, ITNs!C151, IF(M151=ITNs!$D$8, ITNs!D151, IF(M151=ITNs!$E$8, ITNs!E151, IF(M151=ITNs!$F$8, ITNs!F151, IF(M151=ITNs!$G$8, ITNs!G151, IF(M151=ITNs!$H$8, ITNs!H151, \"ERROR\"))))))))","v":207032}]
["Haiti","Rainy season usually spans from May to October.",2024,null,null,null,null,null,null,null,null,null,"Pyrethroid-only",{"$f":"IF(M152=ITNs!$E$8, ITNs!E152, IF(M152=ITNs!$B$8, ITNs!B152, IF(M152=ITNs!$C$8, ITNs!C152, IF(M152=ITNs!$D$8, ITNs!D152, IF(M152=ITNs!$E$8, ITNs!E152, IF(M152=ITNs!$F$8, ITNs!F152, IF(M152=ITNs!$G$8, ITNs!G152, IF(M152=ITNs!$H$8, ITNs!H152, \"ERROR\"))))))))","v":69099}]
["Haiti","Rainy season usually spans from May to October.",2025,null,null,null,null,null,null,null,null,null,"Pyrethroid-only",{"$f":"IF(M153=ITNs!$E$8, ITNs!E153, IF(M153=ITNs!$B$8, ITNs!B153, IF(M153=ITNs!$C$8, ITNs!C153, IF(M153=ITNs!$D$8, ITNs!D153, IF(M153=ITNs!$E$8, ITNs!E153, IF(M153=ITNs!$F$8, ITNs!F153, IF(M153=ITNs!$G$8, ITNs!G153, IF(M153=ITNs!$H$8, ITNs!H153, \"ERROR\"))))))))","v":101815}]
["Haiti","Rainy season usually spans from May to October.",2026,null,null,null,null,null,null,null,null,null,"Pyrethroid-only",{"$f":"IF(M154=ITNs!$E$8, ITNs!E154, IF(M154=ITNs!$B$8, ITNs!B154, IF(M154=ITNs!$C$8, ITNs!C154, IF(M154=ITNs!$D$8, ITNs!D154, IF(M154=ITNs!$E$8, ITNs!E154, IF(M154=ITNs!$F$8, ITNs!F154, IF(M154=ITNs!$G$8, ITNs!G154, IF(M154=ITNs!$H$8, ITNs!H154, \"ERROR\"))))))))","v":1052052}]
["Honduras","Rainy season typically occurs from May to October.",2024,"No campaign this year",null,null,null,null,null,null,null,null,"Multi-products",{"$f":"IF(M155=ITNs!$E$8, ITNs!E155, IF(M155=ITNs!$B$8, ITNs!B155, IF(M155=ITNs!$C$8, ITNs!C155, IF(M155=ITNs!$D$8, ITNs!D155, IF(M155=ITNs!$E$8, ITNs!E155, IF(M155=ITNs!$F$8, ITNs!F155, IF(M155=ITNs!$G$8, ITNs!G155, IF(M155=ITNs!$H$8, ITNs!H155, \"ERROR\"))))))))","v":71231}]
["Honduras",null,2025,null,null,null,null,null,null,null,null,null,"Multi-products",{"$f":"IF(M156=ITNs!$E$8, ITNs!E156, IF(M156=ITNs!$B$8, ITNs!B156, IF(M156=ITNs!$C$8, ITNs!C156, IF(M156=ITNs!$D$8, ITNs!D156, IF(M156=ITNs!$E$8, ITNs!E156, IF(M156=ITNs!$F$8, ITNs!F156, IF(M156=ITNs!$G$8, ITNs!G156, IF(M156=ITNs!$H$8, ITNs!H156, \"ERROR\"))))))))","v":98636}]
["India","Monsoon season, usually occurs from June to September.",2024,null,null,null,null,null,null,null,null,null,"Pyrethroid-only",{"$f":"IF(M157=ITNs!$E$8, ITNs!E157, IF(M157=ITNs!$B$8, ITNs!B157, IF(M157=ITNs!$C$8, ITNs!C157, IF(M157=ITNs!$D$8, ITNs!D157, IF(M157=ITNs!$E$8, ITNs!E157, IF(M157=ITNs!$F$8, ITNs!F157, IF(M157=ITNs!$G$8, ITNs!G157, IF(M157=ITNs!$H$8, ITNs!H157, \"ERROR\"))))))))","v":25221045}]
["India","Monsoon season, usually occurs from June to September.",2025,null,null,null,null,null,null,null,null,null,"Pyrethroid-only",{"$f":"IF(M158=ITNs!$E$8, ITNs!E158, IF(M158=ITNs!$B$8, ITNs!B158, IF(M158=ITNs!$C$8, ITNs!C158, IF(M158=ITNs!$D$8, ITNs!D158, IF(M158=ITNs!$E$8, ITNs!E158, IF(M158=ITNs!$F$8, ITNs!F158, IF(M158=ITNs!$G$8, ITNs!G158, IF(M158=ITNs!$H$8, ITNs!H158, \"ERROR\"))))))))","v":0}]
["India","Monsoon season, usually occurs from June to September.",2026,null,null,null,null,null,null,null,null,null,"Pyrethroid-only",{"$f":"IF(M159=ITNs!$E$8, ITNs!E159, IF(M159=ITNs!$B$8, ITNs!B159, IF(M159=ITNs!$C$8, ITNs!C159, IF(M159=ITNs!$D$8, ITNs!D159, IF(M159=ITNs!$E$8, ITNs!E159, IF(M159=ITNs!$F$8, ITNs!F159, IF(M159=ITNs!$G$8, ITNs!G159, IF(M159=ITNs!$H$8, ITNs!H159, \"ERROR\"))))))))","v":0}]
["Indonesia","Rainy season typically occurs from November to March in most parts of the country, with variations depending on the region.",2024,null,null,null,null,null,null,null,null,null,"Pyrethroid-only",{"$f":"IF(M160=ITNs!$E$8, ITNs!E160, IF(M160=ITNs!$B$8, ITNs!B160, IF(M160=ITNs!$C$8, ITNs!C160, IF(M160=ITNs!$D$8, ITNs!D160, IF(M160=ITNs!$E$8, ITNs!E160, IF(M160=ITNs!$F$8, ITNs!F160, IF(M160=ITNs!$G$8, ITNs!G160, IF(M160=ITNs!$H$8, ITNs!H160, \"ERROR\"))))))))","v":2285600}]
["Indonesia","Rainy season typically occurs from November to March in most parts of the country, with variations depending on the region.",2025,null,null,null,null,null,null,null,null,null,"Pyrethroid-only",{"$f":"IF(M161=ITNs!$E$8, ITNs!E161, IF(M161=ITNs!$B$8, ITNs!B161, IF(M161=ITNs!$C$8, ITNs!C161, IF(M161=ITNs!$D$8, ITNs!D161, IF(M161=ITNs!$E$8, ITNs!E161, IF(M161=ITNs!$F$8, ITNs!F161, IF(M161=ITNs!$G$8, ITNs!G161, IF(M161=ITNs!$H$8, ITNs!H161, \"ERROR\"))))))))","v":43600}]
["Indonesia","Rainy season typically occurs from November to March in most parts of the country, with variations depending on the region.",2026,null,null,null,null,null,null,null,null,null,"Pyrethroid-only",{"$f":"IF(M162=ITNs!$E$8, ITNs!E162, IF(M162=ITNs!$B$8, ITNs!B162, IF(M162=ITNs!$C$8, ITNs!C162, IF(M162=ITNs!$D$8, ITNs!D162, IF(M162=ITNs!$E$8, ITNs!E162, IF(M162=ITNs!$F$8, ITNs!F162, IF(M162=ITNs!$G$8, ITNs!G162, IF(M162=ITNs!$H$8, ITNs!H162, \"ERROR\"))))))))","v":17650}]
["Kenya","Long Rains: Typically occur from March to May, with the peak of rainfall in April.\nShort Rains: Generally occur from October to December, with the peak in November. ",2024,"Sub-national - one phase ",null,null,null,null,null,null,null,null,"Multi-products",{"$f":"IF(M163=ITNs!$E$8, ITNs!E163, IF(M163=ITNs!$B$8, ITNs!B163, IF(M163=ITNs!$C$8, ITNs!C163, IF(M163=ITNs!$D$8, ITNs!D163, IF(M163=ITNs!$E$8, ITNs!E163, IF(M163=ITNs!$F$8, ITNs!F163, IF(M163=ITNs!$G$8, ITNs!G163, IF(M163=ITNs!$H$8, ITNs!H163, \"ERROR\"))))))))","v":5921014}]
["Kenya",null,2024,"Sub-national - one phase ",null,null,null,"Kisumu",null,null,"2024-03-01",1348577,"PBO",{"$f":"IF(M164=ITNs!$E$8, ITNs!E164, IF(M164=ITNs!$B$8, ITNs!B164, IF(M164=ITNs!$C$8, ITNs!C164, IF(M164=ITNs!$D$8, ITNs!D164, IF(M164=ITNs!$E$8, ITNs!E164, IF(M164=ITNs!$F$8, ITNs!F164, IF(M164=ITNs!$G$8, ITNs!G164, IF(M164=ITNs!$H$8, ITNs!H164, \"ERROR\"))))))))","v":0},null,null,"Global Fund"]
["Kenya",null,2024,"Sub-national - one phase ",null,null,null,"Siaya",null,null,"2024-03-01",1150131,"PBO",{"$f":"IF(M165=ITNs!$E$8, ITNs!E165, IF(M165=ITNs!$B$8, ITNs!B165, IF(M165=ITNs!$C$8, ITNs!C165, IF(M165=ITNs!$D$8, ITNs!D165, IF(M165=ITNs!$E$8, ITNs!E165, IF(M165=ITNs!$F$8, ITNs!F165, IF(M165=ITNs!$G$8, ITNs!G165, IF(M165=ITNs!$H$8, ITNs!H165, \"ERROR\"))))))))","v":0},null,null,"Global Fund"]
["Kenya",null,2024,"Sub-national - one phase ",null,null,null,"Busia ",null,null,"2024-06-01",1037996,"PBO",{"$f":"IF(M166=ITNs!$E$8, ITNs!E166, IF(M166=ITNs!$B$8, ITNs!B166, IF(M166=ITNs!$C$8, ITNs!C166, IF(M166=ITNs!$D$8, ITNs!D166, IF(M166=ITNs!$E$8, ITNs!E166, IF(M166=ITNs!$F$8, ITNs!F166, IF(M166=ITNs!$G$8, ITNs!G166, IF(M166=ITNs!$H$8, ITNs!H166, \"ERROR\"))))))))","v":0},null,null,"Global Fund"]
["Kenya",null,2024,"Sub-national - one phase ",null,null,null,"Migori",null,null,"2024-03-01",1352907,"PBO",{"$f":"IF(M167=ITNs!$E$8, ITNs!E167, IF(M167=ITNs!$B$8, ITNs!B167, IF(M167=ITNs!$C$8, ITNs!C167, IF(M167=ITNs!$D$8, ITNs!D167, IF(M167=ITNs!$E$8, ITNs!E167, IF(M167=ITNs!$F$8, ITNs!F167, IF(M167=ITNs!$G$8, ITNs!G167, IF(M167=ITNs!$H$8, ITNs!H167, \"ERROR\"))))))))","v":0},null,null,"Global Fund"]
["Kenya",null,2024,"Sub-national - one phase ",null,null,null,"Lamu",null,null,"2024-05-01",168111,"PBO",{"$f":"IF(M168=ITNs!$E$8, ITNs!E168, IF(M168=ITNs!$B$8, ITNs!B168, IF(M168=ITNs!$C$8, ITNs!C168, IF(M168=ITNs!$D$8, ITNs!D168, IF(M168=ITNs!$E$8, ITNs!E168, IF(M168=ITNs!$F$8, ITNs!F168, IF(M168=ITNs!$G$8, ITNs!G168, IF(M168=ITNs!$H$8, ITNs!H168, \"ERROR\"))))))))","v":0},null,null,"Global Fund"]
["Kenya",null,2024,"Sub-national - one phase ",null,null,null,"Kilifi",null,null,"2024-06-01",1725899,"PBO",{"$f":"IF(M169=ITNs!$E$8, ITNs!E169, IF(M169=ITNs!$B$8, ITNs!B169, IF(M169=ITNs!$C$8, ITNs!C169, IF(M169=ITNs!$D$8, ITNs!D169, IF(M169=ITNs!$E$8, ITNs!E169, IF(M169=ITNs!$F$8, ITNs!F169, IF(M169=ITNs!$G$8, ITNs!G169, IF(M169=ITNs!$H$8, ITNs!H169, \"ERROR\"))))))))","v":0},null,null,"Global Fund"]
["Kenya",null,2024,"Sub-national - one phase ",null,null,null,"Tana River",null,null,"2024-05-01",379707,"PBO",{"$f":"IF(M170=ITNs!$E$8, ITNs!E170, IF(M170=ITNs!$B$8, ITNs!B170, IF(M170=ITNs!$C$8, ITNs!C170, IF(M170=ITNs!$D$8, ITNs!D170, IF(M170=ITNs!$E$8, ITNs!E170, IF(M170=ITNs!$F$8, ITNs!F170, IF(M170=ITNs!$G$8, ITNs!G170, IF(M170=ITNs!$H$8, ITNs!H170, \"ERROR\"))))))))","v":243770},null,null,"Global Fund"]
["Kenya",null,2024,"Sub-national - one phase ",null,null,null," Kwale",null,null,"2024-03-01",1043425,"PBO",{"$f":"IF(M171=ITNs!$E$8, ITNs!E171, IF(M171=ITNs!$B$8, ITNs!B171, IF(M171=ITNs!$C$8, ITNs!C171, IF(M171=ITNs!$D$8, ITNs!D171, IF(M171=ITNs!$E$8, ITNs!E171, IF(M171=ITNs!$F$8, ITNs!F171, IF(M171=ITNs!$G$8, ITNs!G171, IF(M171=ITNs!$H$8, ITNs!H171, \"ERROR\"))))))))","v":0},null,null,"Global Fund"]
["Kenya",null,2024,"Sub-national - one phase ",null,null,null,"Taita Taveta",null,null,"2024-03-01",387588,"PBO",{"$f":"IF(M172=ITNs!$E$8, ITNs!E172, IF(M172=ITNs!$B$8, ITNs!B172, IF(M172=ITNs!$C$8, ITNs!C172, IF(M172=ITNs!$D$8, ITNs!D172, IF(M172=ITNs!$E$8, ITNs!E172, IF(M172=ITNs!$F$8, ITNs!F172, IF(M172=ITNs!$G$8, ITNs!G172, IF(M172=ITNs!$H$8, ITNs!H172, \"ERROR\"))))))))","v":0},null,null,"Global Fund"]
["Kenya",null,2024,"Sub-national - one phase ",null,null,null,"Mombasa",null,null,"2024-03-01",1405000,"PBO",{"$f":"IF(M173=ITNs!$E$8, ITNs!E173, IF(M173=ITNs!$B$8, ITNs!B173, IF(M173=ITNs!$C$8, ITNs!C173, IF(M173=ITNs!$D$8, ITNs!D173, IF(M173=ITNs!$E$8, ITNs!E173, IF(M173=ITNs!$F$8, ITNs!F173, IF(M173=ITNs!$G$8, ITNs!G173, IF(M173=ITNs!$H$8, ITNs!H173, \"ERROR\"))))))))","v":0},null,null,"Global Fund"]
["Kenya",null,2024,"Sub-national - one phase ",null,null,null,"West Pokot",null,null,"2024-06-01",770457,"PBO",{"$f":"IF(M174=ITNs!$E$8, ITNs!E174, IF(M174=ITNs!$B$8, ITNs!B174, IF(M174=ITNs!$C$8, ITNs!C174, IF(M174=ITNs!$D$8, ITNs!D174, IF(M174=ITNs!$E$8, ITNs!E174, IF(M174=ITNs!$F$8, ITNs!F174, IF(M174=ITNs!$G$8, ITNs!G174, IF(M174=ITNs!$H$8, ITNs!H174, \"ERROR\"))))))))","v":480275},null,null,"Global Fund"]
["Kenya",null,2024,"Sub-national - one phase ",null,null,null,"Turkana",null,null,"2024-06-01",1135873,"PBO",{"$f":"IF(M175=ITNs!$E$8, ITNs!E175, IF(M175=ITNs!$B$8, ITNs!B175, IF(M175=ITNs!$C$8, ITNs!C175, IF(M175=ITNs!$D$8, ITNs!D175, IF(M175=ITNs!$E$8, ITNs!E175, IF(M175=ITNs!$F$8, ITNs!F175, IF(M175=ITNs!$G$8, ITNs!G175, IF(M175=ITNs!$H$8, ITNs!H175, \"ERROR\"))))))))","v":716701},null,null,"Global Fund"]
["Kenya",null,2024,"Sub-national - one phase ",null,null,null,"Trans Nzoia",null,null,"2024-06-01",1150660,"PBO",{"$f":"IF(M176=ITNs!$E$8, ITNs!E176, IF(M176=ITNs!$B$8, ITNs!B176, IF(M176=ITNs!$C$8, ITNs!C176, IF(M176=ITNs!$D$8, ITNs!D176, IF(M176=ITNs!$E$8, ITNs!E176, IF(M176=ITNs!$F$8, ITNs!F176, IF(M176=ITNs!$G$8, ITNs!G176, IF(M176=ITNs!$H$8, ITNs!H176, \"ERROR\"))))))))","v":765631},null,null,"Global Fund"]
["Kenya",null,2024,"Sub-national - one phase ",null,null,null,"Kirinyaga ",null,null,"2024-06-01",251880,"PBO",{"$f":"IF(M177=ITNs!$E$8, ITNs!E177, IF(M177=ITNs!$B$8, ITNs!B177, IF(M177=ITNs!$C$8, ITNs!C177, IF(M177=ITNs!$D$8, ITNs!D177, IF(M177=ITNs!$E$8, ITNs!E177, IF(M177=ITNs!$F$8, ITNs!F177, IF(M177=ITNs!$G$8, ITNs!G177, IF(M177=ITNs!$H$8, ITNs!H177, \"ERROR\"))))))))","v":174917},null,null,"Global Fund"]
["Kenya",null,2024,"Sub-national - one phase ",null,null,null,"Baringo",null,null,"2024-06-01",545094,"PBO",{"$f":"IF(M178=ITNs!$E$8, ITNs!E178, IF(M178=ITNs!$B$8, ITNs!B178, IF(M178=ITNs!$C$8, ITNs!C178, IF(M178=ITNs!$D$8, ITNs!D178, IF(M178=ITNs!$E$8, ITNs!E178, IF(M178=ITNs!$F$8, ITNs!F178, IF(M178=ITNs!$G$8, ITNs!G178, IF(M178=ITNs!$H$8, ITNs!H178, \"ERROR\"))))))))","v":298808},null,null,"Global Fund"]
["Kenya",null,2024,"Sub-national - one phase ",null,null,null,"Bungoma ",null,null,"2024-07-01",null,"PBO",{"$f":"IF(M179=ITNs!$E$8, ITNs!E179, IF(M179=ITNs!$B$8, ITNs!B179, IF(M179=ITNs!$C$8, ITNs!C179, IF(M179=ITNs!$D$8, ITNs!D179, IF(M179=ITNs!$E$8, ITNs!E179, IF(M179=ITNs!$F$8, ITNs!F179, IF(M179=ITNs!$G$8, ITNs!G179, IF(M179=ITNs!$H$8, ITNs!H179, \"ERROR\"))))))))","v":1219674}]
["Kenya",null,2024,"Sub-national - one phase ",null,null,null,"Kakamega ",null,null,"2024-07-01",null,"PBO",{"$f":"IF(M180=ITNs!$E$8, ITNs!E180, IF(M180=ITNs!$B$8, ITNs!B180, IF(M180=ITNs!$C$8, ITNs!C180, IF(M180=ITNs!$D$8, ITNs!D180, IF(M180=ITNs!$E$8, ITNs!E180, IF(M180=ITNs!$F$8, ITNs!F180, IF(M180=ITNs!$G$8, ITNs!G180, IF(M180=ITNs!$H$8, ITNs!H180, \"ERROR\"))))))))","v":1363534}]
["Kenya",null,2024,"Sub-national - one phase ",null,null,null,"Vihiga ",null,null,"2024-07-01",null,"PBO",{"$f":"IF(M181=ITNs!$E$8, ITNs!E181, IF(M181=ITNs!$B$8, ITNs!B181, IF(M181=ITNs!$C$8, ITNs!C181, IF(M181=ITNs!$D$8, ITNs!D181, IF(M181=ITNs!$E$8, ITNs!E181, IF(M181=ITNs!$F$8, ITNs!F181, IF(M181=ITNs!$G$8, ITNs!G181, IF(M181=ITNs!$H$8, ITNs!H181, \"ERROR\"))))))))","v":430785}]
["Kenya",null,2024,"Sub-national - one phase ",null,null,null,"Migori  - Kuria East ",null,null,"2024-07-01",null,"PBO",{"$f":"IF(M182=ITNs!$E$8, ITNs!E182, IF(M182=ITNs!$B$8, ITNs!B182, IF(M182=ITNs!$C$8, ITNs!C182, IF(M182=ITNs!$D$8, ITNs!D182, IF(M182=ITNs!$E$8, ITNs!E182, IF(M182=ITNs!$F$8, ITNs!F182, IF(M182=ITNs!$G$8, ITNs!G182, IF(M182=ITNs!$H$8, ITNs!H182, \"ERROR\"))))))))","v":71981}]
["Kenya",null,2024,"Sub-national - one phase ",null,null,null,"Kuria West ",null,null,"2024-07-01",null,"PBO",{"$f":"IF(M183=ITNs!$E$8, ITNs!E183, IF(M183=ITNs!$B$8, ITNs!B183, IF(M183=ITNs!$C$8, ITNs!C183, IF(M183=ITNs!$D$8, ITNs!D183, IF(M183=ITNs!$E$8, ITNs!E183, IF(M183=ITNs!$F$8, ITNs!F183, IF(M183=ITNs!$G$8, ITNs!G183, IF(M183=ITNs!$H$8, ITNs!H183, \"ERROR\"))))))))","v":154938}]
["Kenya","Long Rains: Typically occur from March to May, with the peak of rainfall in April.\nShort Rains: Generally occur from October to December, with the peak in November. ",2025,null,null,null,null,null,null,null,null,null,"Multi-products",{"$f":"IF(M184=ITNs!$E$8, ITNs!E184, IF(M184=ITNs!$B$8, ITNs!B184, IF(M184=ITNs!$C$8, ITNs!C184, IF(M184=ITNs!$D$8, ITNs!D184, IF(M184=ITNs!$E$8, ITNs!E184, IF(M184=ITNs!$F$8, ITNs!F184, IF(M184=ITNs!$G$8, ITNs!G184, IF(M184=ITNs!$H$8, ITNs!H184, \"ERROR\"))))))))","v":0}]
["Kenya","Long Rains: Typically occur from March to May, with the peak of rainfall in April.\nShort Rains: Generally occur from October to December, with the peak in November. ",2026,null,null,null,null,null,null,null,null,null,"Multi-products",{"$f":"IF(M185=ITNs!$E$8, ITNs!E185, IF(M185=ITNs!$B$8, ITNs!B185, IF(M185=ITNs!$C$8, ITNs!C185, IF(M185=ITNs!$D$8, ITNs!D185, IF(M185=ITNs!$E$8, ITNs!E185, IF(M185=ITNs!$F$8, ITNs!F185, IF(M185=ITNs!$G$8, ITNs!G185, IF(M185=ITNs!$H$8, ITNs!H185, \"ERROR\"))))))))","v":0}]
["Liberia","Rainy Season: Usually from May to October, with the heaviest rainfall occurring between June and September.",2024,"National - multi-phases",null,null,null,null,null,null,"2024-05-01","5,568,262 ","Dual a.i.",{"$f":"IF(M186=ITNs!$E$8, ITNs!E186, IF(M186=ITNs!$B$8, ITNs!B186, IF(M186=ITNs!$C$8, ITNs!C186, IF(M186=ITNs!$D$8, ITNs!D186, IF(M186=ITNs!$E$8, ITNs!E186, IF(M186=ITNs!$F$8, ITNs!F186, IF(M186=ITNs!$G$8, ITNs!G186, IF(M186=ITNs!$H$8, ITNs!H186, \"ERROR\"))))))))","v":3093486},null,null,"Global Fund",null,"Pilot implementation",null,"At risk","Training, Household Registration, Logistics and supply-chain, Distribution, Monitoring, Payment","National","DIGIT-HCM (eGov)"]
["Liberia",null,2024,"National - multi-phases",null,null,null,"Gbarpolu",null,null,"2024-05-01","101,841.10 ","Dual a.i.",{"$f":"IF(M187=ITNs!$E$8, ITNs!E187, IF(M187=ITNs!$B$8, ITNs!B187, IF(M187=ITNs!$C$8, ITNs!C187, IF(M187=ITNs!$D$8, ITNs!D187, IF(M187=ITNs!$E$8, ITNs!E187, IF(M187=ITNs!$F$8, ITNs!F187, IF(M187=ITNs!$G$8, ITNs!G187, IF(M187=ITNs!$H$8, ITNs!H187, \"ERROR\"))))))))","v":56579},null,null,"Global Fund",null,null,null,null,"Training, Household Registration, Logistics and supply-chain, Distribution, Monitoring, Payment",null,"DIGIT-HCM (eGov)"]
["Liberia",null,2024,"National - multi-phases",null,null,null,"Bomi",null,null,"2024-05-01"," 141,808.38 ","Dual a.i.",{"$f":"IF(M188=ITNs!$E$8, ITNs!E188, IF(M188=ITNs!$B$8, ITNs!B188, IF(M188=ITNs!$C$8, ITNs!C188, IF(M188=ITNs!$D$8, ITNs!D188, IF(M188=ITNs!$E$8, ITNs!E188, IF(M188=ITNs!$F$8, ITNs!F188, IF(M188=ITNs!$G$8, ITNs!G188, IF(M188=ITNs!$H$8, ITNs!H188, \"ERROR\"))))))))","v":78783},null,null,"Global Fund",null,null,null,null,"Training, Household Registration, Logistics and supply-chain, Distribution, Monitoring, Payment",null,"DIGIT-HCM (eGov)"]
["Liberia",null,2024,"National - multi-phases",null,null,null,"Grand Cape Mount",null,null,"2024-05-01","189,686.80 ","Dual a.i.",{"$f":"IF(M189=ITNs!$E$8, ITNs!E189, IF(M189=ITNs!$B$8, ITNs!B189, IF(M189=ITNs!$C$8, ITNs!C189, IF(M189=ITNs!$D$8, ITNs!D189, IF(M189=ITNs!$E$8, ITNs!E189, IF(M189=ITNs!$F$8, ITNs!F189, IF(M189=ITNs!$G$8, ITNs!G189, IF(M189=ITNs!$H$8, ITNs!H189, \"ERROR\"))))))))","v":105382},null,null,"Global Fund",null,null,null,null,"Training, Household Registration, Logistics and supply-chain, Distribution, Monitoring, Payment",null,"DIGIT-HCM (eGov)"]
["Liberia",null,2024,"National - multi-phases",null,null,null,"Montserrado",null,null,"2024-05-01","2,037,897.66 ","Dual a.i.",{"$f":"IF(M190=ITNs!$E$8, ITNs!E190, IF(M190=ITNs!$B$8, ITNs!B190, IF(M190=ITNs!$C$8, ITNs!C190, IF(M190=ITNs!$D$8, ITNs!D190, IF(M190=ITNs!$E$8, ITNs!E190, IF(M190=ITNs!$F$8, ITNs!F190, IF(M190=ITNs!$G$8, ITNs!G190, IF(M190=ITNs!$H$8, ITNs!H190, \"ERROR\"))))))))","v":1132166},null,null,"Global Fund",null,null,null,null,"Training, Household Registration, Logistics and supply-chain, Distribution, Monitoring, Payment",null,"DIGIT-HCM (eGov)"]
["Liberia",null,2024,"National - multi-phases",null,"Door to door",null,"Margibi",null,null,"2024-05-01","323,517.21 ","Dual a.i.",{"$f":"IF(M191=ITNs!$E$8, ITNs!E191, IF(M191=ITNs!$B$8, ITNs!B191, IF(M191=ITNs!$C$8, ITNs!C191, IF(M191=ITNs!$D$8, ITNs!D191, IF(M191=ITNs!$E$8, ITNs!E191, IF(M191=ITNs!$F$8, ITNs!F191, IF(M191=ITNs!$G$8, ITNs!G191, IF(M191=ITNs!$H$8, ITNs!H191, \"ERROR\"))))))))","v":179732},null,"Pilot distribution - phase 1","Global Fund",null,"Pilot implementation",null,null,"Training, Household Registration, Logistics and supply-chain, Distribution, Monitoring, Payment",null,"DIGIT-HCM (eGov)"]
["Liberia",null,2024,"National - multi-phases",null,null,null,"Bong",null,null,"2024-05-01"," 495,972.87 ","Dual a.i.",{"$f":"IF(M192=ITNs!$E$8, ITNs!E192, IF(M192=ITNs!$B$8, ITNs!B192, IF(M192=ITNs!$C$8, ITNs!C192, IF(M192=ITNs!$D$8, ITNs!D192, IF(M192=ITNs!$E$8, ITNs!E192, IF(M192=ITNs!$F$8, ITNs!F192, IF(M192=ITNs!$G$8, ITNs!G192, IF(M192=ITNs!$H$8, ITNs!H192, \"ERROR\"))))))))","v":275541},null,null,"Global Fund",null,null,null,null,"Training, Household Registration, Logistics and supply-chain, Distribution, Monitoring, Payment",null,"DIGIT-HCM (eGov)"]
["Liberia",null,2024,"National - multi-phases",null,null,null,"Nimba",null,null,"2024-05-01","659,711.12 ","Dual a.i.",{"$f":"IF(M193=ITNs!$E$8, ITNs!E193, IF(M193=ITNs!$B$8, ITNs!B193, IF(M193=ITNs!$C$8, ITNs!C193, IF(M193=ITNs!$D$8, ITNs!D193, IF(M193=ITNs!$E$8, ITNs!E193, IF(M193=ITNs!$F$8, ITNs!F193, IF(M193=ITNs!$G$8, ITNs!G193, IF(M193=ITNs!$H$8, ITNs!H193, \"ERROR\"))))))))","v":366507},null,null,"Global Fund",null,null,null,null,"Training, Household Registration, Logistics and supply-chain, Distribution, Monitoring, Payment",null,"DIGIT-HCM (eGov)"]
["Liberia",null,2024,"National - multi-phases",null,null,null,"Lofa",null,null,"2024-05-01"," 389,749.20 ","Dual a.i.",{"$f":"IF(M194=ITNs!$E$8, ITNs!E194, IF(M194=ITNs!$B$8, ITNs!B194, IF(M194=ITNs!$C$8, ITNs!C194, IF(M194=ITNs!$D$8, ITNs!D194, IF(M194=ITNs!$E$8, ITNs!E194, IF(M194=ITNs!$F$8, ITNs!F194, IF(M194=ITNs!$G$8, ITNs!G194, IF(M194=ITNs!$H$8, ITNs!H194, \"ERROR\"))))))))","v":216528},null,null,"Global Fund",null,null,null,null,"Training, Household Registration, Logistics and supply-chain, Distribution, Monitoring, Payment",null,"DIGIT-HCM (eGov)"]
["Liberia",null,2024,"National - multi-phases",null,null,null,"Grand Gedeh",null,null,"2024-05-01","229,888.54 ","Dual a.i.",{"$f":"IF(M195=ITNs!$E$8, ITNs!E195, IF(M195=ITNs!$B$8, ITNs!B195, IF(M195=ITNs!$C$8, ITNs!C195, IF(M195=ITNs!$D$8, ITNs!D195, IF(M195=ITNs!$E$8, ITNs!E195, IF(M195=ITNs!$F$8, ITNs!F195, IF(M195=ITNs!$G$8, ITNs!G195, IF(M195=ITNs!$H$8, ITNs!H195, \"ERROR\"))))))))","v":127716},null,null,"Global Fund",null,null,null,null,"Training, Household Registration, Logistics and supply-chain, Distribution, Monitoring, Payment",null,"DIGIT-HCM (eGov)"]
["Liberia",null,2024,"National - multi-phases",null,null,null,"River Gee",null,null,"2024-05-01","132,244.37 ","Dual a.i.",{"$f":"IF(M196=ITNs!$E$8, ITNs!E196, IF(M196=ITNs!$B$8, ITNs!B196, IF(M196=ITNs!$C$8, ITNs!C196, IF(M196=ITNs!$D$8, ITNs!D196, IF(M196=ITNs!$E$8, ITNs!E196, IF(M196=ITNs!$F$8, ITNs!F196, IF(M196=ITNs!$G$8, ITNs!G196, IF(M196=ITNs!$H$8, ITNs!H196, \"ERROR\"))))))))","v":73470},null,null,"Global Fund",null,null,null,null,"Training, Household Registration, Logistics and supply-chain, Distribution, Monitoring, Payment",null,"DIGIT-HCM (eGov)"]
["Liberia",null,2024,"National - multi-phases",null,null,null,"Grand Kru",null,null,"2024-05-01","116,000.93 ","Dual a.i.",{"$f":"IF(M197=ITNs!$E$8, ITNs!E197, IF(M197=ITNs!$B$8, ITNs!B197, IF(M197=ITNs!$C$8, ITNs!C197, IF(M197=ITNs!$D$8, ITNs!D197, IF(M197=ITNs!$E$8, ITNs!E197, IF(M197=ITNs!$F$8, ITNs!F197, IF(M197=ITNs!$G$8, ITNs!G197, IF(M197=ITNs!$H$8, ITNs!H197, \"ERROR\"))))))))","v":64445},null,null,"Global Fund",null,null,null,null,"Training, Household Registration, Logistics and supply-chain, Distribution, Monitoring, Payment",null,"DIGIT-HCM (eGov)"]
["Liberia",null,2024,"National - multi-phases",null,null,null,"Maryland",null,null,"2024-05-01","182,689.10 ","Dual a.i.",{"$f":"IF(M198=ITNs!$E$8, ITNs!E198, IF(M198=ITNs!$B$8, ITNs!B198, IF(M198=ITNs!$C$8, ITNs!C198, IF(M198=ITNs!$D$8, ITNs!D198, IF(M198=ITNs!$E$8, ITNs!E198, IF(M198=ITNs!$F$8, ITNs!F198, IF(M198=ITNs!$G$8, ITNs!G198, IF(M198=ITNs!$H$8, ITNs!H198, \"ERROR\"))))))))","v":101494},null,null,"Global Fund",null,null,null,null,"Training, Household Registration, Logistics and supply-chain, Distribution, Monitoring, Payment",null,"DIGIT-HCM (eGov)"]
["Liberia",null,2024,"National - multi-phases",null,null,null,"Grand Bassa",null,null,"2024-05-01","311,434.62 ","Dual a.i.",{"$f":"IF(M199=ITNs!$E$8, ITNs!E199, IF(M199=ITNs!$B$8, ITNs!B199, IF(M199=ITNs!$C$8, ITNs!C199, IF(M199=ITNs!$D$8, ITNs!D199, IF(M199=ITNs!$E$8, ITNs!E199, IF(M199=ITNs!$F$8, ITNs!F199, IF(M199=ITNs!$G$8, ITNs!G199, IF(M199=ITNs!$H$8, ITNs!H199, \"ERROR\"))))))))","v":173020},null,null,"Global Fund",null,null,null,null,"Training, Household Registration, Logistics and supply-chain, Distribution, Monitoring, Payment",null,"DIGIT-HCM (eGov)"]
["Liberia",null,2024,"National - multi-phases",null,null,null,"Sinoe",null,null,"2024-05-01","159,514.80 ","Dual a.i.",{"$f":"IF(M200=ITNs!$E$8, ITNs!E200, IF(M200=ITNs!$B$8, ITNs!B200, IF(M200=ITNs!$C$8, ITNs!C200, IF(M200=ITNs!$D$8, ITNs!D200, IF(M200=ITNs!$E$8, ITNs!E200, IF(M200=ITNs!$F$8, ITNs!F200, IF(M200=ITNs!$G$8, ITNs!G200, IF(M200=ITNs!$H$8, ITNs!H200, \"ERROR\"))))))))","v":88620},null,null,"Global Fund",null,null,null,null,"Training, Household Registration, Logistics and supply-chain, Distribution, Monitoring, Payment",null,"DIGIT-HCM (eGov)"]
["Liberia",null,2024,"National - multi-phases",null,null,null,"Rivercess",null,null,"2024-05-01",96305.32,"Dual a.i.",{"$f":"IF(M201=ITNs!$E$8, ITNs!E201, IF(M201=ITNs!$B$8, ITNs!B201, IF(M201=ITNs!$C$8, ITNs!C201, IF(M201=ITNs!$D$8, ITNs!D201, IF(M201=ITNs!$E$8, ITNs!E201, IF(M201=ITNs!$F$8, ITNs!F201, IF(M201=ITNs!$G$8, ITNs!G201, IF(M201=ITNs!$H$8, ITNs!H201, \"ERROR\"))))))))","v":53503},null,null,"Global Fund",null,null,null,null,"Training, Household Registration, Logistics and supply-chain, Distribution, Monitoring, Payment",null,"DIGIT-HCM (eGov)"]
["Liberia","Rainy Season: Usually from May to October, with the heaviest rainfall occurring between June and September.",2026,null,null,null,null,null,null,null,null,null,"Dual a.i.",{"$f":"IF(M202=ITNs!$E$8, ITNs!E202, IF(M202=ITNs!$B$8, ITNs!B202, IF(M202=ITNs!$C$8, ITNs!C202, IF(M202=ITNs!$D$8, ITNs!D202, IF(M202=ITNs!$E$8, ITNs!E202, IF(M202=ITNs!$F$8, ITNs!F202, IF(M202=ITNs!$G$8, ITNs!G202, IF(M202=ITNs!$H$8, ITNs!H202, \"ERROR\"))))))))","v":3281872}]
["Madagascar","Typically occurs from November to April, with variations depending on the region.",2024,"National - multi-phases",null,null,null,"105 DS",null,null,"2024-09-01",null,"Multi-products",{"$f":"IF(M203=ITNs!$E$8, ITNs!E203, IF(M203=ITNs!$B$8, ITNs!B203, IF(M203=ITNs!$C$8, ITNs!C203, IF(M203=ITNs!$D$8, ITNs!D203, IF(M203=ITNs!$E$8, ITNs!E203, IF(M203=ITNs!$F$8, ITNs!F203, IF(M203=ITNs!$G$8, ITNs!G203, IF(M203=ITNs!$H$8, ITNs!H203, \"ERROR\"))))))))","v":12202920}]
["Madagascar","Typically occurs from November to April, with variations depending on the region.",2025,null,null,null,null,null,null,null,null,null,"Multi-products",{"$f":"IF(M204=ITNs!$E$8, ITNs!E204, IF(M204=ITNs!$B$8, ITNs!B204, IF(M204=ITNs!$C$8, ITNs!C204, IF(M204=ITNs!$D$8, ITNs!D204, IF(M204=ITNs!$E$8, ITNs!E204, IF(M204=ITNs!$F$8, ITNs!F204, IF(M204=ITNs!$G$8, ITNs!G204, IF(M204=ITNs!$H$8, ITNs!H204, \"ERROR\"))))))))","v":2269718}]
["Malawi","Typically occurs from November to April, with variations depending on the region.",2024,"National - multi-phases",null,"Fixed distribution sites","Mixed ",null,null,"No integration","2024-07-01",19606756,"Dual a.i.",{"$f":"IF(M205=ITNs!$E$8, ITNs!E205, IF(M205=ITNs!$B$8, ITNs!B205, IF(M205=ITNs!$C$8, ITNs!C205, IF(M205=ITNs!$D$8, ITNs!D205, IF(M205=ITNs!$E$8, ITNs!E205, IF(M205=ITNs!$F$8, ITNs!F205, IF(M205=ITNs!$G$8, ITNs!G205, IF(M205=ITNs!$H$8, ITNs!H205, \"ERROR\"))))))))","v":11758609},null,"HHR : June 24 / Pilot : July- Aug","Global Fund","Not available","Macroplanning","Pending ITN arrival","On track","Training , Household registration , Distribution, Logistics & in-country supply chain, Payment ","National","Other (specify in comments)","Individual Packaging","Combination approach","First time digitalisation - the digital platform to used is iCHIS"]
["Malawi",null,2024,"National - multi-phases",null,"Fixed distribution sites","National focus with prioritization of ITNs in non-urban areas over urban areas","Lilongwe",null,"No integration","2024-11-01",2715472,"Dual a.i.",{"$f":"IF(M206=ITNs!$E$8, ITNs!E206, IF(M206=ITNs!$B$8, ITNs!B206, IF(M206=ITNs!$C$8, ITNs!C206, IF(M206=ITNs!$D$8, ITNs!D206, IF(M206=ITNs!$E$8, ITNs!E206, IF(M206=ITNs!$F$8, ITNs!F206, IF(M206=ITNs!$G$8, ITNs!G206, IF(M206=ITNs!$H$8, ITNs!H206, \"ERROR\"))))))))","v":1628529},null,null,"Global Fund","Not available","Macroplanning","Pending ITN arrival","On track","Training , Household registration , Distribution, Logistics & in-country supply chain, Payment ","National","Other (specify in comments)","Individual Packaging","Combination approach","First time digitalisation - the digital platform to used is iCHIS"]
["Malawi",null,2024,"National - multi-phases",null,"Fixed distribution sites","National focus with prioritization of ITNs in non-urban areas over urban areas","Blantyre",null,"No integration","2024-10-01",1096310,"Dual a.i.",{"$f":"IF(M207=ITNs!$E$8, ITNs!E207, IF(M207=ITNs!$B$8, ITNs!B207, IF(M207=ITNs!$C$8, ITNs!C207, IF(M207=ITNs!$D$8, ITNs!D207, IF(M207=ITNs!$E$8, ITNs!E207, IF(M207=ITNs!$F$8, ITNs!F207, IF(M207=ITNs!$G$8, ITNs!G207, IF(M207=ITNs!$H$8, ITNs!H207, \"ERROR\"))))))))","v":657481},null,null,"Global Fund","Not available","Macroplanning","Pending ITN arrival","On track","Training , Household registration , Distribution, Logistics & in-country supply chain, Payment ","National","Other (specify in comments)","Individual Packaging","Combination approach","First time digitalisation - the digital platform to used is iCHIS"]
["Malawi",null,2024,"National - multi-phases",null,"Fixed distribution sites","No prioritization","Mzimba North and Sorth",null,"No integration","2024-11-01",1318372,"Dual a.i.",{"$f":"IF(M208=ITNs!$E$8, ITNs!E208, IF(M208=ITNs!$B$8, ITNs!B208, IF(M208=ITNs!$C$8, ITNs!C208, IF(M208=ITNs!$D$8, ITNs!D208, IF(M208=ITNs!$E$8, ITNs!E208, IF(M208=ITNs!$F$8, ITNs!F208, IF(M208=ITNs!$G$8, ITNs!G208, IF(M208=ITNs!$H$8, ITNs!H208, \"ERROR\"))))))))","v":790657},null,null,"Global Fund","Not available","Macroplanning","Pending ITN arrival","On track","Training , Household registration , Distribution, Logistics & in-country supply chain, Payment ","National","Other (specify in comments)","Individual Packaging","Combination approach","First time digitalisation - the digital platform to used is iCHIS"]
["Malawi",null,2024,"National - multi-phases",null,"Fixed distribution sites","No prioritization","Mangochi",null,"No integration","2024-10-01",1388626,"Dual a.i.",{"$f":"IF(M209=ITNs!$E$8, ITNs!E209, IF(M209=ITNs!$B$8, ITNs!B209, IF(M209=ITNs!$C$8, ITNs!C209, IF(M209=ITNs!$D$8, ITNs!D209, IF(M209=ITNs!$E$8, ITNs!E209, IF(M209=ITNs!$F$8, ITNs!F209, IF(M209=ITNs!$G$8, ITNs!G209, IF(M209=ITNs!$H$8, ITNs!H209, \"ERROR\"))))))))","v":832790},null,null,"Global Fund","Not available","Macroplanning","Pending ITN arrival","On track","Training , Household registration , Distribution, Logistics & in-country supply chain, Payment ","National","Other (specify in comments)","Individual Packaging","Combination approach","First time digitalisation - the digital platform to used is iCHIS"]
["Malawi",null,2024,"National - multi-phases",null,"Fixed distribution sites","No prioritization","Kasungu",null,"No integration","2024-11-01",972188,"Dual a.i.",{"$f":"IF(M210=ITNs!$E$8, ITNs!E210, IF(M210=ITNs!$B$8, ITNs!B210, IF(M210=ITNs!$C$8, ITNs!C210, IF(M210=ITNs!$D$8, ITNs!D210, IF(M210=ITNs!$E$8, ITNs!E210, IF(M210=ITNs!$F$8, ITNs!F210, IF(M210=ITNs!$G$8, ITNs!G210, IF(M210=ITNs!$H$8, ITNs!H210, \"ERROR\"))))))))","v":583043},null,null,"Global Fund","Not available","Macroplanning","Pending ITN arrival","On track","Training , Household registration , Distribution, Logistics & in-country supply chain, Payment ","National","Other (specify in comments)","Individual Packaging","Combination approach","First time digitalisation - the digital platform to used is iCHIS"]
["Malawi",null,2024,"National - multi-phases",null,"Fixed distribution sites","No prioritization","Dowa",null,"No integration","2024-11-01",901525,"Dual a.i.",{"$f":"IF(M211=ITNs!$E$8, ITNs!E211, IF(M211=ITNs!$B$8, ITNs!B211, IF(M211=ITNs!$C$8, ITNs!C211, IF(M211=ITNs!$D$8, ITNs!D211, IF(M211=ITNs!$E$8, ITNs!E211, IF(M211=ITNs!$F$8, ITNs!F211, IF(M211=ITNs!$G$8, ITNs!G211, IF(M211=ITNs!$H$8, ITNs!H211, \"ERROR\"))))))))","v":540665},null,null,"Global Fund","Not available","Macroplanning","Pending ITN arrival","On track","Training , Household registration , Distribution, Logistics & in-country supply chain, Payment ","National","Other (specify in comments)","Individual Packaging","Combination approach","First time digitalisation - the digital platform to used is iCHIS"]
["Malawi",null,2024,"National - multi-phases",null,"Fixed distribution sites","National focus with prioritization of ITNs in non-urban areas over urban areas","Zomba",null,"No integration","2024-10-01",966740,"Dual a.i.",{"$f":"IF(M212=ITNs!$E$8, ITNs!E212, IF(M212=ITNs!$B$8, ITNs!B212, IF(M212=ITNs!$C$8, ITNs!C212, IF(M212=ITNs!$D$8, ITNs!D212, IF(M212=ITNs!$E$8, ITNs!E212, IF(M212=ITNs!$F$8, ITNs!F212, IF(M212=ITNs!$G$8, ITNs!G212, IF(M212=ITNs!$H$8, ITNs!H212, \"ERROR\"))))))))","v":579775},null,null,"Global Fund","Not available","Macroplanning","Pending ITN arrival","On track","Training , Household registration , Distribution, Logistics & in-country supply chain, Payment ","National","Other (specify in comments)","Individual Packaging","Combination approach","First time digitalisation - the digital platform to used is iCHIS"]
["Malawi",null,2024,"National - multi-phases",null,"Fixed distribution sites","No prioritization","Dedza",null,"No integration","2024-11-01",947812,"Dual a.i.",{"$f":"IF(M213=ITNs!$E$8, ITNs!E213, IF(M213=ITNs!$B$8, ITNs!B213, IF(M213=ITNs!$C$8, ITNs!C213, IF(M213=ITNs!$D$8, ITNs!D213, IF(M213=ITNs!$E$8, ITNs!E213, IF(M213=ITNs!$F$8, ITNs!F213, IF(M213=ITNs!$G$8, ITNs!G213, IF(M213=ITNs!$H$8, ITNs!H213, \"ERROR\"))))))))","v":568424},null,null,"Global Fund","Not available","Macroplanning","Pending ITN arrival","On track","Training , Household registration , Distribution, Logistics & in-country supply chain, Payment ","National","Other (specify in comments)","Individual Packaging","Combination approach","First time digitalisation - the digital platform to used is iCHIS"]
["Malawi",null,2024,"National - multi-phases",null,"Fixed distribution sites","No prioritization","Thyolo",null,"No integration","2024-10-01",793786,"Dual a.i.",{"$f":"IF(M214=ITNs!$E$8, ITNs!E214, IF(M214=ITNs!$B$8, ITNs!B214, IF(M214=ITNs!$C$8, ITNs!C214, IF(M214=ITNs!$D$8, ITNs!D214, IF(M214=ITNs!$E$8, ITNs!E214, IF(M214=ITNs!$F$8, ITNs!F214, IF(M214=ITNs!$G$8, ITNs!G214, IF(M214=ITNs!$H$8, ITNs!H214, \"ERROR\"))))))))","v":476051},null,null,"Global Fund","Not available","Macroplanning","Pending ITN arrival","On track","Training , Household registration , Distribution, Logistics & in-country supply chain, Payment ","National","Other (specify in comments)","Individual Packaging","Combination approach","First time digitalisation - the digital platform to used is iCHIS"]
["Malawi",null,2024,"National - multi-phases",null,"Fixed distribution sites","No prioritization","Machinga",null,"No integration","2024-10-01",904135,"Dual a.i.",{"$f":"IF(M215=ITNs!$E$8, ITNs!E215, IF(M215=ITNs!$B$8, ITNs!B215, IF(M215=ITNs!$C$8, ITNs!C215, IF(M215=ITNs!$D$8, ITNs!D215, IF(M215=ITNs!$E$8, ITNs!E215, IF(M215=ITNs!$F$8, ITNs!F215, IF(M215=ITNs!$G$8, ITNs!G215, IF(M215=ITNs!$H$8, ITNs!H215, \"ERROR\"))))))))","v":542230},null,null,"Global Fund","Not available","Macroplanning","Pending ITN arrival","On track","Training , Household registration , Distribution, Logistics & in-country supply chain, Payment ","National","Other (specify in comments)","Individual Packaging","Combination approach","First time digitalisation - the digital platform to used is iCHIS"]
["Malawi",null,2024,"National - multi-phases",null,"Fixed distribution sites","No prioritization","Mchinji",null,"No integration","2024-11-01",686764,"Dual a.i.",{"$f":"IF(M216=ITNs!$E$8, ITNs!E216, IF(M216=ITNs!$B$8, ITNs!B216, IF(M216=ITNs!$C$8, ITNs!C216, IF(M216=ITNs!$D$8, ITNs!D216, IF(M216=ITNs!$E$8, ITNs!E216, IF(M216=ITNs!$F$8, ITNs!F216, IF(M216=ITNs!$G$8, ITNs!G216, IF(M216=ITNs!$H$8, ITNs!H216, \"ERROR\"))))))))","v":411868},null,null,"Global Fund","Not available","Macroplanning","Pending ITN arrival","On track","Training , Household registration , Distribution, Logistics & in-country supply chain, Payment ","National","Other (specify in comments)","Individual Packaging","Combination approach","First time digitalisation - the digital platform to used is iCHIS"]
["Malawi",null,2024,"National - multi-phases",null,"Fixed distribution sites","No prioritization","Ntcheu",null,"No integration","2024-11-01",775834,"Dual a.i.",{"$f":"IF(M217=ITNs!$E$8, ITNs!E217, IF(M217=ITNs!$B$8, ITNs!B217, IF(M217=ITNs!$C$8, ITNs!C217, IF(M217=ITNs!$D$8, ITNs!D217, IF(M217=ITNs!$E$8, ITNs!E217, IF(M217=ITNs!$F$8, ITNs!F217, IF(M217=ITNs!$G$8, ITNs!G217, IF(M217=ITNs!$H$8, ITNs!H217, \"ERROR\"))))))))","v":465285},null,null,"Global Fund","Not available","Macroplanning","Pending ITN arrival","On track","Training , Household registration , Distribution, Logistics & in-country supply chain, Payment ","National","Other (specify in comments)","Individual Packaging","Combination approach","First time digitalisation - the digital platform to used is iCHIS"]
["Malawi",null,2024,"National - multi-phases",null,"Fixed distribution sites","No prioritization","Mulanje",null,"No integration","2024-10-01",781841,"Dual a.i.",{"$f":"IF(M218=ITNs!$E$8, ITNs!E218, IF(M218=ITNs!$B$8, ITNs!B218, IF(M218=ITNs!$C$8, ITNs!C218, IF(M218=ITNs!$D$8, ITNs!D218, IF(M218=ITNs!$E$8, ITNs!E218, IF(M218=ITNs!$F$8, ITNs!F218, IF(M218=ITNs!$G$8, ITNs!G218, IF(M218=ITNs!$H$8, ITNs!H218, \"ERROR\"))))))))","v":468887},null,null,"Global Fund","Not available","Macroplanning","Pending ITN arrival","On track","Training , Household registration , Distribution, Logistics & in-country supply chain, Payment ","National","Other (specify in comments)","Individual Packaging","Combination approach","First time digitalisation - the digital platform to used is iCHIS"]
["Malawi",null,2024,"National - multi-phases",null,"Fixed distribution sites","No prioritization","Chikwawa",null,"No integration","2024-10-01",640808,"Dual a.i.",{"$f":"IF(M219=ITNs!$E$8, ITNs!E219, IF(M219=ITNs!$B$8, ITNs!B219, IF(M219=ITNs!$C$8, ITNs!C219, IF(M219=ITNs!$D$8, ITNs!D219, IF(M219=ITNs!$E$8, ITNs!E219, IF(M219=ITNs!$F$8, ITNs!F219, IF(M219=ITNs!$G$8, ITNs!G219, IF(M219=ITNs!$H$8, ITNs!H219, \"ERROR\"))))))))","v":384307},null,null,"Global Fund","Not available","Macroplanning","Pending ITN arrival","On track","Training , Household registration , Distribution, Logistics & in-country supply chain, Payment ","National","Other (specify in comments)","Individual Packaging","Combination approach","First time digitalisation - the digital platform to used is iCHIS"]
["Malawi",null,2024,"National - multi-phases",null,"Fixed distribution sites","No prioritization","Salima",null,"No integration","2024-11-01",566301,"Dual a.i.",{"$f":"IF(M220=ITNs!$E$8, ITNs!E220, IF(M220=ITNs!$B$8, ITNs!B220, IF(M220=ITNs!$C$8, ITNs!C220, IF(M220=ITNs!$D$8, ITNs!D220, IF(M220=ITNs!$E$8, ITNs!E220, IF(M220=ITNs!$F$8, ITNs!F220, IF(M220=ITNs!$G$8, ITNs!G220, IF(M220=ITNs!$H$8, ITNs!H220, \"ERROR\"))))))))","v":339623},null,null,"Global Fund","Not available","Macroplanning","Pending ITN arrival","On track","Training , Household registration , Distribution, Logistics & in-country supply chain, Payment ","National","Other (specify in comments)","Individual Packaging","Combination approach","First time digitalisation - the digital platform to used is iCHIS"]
["Malawi",null,2024,"National - multi-phases",null,"Fixed distribution sites","No prioritization","Balaka",null,"No integration","2024-10-01",518003,"Dual a.i.",{"$f":"IF(M221=ITNs!$E$8, ITNs!E221, IF(M221=ITNs!$B$8, ITNs!B221, IF(M221=ITNs!$C$8, ITNs!C221, IF(M221=ITNs!$D$8, ITNs!D221, IF(M221=ITNs!$E$8, ITNs!E221, IF(M221=ITNs!$F$8, ITNs!F221, IF(M221=ITNs!$G$8, ITNs!G221, IF(M221=ITNs!$H$8, ITNs!H221, \"ERROR\"))))))))","v":310658},null,null,"Global Fund","Not available","Macroplanning","Pending ITN arrival","On track","Training , Household registration , Distribution, Logistics & in-country supply chain, Payment ","National","Other (specify in comments)","Individual Packaging","Combination approach","First time digitalisation - the digital platform to used is iCHIS"]
["Malawi",null,2024,"National - multi-phases",null,"Fixed distribution sites","No prioritization","Nkhotakota",null,"No integration","2024-11-01",446006,"Dual a.i.",{"$f":"IF(M222=ITNs!$E$8, ITNs!E222, IF(M222=ITNs!$B$8, ITNs!B222, IF(M222=ITNs!$C$8, ITNs!C222, IF(M222=ITNs!$D$8, ITNs!D222, IF(M222=ITNs!$E$8, ITNs!E222, IF(M222=ITNs!$F$8, ITNs!F222, IF(M222=ITNs!$G$8, ITNs!G222, IF(M222=ITNs!$H$8, ITNs!H222, \"ERROR\"))))))))","v":267480},null,null,"Global Fund","Not available","Macroplanning","Pending ITN arrival","On track","Training , Household registration , Distribution, Logistics & in-country supply chain, Payment ","National","Other (specify in comments)","Individual Packaging","Combination approach","First time digitalisation - the digital platform to used is iCHIS"]
["Malawi",null,2024,"National - multi-phases",null,"Fixed distribution sites","No prioritization","Phalombe",null,"No integration","2024-10-01",502825,"Dual a.i.",{"$f":"IF(M223=ITNs!$E$8, ITNs!E223, IF(M223=ITNs!$B$8, ITNs!B223, IF(M223=ITNs!$C$8, ITNs!C223, IF(M223=ITNs!$D$8, ITNs!D223, IF(M223=ITNs!$E$8, ITNs!E223, IF(M223=ITNs!$F$8, ITNs!F223, IF(M223=ITNs!$G$8, ITNs!G223, IF(M223=ITNs!$H$8, ITNs!H223, \"ERROR\"))))))))","v":301555},null,null,"Global Fund","Not available","Macroplanning","Pending ITN arrival","On track","Training , Household registration , Distribution, Logistics & in-country supply chain, Payment ","National","Other (specify in comments)","Individual Packaging","Combination approach","First time digitalisation - the digital platform to used is iCHIS"]
["Malawi",null,2024,"National - multi-phases",null,"Fixed distribution sites","No prioritization","Karonga",null,"No integration","2024-11-01",414100,"Dual a.i.",{"$f":"IF(M224=ITNs!$E$8, ITNs!E224, IF(M224=ITNs!$B$8, ITNs!B224, IF(M224=ITNs!$C$8, ITNs!C224, IF(M224=ITNs!$D$8, ITNs!D224, IF(M224=ITNs!$E$8, ITNs!E224, IF(M224=ITNs!$F$8, ITNs!F224, IF(M224=ITNs!$G$8, ITNs!G224, IF(M224=ITNs!$H$8, ITNs!H224, \"ERROR\"))))))))","v":248345},null,null,"Global Fund","Not available","Macroplanning","Pending ITN arrival","On track","Training , Household registration , Distribution, Logistics & in-country supply chain, Payment ","National","Other (specify in comments)","Individual Packaging","Combination approach","First time digitalisation - the digital platform to used is iCHIS"]
["Malawi",null,2024,"National - multi-phases",null,"Fixed distribution sites","No prioritization","Chiradzulu",null,"No integration","2024-10-01",396198,"Dual a.i.",{"$f":"IF(M225=ITNs!$E$8, ITNs!E225, IF(M225=ITNs!$B$8, ITNs!B225, IF(M225=ITNs!$C$8, ITNs!C225, IF(M225=ITNs!$D$8, ITNs!D225, IF(M225=ITNs!$E$8, ITNs!E225, IF(M225=ITNs!$F$8, ITNs!F225, IF(M225=ITNs!$G$8, ITNs!G225, IF(M225=ITNs!$H$8, ITNs!H225, \"ERROR\"))))))))","v":237609},null,null,"Global Fund","Not available","Macroplanning","Pending ITN arrival","On track","Training , Household registration , Distribution, Logistics & in-country supply chain, Payment ","National","Other (specify in comments)","Individual Packaging","Combination approach","First time digitalisation - the digital platform to used is iCHIS"]
["Malawi",null,2024,"National - multi-phases",null,"Fixed distribution sites","No prioritization","Ntchisi",null,"No integration","2024-11-01",376921,"Dual a.i.",{"$f":"IF(M226=ITNs!$E$8, ITNs!E226, IF(M226=ITNs!$B$8, ITNs!B226, IF(M226=ITNs!$C$8, ITNs!C226, IF(M226=ITNs!$D$8, ITNs!D226, IF(M226=ITNs!$E$8, ITNs!E226, IF(M226=ITNs!$F$8, ITNs!F226, IF(M226=ITNs!$G$8, ITNs!G226, IF(M226=ITNs!$H$8, ITNs!H226, \"ERROR\"))))))))","v":226048},null,null,"Global Fund","Not available","Macroplanning","Pending ITN arrival","On track","Training , Household registration , Distribution, Logistics & in-country supply chain, Payment ","National","Other (specify in comments)","Individual Packaging","Combination approach","First time digitalisation - the digital platform to used is iCHIS"]
["Malawi",null,2024,"National - multi-phases",null,"Fixed distribution sites","No prioritization","Nsanje",null,"No integration","2024-10-01",332131,"Dual a.i.",{"$f":"IF(M227=ITNs!$E$8, ITNs!E227, IF(M227=ITNs!$B$8, ITNs!B227, IF(M227=ITNs!$C$8, ITNs!C227, IF(M227=ITNs!$D$8, ITNs!D227, IF(M227=ITNs!$E$8, ITNs!E227, IF(M227=ITNs!$F$8, ITNs!F227, IF(M227=ITNs!$G$8, ITNs!G227, IF(M227=ITNs!$H$8, ITNs!H227, \"ERROR\"))))))))","v":199186},null,null,"Global Fund","Not available","Macroplanning","Pending ITN arrival","On track","Training , Household registration , Distribution, Logistics & in-country supply chain, Payment ","National","Other (specify in comments)","Individual Packaging","Combination approach","First time digitalisation - the digital platform to used is iCHIS"]
["Malawi",null,2024,"National - multi-phases",null,"Fixed distribution sites","No prioritization","Nkhata-Bay",null,"No integration","2026-06-01",314810,"Dual a.i.",{"$f":"IF(M228=ITNs!$E$8, ITNs!E228, IF(M228=ITNs!$B$8, ITNs!B228, IF(M228=ITNs!$C$8, ITNs!C228, IF(M228=ITNs!$D$8, ITNs!D228, IF(M228=ITNs!$E$8, ITNs!E228, IF(M228=ITNs!$F$8, ITNs!F228, IF(M228=ITNs!$G$8, ITNs!G228, IF(M228=ITNs!$H$8, ITNs!H228, \"ERROR\"))))))))","v":188799},null,null,"Global Fund","Not available","Macroplanning","Pending ITN arrival","On track","Training , Household registration , Distribution, Logistics & in-country supply chain, Payment ","National","Other (specify in comments)","Individual Packaging","Combination approach","First time digitalisation - the digital platform to used is iCHIS"]
["Malawi",null,2024,"National - multi-phases",null,"Fixed distribution sites","No prioritization","Chitipa",null,"No integration","2024-11-01",260584,"Dual a.i.",{"$f":"IF(M229=ITNs!$E$8, ITNs!E229, IF(M229=ITNs!$B$8, ITNs!B229, IF(M229=ITNs!$C$8, ITNs!C229, IF(M229=ITNs!$D$8, ITNs!D229, IF(M229=ITNs!$E$8, ITNs!E229, IF(M229=ITNs!$F$8, ITNs!F229, IF(M229=ITNs!$G$8, ITNs!G229, IF(M229=ITNs!$H$8, ITNs!H229, \"ERROR\"))))))))","v":156278},null,null,"Global Fund","Not available","Macroplanning","Pending ITN arrival","On track","Training , Household registration , Distribution, Logistics & in-country supply chain, Payment ","National","Other (specify in comments)","Individual Packaging","Combination approach","First time digitalisation - the digital platform to used is iCHIS"]
["Malawi",null,2024,"National - multi-phases",null,"Fixed distribution sites","No prioritization","Rumphi",null,"No integration","2024-11-01",259391,"Dual a.i.",{"$f":"IF(M230=ITNs!$E$8, ITNs!E230, IF(M230=ITNs!$B$8, ITNs!B230, IF(M230=ITNs!$C$8, ITNs!C230, IF(M230=ITNs!$D$8, ITNs!D230, IF(M230=ITNs!$E$8, ITNs!E230, IF(M230=ITNs!$F$8, ITNs!F230, IF(M230=ITNs!$G$8, ITNs!G230, IF(M230=ITNs!$H$8, ITNs!H230, \"ERROR\"))))))))","v":155563},null,null,"Global Fund","Not available","Macroplanning","Pending ITN arrival","On track","Training , Household registration , Distribution, Logistics & in-country supply chain, Payment ","National","Other (specify in comments)","Individual Packaging","Combination approach","First time digitalisation - the digital platform to used is iCHIS"]
["Malawi",null,2024,"National - multi-phases",null,"Fixed distribution sites","No prioritization","Neno",null,"No integration","2024-10-01",156029,"Dual a.i.",{"$f":"IF(M231=ITNs!$E$8, ITNs!E231, IF(M231=ITNs!$B$8, ITNs!B231, IF(M231=ITNs!$C$8, ITNs!C231, IF(M231=ITNs!$D$8, ITNs!D231, IF(M231=ITNs!$E$8, ITNs!E231, IF(M231=ITNs!$F$8, ITNs!F231, IF(M231=ITNs!$G$8, ITNs!G231, IF(M231=ITNs!$H$8, ITNs!H231, \"ERROR\"))))))))","v":93574},null,null,"Global Fund","Not available","Macroplanning","Pending ITN arrival","On track","Training , Household registration , Distribution, Logistics & in-country supply chain, Payment ","National","Other (specify in comments)","Individual Packaging","Combination approach","First time digitalisation - the digital platform to used is iCHIS"]
["Malawi",null,2024,"National - multi-phases",null,"Fixed distribution sites","No prioritization","Mwanza",null,"No integration","2024-10-01",156942,"Dual a.i.",{"$f":"IF(M232=ITNs!$E$8, ITNs!E232, IF(M232=ITNs!$B$8, ITNs!B232, IF(M232=ITNs!$C$8, ITNs!C232, IF(M232=ITNs!$D$8, ITNs!D232, IF(M232=ITNs!$E$8, ITNs!E232, IF(M232=ITNs!$F$8, ITNs!F232, IF(M232=ITNs!$G$8, ITNs!G232, IF(M232=ITNs!$H$8, ITNs!H232, \"ERROR\"))))))))","v":94122},null,null,"Global Fund","Not available","Macroplanning","Pending ITN arrival","On track","Training , Household registration , Distribution, Logistics & in-country supply chain, Payment ","National","Other (specify in comments)","Individual Packaging","Combination approach","First time digitalisation - the digital platform to used is iCHIS"]
["Malawi",null,2024,"National - multi-phases",null,"Fixed distribution sites","No prioritization","Likoma",null,"No integration","2024-11-01",16302,"Dual a.i.",{"$f":"IF(M233=ITNs!$E$8, ITNs!E233, IF(M233=ITNs!$B$8, ITNs!B233, IF(M233=ITNs!$C$8, ITNs!C233, IF(M233=ITNs!$D$8, ITNs!D233, IF(M233=ITNs!$E$8, ITNs!E233, IF(M233=ITNs!$F$8, ITNs!F233, IF(M233=ITNs!$G$8, ITNs!G233, IF(M233=ITNs!$H$8, ITNs!H233, \"ERROR\"))))))))","v":9777},null,null,"Global Fund","Not available","Macroplanning","Pending ITN arrival","On track","Training , Household registration , Distribution, Logistics & in-country supply chain, Payment ","National","Other (specify in comments)","Individual Packaging","Combination approach","First time digitalisation - the digital platform to used is iCHIS"]
["Malawi - ROUTINE",null,2025,"No campaign this year",null,null,null,null,null,null,null,null,"Dual a.i.",{"$f":"IF(M234=ITNs!$E$8, ITNs!E234, IF(M234=ITNs!$B$8, ITNs!B234, IF(M234=ITNs!$C$8, ITNs!C234, IF(M234=ITNs!$D$8, ITNs!D234, IF(M234=ITNs!$E$8, ITNs!E234, IF(M234=ITNs!$F$8, ITNs!F234, IF(M234=ITNs!$G$8, ITNs!G234, IF(M234=ITNs!$H$8, ITNs!H234, \"ERROR\"))))))))","v":801809}]
["Mali","Typically from June to October, with peak rainfall in July and August.",2024,"National - one phase",null,null,null,null,null,null,null,null,"Pyrethroid-only",{"$f":"IF(M235=ITNs!$E$8, ITNs!E235, IF(M235=ITNs!$B$8, ITNs!B235, IF(M235=ITNs!$C$8, ITNs!C235, IF(M235=ITNs!$D$8, ITNs!D235, IF(M235=ITNs!$E$8, ITNs!E235, IF(M235=ITNs!$F$8, ITNs!F235, IF(M235=ITNs!$G$8, ITNs!G235, IF(M235=ITNs!$H$8, ITNs!H235, \"ERROR\"))))))))","v":1360437},null,null,null,null,null,null,"On track"]
["DIRE",null,2024,"National - one phase",null,null,null,null,null,null,"2024-03-24",168233,"Pyrethroid-only",{"$f":"IF(M236=ITNs!$E$8, ITNs!E236, IF(M236=ITNs!$B$8, ITNs!B236, IF(M236=ITNs!$C$8, ITNs!C236, IF(M236=ITNs!$D$8, ITNs!D236, IF(M236=ITNs!$E$8, ITNs!E236, IF(M236=ITNs!$F$8, ITNs!F236, IF(M236=ITNs!$G$8, ITNs!G236, IF(M236=ITNs!$H$8, ITNs!H236, \"ERROR\"))))))))","v":102809},null,null,"Global Fund",null,null,null,"On track"]
["GOUNDAM",null,2024,"National - one phase",null,null,null,null,null,null,"2024-03-24",228192,"Pyrethroid-only",{"$f":"IF(M237=ITNs!$E$8, ITNs!E237, IF(M237=ITNs!$B$8, ITNs!B237, IF(M237=ITNs!$C$8, ITNs!C237, IF(M237=ITNs!$D$8, ITNs!D237, IF(M237=ITNs!$E$8, ITNs!E237, IF(M237=ITNs!$F$8, ITNs!F237, IF(M237=ITNs!$G$8, ITNs!G237, IF(M237=ITNs!$H$8, ITNs!H237, \"ERROR\"))))))))","v":139451},null,null,"Global Fund",null,null,null,"On track"]
["G-RHAROUS",null,2024,"National - one phase",null,null,null,null,null,null,"2024-03-24",170433,"Pyrethroid-only",{"$f":"IF(M238=ITNs!$E$8, ITNs!E238, IF(M238=ITNs!$B$8, ITNs!B238, IF(M238=ITNs!$C$8, ITNs!C238, IF(M238=ITNs!$D$8, ITNs!D238, IF(M238=ITNs!$E$8, ITNs!E238, IF(M238=ITNs!$F$8, ITNs!F238, IF(M238=ITNs!$G$8, ITNs!G238, IF(M238=ITNs!$H$8, ITNs!H238, \"ERROR\"))))))))","v":104154},null,null,"Global Fund",null,null,null,"On track"]
["NIAFUNKE",null,2024,"National - one phase",null,null,null,null,null,null,"2024-03-24",275379,"Pyrethroid-only",{"$f":"IF(M239=ITNs!$E$8, ITNs!E239, IF(M239=ITNs!$B$8, ITNs!B239, IF(M239=ITNs!$C$8, ITNs!C239, IF(M239=ITNs!$D$8, ITNs!D239, IF(M239=ITNs!$E$8, ITNs!E239, IF(M239=ITNs!$F$8, ITNs!F239, IF(M239=ITNs!$G$8, ITNs!G239, IF(M239=ITNs!$H$8, ITNs!H239, \"ERROR\"))))))))","v":168287},null,null,"Global Fund",null,null,null,"On track"]
["TOMBOUCTOU",null,2024,"National - one phase",null,null,null,null,null,null,"2024-03-24",194947,"Pyrethroid-only",{"$f":"IF(M240=ITNs!$E$8, ITNs!E240, IF(M240=ITNs!$B$8, ITNs!B240, IF(M240=ITNs!$C$8, ITNs!C240, IF(M240=ITNs!$D$8, ITNs!D240, IF(M240=ITNs!$E$8, ITNs!E240, IF(M240=ITNs!$F$8, ITNs!F240, IF(M240=ITNs!$G$8, ITNs!G240, IF(M240=ITNs!$H$8, ITNs!H240, \"ERROR\"))))))))","v":119134},null,null,"Global Fund",null,null,null,"On track"]
["ALMOUSTRAT",null,2024,"National - one phase",null,null,null,null,null,null,"2024-03-24",29310,"Pyrethroid-only",{"$f":"IF(M241=ITNs!$E$8, ITNs!E241, IF(M241=ITNs!$B$8, ITNs!B241, IF(M241=ITNs!$C$8, ITNs!C241, IF(M241=ITNs!$D$8, ITNs!D241, IF(M241=ITNs!$E$8, ITNs!E241, IF(M241=ITNs!$F$8, ITNs!F241, IF(M241=ITNs!$G$8, ITNs!G241, IF(M241=ITNs!$H$8, ITNs!H241, \"ERROR\"))))))))","v":17912},null,null,"Global Fund",null,null,null,"On track"]
["ANSONGO",null,2024,"National - one phase",null,null,null,null,null,null,"2024-03-24",203722,"Pyrethroid-only",{"$f":"IF(M242=ITNs!$E$8, ITNs!E242, IF(M242=ITNs!$B$8, ITNs!B242, IF(M242=ITNs!$C$8, ITNs!C242, IF(M242=ITNs!$D$8, ITNs!D242, IF(M242=ITNs!$E$8, ITNs!E242, IF(M242=ITNs!$F$8, ITNs!F242, IF(M242=ITNs!$G$8, ITNs!G242, IF(M242=ITNs!$H$8, ITNs!H242, \"ERROR\"))))))))","v":124497},null,null,"Global Fund",null,null,null,"On track"]
["BOUREM",null,2024,"National - one phase",null,null,null,null,null,null,"2024-03-24",148680,"Pyrethroid-only",{"$f":"IF(M243=ITNs!$E$8, ITNs!E243, IF(M243=ITNs!$B$8, ITNs!B243, IF(M243=ITNs!$C$8, ITNs!C243, IF(M243=ITNs!$D$8, ITNs!D243, IF(M243=ITNs!$E$8, ITNs!E243, IF(M243=ITNs!$F$8, ITNs!F243, IF(M243=ITNs!$G$8, ITNs!G243, IF(M243=ITNs!$H$8, ITNs!H243, \"ERROR\"))))))))","v":90860},null,null,"Global Fund",null,null,null,"On track"]
["Gao",null,2024,"National - one phase",null,null,null,null,null,null,"2024-03-24",360852,"Pyrethroid-only",{"$f":"IF(M244=ITNs!$E$8, ITNs!E244, IF(M244=ITNs!$B$8, ITNs!B244, IF(M244=ITNs!$C$8, ITNs!C244, IF(M244=ITNs!$D$8, ITNs!D244, IF(M244=ITNs!$E$8, ITNs!E244, IF(M244=ITNs!$F$8, ITNs!F244, IF(M244=ITNs!$G$8, ITNs!G244, IF(M244=ITNs!$H$8, ITNs!H244, \"ERROR\"))))))))","v":220521},null,null,"Global Fund",null,null,null,"On track"]
["ABEIBARA",null,2024,"National - one phase",null,null,null,null,null,null,"2024-03-24",32370,"Pyrethroid-only",{"$f":"IF(M245=ITNs!$E$8, ITNs!E245, IF(M245=ITNs!$B$8, ITNs!B245, IF(M245=ITNs!$C$8, ITNs!C245, IF(M245=ITNs!$D$8, ITNs!D245, IF(M245=ITNs!$E$8, ITNs!E245, IF(M245=ITNs!$F$8, ITNs!F245, IF(M245=ITNs!$G$8, ITNs!G245, IF(M245=ITNs!$H$8, ITNs!H245, \"ERROR\"))))))))","v":19782},null,null,"Global Fund",null,null,null,"On track"]
["KIDAL",null,2024,"National - one phase",null,null,null,null,null,null,"2024-03-24",80311,"Pyrethroid-only",{"$f":"IF(M246=ITNs!$E$8, ITNs!E246, IF(M246=ITNs!$B$8, ITNs!B246, IF(M246=ITNs!$C$8, ITNs!C246, IF(M246=ITNs!$D$8, ITNs!D246, IF(M246=ITNs!$E$8, ITNs!E246, IF(M246=ITNs!$F$8, ITNs!F246, IF(M246=ITNs!$G$8, ITNs!G246, IF(M246=ITNs!$H$8, ITNs!H246, \"ERROR\"))))))))","v":49079},null,null,"Global Fund",null,null,null,"On track"]
["TESSALIT",null,2024,"National - one phase",null,null,null,null,null,null,"2024-03-24",25736,"Pyrethroid-only",{"$f":"IF(M247=ITNs!$E$8, ITNs!E247, IF(M247=ITNs!$B$8, ITNs!B247, IF(M247=ITNs!$C$8, ITNs!C247, IF(M247=ITNs!$D$8, ITNs!D247, IF(M247=ITNs!$E$8, ITNs!E247, IF(M247=ITNs!$F$8, ITNs!F247, IF(M247=ITNs!$G$8, ITNs!G247, IF(M247=ITNs!$H$8, ITNs!H247, \"ERROR\"))))))))","v":15728},null,null,"Global Fund",null,null,null,"On track"]
["TIN-ESSAKO",null,2024,"National - one phase",null,null,null,null,null,null,"2024-03-24",8394,"Pyrethroid-only",{"$f":"IF(M248=ITNs!$E$8, ITNs!E248, IF(M248=ITNs!$B$8, ITNs!B248, IF(M248=ITNs!$C$8, ITNs!C248, IF(M248=ITNs!$D$8, ITNs!D248, IF(M248=ITNs!$E$8, ITNs!E248, IF(M248=ITNs!$F$8, ITNs!F248, IF(M248=ITNs!$G$8, ITNs!G248, IF(M248=ITNs!$H$8, ITNs!H248, \"ERROR\"))))))))","v":5130},null,null,"Global Fund",null,null,null,"On track"]
["ANDERABOUKANE",null,2024,"National - one phase",null,null,null,null,null,null,"2024-03-24",29051,"Pyrethroid-only",{"$f":"IF(M249=ITNs!$E$8, ITNs!E249, IF(M249=ITNs!$B$8, ITNs!B249, IF(M249=ITNs!$C$8, ITNs!C249, IF(M249=ITNs!$D$8, ITNs!D249, IF(M249=ITNs!$E$8, ITNs!E249, IF(M249=ITNs!$F$8, ITNs!F249, IF(M249=ITNs!$G$8, ITNs!G249, IF(M249=ITNs!$H$8, ITNs!H249, \"ERROR\"))))))))","v":17753},null,null,"Global Fund",null,null,null,"On track"]
["INEKAR",null,2024,"National - one phase",null,null,null,null,null,null,"2024-03-24",8319,"Pyrethroid-only",{"$f":"IF(M250=ITNs!$E$8, ITNs!E250, IF(M250=ITNs!$B$8, ITNs!B250, IF(M250=ITNs!$C$8, ITNs!C250, IF(M250=ITNs!$D$8, ITNs!D250, IF(M250=ITNs!$E$8, ITNs!E250, IF(M250=ITNs!$F$8, ITNs!F250, IF(M250=ITNs!$G$8, ITNs!G250, IF(M250=ITNs!$H$8, ITNs!H250, \"ERROR\"))))))))","v":5084},null,null,"Global Fund",null,null,null,"On track"]
["MENAKA",null,2024,"National - one phase",null,null,null,null,null,null,"2024-03-24",25841,"Pyrethroid-only",{"$f":"IF(M251=ITNs!$E$8, ITNs!E251, IF(M251=ITNs!$B$8, ITNs!B251, IF(M251=ITNs!$C$8, ITNs!C251, IF(M251=ITNs!$D$8, ITNs!D251, IF(M251=ITNs!$E$8, ITNs!E251, IF(M251=ITNs!$F$8, ITNs!F251, IF(M251=ITNs!$G$8, ITNs!G251, IF(M251=ITNs!$H$8, ITNs!H251, \"ERROR\"))))))))","v":15792},null,null,"Global Fund",null,null,null,"On track"]
["TINDERMENE",null,2024,"National - one phase",null,null,null,null,null,null,"2024-03-24",20362,"Pyrethroid-only",{"$f":"IF(M252=ITNs!$E$8, ITNs!E252, IF(M252=ITNs!$B$8, ITNs!B252, IF(M252=ITNs!$C$8, ITNs!C252, IF(M252=ITNs!$D$8, ITNs!D252, IF(M252=ITNs!$E$8, ITNs!E252, IF(M252=ITNs!$F$8, ITNs!F252, IF(M252=ITNs!$G$8, ITNs!G252, IF(M252=ITNs!$H$8, ITNs!H252, \"ERROR\"))))))))","v":12444},null,null,"Global Fund",null,null,null,"On track"]
["ACHOURATT",null,2024,"National - one phase",null,null,null,null,null,null,"2024-03-24",41725,"Pyrethroid-only",{"$f":"IF(M253=ITNs!$E$8, ITNs!E253, IF(M253=ITNs!$B$8, ITNs!B253, IF(M253=ITNs!$C$8, ITNs!C253, IF(M253=ITNs!$D$8, ITNs!D253, IF(M253=ITNs!$E$8, ITNs!E253, IF(M253=ITNs!$F$8, ITNs!F253, IF(M253=ITNs!$G$8, ITNs!G253, IF(M253=ITNs!$H$8, ITNs!H253, \"ERROR\"))))))))","v":25499},null,null,"Global Fund",null,null,null,"On track"]
["AL OURCHE",null,2024,"National - one phase",null,null,null,null,null,null,"2024-03-24",58295,"Pyrethroid-only",{"$f":"IF(M254=ITNs!$E$8, ITNs!E254, IF(M254=ITNs!$B$8, ITNs!B254, IF(M254=ITNs!$C$8, ITNs!C254, IF(M254=ITNs!$D$8, ITNs!D254, IF(M254=ITNs!$E$8, ITNs!E254, IF(M254=ITNs!$F$8, ITNs!F254, IF(M254=ITNs!$G$8, ITNs!G254, IF(M254=ITNs!$H$8, ITNs!H254, \"ERROR\"))))))))","v":35625},null,null,"Global Fund",null,null,null,"On track"]
["ARAOUANE",null,2024,"National - one phase",null,null,null,null,null,null,"2024-03-24",32603,"Pyrethroid-only",{"$f":"IF(M255=ITNs!$E$8, ITNs!E255, IF(M255=ITNs!$B$8, ITNs!B255, IF(M255=ITNs!$C$8, ITNs!C255, IF(M255=ITNs!$D$8, ITNs!D255, IF(M255=ITNs!$E$8, ITNs!E255, IF(M255=ITNs!$F$8, ITNs!F255, IF(M255=ITNs!$G$8, ITNs!G255, IF(M255=ITNs!$H$8, ITNs!H255, \"ERROR\"))))))))","v":19924},null,null,"Global Fund",null,null,null,"On track"]
["BOUJBEHA",null,2024,"National - one phase",null,null,null,null,null,null,"2024-03-24",36703,"Pyrethroid-only",{"$f":"IF(M256=ITNs!$E$8, ITNs!E256, IF(M256=ITNs!$B$8, ITNs!B256, IF(M256=ITNs!$C$8, ITNs!C256, IF(M256=ITNs!$D$8, ITNs!D256, IF(M256=ITNs!$E$8, ITNs!E256, IF(M256=ITNs!$F$8, ITNs!F256, IF(M256=ITNs!$G$8, ITNs!G256, IF(M256=ITNs!$H$8, ITNs!H256, \"ERROR\"))))))))","v":22430},null,null,"Global Fund",null,null,null,"On track"]
["FOUM ALBA",null,2024,"National - one phase",null,null,null,null,null,null,"2024-03-24",19206,"Pyrethroid-only",{"$f":"IF(M257=ITNs!$E$8, ITNs!E257, IF(M257=ITNs!$B$8, ITNs!B257, IF(M257=ITNs!$C$8, ITNs!C257, IF(M257=ITNs!$D$8, ITNs!D257, IF(M257=ITNs!$E$8, ITNs!E257, IF(M257=ITNs!$F$8, ITNs!F257, IF(M257=ITNs!$G$8, ITNs!G257, IF(M257=ITNs!$H$8, ITNs!H257, \"ERROR\"))))))))","v":11738},null,null,"Global Fund",null,null,null,"On track"]
["TAOUDENNI",null,2024,"National - one phase",null,null,null,null,null,null,"2024-03-24",27496,"Pyrethroid-only",{"$f":"IF(M258=ITNs!$E$8, ITNs!E258, IF(M258=ITNs!$B$8, ITNs!B258, IF(M258=ITNs!$C$8, ITNs!C258, IF(M258=ITNs!$D$8, ITNs!D258, IF(M258=ITNs!$E$8, ITNs!E258, IF(M258=ITNs!$F$8, ITNs!F258, IF(M258=ITNs!$G$8, ITNs!G258, IF(M258=ITNs!$H$8, ITNs!H258, \"ERROR\"))))))))","v":16804},null,null,"Global Fund",null,null,null,"On track"]
["Mali",null,2025,null,null,null,null,null,null,null,null,null,"Multi-products",{"$f":"IF(M259=ITNs!$E$8, ITNs!E259, IF(M259=ITNs!$B$8, ITNs!B259, IF(M259=ITNs!$C$8, ITNs!C259, IF(M259=ITNs!$D$8, ITNs!D259, IF(M259=ITNs!$E$8, ITNs!E259, IF(M259=ITNs!$F$8, ITNs!F259, IF(M259=ITNs!$G$8, ITNs!G259, IF(M259=ITNs!$H$8, ITNs!H259, \"ERROR\"))))))))","v":0}]
["Mauritania","Typically occurs from July to September, although rainfall is generally scarce and sporadic.",2024,"No campaign this year",null,null,null,null,null,null,null,null,"Pyrethroid-only",{"$f":"IF(M260=ITNs!$E$8, ITNs!E260, IF(M260=ITNs!$B$8, ITNs!B260, IF(M260=ITNs!$C$8, ITNs!C260, IF(M260=ITNs!$D$8, ITNs!D260, IF(M260=ITNs!$E$8, ITNs!E260, IF(M260=ITNs!$F$8, ITNs!F260, IF(M260=ITNs!$G$8, ITNs!G260, IF(M260=ITNs!$H$8, ITNs!H260, \"ERROR\"))))))))","v":0}]
["Mauritania","Typically occurs from July to September, although rainfall is generally scarce and sporadic.",2025,"No campaign this year",null,null,null,null,null,null,null,null,null,{"$f":"IF(M261=ITNs!$E$8, ITNs!E261, IF(M261=ITNs!$B$8, ITNs!B261, IF(M261=ITNs!$C$8, ITNs!C261, IF(M261=ITNs!$D$8, ITNs!D261, IF(M261=ITNs!$E$8, ITNs!E261, IF(M261=ITNs!$F$8, ITNs!F261, IF(M261=ITNs!$G$8, ITNs!G261, IF(M261=ITNs!$H$8, ITNs!H261, \"ERROR\"))))))))","v":0}]
["Mauritania","Typically occurs from July to September, although rainfall is generally scarce and sporadic.",2026,null,null,null,null,null,null,null,null,null,"Pyrethroid-only",{"$f":"IF(M262=ITNs!$E$8, ITNs!E262, IF(M262=ITNs!$B$8, ITNs!B262, IF(M262=ITNs!$C$8, ITNs!C262, IF(M262=ITNs!$D$8, ITNs!D262, IF(M262=ITNs!$E$8, ITNs!E262, IF(M262=ITNs!$F$8, ITNs!F262, IF(M262=ITNs!$G$8, ITNs!G262, IF(M262=ITNs!$H$8, ITNs!H262, \"ERROR\"))))))))","v":605583}]
["Mozambique","Rainy season occurs during the Southern Hemisphere summer, from November to March, with peak rainfall typically from December to February.",2024,"No campaign this year",null,null,null,null,null,null,null,null,"Pyrethroid-only",{"$f":"IF(M263=ITNs!$E$8, ITNs!E263, IF(M263=ITNs!$B$8, ITNs!B263, IF(M263=ITNs!$C$8, ITNs!C263, IF(M263=ITNs!$D$8, ITNs!D263, IF(M263=ITNs!$E$8, ITNs!E263, IF(M263=ITNs!$F$8, ITNs!F263, IF(M263=ITNs!$G$8, ITNs!G263, IF(M263=ITNs!$H$8, ITNs!H263, \"ERROR\"))))))))","v":0}]
["Mozambique","Rainy season occurs during the Southern Hemisphere summer, from November to March, with peak rainfall typically from December to February.",2025,null,null,null,null,null,null,null,null,null,"Dual a.i.",{"$f":"IF(M264=ITNs!$E$8, ITNs!E264, IF(M264=ITNs!$B$8, ITNs!B264, IF(M264=ITNs!$C$8, ITNs!C264, IF(M264=ITNs!$D$8, ITNs!D264, IF(M264=ITNs!$E$8, ITNs!E264, IF(M264=ITNs!$F$8, ITNs!F264, IF(M264=ITNs!$G$8, ITNs!G264, IF(M264=ITNs!$H$8, ITNs!H264, \"ERROR\"))))))))","v":13311718}]
["Mozambique","Rainy season occurs during the Southern Hemisphere summer, from November to March, with peak rainfall typically from December to February.",2026,null,null,null,null,null,null,null,null,null,"Dual a.i.",{"$f":"IF(M265=ITNs!$E$8, ITNs!E265, IF(M265=ITNs!$B$8, ITNs!B265, IF(M265=ITNs!$C$8, ITNs!C265, IF(M265=ITNs!$D$8, ITNs!D265, IF(M265=ITNs!$E$8, ITNs!E265, IF(M265=ITNs!$F$8, ITNs!F265, IF(M265=ITNs!$G$8, ITNs!G265, IF(M265=ITNs!$H$8, ITNs!H265, \"ERROR\"))))))))","v":6893451}]
["Myanmar","Rainy season typically lasts from May to October",2024,"No campaign this year",null,null,null,null,null,null,null,null,"Multi-products",{"$f":"IF(M266=ITNs!$E$8, ITNs!E266, IF(M266=ITNs!$B$8, ITNs!B266, IF(M266=ITNs!$C$8, ITNs!C266, IF(M266=ITNs!$D$8, ITNs!D266, IF(M266=ITNs!$E$8, ITNs!E266, IF(M266=ITNs!$F$8, ITNs!F266, IF(M266=ITNs!$G$8, ITNs!G266, IF(M266=ITNs!$H$8, ITNs!H266, \"ERROR\"))))))))","v":0}]
["Namibia","Varies depending on the region. In the northern parts of Namibia, the rainy season usually occurs from November to April, with peak rainfall from January to March. In the southern parts, rainfall is sporadic and occurs mainly from January to April.",null,null,null,null,null,null,null,null,null,null,"Multi-products",{"$f":"IF(M267=ITNs!$E$8, ITNs!E267, IF(M267=ITNs!$B$8, ITNs!B267, IF(M267=ITNs!$C$8, ITNs!C267, IF(M267=ITNs!$D$8, ITNs!D267, IF(M267=ITNs!$E$8, ITNs!E267, IF(M267=ITNs!$F$8, ITNs!F267, IF(M267=ITNs!$G$8, ITNs!G267, IF(M267=ITNs!$H$8, ITNs!H267, \"ERROR\"))))))))","v":0}]
["Nepal","Monsoon season, typically occurs from June to September.",2024,"No campaign this year",null,null,null,null,null,null,null,null,"Pyrethroid-only",{"$f":"IF(M268=ITNs!$E$8, ITNs!E268, IF(M268=ITNs!$B$8, ITNs!B268, IF(M268=ITNs!$C$8, ITNs!C268, IF(M268=ITNs!$D$8, ITNs!D268, IF(M268=ITNs!$E$8, ITNs!E268, IF(M268=ITNs!$F$8, ITNs!F268, IF(M268=ITNs!$G$8, ITNs!G268, IF(M268=ITNs!$H$8, ITNs!H268, \"ERROR\"))))))))","v":500000}]
["Nepal","Monsoon season, typically occurs from June to September.",2025,null,null,null,null,null,null,null,null,null,"Pyrethroid-only",{"$f":"IF(M269=ITNs!$E$8, ITNs!E269, IF(M269=ITNs!$B$8, ITNs!B269, IF(M269=ITNs!$C$8, ITNs!C269, IF(M269=ITNs!$D$8, ITNs!D269, IF(M269=ITNs!$E$8, ITNs!E269, IF(M269=ITNs!$F$8, ITNs!F269, IF(M269=ITNs!$G$8, ITNs!G269, IF(M269=ITNs!$H$8, ITNs!H269, \"ERROR\"))))))))","v":0}]
["Nicaragua","Typically occurs from May to October, with variations depending on the region.",2025,null,null,null,null,null,null,null,null,null,"Pyrethroid-only",{"$f":"IF(M270=ITNs!$E$8, ITNs!E270, IF(M270=ITNs!$B$8, ITNs!B270, IF(M270=ITNs!$C$8, ITNs!C270, IF(M270=ITNs!$D$8, ITNs!D270, IF(M270=ITNs!$E$8, ITNs!E270, IF(M270=ITNs!$F$8, ITNs!F270, IF(M270=ITNs!$G$8, ITNs!G270, IF(M270=ITNs!$H$8, ITNs!H270, \"ERROR\"))))))))","v":282440}]
["Niger","Typically from June to September, with peak rainfall in August.",2024,"National - one phase",null,null,"No prioritization",null,"72 DS","No integration","2024-07-27",26312032,"Multi-products",{"$f":"IF(M271=ITNs!$E$8, ITNs!E271, IF(M271=ITNs!$B$8, ITNs!B271, IF(M271=ITNs!$C$8, ITNs!C271, IF(M271=ITNs!$D$8, ITNs!D271, IF(M271=ITNs!$E$8, ITNs!E271, IF(M271=ITNs!$F$8, ITNs!F271, IF(M271=ITNs!$G$8, ITNs!G271, IF(M271=ITNs!$H$8, ITNs!H271, \"ERROR\"))))))))","v":15357456},null,"Phase 1 20 au 24 juin 2024 / Phase 2: 27 au 31 juillet 2024","Global Fund"]
["Niger",null,2024,"National - one phase",null,"Door to door","No prioritization","Agadez","Aderbissinat","No integration","2024-07-01",51754,"Multi-products",{"$f":"IF(M272=ITNs!$E$8, ITNs!E272, IF(M272=ITNs!$B$8, ITNs!B272, IF(M272=ITNs!$C$8, ITNs!C272, IF(M272=ITNs!$D$8, ITNs!D272, IF(M272=ITNs!$E$8, ITNs!E272, IF(M272=ITNs!$F$8, ITNs!F272, IF(M272=ITNs!$G$8, ITNs!G272, IF(M272=ITNs!$H$8, ITNs!H272, \"ERROR\"))))))))","v":30207}," "," ","Delivered in-country"," "," ","Household Registration, Logistics and supply-chain, Distribution, Monitoring","Selected districts"," "," "," "," "," "," "," "," "," "," "," "," "," "," "," "," "," "," "," "," "," "," "," "," "," "," "," "," "," "," "," "," "," "," "," "," "," "," "," "]
["Niger",null,2024,"National - one phase",null,"Door to door","No prioritization","Agadez","Agadez","No integration","2024-07-01",173256,"Multi-products",{"$f":"IF(M273=ITNs!$E$8, ITNs!E273, IF(M273=ITNs!$B$8, ITNs!B273, IF(M273=ITNs!$C$8, ITNs!C273, IF(M273=ITNs!$D$8, ITNs!D273, IF(M273=ITNs!$E$8, ITNs!E273, IF(M273=ITNs!$F$8, ITNs!F273, IF(M273=ITNs!$G$8, ITNs!G273, IF(M273=ITNs!$H$8, ITNs!H273, \"ERROR\"))))))))","v":101124}," "," "," "," "," "," "," "," "," "," "," "," "," "," "," "," "," "," "," "," "," "," "," "," "," "," "," "," "," "," "," "," "," "," "," "," "," "," "," "," "," "," "," "," "," "," "]
["Niger",null,2024,"National - one phase",null,"Door to door","No prioritization","Agadez","Arlit","No integration","2024-07-01",153893,"Multi-products",{"$f":"IF(M274=ITNs!$E$8, ITNs!E274, IF(M274=ITNs!$B$8, ITNs!B274, IF(M274=ITNs!$C$8, ITNs!C274, IF(M274=ITNs!$D$8, ITNs!D274, IF(M274=ITNs!$E$8, ITNs!E274, IF(M274=ITNs!$F$8, ITNs!F274, IF(M274=ITNs!$G$8, ITNs!G274, IF(M274=ITNs!$H$8, ITNs!H274, \"ERROR\"))))))))","v":89822}," "," "," "," "," "," "," "," "," "," "," "," "," "," "," "," "," "," "," "," "," "," "," "," "," "," "," "," "," "," "," "," "," "," "," "," "," "," "," "," "," "," "," "," "," "," "]
["Niger",null,2024,"National - one phase",null,"Door to door","No prioritization","Agadez","Bilma","No integration","2024-07-01",26280,"Multi-products",{"$f":"IF(M275=ITNs!$E$8, ITNs!E275, IF(M275=ITNs!$B$8, ITNs!B275, IF(M275=ITNs!$C$8, ITNs!C275, IF(M275=ITNs!$D$8, ITNs!D275, IF(M275=ITNs!$E$8, ITNs!E275, IF(M275=ITNs!$F$8, ITNs!F275, IF(M275=ITNs!$G$8, ITNs!G275, IF(M275=ITNs!$H$8, ITNs!H275, \"ERROR\"))))))))","v":15339}," "," "," "," "," "," "," "," "," "," "," "," "," "," "," "," "," "," "," "," "," "," "," "," "," "," "," "," "," "," "," "," "," "," "," "," "," "," "," "," "," "," "," "," "," "," "]
["Niger",null,2024,"National - one phase",null,"Door to door","No prioritization","Agadez","Iférouane","No integration","2024-07-01",47961,"Multi-products",{"$f":"IF(M276=ITNs!$E$8, ITNs!E276, IF(M276=ITNs!$B$8, ITNs!B276, IF(M276=ITNs!$C$8, ITNs!C276, IF(M276=ITNs!$D$8, ITNs!D276, IF(M276=ITNs!$E$8, ITNs!E276, IF(M276=ITNs!$F$8, ITNs!F276, IF(M276=ITNs!$G$8, ITNs!G276, IF(M276=ITNs!$H$8, ITNs!H276, \"ERROR\"))))))))","v":27993}," "," "," "," "," "," "," "," "," "," "," "," "," "," "," "," "," "," "," "," "," "," "," "," "," "," "," "," "," "," "," "," "," "," "," "," "," "," "," "," "," "," "," "," "," "," "]
["Niger",null,2024,"National - one phase",null,"Door to door","No prioritization","Agadez","Ingall","No integration","2024-07-01",76053,"Multi-products",{"$f":"IF(M277=ITNs!$E$8, ITNs!E277, IF(M277=ITNs!$B$8, ITNs!B277, IF(M277=ITNs!$C$8, ITNs!C277, IF(M277=ITNs!$D$8, ITNs!D277, IF(M277=ITNs!$E$8, ITNs!E277, IF(M277=ITNs!$F$8, ITNs!F277, IF(M277=ITNs!$G$8, ITNs!G277, IF(M277=ITNs!$H$8, ITNs!H277, \"ERROR\"))))))))","v":44390}," "," "," "," "," "," "," "," "," "," "," "," "," "," "," "," "," "," "," "," "," "," "," "," "," "," "," "," "," "," "," "," "," "," "," "," "," "," "," "," "," "," "," "," "," "," "]
["Niger",null,2024,"National - one phase",null,"Door to door","No prioritization","Agadez","Tchirozérine","No integration","2024-07-01",185311,"Multi-products",{"$f":"IF(M278=ITNs!$E$8, ITNs!E278, IF(M278=ITNs!$B$8, ITNs!B278, IF(M278=ITNs!$C$8, ITNs!C278, IF(M278=ITNs!$D$8, ITNs!D278, IF(M278=ITNs!$E$8, ITNs!E278, IF(M278=ITNs!$F$8, ITNs!F278, IF(M278=ITNs!$G$8, ITNs!G278, IF(M278=ITNs!$H$8, ITNs!H278, \"ERROR\"))))))))","v":108160}," "," "," "," "," "," "," "," "," "," "," "," "," "," "," "," "," "," "," "," "," "," "," "," "," "," "," "," "," "," "," "," "," "," "," "," "," "," "," "," "," "," "," "," "," "," "]
["Niger",null,2024,"National - one phase",null,"Door to door","No prioritization","Diffa","Bosso","No integration","2024-07-01",112769,"Multi-products",{"$f":"IF(M279=ITNs!$E$8, ITNs!E279, IF(M279=ITNs!$B$8, ITNs!B279, IF(M279=ITNs!$C$8, ITNs!C279, IF(M279=ITNs!$D$8, ITNs!D279, IF(M279=ITNs!$E$8, ITNs!E279, IF(M279=ITNs!$F$8, ITNs!F279, IF(M279=ITNs!$G$8, ITNs!G279, IF(M279=ITNs!$H$8, ITNs!H279, \"ERROR\"))))))))","v":65819}," "," "," "," "," "," "," "," "," "," "," "," "," "," "," "," "," "," "," "," "," "," "," "," "," "," "," "," "," "," "," "," "," "," "," "," "," "," "," "," "," "," "," "," "," "," "]
["Niger",null,2024,"National - one phase",null,"Door to door","No prioritization","Diffa","Diffa","No integration","2024-07-01",234725,"Multi-products",{"$f":"IF(M280=ITNs!$E$8, ITNs!E280, IF(M280=ITNs!$B$8, ITNs!B280, IF(M280=ITNs!$C$8, ITNs!C280, IF(M280=ITNs!$D$8, ITNs!D280, IF(M280=ITNs!$E$8, ITNs!E280, IF(M280=ITNs!$F$8, ITNs!F280, IF(M280=ITNs!$G$8, ITNs!G280, IF(M280=ITNs!$H$8, ITNs!H280, \"ERROR\"))))))))","v":137001}," "," "," "," "," "," "," "," "," "," "," "," "," "," "," "," "," "," "," "," "," "," "," "," "," "," "," "," "," "," "," "," "," "," "," "," "," "," "," "," "," "," "," "," "," "," "]
["Niger",null,2024,"National - one phase",null,"Door to door","No prioritization","Diffa","Goudoumaria","No integration","2024-07-01",147780,"Multi-products",{"$f":"IF(M281=ITNs!$E$8, ITNs!E281, IF(M281=ITNs!$B$8, ITNs!B281, IF(M281=ITNs!$C$8, ITNs!C281, IF(M281=ITNs!$D$8, ITNs!D281, IF(M281=ITNs!$E$8, ITNs!E281, IF(M281=ITNs!$F$8, ITNs!F281, IF(M281=ITNs!$G$8, ITNs!G281, IF(M281=ITNs!$H$8, ITNs!H281, \"ERROR\"))))))))","v":86254}," "," "," "," "," "," "," "," "," "," "," "," "," "," "," "," "," "," "," "," "," "," "," "," "," "," "," "," "," "," "," "," "," "," "," "," "," "," "," "," "," "," "," "," "," "," "]
["Niger",null,2024,"National - one phase",null,"Door to door","No prioritization","Diffa","Maïne Soroa","No integration","2024-07-01",193492,"Multi-products",{"$f":"IF(M282=ITNs!$E$8, ITNs!E282, IF(M282=ITNs!$B$8, ITNs!B282, IF(M282=ITNs!$C$8, ITNs!C282, IF(M282=ITNs!$D$8, ITNs!D282, IF(M282=ITNs!$E$8, ITNs!E282, IF(M282=ITNs!$F$8, ITNs!F282, IF(M282=ITNs!$G$8, ITNs!G282, IF(M282=ITNs!$H$8, ITNs!H282, \"ERROR\"))))))))","v":112935}," "," "," "," "," "," "," ",null,null,null,null," "," "," "," "," "," "," "," "," "," "," "," "," "," "," "," "," "," "," "," "," "," "," "," "," "," "," "," "," "," "," "," "," "," "," "]
["Niger",null,2024,"National - one phase",null,"Door to door","No prioritization","Diffa","N'gourti","No integration","2024-07-01",76076,"Multi-products",{"$f":"IF(M283=ITNs!$E$8, ITNs!E283, IF(M283=ITNs!$B$8, ITNs!B283, IF(M283=ITNs!$C$8, ITNs!C283, IF(M283=ITNs!$D$8, ITNs!D283, IF(M283=ITNs!$E$8, ITNs!E283, IF(M283=ITNs!$F$8, ITNs!F283, IF(M283=ITNs!$G$8, ITNs!G283, IF(M283=ITNs!$H$8, ITNs!H283, \"ERROR\"))))))))","v":44403}," "," "," "," "," "," "," ",null,null,null,null," "," "," "," "," "," "," "," "," "," "," "," "," "," "," "," "," "," "," "," "," "," "," "," "," "," "," "," "," "," "," "," "," "," "," "]
["Niger",null,2024,"National - one phase",null,"Door to door","No prioritization","Diffa","N'guigmi","No integration","2024-07-01",107830,"Multi-products",{"$f":"IF(M284=ITNs!$E$8, ITNs!E284, IF(M284=ITNs!$B$8, ITNs!B284, IF(M284=ITNs!$C$8, ITNs!C284, IF(M284=ITNs!$D$8, ITNs!D284, IF(M284=ITNs!$E$8, ITNs!E284, IF(M284=ITNs!$F$8, ITNs!F284, IF(M284=ITNs!$G$8, ITNs!G284, IF(M284=ITNs!$H$8, ITNs!H284, \"ERROR\"))))))))","v":62936}," "," "," "," "," "," "," ",null,null,null,null," "," "," "," "," "," "," "," "," "," "," "," "," "," "," "," "," "," "," "," "," "," "," "," "," "," "," "," "," "," "," "," "," "," "," "]
["Niger",null,2024,"National - one phase",null,"Door to door","No prioritization","Dosso","Boboye","No integration","2024-07-01",393284,"Multi-products",{"$f":"IF(M285=ITNs!$E$8, ITNs!E285, IF(M285=ITNs!$B$8, ITNs!B285, IF(M285=ITNs!$C$8, ITNs!C285, IF(M285=ITNs!$D$8, ITNs!D285, IF(M285=ITNs!$E$8, ITNs!E285, IF(M285=ITNs!$F$8, ITNs!F285, IF(M285=ITNs!$G$8, ITNs!G285, IF(M285=ITNs!$H$8, ITNs!H285, \"ERROR\"))))))))","v":229547}," "," "," "," "," "," "," ",null,null,null,null," "," "," "," "," "," "," "," "," "," "," "," "," "," "," "," "," "," "," "," "," "," "," "," "," "," "," "," "," "," "," "," "," "," "," "]
["Niger",null,2024,"National - one phase",null,"Door to door","No prioritization","Dosso","Dioundiou","No integration","2024-07-01",170667,"Multi-products",{"$f":"IF(M286=ITNs!$E$8, ITNs!E286, IF(M286=ITNs!$B$8, ITNs!B286, IF(M286=ITNs!$C$8, ITNs!C286, IF(M286=ITNs!$D$8, ITNs!D286, IF(M286=ITNs!$E$8, ITNs!E286, IF(M286=ITNs!$F$8, ITNs!F286, IF(M286=ITNs!$G$8, ITNs!G286, IF(M286=ITNs!$H$8, ITNs!H286, \"ERROR\"))))))))","v":99612}," "," "," "," "," "," "," ",null,null,null,null," "," "," "," "," "," "," "," "," "," "," "," "," "," "," "," "," "," "," "," "," "," "," "," "," "," "," "," "," "," "," "," "," "," "," "]
["Niger",null,2024,"National - one phase",null,"Door to door","No prioritization","Dosso","Dogon-Doutchi ","No integration","2024-07-01",579927,"Multi-products",{"$f":"IF(M287=ITNs!$E$8, ITNs!E287, IF(M287=ITNs!$B$8, ITNs!B287, IF(M287=ITNs!$C$8, ITNs!C287, IF(M287=ITNs!$D$8, ITNs!D287, IF(M287=ITNs!$E$8, ITNs!E287, IF(M287=ITNs!$F$8, ITNs!F287, IF(M287=ITNs!$G$8, ITNs!G287, IF(M287=ITNs!$H$8, ITNs!H287, \"ERROR\"))))))))","v":338484}," "," "," "," "," "," "," ",null,null,null,null," "," "," "," "," "," "," "," "," "," "," "," "," "," "," "," "," "," "," "," "," "," "," "," "," "," "," "," "," "," "," "," "," "," "," "]
["Niger",null,2024,"National - one phase",null,"Door to door","No prioritization","Dosso","Dosso","No integration","2024-07-01",766898,"Multi-products",{"$f":"IF(M288=ITNs!$E$8, ITNs!E288, IF(M288=ITNs!$B$8, ITNs!B288, IF(M288=ITNs!$C$8, ITNs!C288, IF(M288=ITNs!$D$8, ITNs!D288, IF(M288=ITNs!$E$8, ITNs!E288, IF(M288=ITNs!$F$8, ITNs!F288, IF(M288=ITNs!$G$8, ITNs!G288, IF(M288=ITNs!$H$8, ITNs!H288, \"ERROR\"))))))))","v":447613}," "," "," "," "," "," "," ",null,null,null,null," "," "," "," "," "," "," "," "," "," "," "," "," "," "," "," "," "," "," "," "," "," "," "," "," "," "," "," "," "," "," "," "," "," "," "]
["Niger",null,2024,"National - one phase",null,"Door to door","No prioritization","Dosso","Falmey ","No integration","2024-07-01",160789,"Multi-products",{"$f":"IF(M289=ITNs!$E$8, ITNs!E289, IF(M289=ITNs!$B$8, ITNs!B289, IF(M289=ITNs!$C$8, ITNs!C289, IF(M289=ITNs!$D$8, ITNs!D289, IF(M289=ITNs!$E$8, ITNs!E289, IF(M289=ITNs!$F$8, ITNs!F289, IF(M289=ITNs!$G$8, ITNs!G289, IF(M289=ITNs!$H$8, ITNs!H289, \"ERROR\"))))))))","v":93847}," "," "," "," "," "," "," ",null,null,null,null," "," "," "," "," "," "," "," "," "," "," "," "," "," "," "," "," "," "," "," "," "," "," "," "," "," "," "," "," "," "," "," "," "," "," "]
["Niger",null,2024,"National - one phase",null,"Door to door","No prioritization","Dosso","Gaya ","No integration","2024-07-01",407361,"Multi-products",{"$f":"IF(M290=ITNs!$E$8, ITNs!E290, IF(M290=ITNs!$B$8, ITNs!B290, IF(M290=ITNs!$C$8, ITNs!C290, IF(M290=ITNs!$D$8, ITNs!D290, IF(M290=ITNs!$E$8, ITNs!E290, IF(M290=ITNs!$F$8, ITNs!F290, IF(M290=ITNs!$G$8, ITNs!G290, IF(M290=ITNs!$H$8, ITNs!H290, \"ERROR\"))))))))","v":237763}," "," "," "," "," "," "," ",null,null,null,null," "," "," "," "," "," "," "," "," "," "," "," "," "," "," "," "," "," "," "," "," "," "," "," "," "," "," "," "," "," "," "," "," "," "," "]
["Niger",null,2024,"National - one phase",null,"Door to door","No prioritization","Dosso","Loga","No integration","2024-07-01",273314,"Multi-products",{"$f":"IF(M291=ITNs!$E$8, ITNs!E291, IF(M291=ITNs!$B$8, ITNs!B291, IF(M291=ITNs!$C$8, ITNs!C291, IF(M291=ITNs!$D$8, ITNs!D291, IF(M291=ITNs!$E$8, ITNs!E291, IF(M291=ITNs!$F$8, ITNs!F291, IF(M291=ITNs!$G$8, ITNs!G291, IF(M291=ITNs!$H$8, ITNs!H291, \"ERROR\"))))))))","v":159524}," "," "," "," "," "," "," ",null,null,null,null," "," "," "," "," "," "," "," "," "," "," "," "," "," "," "," "," "," "," "," "," "," "," "," "," "," "," "," "," "," "," "," "," "," "," "]
["Niger",null,2024,"National - one phase",null,"Door to door","No prioritization","Dosso","Tibiri","No integration","2024-07-01",420405,"Multi-products",{"$f":"IF(M292=ITNs!$E$8, ITNs!E292, IF(M292=ITNs!$B$8, ITNs!B292, IF(M292=ITNs!$C$8, ITNs!C292, IF(M292=ITNs!$D$8, ITNs!D292, IF(M292=ITNs!$E$8, ITNs!E292, IF(M292=ITNs!$F$8, ITNs!F292, IF(M292=ITNs!$G$8, ITNs!G292, IF(M292=ITNs!$H$8, ITNs!H292, \"ERROR\"))))))))","v":245376}," "," "," "," "," "," "," ",null,null,null,null," "," "," "," "," "," "," "," "," "," "," "," "," "," "," "," "," "," "," "," "," "," "," "," "," "," "," "," "," "," "," "," "," "," "," "]
["Niger",null,2024,"National - one phase",null,"Door to door","No prioritization","Maradi","Aguié","No integration","2024-07-01",379571,"Multi-products",{"$f":"IF(M293=ITNs!$E$8, ITNs!E293, IF(M293=ITNs!$B$8, ITNs!B293, IF(M293=ITNs!$C$8, ITNs!C293, IF(M293=ITNs!$D$8, ITNs!D293, IF(M293=ITNs!$E$8, ITNs!E293, IF(M293=ITNs!$F$8, ITNs!F293, IF(M293=ITNs!$G$8, ITNs!G293, IF(M293=ITNs!$H$8, ITNs!H293, \"ERROR\"))))))))","v":221543}," "," "," "," "," "," "," ",null,null,null,null," "," "," "," "," "," "," "," "," "," "," "," "," "," "," "," "," "," "," "," "," "," "," "," "," "," "," "," "," "," "," "," "," "," "," "]
["Niger",null,2024,"National - one phase",null,"Door to door","No prioritization","Maradi","Bermo","No integration","2024-07-01",80659,"Multi-products",{"$f":"IF(M294=ITNs!$E$8, ITNs!E294, IF(M294=ITNs!$B$8, ITNs!B294, IF(M294=ITNs!$C$8, ITNs!C294, IF(M294=ITNs!$D$8, ITNs!D294, IF(M294=ITNs!$E$8, ITNs!E294, IF(M294=ITNs!$F$8, ITNs!F294, IF(M294=ITNs!$G$8, ITNs!G294, IF(M294=ITNs!$H$8, ITNs!H294, \"ERROR\"))))))))","v":47078}," "," "," "," "," "," "," ",null,null,null,null," "," "," "," "," "," "," "," "," "," "," "," "," "," "," "," "," "," "," "," "," "," "," "," "," "," "," "," "," "," "," "," "," "," "," "]
["Niger",null,2024,"National - one phase",null,"Door to door","No prioritization","Maradi","Dakoro","No integration","2024-07-01",972738,"Multi-products",{"$f":"IF(M295=ITNs!$E$8, ITNs!E295, IF(M295=ITNs!$B$8, ITNs!B295, IF(M295=ITNs!$C$8, ITNs!C295, IF(M295=ITNs!$D$8, ITNs!D295, IF(M295=ITNs!$E$8, ITNs!E295, IF(M295=ITNs!$F$8, ITNs!F295, IF(M295=ITNs!$G$8, ITNs!G295, IF(M295=ITNs!$H$8, ITNs!H295, \"ERROR\"))))))))","v":567755}," "," "," "," "," "," "," ",null,null,null,null," "," "," "," "," "," "," "," "," "," "," "," "," "," "," "," "," "," "," "," "," "," "," "," "," "," "," "," "," "," "," "," "," "," "," "]
["Niger",null,2024,"National - one phase",null,"Door to door","No prioritization","Maradi","Gazaoua","No integration","2024-07-01",247707,"Multi-products",{"$f":"IF(M296=ITNs!$E$8, ITNs!E296, IF(M296=ITNs!$B$8, ITNs!B296, IF(M296=ITNs!$C$8, ITNs!C296, IF(M296=ITNs!$D$8, ITNs!D296, IF(M296=ITNs!$E$8, ITNs!E296, IF(M296=ITNs!$F$8, ITNs!F296, IF(M296=ITNs!$G$8, ITNs!G296, IF(M296=ITNs!$H$8, ITNs!H296, \"ERROR\"))))))))","v":144578}," "," "," "," "," "," "," ",null,null,null,null," "," "," "," "," "," "," "," "," "," "," "," "," "," "," "," "," "," "," "," "," "," "," "," "," "," "," "," "," "," "," "," "," "," "," "]
["Niger",null,2024,"National - one phase",null,"Door to door","No prioritization","Maradi","Guidan Roumdji","No integration","2024-07-01",808094,"Multi-products",{"$f":"IF(M297=ITNs!$E$8, ITNs!E297, IF(M297=ITNs!$B$8, ITNs!B297, IF(M297=ITNs!$C$8, ITNs!C297, IF(M297=ITNs!$D$8, ITNs!D297, IF(M297=ITNs!$E$8, ITNs!E297, IF(M297=ITNs!$F$8, ITNs!F297, IF(M297=ITNs!$G$8, ITNs!G297, IF(M297=ITNs!$H$8, ITNs!H297, \"ERROR\"))))))))","v":471657}," "," "," "," "," "," "," ",null,null,null,null," "," "," "," "," "," "," "," "," "," "," "," "," "," "," "," "," "," "," "," "," "," "," "," "," "," "," "," "," "," "," "," "," "," "," "]
["Niger",null,2024,"National - one phase",null,"Door to door","No prioritization","Maradi","Madarounfa","No integration","2024-07-01",692594,"Multi-products",{"$f":"IF(M298=ITNs!$E$8, ITNs!E298, IF(M298=ITNs!$B$8, ITNs!B298, IF(M298=ITNs!$C$8, ITNs!C298, IF(M298=ITNs!$D$8, ITNs!D298, IF(M298=ITNs!$E$8, ITNs!E298, IF(M298=ITNs!$F$8, ITNs!F298, IF(M298=ITNs!$G$8, ITNs!G298, IF(M298=ITNs!$H$8, ITNs!H298, \"ERROR\"))))))))","v":404244}," "," "," "," "," "," "," ",null,null,null,null," "," "," "," "," "," "," "," "," "," "," "," "," "," "," "," "," "," "," "," "," "," "," "," "," "," "," "," "," "," "," "," "," "," "," "]
["Niger",null,2024,"National - one phase",null,"Door to door","No prioritization","Maradi","Maradi comm","No integration","2024-07-01",412364,"Multi-products",{"$f":"IF(M299=ITNs!$E$8, ITNs!E299, IF(M299=ITNs!$B$8, ITNs!B299, IF(M299=ITNs!$C$8, ITNs!C299, IF(M299=ITNs!$D$8, ITNs!D299, IF(M299=ITNs!$E$8, ITNs!E299, IF(M299=ITNs!$F$8, ITNs!F299, IF(M299=ITNs!$G$8, ITNs!G299, IF(M299=ITNs!$H$8, ITNs!H299, \"ERROR\"))))))))","v":240683}," "," "," "," "," "," "," ",null,null,null,null," "," "," "," "," "," "," "," "," "," "," "," "," "," "," "," "," "," "," "," "," "," "," "," "," "," "," "," "," "," "," "," "," "," "," "]
["Niger",null,2024,"National - one phase",null,"Door to door","No prioritization","Maradi","Mayahi","No integration","2024-07-01",859736,"Multi-products",{"$f":"IF(M300=ITNs!$E$8, ITNs!E300, IF(M300=ITNs!$B$8, ITNs!B300, IF(M300=ITNs!$C$8, ITNs!C300, IF(M300=ITNs!$D$8, ITNs!D300, IF(M300=ITNs!$E$8, ITNs!E300, IF(M300=ITNs!$F$8, ITNs!F300, IF(M300=ITNs!$G$8, ITNs!G300, IF(M300=ITNs!$H$8, ITNs!H300, \"ERROR\"))))))))","v":501799}," "," "," "," "," "," "," ",null,null,null,null," "," "," "," "," "," "," "," "," "," "," "," "," "," "," "," "," "," "," "," "," "," "," "," "," "," "," "," "," "," "," "," "," "," "," "]
["Niger",null,2024,"National - one phase",null,"Door to door","No prioritization","Maradi","Tessaoua","No integration","2024-07-01",795958,"Multi-products",{"$f":"IF(M301=ITNs!$E$8, ITNs!E301, IF(M301=ITNs!$B$8, ITNs!B301, IF(M301=ITNs!$C$8, ITNs!C301, IF(M301=ITNs!$D$8, ITNs!D301, IF(M301=ITNs!$E$8, ITNs!E301, IF(M301=ITNs!$F$8, ITNs!F301, IF(M301=ITNs!$G$8, ITNs!G301, IF(M301=ITNs!$H$8, ITNs!H301, \"ERROR\"))))))))","v":464574}," "," "," "," "," "," "," ",null,null,null,null," "," "," "," "," "," "," "," "," "," "," "," "," "," "," "," "," "," "," "," "," "," "," "," "," "," "," "," "," "," "," "," "," "," "," "]
["Niger",null,2024,"National - one phase",null,"Door to door","No prioritization","Niamey","Niamey 1","No integration","2024-07-01",305242,"Multi-products",{"$f":"IF(M302=ITNs!$E$8, ITNs!E302, IF(M302=ITNs!$B$8, ITNs!B302, IF(M302=ITNs!$C$8, ITNs!C302, IF(M302=ITNs!$D$8, ITNs!D302, IF(M302=ITNs!$E$8, ITNs!E302, IF(M302=ITNs!$F$8, ITNs!F302, IF(M302=ITNs!$G$8, ITNs!G302, IF(M302=ITNs!$H$8, ITNs!H302, \"ERROR\"))))))))","v":178159}," "," "," "," "," "," "," ",null,null,null,null," "," "," "," "," "," "," "," "," "," "," "," "," "," "," "," "," "," "," "," "," "," "," "," "," "," "," "," "," "," "," "," "," "," "," "]
["Niger",null,2024,"National - one phase",null,"Door to door","No prioritization","Niamey","Niamey 2","No integration","2024-07-01",358840,"Multi-products",{"$f":"IF(M303=ITNs!$E$8, ITNs!E303, IF(M303=ITNs!$B$8, ITNs!B303, IF(M303=ITNs!$C$8, ITNs!C303, IF(M303=ITNs!$D$8, ITNs!D303, IF(M303=ITNs!$E$8, ITNs!E303, IF(M303=ITNs!$F$8, ITNs!F303, IF(M303=ITNs!$G$8, ITNs!G303, IF(M303=ITNs!$H$8, ITNs!H303, \"ERROR\"))))))))","v":209443}," "," "," "," "," "," "," ",null,null,null,null," "," "," "," "," "," "," "," "," "," "," "," "," "," "," "," "," "," "," "," "," "," "," "," "," "," "," "," "," "," "," "," "," "," "," "]
["Niger",null,2024,"National - one phase",null,"Door to door","No prioritization","Niamey","Niamey 3","No integration","2024-07-01",237157,"Multi-products",{"$f":"IF(M304=ITNs!$E$8, ITNs!E304, IF(M304=ITNs!$B$8, ITNs!B304, IF(M304=ITNs!$C$8, ITNs!C304, IF(M304=ITNs!$D$8, ITNs!D304, IF(M304=ITNs!$E$8, ITNs!E304, IF(M304=ITNs!$F$8, ITNs!F304, IF(M304=ITNs!$G$8, ITNs!G304, IF(M304=ITNs!$H$8, ITNs!H304, \"ERROR\"))))))))","v":138421}," "," "," "," "," "," "," ",null,null,null,null," "," "," "," "," "," "," "," "," "," "," "," "," "," "," "," "," "," "," "," "," "," "," "," "," "," "," "," "," "," "," "," "," "," "," "]
["Niger",null,2024,"National - one phase",null,"Door to door","No prioritization","Niamey","Niamey 4","No integration","2024-07-01",398933,"Multi-products",{"$f":"IF(M305=ITNs!$E$8, ITNs!E305, IF(M305=ITNs!$B$8, ITNs!B305, IF(M305=ITNs!$C$8, ITNs!C305, IF(M305=ITNs!$D$8, ITNs!D305, IF(M305=ITNs!$E$8, ITNs!E305, IF(M305=ITNs!$F$8, ITNs!F305, IF(M305=ITNs!$G$8, ITNs!G305, IF(M305=ITNs!$H$8, ITNs!H305, \"ERROR\"))))))))","v":232844}," "," "," "," "," "," "," ",null,null,null,null," "," "," "," "," "," "," "," "," "," "," "," "," "," "," "," "," "," "," "," "," "," "," "," "," "," "," "," "," "," "," "," "," "," "," "]
["Niger",null,2024,"National - one phase",null,"Door to door","No prioritization","Niamey","Niamey 5","No integration","2024-07-01",192242,"Multi-products",{"$f":"IF(M306=ITNs!$E$8, ITNs!E306, IF(M306=ITNs!$B$8, ITNs!B306, IF(M306=ITNs!$C$8, ITNs!C306, IF(M306=ITNs!$D$8, ITNs!D306, IF(M306=ITNs!$E$8, ITNs!E306, IF(M306=ITNs!$F$8, ITNs!F306, IF(M306=ITNs!$G$8, ITNs!G306, IF(M306=ITNs!$H$8, ITNs!H306, \"ERROR\"))))))))","v":112205}," "," "," "," "," "," "," ",null,null,null,null," "," "," "," "," "," "," "," "," "," "," "," "," "," "," "," "," "," "," "," "," "," "," "," "," "," "," "," "," "," "," "," "," "," "," "]
["Niger",null,2024,"National - one phase",null,"Door to door","No prioritization","Tahoua"," Abalak","No integration","2024-07-01",395695,"Multi-products",{"$f":"IF(M307=ITNs!$E$8, ITNs!E307, IF(M307=ITNs!$B$8, ITNs!B307, IF(M307=ITNs!$C$8, ITNs!C307, IF(M307=ITNs!$D$8, ITNs!D307, IF(M307=ITNs!$E$8, ITNs!E307, IF(M307=ITNs!$F$8, ITNs!F307, IF(M307=ITNs!$G$8, ITNs!G307, IF(M307=ITNs!$H$8, ITNs!H307, \"ERROR\"))))))))","v":230954}," "," "," "," "," "," "," ",null,null,null,null," "," "," "," "," "," "," "," "," "," "," "," "," "," "," "," "," "," "," "," "," "," "," "," "," "," "," "," "," "," "," "," "," "," "," "]
["Niger",null,2024,"National - one phase",null,"Door to door","No prioritization","Tahoua","Bagaroua","No integration","2024-07-01",111611,"Multi-products",{"$f":"IF(M308=ITNs!$E$8, ITNs!E308, IF(M308=ITNs!$B$8, ITNs!B308, IF(M308=ITNs!$C$8, ITNs!C308, IF(M308=ITNs!$D$8, ITNs!D308, IF(M308=ITNs!$E$8, ITNs!E308, IF(M308=ITNs!$F$8, ITNs!F308, IF(M308=ITNs!$G$8, ITNs!G308, IF(M308=ITNs!$H$8, ITNs!H308, \"ERROR\"))))))))","v":65143}," "," "," "," "," "," "," ",null,null,null,null," "," "," "," "," "," "," "," "," "," "," "," "," "," "," "," "," "," "," "," "," "," "," "," "," "," "," "," "," "," "," "," "," "," "," "]
["Niger",null,2024,"National - one phase",null,"Door to door","No prioritization","Tahoua","Birni Konni","No integration","2024-07-01",483054,"Multi-products",{"$f":"IF(M309=ITNs!$E$8, ITNs!E309, IF(M309=ITNs!$B$8, ITNs!B309, IF(M309=ITNs!$C$8, ITNs!C309, IF(M309=ITNs!$D$8, ITNs!D309, IF(M309=ITNs!$E$8, ITNs!E309, IF(M309=ITNs!$F$8, ITNs!F309, IF(M309=ITNs!$G$8, ITNs!G309, IF(M309=ITNs!$H$8, ITNs!H309, \"ERROR\"))))))))","v":281943}," "," "," "," "," "," "," ",null,null,null,null," "," "," "," "," "," "," "," "," "," "," "," "," "," "," "," "," "," "," "," "," "," "," "," "," "," "," "," "," "," "," "," "," "," "," "]
["Niger",null,2024,"National - one phase",null,"Door to door","No prioritization","Tahoua","Bouza","No integration","2024-07-01",687581,"Multi-products",{"$f":"IF(M310=ITNs!$E$8, ITNs!E310, IF(M310=ITNs!$B$8, ITNs!B310, IF(M310=ITNs!$C$8, ITNs!C310, IF(M310=ITNs!$D$8, ITNs!D310, IF(M310=ITNs!$E$8, ITNs!E310, IF(M310=ITNs!$F$8, ITNs!F310, IF(M310=ITNs!$G$8, ITNs!G310, IF(M310=ITNs!$H$8, ITNs!H310, \"ERROR\"))))))))","v":401318}," "," "," "," "," "," "," ",null,null,null,null," "," "," "," "," "," "," "," "," "," "," "," "," "," "," "," "," "," "," "," "," "," "," "," "," "," "," "," "," "," "," "," "," "," "," "]
["Niger",null,2024,"National - one phase",null,"Door to door","No prioritization","Tahoua","Illéla","No integration","2024-07-01",519698,"Multi-products",{"$f":"IF(M311=ITNs!$E$8, ITNs!E311, IF(M311=ITNs!$B$8, ITNs!B311, IF(M311=ITNs!$C$8, ITNs!C311, IF(M311=ITNs!$D$8, ITNs!D311, IF(M311=ITNs!$E$8, ITNs!E311, IF(M311=ITNs!$F$8, ITNs!F311, IF(M311=ITNs!$G$8, ITNs!G311, IF(M311=ITNs!$H$8, ITNs!H311, \"ERROR\"))))))))","v":303330}," "," "," "," "," "," "," ",null,null,null,null," "," "," "," "," "," "," "," "," "," "," "," "," "," "," "," "," "," "," "," "," "," "," "," "," "," "," "," "," "," "," "," "," "," "," "]
["Niger",null,2024,"National - one phase",null,"Door to door","No prioritization","Tahoua","Keita","No integration","2024-07-01",520434,"Multi-products",{"$f":"IF(M312=ITNs!$E$8, ITNs!E312, IF(M312=ITNs!$B$8, ITNs!B312, IF(M312=ITNs!$C$8, ITNs!C312, IF(M312=ITNs!$D$8, ITNs!D312, IF(M312=ITNs!$E$8, ITNs!E312, IF(M312=ITNs!$F$8, ITNs!F312, IF(M312=ITNs!$G$8, ITNs!G312, IF(M312=ITNs!$H$8, ITNs!H312, \"ERROR\"))))))))","v":303760}," "," "," "," "," "," "," ",null,null,null,null," "," "," "," "," "," "," "," "," "," "," "," "," "," "," "," "," "," "," "," "," "," "," "," "," "," "," "," "," "," "," "," "," "," "," "]
["Niger",null,2024,"National - one phase",null,"Door to door","No prioritization","Tahoua","Madaoua","No integration","2024-07-01",842238,"Multi-products",{"$f":"IF(M313=ITNs!$E$8, ITNs!E313, IF(M313=ITNs!$B$8, ITNs!B313, IF(M313=ITNs!$C$8, ITNs!C313, IF(M313=ITNs!$D$8, ITNs!D313, IF(M313=ITNs!$E$8, ITNs!E313, IF(M313=ITNs!$F$8, ITNs!F313, IF(M313=ITNs!$G$8, ITNs!G313, IF(M313=ITNs!$H$8, ITNs!H313, \"ERROR\"))))))))","v":491586}," "," "," "," "," "," "," ",null,null,null,null," "," "," "," "," "," "," "," "," "," "," "," "," "," "," "," "," "," "," "," "," "," "," "," "," "," "," "," "," "," "," "," "," "," "," "]
["Niger",null,2024,"National - one phase",null,"Door to door","No prioritization","Tahoua","Malbaza","No integration","2024-07-01",358805,"Multi-products",{"$f":"IF(M314=ITNs!$E$8, ITNs!E314, IF(M314=ITNs!$B$8, ITNs!B314, IF(M314=ITNs!$C$8, ITNs!C314, IF(M314=ITNs!$D$8, ITNs!D314, IF(M314=ITNs!$E$8, ITNs!E314, IF(M314=ITNs!$F$8, ITNs!F314, IF(M314=ITNs!$G$8, ITNs!G314, IF(M314=ITNs!$H$8, ITNs!H314, \"ERROR\"))))))))","v":209423}," "," "," "," "," "," "," ",null,null,null,null," "," "," "," "," "," "," "," "," "," "," "," "," "," "," "," "," "," "," "," "," "," "," "," "," "," "," "," "," "," "," "," "," "," "," "]
["Niger",null,2024,"National - one phase",null,"Door to door","No prioritization","Tahoua","Tahoua Dep","No integration","2024-07-01",666677,"Multi-products",{"$f":"IF(M315=ITNs!$E$8, ITNs!E315, IF(M315=ITNs!$B$8, ITNs!B315, IF(M315=ITNs!$C$8, ITNs!C315, IF(M315=ITNs!$D$8, ITNs!D315, IF(M315=ITNs!$E$8, ITNs!E315, IF(M315=ITNs!$F$8, ITNs!F315, IF(M315=ITNs!$G$8, ITNs!G315, IF(M315=ITNs!$H$8, ITNs!H315, \"ERROR\"))))))))","v":389117}," "," "," "," "," "," "," ",null,null,null,null," "," "," "," "," "," "," "," "," "," "," "," "," "," "," "," "," "," "," "," "," "," "," "," "," "," "," "," "," "," "," "," "," "," "," "]
["Niger",null,2024,"National - one phase",null,"Door to door","No prioritization","Tahoua","Tahoua COM","No integration","2024-07-01",223993,"Multi-products",{"$f":"IF(M316=ITNs!$E$8, ITNs!E316, IF(M316=ITNs!$B$8, ITNs!B316, IF(M316=ITNs!$C$8, ITNs!C316, IF(M316=ITNs!$D$8, ITNs!D316, IF(M316=ITNs!$E$8, ITNs!E316, IF(M316=ITNs!$F$8, ITNs!F316, IF(M316=ITNs!$G$8, ITNs!G316, IF(M316=ITNs!$H$8, ITNs!H316, \"ERROR\"))))))))","v":130738}," "," "," "," "," "," "," ",null,null,null,null," "," "," "," "," "," "," "," "," "," "," "," "," "," "," "," "," "," "," "," "," "," "," "," "," "," "," "," "," "," "," "," "," "," "," "]
["Niger",null,2024,"National - one phase",null,"Door to door","No prioritization","Tahoua","Tassara","No integration","2024-07-01",37758,"Multi-products",{"$f":"IF(M317=ITNs!$E$8, ITNs!E317, IF(M317=ITNs!$B$8, ITNs!B317, IF(M317=ITNs!$C$8, ITNs!C317, IF(M317=ITNs!$D$8, ITNs!D317, IF(M317=ITNs!$E$8, ITNs!E317, IF(M317=ITNs!$F$8, ITNs!F317, IF(M317=ITNs!$G$8, ITNs!G317, IF(M317=ITNs!$H$8, ITNs!H317, \"ERROR\"))))))))","v":22038}," "," "," "," "," "," "," ",null,null,null,null," "," "," "," "," "," "," "," "," "," "," "," "," "," "," "," "," "," "," "," "," "," "," "," "," "," "," "," "," "," "," "," "," "," "," "]
["Niger",null,2024,"National - one phase",null,"Door to door","No prioritization","Tahoua","Tchintabaraden","No integration","2024-07-01",230805,"Multi-products",{"$f":"IF(M318=ITNs!$E$8, ITNs!E318, IF(M318=ITNs!$B$8, ITNs!B318, IF(M318=ITNs!$C$8, ITNs!C318, IF(M318=ITNs!$D$8, ITNs!D318, IF(M318=ITNs!$E$8, ITNs!E318, IF(M318=ITNs!$F$8, ITNs!F318, IF(M318=ITNs!$G$8, ITNs!G318, IF(M318=ITNs!$H$8, ITNs!H318, \"ERROR\"))))))))","v":134713}," "," "," "," "," "," "," ",null,null,null,null," "," "," "," "," "," "," "," "," "," "," "," "," "," "," "," "," "," "," "," "," "," "," "," "," "," "," "," "," "," "," "," "," "," "," "]
["Niger",null,2024,"National - one phase",null,"Door to door","No prioritization","Tahoua","Tillia","No integration","2024-07-01",60202,"Multi-products",{"$f":"IF(M319=ITNs!$E$8, ITNs!E319, IF(M319=ITNs!$B$8, ITNs!B319, IF(M319=ITNs!$C$8, ITNs!C319, IF(M319=ITNs!$D$8, ITNs!D319, IF(M319=ITNs!$E$8, ITNs!E319, IF(M319=ITNs!$F$8, ITNs!F319, IF(M319=ITNs!$G$8, ITNs!G319, IF(M319=ITNs!$H$8, ITNs!H319, \"ERROR\"))))))))","v":35138}," "," "," "," "," "," "," ",null,null,null,null," "," "," "," "," "," "," "," "," "," "," "," "," "," "," "," "," "," "," "," "," "," "," "," "," "," "," "," "," "," "," "," "," "," "," "]
["Niger",null,2024,"National - one phase",null,"Door to door","No prioritization","Tillaberi","Abala","No integration","2024-07-01",222743,"Multi-products",{"$f":"IF(M320=ITNs!$E$8, ITNs!E320, IF(M320=ITNs!$B$8, ITNs!B320, IF(M320=ITNs!$C$8, ITNs!C320, IF(M320=ITNs!$D$8, ITNs!D320, IF(M320=ITNs!$E$8, ITNs!E320, IF(M320=ITNs!$F$8, ITNs!F320, IF(M320=ITNs!$G$8, ITNs!G320, IF(M320=ITNs!$H$8, ITNs!H320, \"ERROR\"))))))))","v":130008}," "," "," "," "," "," "," ",null,null,null,null," "," "," "," "," "," "," "," "," "," "," "," "," "," "," "," "," "," "," "," "," "," "," "," "," "," "," "," "," "," "," "," "," "," "," "]
["Niger",null,2024,"National - one phase",null,"Door to door","No prioritization","Tillaberi","Ayorou","No integration","2024-07-01",88040,"Multi-products",{"$f":"IF(M321=ITNs!$E$8, ITNs!E321, IF(M321=ITNs!$B$8, ITNs!B321, IF(M321=ITNs!$C$8, ITNs!C321, IF(M321=ITNs!$D$8, ITNs!D321, IF(M321=ITNs!$E$8, ITNs!E321, IF(M321=ITNs!$F$8, ITNs!F321, IF(M321=ITNs!$G$8, ITNs!G321, IF(M321=ITNs!$H$8, ITNs!H321, \"ERROR\"))))))))","v":51386}," "," "," "," "," "," "," ",null,null,null,null," "," "," "," "," "," "," "," "," "," "," "," "," "," "," "," "," "," "," "," "," "," "," "," "," "," "," "," "," "," "," "," "," "," "," "]
["Niger",null,2024,"National - one phase",null,"Door to door","No prioritization","Tillaberi","Balleyara","No integration","2024-07-01",165388,"Multi-products",{"$f":"IF(M322=ITNs!$E$8, ITNs!E322, IF(M322=ITNs!$B$8, ITNs!B322, IF(M322=ITNs!$C$8, ITNs!C322, IF(M322=ITNs!$D$8, ITNs!D322, IF(M322=ITNs!$E$8, ITNs!E322, IF(M322=ITNs!$F$8, ITNs!F322, IF(M322=ITNs!$G$8, ITNs!G322, IF(M322=ITNs!$H$8, ITNs!H322, \"ERROR\"))))))))","v":96532}," "," "," "," "," "," "," ",null,null,null,null," "," "," "," "," "," "," "," "," "," "," "," "," "," "," "," "," "," "," "," "," "," "," "," "," "," "," "," "," "," "," "," "," "," "," "]
["Niger",null,2024,"National - one phase",null,"Door to door","No prioritization","Tillaberi","Banibangou","No integration","2024-07-01",103353,"Multi-products",{"$f":"IF(M323=ITNs!$E$8, ITNs!E323, IF(M323=ITNs!$B$8, ITNs!B323, IF(M323=ITNs!$C$8, ITNs!C323, IF(M323=ITNs!$D$8, ITNs!D323, IF(M323=ITNs!$E$8, ITNs!E323, IF(M323=ITNs!$F$8, ITNs!F323, IF(M323=ITNs!$G$8, ITNs!G323, IF(M323=ITNs!$H$8, ITNs!H323, \"ERROR\"))))))))","v":60323}," "," "," "," "," "," "," ",null,null,null,null," "," "," "," "," "," "," "," "," "," "," "," "," "," "," "," "," "," "," "," "," "," "," "," "," "," "," "," "," "," "," "," "," "," "," "]
["Niger",null,2024,"National - one phase",null,"Door to door","No prioritization","Tillaberi","Bankilaré","No integration","2024-07-01",131054,"Multi-products",{"$f":"IF(M324=ITNs!$E$8, ITNs!E324, IF(M324=ITNs!$B$8, ITNs!B324, IF(M324=ITNs!$C$8, ITNs!C324, IF(M324=ITNs!$D$8, ITNs!D324, IF(M324=ITNs!$E$8, ITNs!E324, IF(M324=ITNs!$F$8, ITNs!F324, IF(M324=ITNs!$G$8, ITNs!G324, IF(M324=ITNs!$H$8, ITNs!H324, \"ERROR\"))))))))","v":76492}," "," "," "," "," "," "," ",null,null,null,null," "," "," "," "," "," "," "," "," "," "," "," "," "," "," "," "," "," "," "," "," "," "," "," "," "," "," "," "," "," "," "," "," "," "," "]
["Niger",null,2024,"National - one phase",null,"Door to door","No prioritization","Tillaberi","Filingue","No integration","2024-07-01",473508,"Multi-products",{"$f":"IF(M325=ITNs!$E$8, ITNs!E325, IF(M325=ITNs!$B$8, ITNs!B325, IF(M325=ITNs!$C$8, ITNs!C325, IF(M325=ITNs!$D$8, ITNs!D325, IF(M325=ITNs!$E$8, ITNs!E325, IF(M325=ITNs!$F$8, ITNs!F325, IF(M325=ITNs!$G$8, ITNs!G325, IF(M325=ITNs!$H$8, ITNs!H325, \"ERROR\"))))))))","v":276371}," "," "," "," "," "," "," ",null,null,null,null," "," "," "," "," "," "," "," "," "," "," "," "," "," "," "," "," "," "," "," "," "," "," "," "," "," "," "," "," "," "," "," "," "," "," "]
["Niger",null,2024,"National - one phase",null,"Door to door","No prioritization","Tillaberi","Gothèye ","No integration","2024-07-01",372110,"Multi-products",{"$f":"IF(M326=ITNs!$E$8, ITNs!E326, IF(M326=ITNs!$B$8, ITNs!B326, IF(M326=ITNs!$C$8, ITNs!C326, IF(M326=ITNs!$D$8, ITNs!D326, IF(M326=ITNs!$E$8, ITNs!E326, IF(M326=ITNs!$F$8, ITNs!F326, IF(M326=ITNs!$G$8, ITNs!G326, IF(M326=ITNs!$H$8, ITNs!H326, \"ERROR\"))))))))","v":217188}," "," "," "," "," "," "," ",null,null,null,null," "," "," "," "," "," "," "," "," "," "," "," "," "," "," "," "," "," "," "," "," "," "," "," "," "," "," "," "," "," "," "," "," "," "," "]
["Niger",null,2024,"National - one phase",null,"Door to door","No prioritization","Tillaberi","Kollo","No integration","2024-07-01",718460,"Multi-products",{"$f":"IF(M327=ITNs!$E$8, ITNs!E327, IF(M327=ITNs!$B$8, ITNs!B327, IF(M327=ITNs!$C$8, ITNs!C327, IF(M327=ITNs!$D$8, ITNs!D327, IF(M327=ITNs!$E$8, ITNs!E327, IF(M327=ITNs!$F$8, ITNs!F327, IF(M327=ITNs!$G$8, ITNs!G327, IF(M327=ITNs!$H$8, ITNs!H327, \"ERROR\"))))))))","v":419341}," "," "," "," "," "," "," ",null,null,null,null," "," "," "," "," "," "," "," "," "," "," "," "," "," "," "," "," "," "," "," "," "," "," "," "," "," "," "," "," "," "," "," "," "," "," "]
["Niger",null,2024,"National - one phase",null,"Door to door","No prioritization","Tillaberi","Ouallam","No integration","2024-07-01",505152,"Multi-products",{"$f":"IF(M328=ITNs!$E$8, ITNs!E328, IF(M328=ITNs!$B$8, ITNs!B328, IF(M328=ITNs!$C$8, ITNs!C328, IF(M328=ITNs!$D$8, ITNs!D328, IF(M328=ITNs!$E$8, ITNs!E328, IF(M328=ITNs!$F$8, ITNs!F328, IF(M328=ITNs!$G$8, ITNs!G328, IF(M328=ITNs!$H$8, ITNs!H328, \"ERROR\"))))))))","v":294841}," "," "," "," "," "," "," ",null,null,null,null," "," "," "," "," "," "," "," "," "," "," "," "," "," "," "," "," "," "," "," "," "," "," "," "," "," "," "," "," "," "," "," "," "," "," "]
["Niger",null,2024,"National - one phase",null,"Door to door","No prioritization","Tillaberi","Say","No integration","2024-07-01",271121,"Multi-products",{"$f":"IF(M329=ITNs!$E$8, ITNs!E329, IF(M329=ITNs!$B$8, ITNs!B329, IF(M329=ITNs!$C$8, ITNs!C329, IF(M329=ITNs!$D$8, ITNs!D329, IF(M329=ITNs!$E$8, ITNs!E329, IF(M329=ITNs!$F$8, ITNs!F329, IF(M329=ITNs!$G$8, ITNs!G329, IF(M329=ITNs!$H$8, ITNs!H329, \"ERROR\"))))))))","v":158244}," "," "," "," "," "," "," ",null,null,null,null," "," "," "," "," "," "," "," "," "," "," "," "," "," "," "," "," "," "," "," "," "," "," "," "," "," "," "," "," "," "," "," "," "," "," "]
["Niger",null,2024,"National - one phase",null,"Door to door","No prioritization","Tillaberi","Tera ","No integration","2024-07-01",519020,"Multi-products",{"$f":"IF(M330=ITNs!$E$8, ITNs!E330, IF(M330=ITNs!$B$8, ITNs!B330, IF(M330=ITNs!$C$8, ITNs!C330, IF(M330=ITNs!$D$8, ITNs!D330, IF(M330=ITNs!$E$8, ITNs!E330, IF(M330=ITNs!$F$8, ITNs!F330, IF(M330=ITNs!$G$8, ITNs!G330, IF(M330=ITNs!$H$8, ITNs!H330, \"ERROR\"))))))))","v":302935}," "," "," "," "," "," "," ",null,null,null,null," "," "," "," "," "," "," "," "," "," "," "," "," "," "," "," "," "," "," "," "," "," "," "," "," "," "," "," "," "," "," "," "," "," "," "]
["Niger",null,2024,"National - one phase",null,"Door to door","No prioritization","Tillaberi","Tillaberi","No integration","2024-07-01",350975,"Multi-products",{"$f":"IF(M331=ITNs!$E$8, ITNs!E331, IF(M331=ITNs!$B$8, ITNs!B331, IF(M331=ITNs!$C$8, ITNs!C331, IF(M331=ITNs!$D$8, ITNs!D331, IF(M331=ITNs!$E$8, ITNs!E331, IF(M331=ITNs!$F$8, ITNs!F331, IF(M331=ITNs!$G$8, ITNs!G331, IF(M331=ITNs!$H$8, ITNs!H331, \"ERROR\"))))))))","v":204852}," "," "," "," "," "," "," ",null,null,null,null," "," "," "," "," "," "," "," "," "," "," "," "," "," "," "," "," "," "," "," "," "," "," "," "," "," "," "," "," "," "," "," "," "," "," "]
["Niger",null,2024,"National - one phase",null,"Door to door","No prioritization","Tillaberi","Torodi ","No integration","2024-07-01",281909,"Multi-products",{"$f":"IF(M332=ITNs!$E$8, ITNs!E332, IF(M332=ITNs!$B$8, ITNs!B332, IF(M332=ITNs!$C$8, ITNs!C332, IF(M332=ITNs!$D$8, ITNs!D332, IF(M332=ITNs!$E$8, ITNs!E332, IF(M332=ITNs!$F$8, ITNs!F332, IF(M332=ITNs!$G$8, ITNs!G332, IF(M332=ITNs!$H$8, ITNs!H332, \"ERROR\"))))))))","v":164541}," "," "," "," "," "," "," ",null,null,null,null," "," "," "," "," "," "," "," "," "," "," "," "," "," "," "," "," "," "," "," "," "," "," "," "," "," "," "," "," "," "," "," "," "," "," "]
["Niger",null,2024,"National - one phase",null,"Door to door","No prioritization","Zinder","Belbedji","No integration","2024-07-01",149020,"Multi-products",{"$f":"IF(M333=ITNs!$E$8, ITNs!E333, IF(M333=ITNs!$B$8, ITNs!B333, IF(M333=ITNs!$C$8, ITNs!C333, IF(M333=ITNs!$D$8, ITNs!D333, IF(M333=ITNs!$E$8, ITNs!E333, IF(M333=ITNs!$F$8, ITNs!F333, IF(M333=ITNs!$G$8, ITNs!G333, IF(M333=ITNs!$H$8, ITNs!H333, \"ERROR\"))))))))","v":86978}," "," "," "," "," "," "," ",null,null,null,null," "," "," "," "," "," "," "," "," "," "," "," "," "," "," "," "," "," "," "," "," "," "," "," "," "," "," "," "," "," "," "," "," "," "," "]
["Niger",null,2024,"National - one phase",null,"Door to door","No prioritization","Zinder","Damagaran T","No integration","2024-07-01",372610,"Multi-products",{"$f":"IF(M334=ITNs!$E$8, ITNs!E334, IF(M334=ITNs!$B$8, ITNs!B334, IF(M334=ITNs!$C$8, ITNs!C334, IF(M334=ITNs!$D$8, ITNs!D334, IF(M334=ITNs!$E$8, ITNs!E334, IF(M334=ITNs!$F$8, ITNs!F334, IF(M334=ITNs!$G$8, ITNs!G334, IF(M334=ITNs!$H$8, ITNs!H334, \"ERROR\"))))))))","v":217480}," "," "," "," "," "," "," ",null,null,null,null," "," "," "," "," "," "," "," "," "," "," "," "," "," "," "," "," "," "," "," "," "," "," "," "," "," "," "," "," "," "," "," "," "," "," "]
["Niger",null,2024,"National - one phase",null,"Door to door","No prioritization","Zinder","Dungass","No integration","2024-07-01",546730,"Multi-products",{"$f":"IF(M335=ITNs!$E$8, ITNs!E335, IF(M335=ITNs!$B$8, ITNs!B335, IF(M335=ITNs!$C$8, ITNs!C335, IF(M335=ITNs!$D$8, ITNs!D335, IF(M335=ITNs!$E$8, ITNs!E335, IF(M335=ITNs!$F$8, ITNs!F335, IF(M335=ITNs!$G$8, ITNs!G335, IF(M335=ITNs!$H$8, ITNs!H335, \"ERROR\"))))))))","v":319108}," "," "," "," "," "," "," ",null,null,null,null," "," "," "," "," "," "," "," "," "," "," "," "," "," "," "," "," "," "," "," "," "," "," "," "," "," "," "," "," "," "," "," "," "," "," "]
["Niger",null,2024,"National - one phase",null,"Door to door","No prioritization","Zinder","Goure","No integration","2024-07-01",506484,"Multi-products",{"$f":"IF(M336=ITNs!$E$8, ITNs!E336, IF(M336=ITNs!$B$8, ITNs!B336, IF(M336=ITNs!$C$8, ITNs!C336, IF(M336=ITNs!$D$8, ITNs!D336, IF(M336=ITNs!$E$8, ITNs!E336, IF(M336=ITNs!$F$8, ITNs!F336, IF(M336=ITNs!$G$8, ITNs!G336, IF(M336=ITNs!$H$8, ITNs!H336, \"ERROR\"))))))))","v":295618}," "," "," "," "," "," "," ",null,null,null,null," "," "," "," "," "," "," "," "," "," "," "," "," "," "," "," "," "," "," "," "," "," "," "," "," "," "," "," "," "," "," "," "," "," "," "]
["Niger",null,2024,"National - one phase",null,"Door to door","No prioritization","Zinder","Matameye","No integration","2024-07-01",616741,"Multi-products",{"$f":"IF(M337=ITNs!$E$8, ITNs!E337, IF(M337=ITNs!$B$8, ITNs!B337, IF(M337=ITNs!$C$8, ITNs!C337, IF(M337=ITNs!$D$8, ITNs!D337, IF(M337=ITNs!$E$8, ITNs!E337, IF(M337=ITNs!$F$8, ITNs!F337, IF(M337=ITNs!$G$8, ITNs!G337, IF(M337=ITNs!$H$8, ITNs!H337, \"ERROR\"))))))))","v":359971}," "," "," "," "," "," "," ",null,null,null,null," "," "," "," "," "," "," "," "," "," "," "," "," "," "," "," "," "," "," "," "," "," "," "," "," "," "," "," "," "," "," "," "," "," "," "]
["Niger",null,2024,"National - one phase",null,"Door to door","No prioritization","Zinder","Magaria","No integration","2024-07-01",892622,"Multi-products",{"$f":"IF(M338=ITNs!$E$8, ITNs!E338, IF(M338=ITNs!$B$8, ITNs!B338, IF(M338=ITNs!$C$8, ITNs!C338, IF(M338=ITNs!$D$8, ITNs!D338, IF(M338=ITNs!$E$8, ITNs!E338, IF(M338=ITNs!$F$8, ITNs!F338, IF(M338=ITNs!$G$8, ITNs!G338, IF(M338=ITNs!$H$8, ITNs!H338, \"ERROR\"))))))))","v":520994}," "," "," "," "," "," "," ",null,null,null,null," "," "," "," "," "," "," "," "," "," "," "," "," "," "," "," "," "," "," "," "," "," "," "," "," "," "," "," "," "," "," "," "," "," "," "]
["Niger",null,2024,"National - one phase",null,"Door to door","No prioritization","Zinder","Mirriah","No integration","2024-07-01",784094,"Multi-products",{"$f":"IF(M339=ITNs!$E$8, ITNs!E339, IF(M339=ITNs!$B$8, ITNs!B339, IF(M339=ITNs!$C$8, ITNs!C339, IF(M339=ITNs!$D$8, ITNs!D339, IF(M339=ITNs!$E$8, ITNs!E339, IF(M339=ITNs!$F$8, ITNs!F339, IF(M339=ITNs!$G$8, ITNs!G339, IF(M339=ITNs!$H$8, ITNs!H339, \"ERROR\"))))))))","v":457649}," "," "," "," "," "," "," "," "," "," "," "," "," "," "," "," "," "," "," "," "," "," "," "," "," "," "," "," "," "," "," "," "," "," "," "," "," "," "," "," "," "," "," "," "," "," "]
["Niger",null,2024,"National - one phase",null,"Door to door","No prioritization","Zinder","Takeita","No integration","2024-07-01",381338,"Multi-products",{"$f":"IF(M340=ITNs!$E$8, ITNs!E340, IF(M340=ITNs!$B$8, ITNs!B340, IF(M340=ITNs!$C$8, ITNs!C340, IF(M340=ITNs!$D$8, ITNs!D340, IF(M340=ITNs!$E$8, ITNs!E340, IF(M340=ITNs!$F$8, ITNs!F340, IF(M340=ITNs!$G$8, ITNs!G340, IF(M340=ITNs!$H$8, ITNs!H340, \"ERROR\"))))))))","v":222574}," "," "," "," "," "," "," "," "," "," "," "," "," "," "," "," "," "," "," "," "," "," "," "," "," "," "," "," "," "," "," "," "," "," "," "," "," "," "," "," "," "," "," "," "," "," "]
["Niger",null,2024,"National - one phase",null,"Door to door","No prioritization","Zinder","Tanout","No integration","2024-07-01",663043,"Multi-products",{"$f":"IF(M341=ITNs!$E$8, ITNs!E341, IF(M341=ITNs!$B$8, ITNs!B341, IF(M341=ITNs!$C$8, ITNs!C341, IF(M341=ITNs!$D$8, ITNs!D341, IF(M341=ITNs!$E$8, ITNs!E341, IF(M341=ITNs!$F$8, ITNs!F341, IF(M341=ITNs!$G$8, ITNs!G341, IF(M341=ITNs!$H$8, ITNs!H341, \"ERROR\"))))))))","v":386996}," "," "," "," "," "," "," "," "," "," "," "," "," "," "," "," "," "," "," "," "," "," "," "," "," "," "," "," "," "," "," "," "," "," "," "," "," "," "," "," "," "," "," "," "," "," "]
["Niger",null,2024,"National - one phase",null,"Door to door","No prioritization","Zinder","Tesker","No integration","2024-07-01",57370,"Multi-products",{"$f":"IF(M342=ITNs!$E$8, ITNs!E342, IF(M342=ITNs!$B$8, ITNs!B342, IF(M342=ITNs!$C$8, ITNs!C342, IF(M342=ITNs!$D$8, ITNs!D342, IF(M342=ITNs!$E$8, ITNs!E342, IF(M342=ITNs!$F$8, ITNs!F342, IF(M342=ITNs!$G$8, ITNs!G342, IF(M342=ITNs!$H$8, ITNs!H342, \"ERROR\"))))))))","v":33485}," "," "," "," "," "," "," "," "," "," "," "," "," "," "," "," "," "," "," "," "," "," "," "," "," "," "," "," "," "," "," "," "," "," "," "," "," "," "," "," "," "," "," "," "," "," "]
["Niger",null,2024,"National - one phase",null,"Door to door","No prioritization","Zinder","Zinder","No integration","2024-07-01",498939,"Multi-products",{"$f":"IF(M343=ITNs!$E$8, ITNs!E343, IF(M343=ITNs!$B$8, ITNs!B343, IF(M343=ITNs!$C$8, ITNs!C343, IF(M343=ITNs!$D$8, ITNs!D343, IF(M343=ITNs!$E$8, ITNs!E343, IF(M343=ITNs!$F$8, ITNs!F343, IF(M343=ITNs!$G$8, ITNs!G343, IF(M343=ITNs!$H$8, ITNs!H343, \"ERROR\"))))))))","v":291214}," "," "," "," "," "," "," "," "," "," "," "," "," "," "," "," "," "," "," "," "," "," "," "," "," "," "," "," "," "," "," "," "," "," "," "," "," "," "," "," "," "," "," "," "," "," "]
["Nigeria","Typically from April to October, with peak rainfall usually occurring between June and September.",2024,"National - one phase",null," "," "," "," "," "," ","14’774’236","Multi-products",{"$f":"IF(M344=ITNs!$E$8, ITNs!E344, IF(M344=ITNs!$B$8, ITNs!B344, IF(M344=ITNs!$C$8, ITNs!C344, IF(M344=ITNs!$D$8, ITNs!D344, IF(M344=ITNs!$E$8, ITNs!E344, IF(M344=ITNs!$F$8, ITNs!F344, IF(M344=ITNs!$G$8, ITNs!G344, IF(M344=ITNs!$H$8, ITNs!H344, \"ERROR\"))))))))","v":15920231}," "," "," "," "," "," "," "," "," "," "," "," "," "," "," "," "," "," "," "," "," "," "," "," "," "," "," "," "," "," "," "," "," "," "," "," "," "," "," "," "," "," "," "," "," "," "," "," "," "]
["Nigeria"," ",2024,"National - one phase",null," "," ","Jigawa"," "," ","2024-07-24","5’531’964","PBO",{"$f":"IF(M345=ITNs!$E$8, ITNs!E345, IF(M345=ITNs!$B$8, ITNs!B345, IF(M345=ITNs!$C$8, ITNs!C345, IF(M345=ITNs!$D$8, ITNs!D345, IF(M345=ITNs!$E$8, ITNs!E345, IF(M345=ITNs!$F$8, ITNs!F345, IF(M345=ITNs!$G$8, ITNs!G345, IF(M345=ITNs!$H$8, ITNs!H345, \"ERROR\"))))))))","v":3073314}," ","16th June –  6th  August 2024","Global Fund"," "," "," "," "," "," "," "," "," "," "," "," "," "," "," "," "," "," "," "," "," "," "," "," "," "," "," "," "," "," "," "," "," "," "," "," "," "," "," "," "," "," "," "," "," "," "]
["Nigeria"," ",2024,"National - one phase",null," "," ","Gombe"," "," ","2024-07-24","3’635’885","PBO",{"$f":"IF(M346=ITNs!$E$8, ITNs!E346, IF(M346=ITNs!$B$8, ITNs!B346, IF(M346=ITNs!$C$8, ITNs!C346, IF(M346=ITNs!$D$8, ITNs!D346, IF(M346=ITNs!$E$8, ITNs!E346, IF(M346=ITNs!$F$8, ITNs!F346, IF(M346=ITNs!$G$8, ITNs!G346, IF(M346=ITNs!$H$8, ITNs!H346, \"ERROR\"))))))))","v":2019936}," ","16th June –  6th  August 2024","Global Fund"," "," "," "," "," "," "," "," "," "," "," "," "," "," "," "," "," "," "," "," "," "," "," "," "," "," "," "," "," "," "," "," "," "," "," "," "," "," "," "," "," "," "," "," "," "," "]
["Nigeria"," ",2024,"National - one phase",null," "," ","Ogun"," "," ","2024-10-24","3’114’659","Dual a.i.",{"$f":"IF(M347=ITNs!$E$8, ITNs!E347, IF(M347=ITNs!$B$8, ITNs!B347, IF(M347=ITNs!$C$8, ITNs!C347, IF(M347=ITNs!$D$8, ITNs!D347, IF(M347=ITNs!$E$8, ITNs!E347, IF(M347=ITNs!$F$8, ITNs!F347, IF(M347=ITNs!$G$8, ITNs!G347, IF(M347=ITNs!$H$8, ITNs!H347, \"ERROR\"))))))))","v":2157687}," ","8th September – 30th October 2024","Global Fund"," "," "," "," "," "," "," "," "," "," "," "," "," "," "," "," "," "," "," "," "," "," "," "," "," "," "," "," "," "," "," "," "," "," "," "," "," "," "," "," "," "," "," "," "," "," "]
["Nigeria"," ",2024,"National - one phase",null," "," ","Oyo"," "," ","2024-11-24"," ","Dual a.i.",{"$f":"IF(M348=ITNs!$E$8, ITNs!E348, IF(M348=ITNs!$B$8, ITNs!B348, IF(M348=ITNs!$C$8, ITNs!C348, IF(M348=ITNs!$D$8, ITNs!D348, IF(M348=ITNs!$E$8, ITNs!E348, IF(M348=ITNs!$F$8, ITNs!F348, IF(M348=ITNs!$G$8, ITNs!G348, IF(M348=ITNs!$H$8, ITNs!H348, \"ERROR\"))))))))","v":5670644}," "," ","PMI "," "," "," "," "," "," "," "," "," "," "," "," "," "," "," "," "," "," "," "," "," "," "," "," "," "," "," "," "," "," "," "," "," "," "," "," "," "," "," "," "," "," "," "," "," "," "]
["Nigeria"," ",2024,"National - one phase",null," "," ","Plateau"," "," ","2024-04-24"," ","Dual a.i.",{"$f":"IF(M349=ITNs!$E$8, ITNs!E349, IF(M349=ITNs!$B$8, ITNs!B349, IF(M349=ITNs!$C$8, ITNs!C349, IF(M349=ITNs!$D$8, ITNs!D349, IF(M349=ITNs!$E$8, ITNs!E349, IF(M349=ITNs!$F$8, ITNs!F349, IF(M349=ITNs!$G$8, ITNs!G349, IF(M349=ITNs!$H$8, ITNs!H349, \"ERROR\"))))))))","v":2998650}," "," ","PMI "," "," "," "," "," "," "," "," "," "," "," "," "," "," "," "," "," "," "," "," "," "," "," "," "," "," "," "," "," "," "," "," "," "," "," "," "," "," "," "," "," "," "," "," "," "," "]
["Nigeria"," ",2025,"Sub-national",null," "," "," "," "," "," "," ","Multi-products",{"$f":"IF(M350=ITNs!$E$8, ITNs!E350, IF(M350=ITNs!$B$8, ITNs!B350, IF(M350=ITNs!$C$8, ITNs!C350, IF(M350=ITNs!$D$8, ITNs!D350, IF(M350=ITNs!$E$8, ITNs!E350, IF(M350=ITNs!$F$8, ITNs!F350, IF(M350=ITNs!$G$8, ITNs!G350, IF(M350=ITNs!$H$8, ITNs!H350, \"ERROR\"))))))))","v":3766002}," "," "," "," "," "," "," "," "," "," "," "," "," "," "," "," "," "," "," "," "," "," "," "," "," "," "," "," "," "," "," "," "," "," "," "," "," "," "," "," "," "," "," "," "," "," "," "," "," "]
["Nigeria"," ",2025," ",null," "," ","Delta"," "," "," "," ","Multi-products",{"$f":"IF(M351=ITNs!$E$8, ITNs!E351, IF(M351=ITNs!$B$8, ITNs!B351, IF(M351=ITNs!$C$8, ITNs!C351, IF(M351=ITNs!$D$8, ITNs!D351, IF(M351=ITNs!$E$8, ITNs!E351, IF(M351=ITNs!$F$8, ITNs!F351, IF(M351=ITNs!$G$8, ITNs!G351, IF(M351=ITNs!$H$8, ITNs!H351, \"ERROR\"))))))))","v":0}," "," "," "," "," "," "," "," "," "," "," "," "," "," "," "," "," "," "," "," "," "," "," "," "," "," "," "," "," "," "," "," "," "," "," "," "," "," "," "," "," "," "," "," "," "," "," "," "," "]
["Nigeria"," ",2026," ",null," "," "," "," "," "," "," ","Multi-products",{"$f":"IF(M352=ITNs!$E$8, ITNs!E352, IF(M352=ITNs!$B$8, ITNs!B352, IF(M352=ITNs!$C$8, ITNs!C352, IF(M352=ITNs!$D$8, ITNs!D352, IF(M352=ITNs!$E$8, ITNs!E352, IF(M352=ITNs!$F$8, ITNs!F352, IF(M352=ITNs!$G$8, ITNs!G352, IF(M352=ITNs!$H$8, ITNs!H352, \"ERROR\"))))))))","v":3766002}," "," "," "," "," "," "," "," "," "," "," "," "," "," "," "," "," "," "," "," "," "," "," "," "," "," "," "," "," "," "," "," "," "," "," "," "," "," "," "," "," "," "," "," "," "," "," "," "," "]
["Pakistan","Monsoon season, typically occurs from June to September.",2024,"National - one phase",null," "," "," "," "," "," ","10’745’929","Pyrethroid-only",{"$f":"IF(M353=ITNs!$E$8, ITNs!E353, IF(M353=ITNs!$B$8, ITNs!B353, IF(M353=ITNs!$C$8, ITNs!C353, IF(M353=ITNs!$D$8, ITNs!D353, IF(M353=ITNs!$E$8, ITNs!E353, IF(M353=ITNs!$F$8, ITNs!F353, IF(M353=ITNs!$G$8, ITNs!G353, IF(M353=ITNs!$H$8, ITNs!H353, \"ERROR\"))))))))","v":"10’149’386"}," "," ","Global Fund"," "," "," "," "," "," ","DHIS2","Bale Packaging"," "," "," "," "," "," "," "," "," "," "," "," "," "," "," "," "," "," "," "," "," "," "," "," "," "," "," "," "," "," "," "," "," "," "," "," "," "," "]
["Pakistan"," Monsoon season, typically occurs from June to September.",2024,"Sub-national - one phase ",null," ","No prioritization","Balochistan","Bolan"," ","2024-05-23"," ","Pyrethroid-only",{"$f":"IF(M354=ITNs!$E$8, ITNs!E354, IF(M354=ITNs!$B$8, ITNs!B354, IF(M354=ITNs!$C$8, ITNs!C354, IF(M354=ITNs!$D$8, ITNs!D354, IF(M354=ITNs!$E$8, ITNs!E354, IF(M354=ITNs!$F$8, ITNs!F354, IF(M354=ITNs!$G$8, ITNs!G354, IF(M354=ITNs!$H$8, ITNs!H354, \"ERROR\"))))))))","v":"143’276"},"2024-01-24"," ","Global Fund"," "," "," "," "," "," "," "," "," "," "]
["Pakistan"," Monsoon season, typically occurs from June to September.",2024,"Sub-national - one phase ",null," ","No prioritization","Balochistan","Dara Bugti"," ","2024-05-23"," ","Pyrethroid-only",{"$f":"IF(M355=ITNs!$E$8, ITNs!E355, IF(M355=ITNs!$B$8, ITNs!B355, IF(M355=ITNs!$C$8, ITNs!C355, IF(M355=ITNs!$D$8, ITNs!D355, IF(M355=ITNs!$E$8, ITNs!E355, IF(M355=ITNs!$F$8, ITNs!F355, IF(M355=ITNs!$G$8, ITNs!G355, IF(M355=ITNs!$H$8, ITNs!H355, \"ERROR\"))))))))","v":"170’674"},"2024-01-24"," ","Global Fund"," "," "," "," "," "," "," "," "," "," "]
["Pakistan"," Monsoon season, typically occurs from June to September.",2024,"Sub-national - one phase ",null," ","No prioritization","Balochistan","Duki"," ","2024-05-23"," ","Pyrethroid-only",{"$f":"IF(M356=ITNs!$E$8, ITNs!E356, IF(M356=ITNs!$B$8, ITNs!B356, IF(M356=ITNs!$C$8, ITNs!C356, IF(M356=ITNs!$D$8, ITNs!D356, IF(M356=ITNs!$E$8, ITNs!E356, IF(M356=ITNs!$F$8, ITNs!F356, IF(M356=ITNs!$G$8, ITNs!G356, IF(M356=ITNs!$H$8, ITNs!H356, \"ERROR\"))))))))","v":"126’738"},"2024-01-24"," ","Global Fund"," "," "," "," "," "," "," "," "," "," "]
["Pakistan"," Monsoon season, typically occurs from June to September.",2024,"Sub-national - one phase ",null," ","No prioritization","Balochistan","Gwadar"," ","2024-05-23"," ","Pyrethroid-only",{"$f":"IF(M357=ITNs!$E$8, ITNs!E357, IF(M357=ITNs!$B$8, ITNs!B357, IF(M357=ITNs!$C$8, ITNs!C357, IF(M357=ITNs!$D$8, ITNs!D357, IF(M357=ITNs!$E$8, ITNs!E357, IF(M357=ITNs!$F$8, ITNs!F357, IF(M357=ITNs!$G$8, ITNs!G357, IF(M357=ITNs!$H$8, ITNs!H357, \"ERROR\"))))))))","v":"117’133"},"2024-01-24"," ","Global Fund"," "," "," "," "," "," "," "," "," "," "]
["Pakistan"," Monsoon season, typically occurs from June to September.",2024,"Sub-national - one phase ",null," ","No prioritization","Balochistan","Jaffarabad"," ","2024-05-23"," ","Pyrethroid-only",{"$f":"IF(M358=ITNs!$E$8, ITNs!E358, IF(M358=ITNs!$B$8, ITNs!B358, IF(M358=ITNs!$C$8, ITNs!C358, IF(M358=ITNs!$D$8, ITNs!D358, IF(M358=ITNs!$E$8, ITNs!E358, IF(M358=ITNs!$F$8, ITNs!F358, IF(M358=ITNs!$G$8, ITNs!G358, IF(M358=ITNs!$H$8, ITNs!H358, \"ERROR\"))))))))","v":"340’520"},"2024-01-24"," ","Global Fund"," "," "," "," "," "," "," "," "," "," "]
["Pakistan"," Monsoon season, typically occurs from June to September.",2024,"Sub-national - one phase ",null," ","No prioritization","Balochistan","Jhal Magsi"," ","2024-05-23"," ","Pyrethroid-only",{"$f":"IF(M359=ITNs!$E$8, ITNs!E359, IF(M359=ITNs!$B$8, ITNs!B359, IF(M359=ITNs!$C$8, ITNs!C359, IF(M359=ITNs!$D$8, ITNs!D359, IF(M359=ITNs!$E$8, ITNs!E359, IF(M359=ITNs!$F$8, ITNs!F359, IF(M359=ITNs!$G$8, ITNs!G359, IF(M359=ITNs!$H$8, ITNs!H359, \"ERROR\"))))))))","v":"95’619"},"2024-01-24"," ","Global Fund"," "," "," "," "," "," "," "," "," "," "]
["Pakistan"," Monsoon season, typically occurs from June to September.",2024,"Sub-national - one phase ",null," ","No prioritization","Balochistan","Kech"," ","2024-05-23"," ","Pyrethroid-only",{"$f":"IF(M360=ITNs!$E$8, ITNs!E360, IF(M360=ITNs!$B$8, ITNs!B360, IF(M360=ITNs!$C$8, ITNs!C360, IF(M360=ITNs!$D$8, ITNs!D360, IF(M360=ITNs!$E$8, ITNs!E360, IF(M360=ITNs!$F$8, ITNs!F360, IF(M360=ITNs!$G$8, ITNs!G360, IF(M360=ITNs!$H$8, ITNs!H360, \"ERROR\"))))))))","v":"420’608"},"2024-01-24"," ","Global Fund"," "," "," "," "," "," "," "," "," "," "]
["Pakistan"," Monsoon season, typically occurs from June to September.",2024,"Sub-national - one phase ",null," ","No prioritization","Balochistan","Kharan"," ","2024-05-23"," ","Pyrethroid-only",{"$f":"IF(M361=ITNs!$E$8, ITNs!E361, IF(M361=ITNs!$B$8, ITNs!B361, IF(M361=ITNs!$C$8, ITNs!C361, IF(M361=ITNs!$D$8, ITNs!D361, IF(M361=ITNs!$E$8, ITNs!E361, IF(M361=ITNs!$F$8, ITNs!F361, IF(M361=ITNs!$G$8, ITNs!G361, IF(M361=ITNs!$H$8, ITNs!H361, \"ERROR\"))))))))","v":"85’802"},"2024-01-24"," ","Global Fund"," "," "," "," "," "," "," "," "," "," "]
["Pakistan"," Monsoon season, typically occurs from June to September.",2024,"Sub-national - one phase ",null," ","No prioritization","Balochistan","Loralai"," ","2024-05-23"," ","Pyrethroid-only",{"$f":"IF(M362=ITNs!$E$8, ITNs!E362, IF(M362=ITNs!$B$8, ITNs!B362, IF(M362=ITNs!$C$8, ITNs!C362, IF(M362=ITNs!$D$8, ITNs!D362, IF(M362=ITNs!$E$8, ITNs!E362, IF(M362=ITNs!$F$8, ITNs!F362, IF(M362=ITNs!$G$8, ITNs!G362, IF(M362=ITNs!$H$8, ITNs!H362, \"ERROR\"))))))))","v":"209’899"},"2024-01-24"," ","Global Fund"," "," "," "," "," "," "," "," "," "," "]
["Pakistan"," Monsoon season, typically occurs from June to September.",2024,"Sub-national - one phase ",null," ","No prioritization","Balochistan","Musa Khail"," ","2024-05-23"," ","Pyrethroid-only",{"$f":"IF(M363=ITNs!$E$8, ITNs!E363, IF(M363=ITNs!$B$8, ITNs!B363, IF(M363=ITNs!$C$8, ITNs!C363, IF(M363=ITNs!$D$8, ITNs!D363, IF(M363=ITNs!$E$8, ITNs!E363, IF(M363=ITNs!$F$8, ITNs!F363, IF(M363=ITNs!$G$8, ITNs!G363, IF(M363=ITNs!$H$8, ITNs!H363, \"ERROR\"))))))))","v":"131’567"},"2024-01-24"," ","Global Fund"," "," "," "," "," "," "," "," "," "," "]
["Pakistan"," Monsoon season, typically occurs from June to September.",2024,"Sub-national - one phase ",null," ","No prioritization","Balochistan","Naseerabad"," ","2024-05-23"," ","Pyrethroid-only",{"$f":"IF(M364=ITNs!$E$8, ITNs!E364, IF(M364=ITNs!$B$8, ITNs!B364, IF(M364=ITNs!$C$8, ITNs!C364, IF(M364=ITNs!$D$8, ITNs!D364, IF(M364=ITNs!$E$8, ITNs!E364, IF(M364=ITNs!$F$8, ITNs!F364, IF(M364=ITNs!$G$8, ITNs!G364, IF(M364=ITNs!$H$8, ITNs!H364, \"ERROR\"))))))))","v":"333’123"},"2024-01-24"," ","Global Fund"," "," "," "," "," "," "," "," "," "," "]
["Pakistan"," Monsoon season, typically occurs from June to September.",2024,"Sub-national - one phase ",null," ","No prioritization","Balochistan","Zhob"," ","2024-05-23"," ","Pyrethroid-only",{"$f":"IF(M365=ITNs!$E$8, ITNs!E365, IF(M365=ITNs!$B$8, ITNs!B365, IF(M365=ITNs!$C$8, ITNs!C365, IF(M365=ITNs!$D$8, ITNs!D365, IF(M365=ITNs!$E$8, ITNs!E365, IF(M365=ITNs!$F$8, ITNs!F365, IF(M365=ITNs!$G$8, ITNs!G365, IF(M365=ITNs!$H$8, ITNs!H365, \"ERROR\"))))))))","v":"171’643"},"2024-01-24"," ","Global Fund"," "," "," "," "," "," "," "," "," "," "]
["Pakistan"," Monsoon season, typically occurs from June to September.",2024,"Sub-national - one phase ",null," ","No prioritization","Sindh","Sujawal"," ","2024-05-23"," ","Pyrethroid-only",{"$f":"IF(M366=ITNs!$E$8, ITNs!E366, IF(M366=ITNs!$B$8, ITNs!B366, IF(M366=ITNs!$C$8, ITNs!C366, IF(M366=ITNs!$D$8, ITNs!D366, IF(M366=ITNs!$E$8, ITNs!E366, IF(M366=ITNs!$F$8, ITNs!F366, IF(M366=ITNs!$G$8, ITNs!G366, IF(M366=ITNs!$H$8, ITNs!H366, \"ERROR\"))))))))","v":"397’179"},"2024-01-24"," ","Global Fund"," "," "," "," "," "," "," "," "," "," "]
["Pakistan"," Monsoon season, typically occurs from June to September.",2024,"Sub-national - one phase ",null," ","No prioritization","Sindh","Thatta"," ","2024-05-23"," ","Pyrethroid-only",{"$f":"IF(M367=ITNs!$E$8, ITNs!E367, IF(M367=ITNs!$B$8, ITNs!B367, IF(M367=ITNs!$C$8, ITNs!C367, IF(M367=ITNs!$D$8, ITNs!D367, IF(M367=ITNs!$E$8, ITNs!E367, IF(M367=ITNs!$F$8, ITNs!F367, IF(M367=ITNs!$G$8, ITNs!G367, IF(M367=ITNs!$H$8, ITNs!H367, \"ERROR\"))))))))","v":"546’545"},"2024-01-24"," ","Global Fund"," "," "," "," "," "," "," "," "," "," "]
["Pakistan"," Monsoon season, typically occurs from June to September.",2024,"Sub-national - one phase ",null," ","No prioritization","Sindh","TMK"," ","2024-05-23"," ","Pyrethroid-only",{"$f":"IF(M368=ITNs!$E$8, ITNs!E368, IF(M368=ITNs!$B$8, ITNs!B368, IF(M368=ITNs!$C$8, ITNs!C368, IF(M368=ITNs!$D$8, ITNs!D368, IF(M368=ITNs!$E$8, ITNs!E368, IF(M368=ITNs!$F$8, ITNs!F368, IF(M368=ITNs!$G$8, ITNs!G368, IF(M368=ITNs!$H$8, ITNs!H368, \"ERROR\"))))))))","v":"321’344"},"2024-01-24"," ","Global Fund"," "," "," "," "," "," "," "," "," "," "]
["Pakistan"," Monsoon season, typically occurs from June to September.",2024,"Sub-national - one phase ",null," ","No prioritization","Sindh","Umerkot"," ","2024-05-23"," ","Pyrethroid-only",{"$f":"IF(M369=ITNs!$E$8, ITNs!E369, IF(M369=ITNs!$B$8, ITNs!B369, IF(M369=ITNs!$C$8, ITNs!C369, IF(M369=ITNs!$D$8, ITNs!D369, IF(M369=ITNs!$E$8, ITNs!E369, IF(M369=ITNs!$F$8, ITNs!F369, IF(M369=ITNs!$G$8, ITNs!G369, IF(M369=ITNs!$H$8, ITNs!H369, \"ERROR\"))))))))","v":"567’756"},"2024-01-24"," ","Global Fund"," "," "," "," "," "," "," "," "," "," "]
["Pakistan"," Monsoon season, typically occurs from June to September.",2024,"Sub-national - one phase ",null," ","No prioritization","Sindh","Badin"," ","2024-07-24","1’689’018","Pyrethroid-only",{"$f":"IF(M370=ITNs!$E$8, ITNs!E370, IF(M370=ITNs!$B$8, ITNs!B370, IF(M370=ITNs!$C$8, ITNs!C370, IF(M370=ITNs!$D$8, ITNs!D370, IF(M370=ITNs!$E$8, ITNs!E370, IF(M370=ITNs!$F$8, ITNs!F370, IF(M370=ITNs!$G$8, ITNs!G370, IF(M370=ITNs!$H$8, ITNs!H370, \"ERROR\"))))))))","v":"938’343"}," "," ","Global Fund"," "," "," "," "," "," "," "," "," "," "]
["Pakistan"," Monsoon season, typically occurs from June to September.",2024,"Sub-national - one phase ",null," ","No prioritization","Sindh","Larkana"," ","2024-07-24","926’436","Pyrethroid-only",{"$f":"IF(M371=ITNs!$E$8, ITNs!E371, IF(M371=ITNs!$B$8, ITNs!B371, IF(M371=ITNs!$C$8, ITNs!C371, IF(M371=ITNs!$D$8, ITNs!D371, IF(M371=ITNs!$E$8, ITNs!E371, IF(M371=ITNs!$F$8, ITNs!F371, IF(M371=ITNs!$G$8, ITNs!G371, IF(M371=ITNs!$H$8, ITNs!H371, \"ERROR\"))))))))","v":"514’687"}," "," ","Global Fund"," "," "," "," "," "," "," "," "," "," "]
["Pakistan"," Monsoon season, typically occurs from June to September.",2024,"Sub-national - one phase ",null," ","No prioritization","Sindh","Mirpurkhas"," ","2024-07-24","1’277’803","Pyrethroid-only",{"$f":"IF(M372=ITNs!$E$8, ITNs!E372, IF(M372=ITNs!$B$8, ITNs!B372, IF(M372=ITNs!$C$8, ITNs!C372, IF(M372=ITNs!$D$8, ITNs!D372, IF(M372=ITNs!$E$8, ITNs!E372, IF(M372=ITNs!$F$8, ITNs!F372, IF(M372=ITNs!$G$8, ITNs!G372, IF(M372=ITNs!$H$8, ITNs!H372, \"ERROR\"))))))))","v":"709’890"}," "," ","Global Fund"," "," "," "," "," "," "," "," "," "," "]
["Pakistan"," Monsoon season, typically occurs from June to September.",2024,"Sub-national - one phase ",null," ","No prioritization","Balochistan","Noushki"," ","2024-07-24","163’958","Pyrethroid-only",{"$f":"IF(M373=ITNs!$E$8, ITNs!E373, IF(M373=ITNs!$B$8, ITNs!B373, IF(M373=ITNs!$C$8, ITNs!C373, IF(M373=ITNs!$D$8, ITNs!D373, IF(M373=ITNs!$E$8, ITNs!E373, IF(M373=ITNs!$F$8, ITNs!F373, IF(M373=ITNs!$G$8, ITNs!G373, IF(M373=ITNs!$H$8, ITNs!H373, \"ERROR\"))))))))","v":"91’088"}," "," ","Global Fund"," "," "," "," "," "," "," "," "," "," "]
["Pakistan"," Monsoon season, typically occurs from June to September.",2024,"Sub-national - one phase ",null," ","No prioritization","Khyber Pakhtunkhwa","Bunner"," ","2024-07-24","1’107’345","Pyrethroid-only",{"$f":"IF(M374=ITNs!$E$8, ITNs!E374, IF(M374=ITNs!$B$8, ITNs!B374, IF(M374=ITNs!$C$8, ITNs!C374, IF(M374=ITNs!$D$8, ITNs!D374, IF(M374=ITNs!$E$8, ITNs!E374, IF(M374=ITNs!$F$8, ITNs!F374, IF(M374=ITNs!$G$8, ITNs!G374, IF(M374=ITNs!$H$8, ITNs!H374, \"ERROR\"))))))))","v":"615’192"}," "," ","Global Fund"," "," "," "," "," "," "," "," "," "," "]
["Pakistan"," Monsoon season, typically occurs from June to September.",2024,"Sub-national - one phase ",null," ","No prioritization","Khyber Pakhtunkhwa","Dir Lower"," ","2024-07-24","1’824’116","Pyrethroid-only",{"$f":"IF(M375=ITNs!$E$8, ITNs!E375, IF(M375=ITNs!$B$8, ITNs!B375, IF(M375=ITNs!$C$8, ITNs!C375, IF(M375=ITNs!$D$8, ITNs!D375, IF(M375=ITNs!$E$8, ITNs!E375, IF(M375=ITNs!$F$8, ITNs!F375, IF(M375=ITNs!$G$8, ITNs!G375, IF(M375=ITNs!$H$8, ITNs!H375, \"ERROR\"))))))))","v":"1’013’398"}," "," ","Global Fund"," "," "," "," "," "," "," "," "," "," "]
["Pakistan"," Monsoon season, typically occurs from June to September.",2024,"Sub-national - one phase ",null," ","No prioritization","KP- Merged Areas (Ex-FATA)","Orakzai"," ","2024-07-24","265’972","Pyrethroid-only",{"$f":"IF(M376=ITNs!$E$8, ITNs!E376, IF(M376=ITNs!$B$8, ITNs!B376, IF(M376=ITNs!$C$8, ITNs!C376, IF(M376=ITNs!$D$8, ITNs!D376, IF(M376=ITNs!$E$8, ITNs!E376, IF(M376=ITNs!$F$8, ITNs!F376, IF(M376=ITNs!$G$8, ITNs!G376, IF(M376=ITNs!$H$8, ITNs!H376, \"ERROR\"))))))))","v":"147’762"}," "," ","Global Fund"," "," "," "," "," "," "," "," "," "," "]
["Pakistan"," Monsoon season, typically occurs from June to September.",2024,"Sub-national - one phase ",null," ","No prioritization","KP-Merged Areas (Ex-FATA)","FR LAKKI"," ","2024-10-24","42’940","Pyrethroid-only",{"$f":"IF(M377=ITNs!$E$8, ITNs!E377, IF(M377=ITNs!$B$8, ITNs!B377, IF(M377=ITNs!$C$8, ITNs!C377, IF(M377=ITNs!$D$8, ITNs!D377, IF(M377=ITNs!$E$8, ITNs!E377, IF(M377=ITNs!$F$8, ITNs!F377, IF(M377=ITNs!$G$8, ITNs!G377, IF(M377=ITNs!$H$8, ITNs!H377, \"ERROR\"))))))))","v":"23’855"}," "," ","Global Fund"," "," "," "," "," "," "," "," "," ","Campaign is targeted for Oct-2024 as ITNs arrival is expected during Sep-2024"]
["Pakistan"," Monsoon season, typically occurs from June to September.",2024,"Sub-national - one phase ",null," ","No prioritization","KP- Merged Areas (Ex-FATA)","FR Tank"," ","2024-10-24","40’498","Pyrethroid-only",{"$f":"IF(M378=ITNs!$E$8, ITNs!E378, IF(M378=ITNs!$B$8, ITNs!B378, IF(M378=ITNs!$C$8, ITNs!C378, IF(M378=ITNs!$D$8, ITNs!D378, IF(M378=ITNs!$E$8, ITNs!E378, IF(M378=ITNs!$F$8, ITNs!F378, IF(M378=ITNs!$G$8, ITNs!G378, IF(M378=ITNs!$H$8, ITNs!H378, \"ERROR\"))))))))","v":"22’499"}," "," ","Global Fund"," "," "," "," "," "," "," "," "," ","Campaign is targeted for Oct-2024 as ITNs arrival is expected during Sep-2024"]
["Pakistan"," Monsoon season, typically occurs from June to September.",2024,"Sub-national - one phase ",null," ","No prioritization","KP- Merged Areas (Ex-FATA)","FR DI Khan"," ","2024-10-24","84’373","Pyrethroid-only",{"$f":"IF(M379=ITNs!$E$8, ITNs!E379, IF(M379=ITNs!$B$8, ITNs!B379, IF(M379=ITNs!$C$8, ITNs!C379, IF(M379=ITNs!$D$8, ITNs!D379, IF(M379=ITNs!$E$8, ITNs!E379, IF(M379=ITNs!$F$8, ITNs!F379, IF(M379=ITNs!$G$8, ITNs!G379, IF(M379=ITNs!$H$8, ITNs!H379, \"ERROR\"))))))))","v":"46’874"}," "," ","Global Fund"," "," "," "," "," "," "," "," "," ","Campaign is targeted for Oct-2024 as ITNs arrival is expected during Sep-2024"]
["Pakistan"," Monsoon season, typically occurs from June to September.",2024,"Sub-national - one phase ",null," ","No prioritization","KP- Merged Areas (Ex-FATA)","FR Bannu"," ","2024-10-24","57’619","Pyrethroid-only",{"$f":"IF(M380=ITNs!$E$8, ITNs!E380, IF(M380=ITNs!$B$8, ITNs!B380, IF(M380=ITNs!$C$8, ITNs!C380, IF(M380=ITNs!$D$8, ITNs!D380, IF(M380=ITNs!$E$8, ITNs!E380, IF(M380=ITNs!$F$8, ITNs!F380, IF(M380=ITNs!$G$8, ITNs!G380, IF(M380=ITNs!$H$8, ITNs!H380, \"ERROR\"))))))))","v":"32’011"}," "," ","Global Fund"," "," "," "," "," "," "," "," "," ","Campaign is targeted for Oct-2024 as ITNs arrival is expected during Sep-2024"]
["Pakistan"," Monsoon season, typically occurs from June to September.",2024,"Sub-national - one phase ",null," ","No prioritization","KP- Merged Areas (Ex-FATA)","FR Kohat"," ","2024-10-24","132’058","Pyrethroid-only",{"$f":"IF(M381=ITNs!$E$8, ITNs!E381, IF(M381=ITNs!$B$8, ITNs!B381, IF(M381=ITNs!$C$8, ITNs!C381, IF(M381=ITNs!$D$8, ITNs!D381, IF(M381=ITNs!$E$8, ITNs!E381, IF(M381=ITNs!$F$8, ITNs!F381, IF(M381=ITNs!$G$8, ITNs!G381, IF(M381=ITNs!$H$8, ITNs!H381, \"ERROR\"))))))))","v":"73’365"}," "," ","Global Fund"," "," "," "," "," "," "," "," "," ","Campaign is targeted for Oct-2024 as ITNs arrival is expected during Sep-2024"]
["Pakistan"," Monsoon season, typically occurs from June to September.",2024,"Sub-national - one phase ",null," ","No prioritization","KP- Merged Areas (Ex-FATA)","Mohmand"," ","2024-10-24","528’008","Pyrethroid-only",{"$f":"IF(M382=ITNs!$E$8, ITNs!E382, IF(M382=ITNs!$B$8, ITNs!B382, IF(M382=ITNs!$C$8, ITNs!C382, IF(M382=ITNs!$D$8, ITNs!D382, IF(M382=ITNs!$E$8, ITNs!E382, IF(M382=ITNs!$F$8, ITNs!F382, IF(M382=ITNs!$G$8, ITNs!G382, IF(M382=ITNs!$H$8, ITNs!H382, \"ERROR\"))))))))","v":"293’338"}," "," ","Global Fund"," "," "," "," "," "," "," "," "," ","Campaign is targeted for Oct-2024 as ITNs arrival is expected during Sep-2024"]
["Pakistan"," Monsoon season, typically occurs from June to September.",2024,"Sub-national - one phase ",null," ","No prioritization","KP- Merged Areas (Ex-FATA)","SWA"," ","2024-10-24","803’486","Pyrethroid-only",{"$f":"IF(M383=ITNs!$E$8, ITNs!E383, IF(M383=ITNs!$B$8, ITNs!B383, IF(M383=ITNs!$C$8, ITNs!C383, IF(M383=ITNs!$D$8, ITNs!D383, IF(M383=ITNs!$E$8, ITNs!E383, IF(M383=ITNs!$F$8, ITNs!F383, IF(M383=ITNs!$G$8, ITNs!G383, IF(M383=ITNs!$H$8, ITNs!H383, \"ERROR\"))))))))","v":"446’381"}," "," ","Global Fund"," "," "," "," "," "," "," "," "," ","Campaign is targeted for Oct-2024 as ITNs arrival is expected during Sep-2024"]
["Pakistan"," Monsoon season, typically occurs from June to September.",2024,"Sub-national - one phase ",null," ","No prioritization","KP- Merged Areas (Ex-FATA)","Khyber"," ","2024-10-24","1’105’091","Pyrethroid-only",{"$f":"IF(M384=ITNs!$E$8, ITNs!E384, IF(M384=ITNs!$B$8, ITNs!B384, IF(M384=ITNs!$C$8, ITNs!C384, IF(M384=ITNs!$D$8, ITNs!D384, IF(M384=ITNs!$E$8, ITNs!E384, IF(M384=ITNs!$F$8, ITNs!F384, IF(M384=ITNs!$G$8, ITNs!G384, IF(M384=ITNs!$H$8, ITNs!H384, \"ERROR\"))))))))","v":"613’939"}," "," ","Global Fund"," "," "," "," "," "," "," "," "," ","Campaign is targeted for Oct-2024 as ITNs arrival is expected during Sep-2024"]
["Pakistan"," Monsoon season, typically occurs from June to September.",2024,"Sub-national - one phase ",null," ","No prioritization","KP- Merged Areas (Ex-FATA)","NWA"," ","2024-10-24","627’995","Pyrethroid-only",{"$f":"IF(M385=ITNs!$E$8, ITNs!E385, IF(M385=ITNs!$B$8, ITNs!B385, IF(M385=ITNs!$C$8, ITNs!C385, IF(M385=ITNs!$D$8, ITNs!D385, IF(M385=ITNs!$E$8, ITNs!E385, IF(M385=ITNs!$F$8, ITNs!F385, IF(M385=ITNs!$G$8, ITNs!G385, IF(M385=ITNs!$H$8, ITNs!H385, \"ERROR\"))))))))","v":"348’886"}," "," ","Global Fund"," "," "," "," "," "," "," "," "," ","Campaign is targeted for Oct-2024 as ITNs arrival is expected during Sep-2024"]
["Pakistan"," Monsoon season, typically occurs from June to September.",2024,"Sub-national - one phase ",null," ","No prioritization","KP- Merged Areas (Ex-FATA)","FR Peshawar"," ","2024-10-24","69’213","Pyrethroid-only",{"$f":"IF(M386=ITNs!$E$8, ITNs!E386, IF(M386=ITNs!$B$8, ITNs!B386, IF(M386=ITNs!$C$8, ITNs!C386, IF(M386=ITNs!$D$8, ITNs!D386, IF(M386=ITNs!$E$8, ITNs!E386, IF(M386=ITNs!$F$8, ITNs!F386, IF(M386=ITNs!$G$8, ITNs!G386, IF(M386=ITNs!$H$8, ITNs!H386, \"ERROR\"))))))))","v":"38’452"}," "," ","Global Fund"," "," "," "," "," "," "," "," "," ","Campaign is targeted for Oct-2024 as ITNs arrival is expected during Sep-2024"]
["Pakistan"," ",2025," ",null," "," "," "," "," "," "," ","Multi-products",{"$f":"IF(M387=ITNs!$E$8, ITNs!E387, IF(M387=ITNs!$B$8, ITNs!B387, IF(M387=ITNs!$C$8, ITNs!C387, IF(M387=ITNs!$D$8, ITNs!D387, IF(M387=ITNs!$E$8, ITNs!E387, IF(M387=ITNs!$F$8, ITNs!F387, IF(M387=ITNs!$G$8, ITNs!G387, IF(M387=ITNs!$H$8, ITNs!H387, \"ERROR\"))))))))","v":0}," "," "," "," "," "," "," "," "," "," "," "," "," "," "," "," "," "," "," "," "," "," "," "," "," "," "," "," "," "," "," "," "," "," "," "," "," "," "," "," "," "," "," "," "," "," "," "," "," "]
["Pakistan"," ",2026," ",null," "," "," "," "," "," "," ","Multi-products",{"$f":"IF(M388=ITNs!$E$8, ITNs!E388, IF(M388=ITNs!$B$8, ITNs!B388, IF(M388=ITNs!$C$8, ITNs!C388, IF(M388=ITNs!$D$8, ITNs!D388, IF(M388=ITNs!$E$8, ITNs!E388, IF(M388=ITNs!$F$8, ITNs!F388, IF(M388=ITNs!$G$8, ITNs!G388, IF(M388=ITNs!$H$8, ITNs!H388, \"ERROR\"))))))))","v":0}," "," "," "," "," "," "," "," "," "," "," "," "," "," "," "," "," "," "," "," "," "," "," "," "," "," "," "," "," "," "," "," "," "," "," "," "," "," "," "," "," "," "," "," "," "," "," "," "," "]
["Panama"," ",2024,"No campaign this year",null," "," "," "," "," "," "," ","Multi-products",{"$f":"IF(M389=ITNs!$E$8, ITNs!E389, IF(M389=ITNs!$B$8, ITNs!B389, IF(M389=ITNs!$C$8, ITNs!C389, IF(M389=ITNs!$D$8, ITNs!D389, IF(M389=ITNs!$E$8, ITNs!E389, IF(M389=ITNs!$F$8, ITNs!F389, IF(M389=ITNs!$G$8, ITNs!G389, IF(M389=ITNs!$H$8, ITNs!H389, \"ERROR\"))))))))","v":0}," "," "," "," "," "," "," "," "," "," "," "," "," "," "," "," "," "," "," "," "," "," "," "," "," "," "," "," "," "," "," "," "," "," "," "," "," "," "," "," "," "," "," "," "," "," "," "," "," "]
["Papua New Guinea","Typically occurs from December to March, with variations depending on the region.",2024,"Sub-national",null," "," ","Provinces","Districts"," "," ","3’252’966","Multi-products",{"$f":"IF(M390=ITNs!$E$8, ITNs!E390, IF(M390=ITNs!$B$8, ITNs!B390, IF(M390=ITNs!$C$8, ITNs!C390, IF(M390=ITNs!$D$8, ITNs!D390, IF(M390=ITNs!$E$8, ITNs!E390, IF(M390=ITNs!$F$8, ITNs!F390, IF(M390=ITNs!$G$8, ITNs!G390, IF(M390=ITNs!$H$8, ITNs!H390, \"ERROR\"))))))))","v":"1’671’825"}," "," "," "," "," "," "," "," "," "," "," "," "," "," "," "," "," "," "," "," "," "," "," "," "," "," "," "," "," "," "," "," "," "," "," "," "," "," "," "," "," "," "," "," "," "," "," "," "," "]
["Papua New Guinea"," ",2024,"National - one phase",null," "," ","Madang Province","Bogia, Madang and Roai Coast Districts"," ","2024-02-24","            397’573","Pyrethroid-only",{"$f":"IF(M391=ITNs!$E$8, ITNs!E391, IF(M391=ITNs!$B$8, ITNs!B391, IF(M391=ITNs!$C$8, ITNs!C391, IF(M391=ITNs!$D$8, ITNs!D391, IF(M391=ITNs!$E$8, ITNs!E391, IF(M391=ITNs!$F$8, ITNs!F391, IF(M391=ITNs!$G$8, ITNs!G391, IF(M391=ITNs!$H$8, ITNs!H391, \"ERROR\"))))))))","v":"197’375"}," "," ","Global Fund"," "," "," "," "," "," "," "," "," "," "," "," "," "," "," "," "," "," "," "," "," "," "," "," "," "," "," "," "," "," "," "," "," "," "," "," "," "," "," "," "," "," "," "," "," "," "]
["Papua New Guinea"," ",2024,"National - one phase",null," "," ","East Sepik Province","Angoram, Maprik, Wewak and Yangoro Suassi Districts"," ","2024-02-24","            500’913","Pyrethroid-only",{"$f":"IF(M392=ITNs!$E$8, ITNs!E392, IF(M392=ITNs!$B$8, ITNs!B392, IF(M392=ITNs!$C$8, ITNs!C392, IF(M392=ITNs!$D$8, ITNs!D392, IF(M392=ITNs!$E$8, ITNs!E392, IF(M392=ITNs!$F$8, ITNs!F392, IF(M392=ITNs!$G$8, ITNs!G392, IF(M392=ITNs!$H$8, ITNs!H392, \"ERROR\"))))))))","v":"250’450"}," "," ","Global Fund"," "," "," "," "," "," "," "," "," "," "," "," "," "," "," "," "," "," "," "," "," "," "," "," "," "," "," "," "," "," "," "," "," "," "," "," "," "," "," "," "," "," "," "," "," "," "]
["Papua New Guinea"," ",2024,"National - one phase",null," "," ","Sandaun Province ","Vanimo Green, Aitape Lumi and Nuku Districts"," ","2024-02-24","            308’140","Pyrethroid-only",{"$f":"IF(M393=ITNs!$E$8, ITNs!E393, IF(M393=ITNs!$B$8, ITNs!B393, IF(M393=ITNs!$C$8, ITNs!C393, IF(M393=ITNs!$D$8, ITNs!D393, IF(M393=ITNs!$E$8, ITNs!E393, IF(M393=ITNs!$F$8, ITNs!F393, IF(M393=ITNs!$G$8, ITNs!G393, IF(M393=ITNs!$H$8, ITNs!H393, \"ERROR\"))))))))","v":"154’100"}," "," ","Global Fund"," "," "," "," "," "," "," "," "," "," "," "," "," "," "," "," "," "," "," "," "," "," "," "," "," "," "," "," "," "," "," "," "," "," "," "," "," "," "," "," "," "," "," "," "," "," "]
["Papua New Guinea"," ",2024,"National - one phase",null," "," ","Western Highlands Province ","Dei District"," ","2024-04-24","            102’447","Pyrethroid-only",{"$f":"IF(M394=ITNs!$E$8, ITNs!E394, IF(M394=ITNs!$B$8, ITNs!B394, IF(M394=ITNs!$C$8, ITNs!C394, IF(M394=ITNs!$D$8, ITNs!D394, IF(M394=ITNs!$E$8, ITNs!E394, IF(M394=ITNs!$F$8, ITNs!F394, IF(M394=ITNs!$G$8, ITNs!G394, IF(M394=ITNs!$H$8, ITNs!H394, \"ERROR\"))))))))","v":"47’700"}," "," ","Global Fund"," "," "," "," "," "," "," "," "," "," "," "," "," "," "," "," "," "," "," "," "," "," "," "," "," "," "," "," "," "," "," "," "," "," "," "," "," "," "," "," "," "," "," "," "," "," "]
["Papua New Guinea"," ",2024,"National - one phase",null," "," ","Jiwaka Province ","Jimi District"," ","2024-04-24","              65’004","Pyrethroid-only",{"$f":"IF(M395=ITNs!$E$8, ITNs!E395, IF(M395=ITNs!$B$8, ITNs!B395, IF(M395=ITNs!$C$8, ITNs!C395, IF(M395=ITNs!$D$8, ITNs!D395, IF(M395=ITNs!$E$8, ITNs!E395, IF(M395=ITNs!$F$8, ITNs!F395, IF(M395=ITNs!$G$8, ITNs!G395, IF(M395=ITNs!$H$8, ITNs!H395, \"ERROR\"))))))))","v":"32’500"}," "," ","Global Fund"," "," "," "," "," "," "," "," "," "," "," "," "," "," "," "," "," "," "," "," "," "," "," "," "," "," "," "," "," "," "," "," "," "," "," "," "," "," "," "," "," "," "," "," "," "," "]
["Papua New Guinea"," ",2024,"National - one phase",null," "," ","Chimbu Province ","Kunidawa Gebogl and Sinasina Yongomogl Districts"," ","2024-05-24","              56’000","Pyrethroid-only",{"$f":"IF(M396=ITNs!$E$8, ITNs!E396, IF(M396=ITNs!$B$8, ITNs!B396, IF(M396=ITNs!$C$8, ITNs!C396, IF(M396=ITNs!$D$8, ITNs!D396, IF(M396=ITNs!$E$8, ITNs!E396, IF(M396=ITNs!$F$8, ITNs!F396, IF(M396=ITNs!$G$8, ITNs!G396, IF(M396=ITNs!$H$8, ITNs!H396, \"ERROR\"))))))))","v":"28’000"}," "," ","Global Fund"," "," "," "," "," "," "," "," "," "," "," "," "," "," "," "," "," "," "," "," "," "," "," "," "," "," "," "," "," "," "," "," "," "," "," "," "," "," "," "," "," "," "," "," "," "," "]
["Papua New Guinea"," ",2024,"National - one phase",null," "," ","Eastern Highlands Province ","Asaro, Unga Benna and Kainantu Districts"," ","2024-05-24","            135’900","PBO",{"$f":"IF(M397=ITNs!$E$8, ITNs!E397, IF(M397=ITNs!$B$8, ITNs!B397, IF(M397=ITNs!$C$8, ITNs!C397, IF(M397=ITNs!$D$8, ITNs!D397, IF(M397=ITNs!$E$8, ITNs!E397, IF(M397=ITNs!$F$8, ITNs!F397, IF(M397=ITNs!$G$8, ITNs!G397, IF(M397=ITNs!$H$8, ITNs!H397, \"ERROR\"))))))))","v":"67’950"}," "," ","Global Fund"," "," "," "," "," "," "," "," "," "," "," "," "," "," "," "," "," "," "," "," "," "," "," "," "," "," "," "," "," "," "," "," "," "," "," "," "," "," "," "," "," "," "," "," "," "," "]
["Papua New Guinea"," ",2024,"National - one phase",null," "," ","Morobe Province ","Bulolo, Finschafen, Huon Gulf,  Kabwum Lae, Menyamya, Nawae Districts"," ","2024-07-24","            943’461","Pyrethroid-only",{"$f":"IF(M398=ITNs!$E$8, ITNs!E398, IF(M398=ITNs!$B$8, ITNs!B398, IF(M398=ITNs!$C$8, ITNs!C398, IF(M398=ITNs!$D$8, ITNs!D398, IF(M398=ITNs!$E$8, ITNs!E398, IF(M398=ITNs!$F$8, ITNs!F398, IF(M398=ITNs!$G$8, ITNs!G398, IF(M398=ITNs!$H$8, ITNs!H398, \"ERROR\"))))))))","v":"471’750"}," "," ","Global Fund"," "," "," "," "," "," "," "," "," "," "," "," "," "," "," "," "," "," "," "," "," "," "," "," "," "," "," "," "," "," "," "," "," "," "," "," "," "," "," "," "," "," "," "," "," "," "]
["Papua New Guinea"," ",2024,"National - one phase",null," "," ","Madang Province ","Middle Ramu, Sumkar and Usino Bundi Districts"," ","2024-09-24","            265’380","Pyrethroid-only",{"$f":"IF(M399=ITNs!$E$8, ITNs!E399, IF(M399=ITNs!$B$8, ITNs!B399, IF(M399=ITNs!$C$8, ITNs!C399, IF(M399=ITNs!$D$8, ITNs!D399, IF(M399=ITNs!$E$8, ITNs!E399, IF(M399=ITNs!$F$8, ITNs!F399, IF(M399=ITNs!$G$8, ITNs!G399, IF(M399=ITNs!$H$8, ITNs!H399, \"ERROR\"))))))))","v":"182’750"}," "," ","Global Fund"," "," "," "," "," "," "," "," "," "," "," "," "," "," "," "," "," "," "," "," "," "," "," "," "," "," "," "," "," "," "," "," "," "," "," "," "," "," "," "," "," "," "," "," "," "," "]
["Papua New Guinea"," ",2024,"National - one phase",null," "," ","East Sepik Province (Angoram, Maprik, Wewak and Yangoro Suassi Districts)","Angoram, Maprik, Wewak and Yangoro Suassi Districts"," ","2024-10-24","            215’801","Pyrethroid-only",{"$f":"IF(M400=ITNs!$E$8, ITNs!E400, IF(M400=ITNs!$B$8, ITNs!B400, IF(M400=ITNs!$C$8, ITNs!C400, IF(M400=ITNs!$D$8, ITNs!D400, IF(M400=ITNs!$E$8, ITNs!E400, IF(M400=ITNs!$F$8, ITNs!F400, IF(M400=ITNs!$G$8, ITNs!G400, IF(M400=ITNs!$H$8, ITNs!H400, \"ERROR\"))))))))","v":"107’950"}," "," ","Global Fund"," "," "," "," "," "," "," "," "," "," "," "," "," "," "," "," "," "," "," "," "," "," "," "," "," "," "," "," "," "," "," "," "," "," "," "," "," "," "," "," "," "," "," "," "," "," "]
["Papua New Guinea"," ",2024,"National - one phase",null," "," ","Western Province ","North and South Fly"," ","October","            202’222","Pyrethroid-only",{"$f":"IF(M401=ITNs!$E$8, ITNs!E401, IF(M401=ITNs!$B$8, ITNs!B401, IF(M401=ITNs!$C$8, ITNs!C401, IF(M401=ITNs!$D$8, ITNs!D401, IF(M401=ITNs!$E$8, ITNs!E401, IF(M401=ITNs!$F$8, ITNs!F401, IF(M401=ITNs!$G$8, ITNs!G401, IF(M401=ITNs!$H$8, ITNs!H401, \"ERROR\"))))))))","v":"101’200"}," "," ","Global Fund"," "," "," "," "," "," "," "," "," "," "," "," "," "," "," "," "," "," "," "," "," "," "," "," "," "," "," "," "," "," "," "," "," "," "," "," "," "," "," "," "," "," "," "," "," "," "]
["Papua New Guinea"," ",2024,"National - one phase",null," "," ","Sandaun","Telefomin District"," ","November","              60’124","Pyrethroid-only",{"$f":"IF(M402=ITNs!$E$8, ITNs!E402, IF(M402=ITNs!$B$8, ITNs!B402, IF(M402=ITNs!$C$8, ITNs!C402, IF(M402=ITNs!$D$8, ITNs!D402, IF(M402=ITNs!$E$8, ITNs!E402, IF(M402=ITNs!$F$8, ITNs!F402, IF(M402=ITNs!$G$8, ITNs!G402, IF(M402=ITNs!$H$8, ITNs!H402, \"ERROR\"))))))))","v":"30’100"}," "," ","Global Fund"," "," "," "," "," "," "," "," "," "," "," "," "," "," "," "," "," "," "," "," "," "," "," "," "," "," "," "," "," "," "," "," "," "," "," "," "," "," "," "," "," "," "," "," "," "," "]
["Papua New Guinea"," ",2025," ",null," "," "," "," "," "," "," ","Pyrethroid-only",{"$f":"IF(M403=ITNs!$E$8, ITNs!E403, IF(M403=ITNs!$B$8, ITNs!B403, IF(M403=ITNs!$C$8, ITNs!C403, IF(M403=ITNs!$D$8, ITNs!D403, IF(M403=ITNs!$E$8, ITNs!E403, IF(M403=ITNs!$F$8, ITNs!F403, IF(M403=ITNs!$G$8, ITNs!G403, IF(M403=ITNs!$H$8, ITNs!H403, \"ERROR\"))))))))","v":"1’224’610"}," "," "," "," "," "," "," "," "," "," "," "," "," "," "," "," "," "," "," "," "," "," "," "," "," "," "," "," "," "," "," "," "," "," "," "," "," "," "," "," "," "," "," "," "," "," "," "," "," "]
["Papua New Guinea"," ",2026," ",null," "," "," "," "," "," "," ","Pyrethroid-only",{"$f":"IF(M404=ITNs!$E$8, ITNs!E404, IF(M404=ITNs!$B$8, ITNs!B404, IF(M404=ITNs!$C$8, ITNs!C404, IF(M404=ITNs!$D$8, ITNs!D404, IF(M404=ITNs!$E$8, ITNs!E404, IF(M404=ITNs!$F$8, ITNs!F404, IF(M404=ITNs!$G$8, ITNs!G404, IF(M404=ITNs!$H$8, ITNs!H404, \"ERROR\"))))))))","v":"1’212’941"}," "," "," "," "," "," "," "," "," "," "," "," "," "," "," "," "," "," "," "," "," "," "," "," "," "," "," "," "," "," "," "," "," "," "," "," "," "," "," "," "," "," "," "," "," "," "," "," "," "]
["Philippines","Typically occurs from June to November, with variations depending on the region.",2024," ",null," "," "," "," "," "," "," ","Pyrethroid-only",{"$f":"IF(M405=ITNs!$E$8, ITNs!E405, IF(M405=ITNs!$B$8, ITNs!B405, IF(M405=ITNs!$C$8, ITNs!C405, IF(M405=ITNs!$D$8, ITNs!D405, IF(M405=ITNs!$E$8, ITNs!E405, IF(M405=ITNs!$F$8, ITNs!F405, IF(M405=ITNs!$G$8, ITNs!G405, IF(M405=ITNs!$H$8, ITNs!H405, \"ERROR\"))))))))","v":"131’328"}," "," "," "," "," "," "," "," "," "," "," "," "," "," "," "," "," "," "," "," "," "," "," "," "," "," "," "," "," "," "," "," "," "," "," "," "," "," "," "," "," "," "," "," "," "," "," "," "," "]
["Philippines"," ",2025," ",null," "," "," "," "," "," "," ","Pyrethroid-only",{"$f":"IF(M406=ITNs!$E$8, ITNs!E406, IF(M406=ITNs!$B$8, ITNs!B406, IF(M406=ITNs!$C$8, ITNs!C406, IF(M406=ITNs!$D$8, ITNs!D406, IF(M406=ITNs!$E$8, ITNs!E406, IF(M406=ITNs!$F$8, ITNs!F406, IF(M406=ITNs!$G$8, ITNs!G406, IF(M406=ITNs!$H$8, ITNs!H406, \"ERROR\"))))))))","v":"120’492"}," "," "," "," "," "," "," "," "," "," "," "," "," "," "," "," "," "," "," "," "," "," "," "," "," "," "," "," "," "," "," "," "," "," "," "," "," "," "," "," "," "," "," "," "," "," "," "," "," "]
["Philippines"," ",2026," ",null," "," "," "," "," "," "," ","Pyrethroid-only",{"$f":"IF(M407=ITNs!$E$8, ITNs!E407, IF(M407=ITNs!$B$8, ITNs!B407, IF(M407=ITNs!$C$8, ITNs!C407, IF(M407=ITNs!$D$8, ITNs!D407, IF(M407=ITNs!$E$8, ITNs!E407, IF(M407=ITNs!$F$8, ITNs!F407, IF(M407=ITNs!$G$8, ITNs!G407, IF(M407=ITNs!$H$8, ITNs!H407, \"ERROR\"))))))))","v":"111’515"}," "," "," "," "," "," "," "," "," "," "," "," "," "," "," "," "," "," "," "," "," "," "," "," "," "," "," "," "," "," "," "," "," "," "," "," "," "," "," "," "," "," "," "," "," "," "," "," "," "]
["Rwanda"," ",2024,"No campaign this year",null," "," "," "," "," "," "," ","Multi-products",{"$f":"IF(M408=ITNs!$E$8, ITNs!E408, IF(M408=ITNs!$B$8, ITNs!B408, IF(M408=ITNs!$C$8, ITNs!C408, IF(M408=ITNs!$D$8, ITNs!D408, IF(M408=ITNs!$E$8, ITNs!E408, IF(M408=ITNs!$F$8, ITNs!F408, IF(M408=ITNs!$G$8, ITNs!G408, IF(M408=ITNs!$H$8, ITNs!H408, \"ERROR\"))))))))","v":0}," "," "," "," "," "," "," "," "," "," "," "," "," "," "," "," "," "," "," "," "," "," "," "," "," "," "," "," "," "," "," "," "," "," "," "," "," "," "," "," "," "," "," "," "," "," "," "," "," "]
["Rwanda",null,2025,"National - one phase",null,null,null,null,null,null,null,null,"PBO",{"$f":"IF(M409=ITNs!$E$8, ITNs!E409, IF(M409=ITNs!$B$8, ITNs!B409, IF(M409=ITNs!$C$8, ITNs!C409, IF(M409=ITNs!$D$8, ITNs!D409, IF(M409=ITNs!$E$8, ITNs!E409, IF(M409=ITNs!$F$8, ITNs!F409, IF(M409=ITNs!$G$8, ITNs!G409, IF(M409=ITNs!$H$8, ITNs!H409, \"ERROR\"))))))))","v":700000}]
["Sao Tome Principe","Typically from October to May, with peak rainfall usually occurring from December to February. São Tomé and Príncipe experiences two rainy seasons: the main rainy season from October to January and the minor rainy season from March to May.",2024,"No campaign this year",null," "," "," "," "," "," "," ","Multi-products",{"$f":"IF(M410=ITNs!$E$8, ITNs!E410, IF(M410=ITNs!$B$8, ITNs!B410, IF(M410=ITNs!$C$8, ITNs!C410, IF(M410=ITNs!$D$8, ITNs!D410, IF(M410=ITNs!$E$8, ITNs!E410, IF(M410=ITNs!$F$8, ITNs!F410, IF(M410=ITNs!$G$8, ITNs!G410, IF(M410=ITNs!$H$8, ITNs!H410, \"ERROR\"))))))))","v":155950}," "," "," "," "," "," "," "," "," "," "," "," "," "," "," "," "," "," "," "," "," "," "," "," "," "," "," "," "," "," "," "," "," "," "," "," "," "," "," "," "," "," "," "," "," "," "," "," "," "]
["Sao Tome Principe","Typically from October to May, with peak rainfall usually occurring from December to February. São Tomé and Príncipe experiences two rainy seasons: the main rainy season from October to January and the minor rainy season from March to May.",2025," ",null," "," "," "," "," "," "," ","PBO",{"$f":"IF(M411=ITNs!$E$8, ITNs!E411, IF(M411=ITNs!$B$8, ITNs!B411, IF(M411=ITNs!$C$8, ITNs!C411, IF(M411=ITNs!$D$8, ITNs!D411, IF(M411=ITNs!$E$8, ITNs!E411, IF(M411=ITNs!$F$8, ITNs!F411, IF(M411=ITNs!$G$8, ITNs!G411, IF(M411=ITNs!$H$8, ITNs!H411, \"ERROR\"))))))))","v":12100}," "," "," "," "," "," "," "," "," "," "," "," "," "," "," "," "," "," "," "," "," "," "," "," "," "," "," "," "," "," "," "," "," "," "," "," "," "," "," "," "," "," "," "," "," "," "," "," "," "]
["Sao Tome Principe"," ",2026,"No campaign this year",null," "," "," "," "," "," "," ","PBO",{"$f":"IF(M412=ITNs!$E$8, ITNs!E412, IF(M412=ITNs!$B$8, ITNs!B412, IF(M412=ITNs!$C$8, ITNs!C412, IF(M412=ITNs!$D$8, ITNs!D412, IF(M412=ITNs!$E$8, ITNs!E412, IF(M412=ITNs!$F$8, ITNs!F412, IF(M412=ITNs!$G$8, ITNs!G412, IF(M412=ITNs!$H$8, ITNs!H412, \"ERROR\"))))))))","v":14050}," "," "," "," "," "," "," "," "," "," "," "," "," "," "," "," "," "," "," "," "," "," "," "," "," "," "," "," "," "," "," "," "," "," "," "," "," "," "," "," "," "," "," "," "," "," "," "," "," "]
["Senegal"," ",2024,"No campaign this year",null," "," "," "," "," "," "," ","Multi-products",{"$f":"IF(M413=ITNs!$E$8, ITNs!E413, IF(M413=ITNs!$B$8, ITNs!B413, IF(M413=ITNs!$C$8, ITNs!C413, IF(M413=ITNs!$D$8, ITNs!D413, IF(M413=ITNs!$E$8, ITNs!E413, IF(M413=ITNs!$F$8, ITNs!F413, IF(M413=ITNs!$G$8, ITNs!G413, IF(M413=ITNs!$H$8, ITNs!H413, \"ERROR\"))))))))","v":0}," "," "," "," "," "," "," "," "," "," "," "," "," "," "," "," "," "," "," "," "," "," "," "," "," "," "," "," "," "," "," "," "," "," "," "," "," "," "," "," "," "," "," "," "," "," "," "," "," "]
["Senegal","Usually from June to October, with peak rainfall in August and September.",2025," ",null," "," "," "," "," "," "," ","Dual a.i.",{"$f":"IF(M414=ITNs!$E$8, ITNs!E414, IF(M414=ITNs!$B$8, ITNs!B414, IF(M414=ITNs!$C$8, ITNs!C414, IF(M414=ITNs!$D$8, ITNs!D414, IF(M414=ITNs!$E$8, ITNs!E414, IF(M414=ITNs!$F$8, ITNs!F414, IF(M414=ITNs!$G$8, ITNs!G414, IF(M414=ITNs!$H$8, ITNs!H414, \"ERROR\"))))))))","v":"3’698’400"}," "," "," "," "," "," "," "," "," "," "," "," "," "," "," "," "," "," "," "," "," "," "," "," "," "," "," "," "," "," "," "," "," "," "," "," "," "," "," "," "," "," "," "," "," "," "," "," "," "]
["Sierra Leone","Typically from May to October, with peak rainfall in July and August.",2024,"National",null," ","No deprioritisation","District"," "," ","2024-02-24","8’746’749","Multi-products",{"$f":"IF(M415=ITNs!$E$8, ITNs!E415, IF(M415=ITNs!$B$8, ITNs!B415, IF(M415=ITNs!$C$8, ITNs!C415, IF(M415=ITNs!$D$8, ITNs!D415, IF(M415=ITNs!$E$8, ITNs!E415, IF(M415=ITNs!$F$8, ITNs!F415, IF(M415=ITNs!$G$8, ITNs!G415, IF(M415=ITNs!$H$8, ITNs!H415, \"ERROR\"))))))))","v":"5’345’232"},"2024-02-24"," ","Multiple"," ","Complete","Delivered in-country","Complete"," "," "," "," "," "," "," "," "," "," "," "," "," "," "," "," "," "," "," "," "," "," "," "," "," "," "," "," "," "," "," "," "," "," "," "," "," "," "," "," "," "," "]
["Sierra Leone"," ",2024," ",null," "," "," ","Kailahun"," ","2024-02-24"," ","Dual a.i.",{"$f":"IF(M416=ITNs!$E$8, ITNs!E416, IF(M416=ITNs!$B$8, ITNs!B416, IF(M416=ITNs!$C$8, ITNs!C416, IF(M416=ITNs!$D$8, ITNs!D416, IF(M416=ITNs!$E$8, ITNs!E416, IF(M416=ITNs!$F$8, ITNs!F416, IF(M416=ITNs!$G$8, ITNs!G416, IF(M416=ITNs!$H$8, ITNs!H416, \"ERROR\"))))))))","v":"396’725"},"2024-02-24"," "," "," ","Complete"," "," "," "," "," "," "," "," "," "," "," "," "," "," "," "," "," "," "," "," "," "," "," "," "," "," "," "," "," "," "," "," "," "," "," "," "," "," "," "," "," "," "," "," "]
["Sierra Leone"," ",2024," ",null," "," "," ","Tonkolili"," ","2024-02-24"," ","Dual a.i.",{"$f":"IF(M417=ITNs!$E$8, ITNs!E417, IF(M417=ITNs!$B$8, ITNs!B417, IF(M417=ITNs!$C$8, ITNs!C417, IF(M417=ITNs!$D$8, ITNs!D417, IF(M417=ITNs!$E$8, ITNs!E417, IF(M417=ITNs!$F$8, ITNs!F417, IF(M417=ITNs!$G$8, ITNs!G417, IF(M417=ITNs!$H$8, ITNs!H417, \"ERROR\"))))))))","v":"387’382"},"2024-02-24"," "," "," ","Complete"," "," "," "," "," "," "," "," "," "," "," "," "," "," "," "," "," "," "," "," "," "," "," "," "," "," "," "," "," "," "," "," "," "," "," "," "," "," "," "," "," "," "," "," "]
["Sierra Leone"," ",2024," ",null," "," "," ","Pujehun"," ","2024-02-24"," ","Dual a.i.",{"$f":"IF(M418=ITNs!$E$8, ITNs!E418, IF(M418=ITNs!$B$8, ITNs!B418, IF(M418=ITNs!$C$8, ITNs!C418, IF(M418=ITNs!$D$8, ITNs!D418, IF(M418=ITNs!$E$8, ITNs!E418, IF(M418=ITNs!$F$8, ITNs!F418, IF(M418=ITNs!$G$8, ITNs!G418, IF(M418=ITNs!$H$8, ITNs!H418, \"ERROR\"))))))))","v":"261’123"},"2024-02-24"," "," "," ","Complete"," "," "," "," "," "," "," "," "," "," "," "," "," "," "," "," "," "," "," "," "," "," "," "," "," "," "," "," "," "," "," "," "," "," "," "," "," "," "," "," "," "," "," "," "]
["Sierra Leone"," ",2024," ",null," "," "," ","Kambia "," ","2024-02-24"," ","Dual a.i.",{"$f":"IF(M419=ITNs!$E$8, ITNs!E419, IF(M419=ITNs!$B$8, ITNs!B419, IF(M419=ITNs!$C$8, ITNs!C419, IF(M419=ITNs!$D$8, ITNs!D419, IF(M419=ITNs!$E$8, ITNs!E419, IF(M419=ITNs!$F$8, ITNs!F419, IF(M419=ITNs!$G$8, ITNs!G419, IF(M419=ITNs!$H$8, ITNs!H419, \"ERROR\"))))))))","v":"260’379"},"2024-02-24"," "," "," ","Complete"," "," "," "," "," "," "," "," "," "," "," "," "," "," "," "," "," "," "," "," "," "," "," "," "," "," "," "," "," "," "," "," "," "," "," "," "," "," "," "," "," "," "," "," "]
["Sierra Leone"," ",2024," ",null," "," "," ","Moyamba"," ","2024-02-24"," ","Dual a.i.",{"$f":"IF(M420=ITNs!$E$8, ITNs!E420, IF(M420=ITNs!$B$8, ITNs!B420, IF(M420=ITNs!$C$8, ITNs!C420, IF(M420=ITNs!$D$8, ITNs!D420, IF(M420=ITNs!$E$8, ITNs!E420, IF(M420=ITNs!$F$8, ITNs!F420, IF(M420=ITNs!$G$8, ITNs!G420, IF(M420=ITNs!$H$8, ITNs!H420, \"ERROR\"))))))))","v":"240’117"},"2024-02-24"," "," "," ","Complete"," "," "," "," "," "," "," "," "," "," "," "," "," "," "," "," "," "," "," "," "," "," "," "," "," "," "," "," "," "," "," "," "," "," "," "," "," "," "," "," "," "," "," "," "]
["Sierra Leone"," ",2024," ",null," "," "," ","Falaba"," ","2024-02-24"," ","Dual a.i.",{"$f":"IF(M421=ITNs!$E$8, ITNs!E421, IF(M421=ITNs!$B$8, ITNs!B421, IF(M421=ITNs!$C$8, ITNs!C421, IF(M421=ITNs!$D$8, ITNs!D421, IF(M421=ITNs!$E$8, ITNs!E421, IF(M421=ITNs!$F$8, ITNs!F421, IF(M421=ITNs!$G$8, ITNs!G421, IF(M421=ITNs!$H$8, ITNs!H421, \"ERROR\"))))))))","v":"154’771"},"2024-02-24"," "," "," ","Complete"," "," "," "," "," "," "," "," "," "," "," "," "," "," "," "," "," "," "," "," "," "," "," "," "," "," "," "," "," "," "," "," "," "," "," "," "," "," "," "," "," "," "," "," "]
["Sierra Leone"," ",2024," ",null," "," "," ","Koinadugu"," ","2024-02-24"," ","Dual a.i.",{"$f":"IF(M422=ITNs!$E$8, ITNs!E422, IF(M422=ITNs!$B$8, ITNs!B422, IF(M422=ITNs!$C$8, ITNs!C422, IF(M422=ITNs!$D$8, ITNs!D422, IF(M422=ITNs!$E$8, ITNs!E422, IF(M422=ITNs!$F$8, ITNs!F422, IF(M422=ITNs!$G$8, ITNs!G422, IF(M422=ITNs!$H$8, ITNs!H422, \"ERROR\"))))))))","v":"153’767"},"2024-02-24"," "," "," ","Complete"," "," "," "," "," "," "," "," "," "," "," "," "," "," "," "," "," "," "," "," "," "," "," "," "," "," "," "," "," "," "," "," "," "," "," "," "," "," "," "," "," "," "," "," "]
["Sierra Leone"," ",2024," ",null," "," "," ","Bonthe"," ","2024-02-24"," ","Dual a.i.",{"$f":"IF(M423=ITNs!$E$8, ITNs!E423, IF(M423=ITNs!$B$8, ITNs!B423, IF(M423=ITNs!$C$8, ITNs!C423, IF(M423=ITNs!$D$8, ITNs!D423, IF(M423=ITNs!$E$8, ITNs!E423, IF(M423=ITNs!$F$8, ITNs!F423, IF(M423=ITNs!$G$8, ITNs!G423, IF(M423=ITNs!$H$8, ITNs!H423, \"ERROR\"))))))))","v":"151’325"},"2024-02-24"," "," "," ","Complete"," "," "," "," "," "," "," "," "," "," "," "," "," "," "," "," "," "," "," "," "," "," "," "," "," "," "," "," "," "," "," "," "," "," "," "," "," "," "," "," "," "," "," "," "]
["Sierra Leone"," ",2024," ",null," "," "," ","Port Loko"," ","2024-02-24"," ","Dual a.i.",{"$f":"IF(M424=ITNs!$E$8, ITNs!E424, IF(M424=ITNs!$B$8, ITNs!B424, IF(M424=ITNs!$C$8, ITNs!C424, IF(M424=ITNs!$D$8, ITNs!D424, IF(M424=ITNs!$E$8, ITNs!E424, IF(M424=ITNs!$F$8, ITNs!F424, IF(M424=ITNs!$G$8, ITNs!G424, IF(M424=ITNs!$H$8, ITNs!H424, \"ERROR\"))))))))","v":"400’106"},"2024-02-24"," "," "," ","Complete"," "," "," "," "," "," "," "," "," "," "," "," "," "," "," "," "," "," "," "," "," "," "," "," "," "," "," "," "," "," "," "," "," "," "," "," "," "," "," "," "," "," "," "," "]
["Sierra Leone"," ",2024," ",null," "," "," ","Kono"," ","2024-02-24"," ","Dual a.i.",{"$f":"IF(M425=ITNs!$E$8, ITNs!E425, IF(M425=ITNs!$B$8, ITNs!B425, IF(M425=ITNs!$C$8, ITNs!C425, IF(M425=ITNs!$D$8, ITNs!D425, IF(M425=ITNs!$E$8, ITNs!E425, IF(M425=ITNs!$F$8, ITNs!F425, IF(M425=ITNs!$G$8, ITNs!G425, IF(M425=ITNs!$H$8, ITNs!H425, \"ERROR\"))))))))","v":"381’440"},"2024-02-24"," "," "," ","Complete"," "," "," "," "," "," "," "," "," "," "," "," "," "," "," "," "," "," "," "," "," "," "," "," "," "," "," "," "," "," "," "," "," "," "," "," "," "," "," "," "," "," "," "," "]
["Sierra Leone"," ",2024," ",null," "," "," ","Bombali"," ","2024-02-24"," ","PBO",{"$f":"IF(M426=ITNs!$E$8, ITNs!E426, IF(M426=ITNs!$B$8, ITNs!B426, IF(M426=ITNs!$C$8, ITNs!C426, IF(M426=ITNs!$D$8, ITNs!D426, IF(M426=ITNs!$E$8, ITNs!E426, IF(M426=ITNs!$F$8, ITNs!F426, IF(M426=ITNs!$G$8, ITNs!G426, IF(M426=ITNs!$H$8, ITNs!H426, \"ERROR\"))))))))","v":"318’779"},"2024-02-24"," "," "," ","Complete"," "," "," "," "," "," "," "," "," "," "," "," "," "," "," "," "," "," "," "," "," "," "," "," "," "," "," "," "," "," "," "," "," "," "," "," "," "," "," "," "," "," "," "," "]
["Sierra Leone"," ",2024," ",null," "," "," ","Western Area Urban"," ","2024-02-24"," ","PBO",{"$f":"IF(M427=ITNs!$E$8, ITNs!E427, IF(M427=ITNs!$B$8, ITNs!B427, IF(M427=ITNs!$C$8, ITNs!C427, IF(M427=ITNs!$D$8, ITNs!D427, IF(M427=ITNs!$E$8, ITNs!E427, IF(M427=ITNs!$F$8, ITNs!F427, IF(M427=ITNs!$G$8, ITNs!G427, IF(M427=ITNs!$H$8, ITNs!H427, \"ERROR\"))))))))","v":"795’867"},"2024-02-24"," "," "," ","Complete"," "," "," "," "," "," "," "," "," "," "," "," "," "," "," "," "," "," "," "," "," "," "," "," "," "," "," "," "," "," "," "," "," "," "," "," "," "," "," "," "," "," "," "," "]
["Sierra Leone"," ",2024," ",null," "," "," ","Western Area Rural"," ","2024-02-24"," ","PBO",{"$f":"IF(M428=ITNs!$E$8, ITNs!E428, IF(M428=ITNs!$B$8, ITNs!B428, IF(M428=ITNs!$C$8, ITNs!C428, IF(M428=ITNs!$D$8, ITNs!D428, IF(M428=ITNs!$E$8, ITNs!E428, IF(M428=ITNs!$F$8, ITNs!F428, IF(M428=ITNs!$G$8, ITNs!G428, IF(M428=ITNs!$H$8, ITNs!H428, \"ERROR\"))))))))","v":"334’841"},"2024-02-24"," "," "," ","Complete"," "," "," "," "," "," "," "," "," "," "," "," "," "," "," "," "," "," "," "," "," "," "," "," "," "," "," "," "," "," "," "," "," "," "," "," "," "," "," "," "," "," "," "," "]
["Sierra Leone"," ",2024," ",null," "," "," ","Karene"," ","2024-02-24"," ","PBO",{"$f":"IF(M429=ITNs!$E$8, ITNs!E429, IF(M429=ITNs!$B$8, ITNs!B429, IF(M429=ITNs!$C$8, ITNs!C429, IF(M429=ITNs!$D$8, ITNs!D429, IF(M429=ITNs!$E$8, ITNs!E429, IF(M429=ITNs!$F$8, ITNs!F429, IF(M429=ITNs!$G$8, ITNs!G429, IF(M429=ITNs!$H$8, ITNs!H429, \"ERROR\"))))))))","v":"215’212"},"2024-02-24"," "," "," ","Complete"," "," "," "," "," "," "," "," "," "," "," "," "," "," "," "," "," "," "," "," "," "," "," "," "," "," "," "," "," "," "," "," "," "," "," "," "," "," "," "," "," "," "," "," "]
["Sierra Leone"," ",2024," ",null," "," "," ","Bo"," ","2024-02-24"," ","PBO",{"$f":"IF(M430=ITNs!$E$8, ITNs!E430, IF(M430=ITNs!$B$8, ITNs!B430, IF(M430=ITNs!$C$8, ITNs!C430, IF(M430=ITNs!$D$8, ITNs!D430, IF(M430=ITNs!$E$8, ITNs!E430, IF(M430=ITNs!$F$8, ITNs!F430, IF(M430=ITNs!$G$8, ITNs!G430, IF(M430=ITNs!$H$8, ITNs!H430, \"ERROR\"))))))))","v":"433’731"},"2024-02-24"," "," "," ","Complete"," "," "," "," "," "," "," "," "," "," "," "," "," "," "," "," "," "," "," "," "," "," "," "," "," "," "," "," "," "," "," "," "," "," "," "," "," "," "," "," "," "," "," "," "]
["Sierra Leone"," ",2024," ",null," "," "," ","Kenema"," ","2024-02-24"," ","PBO",{"$f":"IF(M431=ITNs!$E$8, ITNs!E431, IF(M431=ITNs!$B$8, ITNs!B431, IF(M431=ITNs!$C$8, ITNs!C431, IF(M431=ITNs!$D$8, ITNs!D431, IF(M431=ITNs!$E$8, ITNs!E431, IF(M431=ITNs!$F$8, ITNs!F431, IF(M431=ITNs!$G$8, ITNs!G431, IF(M431=ITNs!$H$8, ITNs!H431, \"ERROR\"))))))))","v":"459’667"},"2024-02-24"," "," "," ","Complete"," "," "," "," "," "," "," "," "," "," "," "," "," "," "," "," "," "," "," "," "," "," "," "," "," "," "," "," "," "," "," "," "," "," "," "," "," "," "," "," "," "," "," "," "]
["Sierra Leone"," ",2025," ",null," "," "," "," "," "," "," ","PBO",{"$f":"IF(M432=ITNs!$E$8, ITNs!E432, IF(M432=ITNs!$B$8, ITNs!B432, IF(M432=ITNs!$C$8, ITNs!C432, IF(M432=ITNs!$D$8, ITNs!D432, IF(M432=ITNs!$E$8, ITNs!E432, IF(M432=ITNs!$F$8, ITNs!F432, IF(M432=ITNs!$G$8, ITNs!G432, IF(M432=ITNs!$H$8, ITNs!H432, \"ERROR\"))))))))","v":5460747}," "," "," "," "," "," "," "," "," "," "," "," "," "," "," "," "," "," "," "," "," "," "," "," "," "," "," "," "," "," "," "," "," "," "," "," "," "," "," "," "," "," "," "," "," "," "," "," "," "]
["Sierra Leone"," ",2026," ",null," "," "," "," "," "," "," ","PBO",{"$f":"IF(M433=ITNs!$E$8, ITNs!E433, IF(M433=ITNs!$B$8, ITNs!B433, IF(M433=ITNs!$C$8, ITNs!C433, IF(M433=ITNs!$D$8, ITNs!D433, IF(M433=ITNs!$E$8, ITNs!E433, IF(M433=ITNs!$F$8, ITNs!F433, IF(M433=ITNs!$G$8, ITNs!G433, IF(M433=ITNs!$H$8, ITNs!H433, \"ERROR\"))))))))","v":"705’875"}," "," "," "," "," "," "," "," "," "," "," "," "," "," "," "," "," "," "," "," "," "," "," "," "," "," "," "," "," "," "," "," "," "," "," "," "," "," "," "," "," "," "," "," "," "," "," "," "," "]
["Solomon Islands","Typically occurs from November to April, with variations depending on the region.",2024,"No campaign this year",null," "," "," "," "," "," "," ","Pyrethroid-only",{"$f":"IF(M434=ITNs!$E$8, ITNs!E434, IF(M434=ITNs!$B$8, ITNs!B434, IF(M434=ITNs!$C$8, ITNs!C434, IF(M434=ITNs!$D$8, ITNs!D434, IF(M434=ITNs!$E$8, ITNs!E434, IF(M434=ITNs!$F$8, ITNs!F434, IF(M434=ITNs!$G$8, ITNs!G434, IF(M434=ITNs!$H$8, ITNs!H434, \"ERROR\"))))))))","v":"605’280"}," "," "," "," "," "," "," "," "," "," "," "," "," "," "," "," "," "," "," "," "," "," "," "," "," "," "," "," "," "," "," "," "," "," "," "," "," "," "," "," "," "," "," "," "," "," "," "," "," "]
["Somalia","Typically occurs from April to June, known as the Gu season, and from October to December, known as the Deyr season.",2024,"No campaign this year",null," "," "," "," "," "," "," ","Pyrethroid-only",{"$f":"IF(M435=ITNs!$E$8, ITNs!E435, IF(M435=ITNs!$B$8, ITNs!B435, IF(M435=ITNs!$C$8, ITNs!C435, IF(M435=ITNs!$D$8, ITNs!D435, IF(M435=ITNs!$E$8, ITNs!E435, IF(M435=ITNs!$F$8, ITNs!F435, IF(M435=ITNs!$G$8, ITNs!G435, IF(M435=ITNs!$H$8, ITNs!H435, \"ERROR\"))))))))","v":"178’112"}," "," "," "," "," "," "," "," "," "," "," "," "," "," "," "," "," "," "," "," "," "," "," "," "," "," "," "," "," "," "," "," "," "," "," "," "," "," "," "," "," "," "," "," "," "," "," "," "," "]
["Somalia"," ",2025," ",null," "," "," "," "," "," "," ","Pyrethroid-only",{"$f":"IF(M436=ITNs!$E$8, ITNs!E436, IF(M436=ITNs!$B$8, ITNs!B436, IF(M436=ITNs!$C$8, ITNs!C436, IF(M436=ITNs!$D$8, ITNs!D436, IF(M436=ITNs!$E$8, ITNs!E436, IF(M436=ITNs!$F$8, ITNs!F436, IF(M436=ITNs!$G$8, ITNs!G436, IF(M436=ITNs!$H$8, ITNs!H436, \"ERROR\"))))))))","v":"183’092"}," "," "," "," "," "," "," "," "," "," "," "," "," "," "," "," "," "," "," "," "," "," "," "," "," "," "," "," "," "," "," "," "," "," "," "," "," "," "," "," "," "," "," "," "," "," "," "," "," "]
["Somalia"," ",2026," ",null," "," "," "," "," "," "," ","Pyrethroid-only",{"$f":"IF(M437=ITNs!$E$8, ITNs!E437, IF(M437=ITNs!$B$8, ITNs!B437, IF(M437=ITNs!$C$8, ITNs!C437, IF(M437=ITNs!$D$8, ITNs!D437, IF(M437=ITNs!$E$8, ITNs!E437, IF(M437=ITNs!$F$8, ITNs!F437, IF(M437=ITNs!$G$8, ITNs!G437, IF(M437=ITNs!$H$8, ITNs!H437, \"ERROR\"))))))))","v":"188’402"}," "," "," "," "," "," "," "," "," "," "," "," "," "," "," "," "," "," "," "," "," "," "," "," "," "," "," "," "," "," "," "," "," "," "," "," "," "," "," "," "," "," "," "," "," "," "," "," "," "]
["South Sudan","Typically occurs from May to October, with variations depending on the region.",2025," ",null," "," "," "," "," "," "," ","Multi-products",{"$f":"IF(M438=ITNs!$E$8, ITNs!E438, IF(M438=ITNs!$B$8, ITNs!B438, IF(M438=ITNs!$C$8, ITNs!C438, IF(M438=ITNs!$D$8, ITNs!D438, IF(M438=ITNs!$E$8, ITNs!E438, IF(M438=ITNs!$F$8, ITNs!F438, IF(M438=ITNs!$G$8, ITNs!G438, IF(M438=ITNs!$H$8, ITNs!H438, \"ERROR\"))))))))","v":0}," "," "," "," "," "," "," "," "," "," "," "," "," "," "," "," "," "," "," "," "," "," "," "," "," "," "," "," "," "," "," "," "," "," "," "," "," "," "," "," "," "," "," "," "," "," "," "," "," "]
["Sudan","Typically occurs from June to October in the southern parts of the country, while in the northern parts, it usually occurs from July to September.",2024,"No campaign this year",null," "," "," "," "," "," "," ","Multi-products",{"$f":"IF(M439=ITNs!$E$8, ITNs!E439, IF(M439=ITNs!$B$8, ITNs!B439, IF(M439=ITNs!$C$8, ITNs!C439, IF(M439=ITNs!$D$8, ITNs!D439, IF(M439=ITNs!$E$8, ITNs!E439, IF(M439=ITNs!$F$8, ITNs!F439, IF(M439=ITNs!$G$8, ITNs!G439, IF(M439=ITNs!$H$8, ITNs!H439, \"ERROR\"))))))))","v":0}," "," "," "," "," "," "," "," "," "," "," "," "," "," "," "," "," "," "," "," "," "," "," "," "," "," "," "," "," "," "," "," "," "," "," "," "," "," "," "," "," "," "," "," "," "," "," "," "," "]
["Sudan","Typically occurs from June to October in the southern parts of the country, while in the northern parts, it usually occurs from July to September.",2025,"Sub-national",null,"Hybrid approach"," "," "," "," "," ","22’125’692","Multi-products",{"$f":"IF(M440=ITNs!$E$8, ITNs!E440, IF(M440=ITNs!$B$8, ITNs!B440, IF(M440=ITNs!$C$8, ITNs!C440, IF(M440=ITNs!$D$8, ITNs!D440, IF(M440=ITNs!$E$8, ITNs!E440, IF(M440=ITNs!$F$8, ITNs!F440, IF(M440=ITNs!$G$8, ITNs!G440, IF(M440=ITNs!$H$8, ITNs!H440, \"ERROR\"))))))))","v":"15’777’836"}," "," ","Global Fund"," ","Macroplanning"," "," "," "," "," "," "," "," "," "," "," "," "," "," "," "," "," "," "," "," "," "," "," "," "," "," "," "," "," "," "," "," "," "," "," "," "," "," "," "," "," "," "," "," "]
["Tanzania (United Republic)","Long Rains: occurs from March to May, with peak rainfall in April and May.\nShort Rains: Typically occur from October to December, with peak rainfall in November.",2024,"National - one phase",null," "," "," "," "," "," "," ","PBO",{"$f":"IF(M441=ITNs!$E$8, ITNs!E441, IF(M441=ITNs!$B$8, ITNs!B441, IF(M441=ITNs!$C$8, ITNs!C441, IF(M441=ITNs!$D$8, ITNs!D441, IF(M441=ITNs!$E$8, ITNs!E441, IF(M441=ITNs!$F$8, ITNs!F441, IF(M441=ITNs!$G$8, ITNs!G441, IF(M441=ITNs!$H$8, ITNs!H441, \"ERROR\"))))))))","v":"6’705’848"}," ","used digitalized MRC-MIS"," "," "," "," "," "," "," "," "," "," "," "," "," "," "," "," "," "," "," "," "," "," "," "," "," "," "," "," "," "," "," "," "," "," "," "," "," "," "," "," "," "," "," "," "," "," "," "]
["Tanzania (United Republic)"," ",2024,"National - one phase",null," "," ","Region","Simiyu"," ","2024-03-24","1’160’005","PBO",{"$f":"IF(M442=ITNs!$E$8, ITNs!E442, IF(M442=ITNs!$B$8, ITNs!B442, IF(M442=ITNs!$C$8, ITNs!C442, IF(M442=ITNs!$D$8, ITNs!D442, IF(M442=ITNs!$E$8, ITNs!E442, IF(M442=ITNs!$F$8, ITNs!F442, IF(M442=ITNs!$G$8, ITNs!G442, IF(M442=ITNs!$H$8, ITNs!H442, \"ERROR\"))))))))","v":"665’360"}," "," ","USAID/PMI "," "," "," "," "," "," "," "," "," ","IMPLEMENT USING DIGITALIZED  USING MRC-MIS SYSTEM"," "," "," "," "," "," "," "," "," "," "," "," "," "," "," "," "," "," "," "," "," "," "," "," "," "," "," "," "," "," "," "," "," "," "," "," "]
["Tanzania (United Republic)"," ",2024,"National - one phase",null," "," ","Region","Mwanza"," ","2024-05-24","2’753’408","PBO",{"$f":"IF(M443=ITNs!$E$8, ITNs!E443, IF(M443=ITNs!$B$8, ITNs!B443, IF(M443=ITNs!$C$8, ITNs!C443, IF(M443=ITNs!$D$8, ITNs!D443, IF(M443=ITNs!$E$8, ITNs!E443, IF(M443=ITNs!$F$8, ITNs!F443, IF(M443=ITNs!$G$8, ITNs!G443, IF(M443=ITNs!$H$8, ITNs!H443, \"ERROR\"))))))))","v":"1’529’671"}," "," ","USAID/PMI "," "," "," "," "," "," "," "," "," ","IMPLEMENT USING DIGITALIZED  USING MRC-MIS SYSTEM"," "," "," "," "," "," "," "," "," "," "," "," "," "," "," "," "," "," "," "," "," "," "," "," "," "," "," "," "," "," "," "," "," "," "," "," "]
["Tanzania (United Republic)"," ",2024,"National - one phase",null," "," ","Region","Geita"," ","2024-07-24","3’158’945","PBO",{"$f":"IF(M444=ITNs!$E$8, ITNs!E444, IF(M444=ITNs!$B$8, ITNs!B444, IF(M444=ITNs!$C$8, ITNs!C444, IF(M444=ITNs!$D$8, ITNs!D444, IF(M444=ITNs!$E$8, ITNs!E444, IF(M444=ITNs!$F$8, ITNs!F444, IF(M444=ITNs!$G$8, ITNs!G444, IF(M444=ITNs!$H$8, ITNs!H444, \"ERROR\"))))))))","v":"1’754’969"}," "," ","USAID/PMI "," "," "," "," "," "," "," "," "," ","IMPLEMENT USING DIGITALIZED  USING MRC-MIS SYSTEM"," "," "," "," "," "," "," "," "," "," "," "," "," "," "," "," "," "," "," "," "," "," "," "," "," "," "," "," "," "," "," "," "," "," "," "," "]
["Tanzania (United Republic)"," ",2024,"National - one phase",null," "," ","Region","Shinyanga"," ","2024-10-24","2’241’299","PBO",{"$f":"IF(M445=ITNs!$E$8, ITNs!E445, IF(M445=ITNs!$B$8, ITNs!B445, IF(M445=ITNs!$C$8, ITNs!C445, IF(M445=ITNs!$D$8, ITNs!D445, IF(M445=ITNs!$E$8, ITNs!E445, IF(M445=ITNs!$F$8, ITNs!F445, IF(M445=ITNs!$G$8, ITNs!G445, IF(M445=ITNs!$H$8, ITNs!H445, \"ERROR\"))))))))","v":"1’341’597"}," "," ","Global Fund"," "," "," "," "," "," "," "," "," ","IMPLEMENT USING DIGITALIZED  USING MRC-MIS SYSTEM"," "," "," "," "," "," "," "," "," "," "," "," "," "," "," "," "," "," "," "," "," "," "," "," "," "," "," "," "," "," "," "," "," "," "," "," "]
["Tanzania (United Republic)"," ",2024,"National - one phase",null," "," ","Region","Kigoma"," ","2024-12-24","2’470’967","PBO",{"$f":"IF(M446=ITNs!$E$8, ITNs!E446, IF(M446=ITNs!$B$8, ITNs!B446, IF(M446=ITNs!$C$8, ITNs!C446, IF(M446=ITNs!$D$8, ITNs!D446, IF(M446=ITNs!$E$8, ITNs!E446, IF(M446=ITNs!$F$8, ITNs!F446, IF(M446=ITNs!$G$8, ITNs!G446, IF(M446=ITNs!$H$8, ITNs!H446, \"ERROR\"))))))))","v":"1’414’251"}," "," ","Global Fund"," "," "," "," "," "," "," "," "," ","IMPLEMENT USING DIGITALIZED  USING MRC-MIS SYSTEM"," "," "," "," "," "," "," "," "," "," "," "," "," "," "," "," "," "," "," "," "," "," "," "," "," "," "," "," "," "," "," "," "," "," "," "," "]
["Tanzania (United Republic)"," ",2025," ",null," "," "," "," "," "," "," ","PBO",{"$f":"IF(M447=ITNs!$E$8, ITNs!E447, IF(M447=ITNs!$B$8, ITNs!B447, IF(M447=ITNs!$C$8, ITNs!C447, IF(M447=ITNs!$D$8, ITNs!D447, IF(M447=ITNs!$E$8, ITNs!E447, IF(M447=ITNs!$F$8, ITNs!F447, IF(M447=ITNs!$G$8, ITNs!G447, IF(M447=ITNs!$H$8, ITNs!H447, \"ERROR\"))))))))","v":"5’259’066"}," "," "," "," "," "," "," "," "," "," "," "," "," "," "," "," "," "," "," "," "," "," "," "," "," "," "," "," "," "," "," "," "," "," "," "," "," "," "," "," "," "," "," "," "," "," "," "," "," "]
["Tanzania (United Republic)"," ",2026," ",null," "," "," "," "," "," "," ","PBO",{"$f":"IF(M448=ITNs!$E$8, ITNs!E448, IF(M448=ITNs!$B$8, ITNs!B448, IF(M448=ITNs!$C$8, ITNs!C448, IF(M448=ITNs!$D$8, ITNs!D448, IF(M448=ITNs!$E$8, ITNs!E448, IF(M448=ITNs!$F$8, ITNs!F448, IF(M448=ITNs!$G$8, ITNs!G448, IF(M448=ITNs!$H$8, ITNs!H448, \"ERROR\"))))))))","v":"3’165’013"}," "," "," "," "," "," "," "," "," "," "," "," "," "," "," "," "," "," "," "," "," "," "," "," "," "," "," "," "," "," "," "," "," "," "," "," "," "," "," "," "," "," "," "," "," "," "," "," "," "]
["Timor Leste","Typically occurs from November to April, with variations depending on the region.",2024,"No campaign this year",null," "," "," "," "," "," "," ","Pyrethroid-only",{"$f":"IF(M449=ITNs!$E$8, ITNs!E449, IF(M449=ITNs!$B$8, ITNs!B449, IF(M449=ITNs!$C$8, ITNs!C449, IF(M449=ITNs!$D$8, ITNs!D449, IF(M449=ITNs!$E$8, ITNs!E449, IF(M449=ITNs!$F$8, ITNs!F449, IF(M449=ITNs!$G$8, ITNs!G449, IF(M449=ITNs!$H$8, ITNs!H449, \"ERROR\"))))))))","v":" "}," "," "," "," "," "," "," "," "," "," "," "," "," "," "," "," "," "," "," "," "," "," "," "," "," "," "," "," "," "," "," "," "," "," "," "," "," "," "," "," "," "," "," "," "," "," "," "," "," "]
["Timor Leste","Typically occurs from November to April, with variations depending on the region.",2025," ",null," "," "," "," "," "," "," ","Pyrethroid-only",{"$f":"IF(M450=ITNs!$E$8, ITNs!E450, IF(M450=ITNs!$B$8, ITNs!B450, IF(M450=ITNs!$C$8, ITNs!C450, IF(M450=ITNs!$D$8, ITNs!D450, IF(M450=ITNs!$E$8, ITNs!E450, IF(M450=ITNs!$F$8, ITNs!F450, IF(M450=ITNs!$G$8, ITNs!G450, IF(M450=ITNs!$H$8, ITNs!H450, \"ERROR\"))))))))","v":"74’597"}," "," "," "," "," "," "," "," "," "," "," "," "," "," "," "," "," "," "," "," "," "," "," "," "," "," "," "," "," "," "," "," "," "," "," "," "," "," "," "," "," "," "," "," "," "," "," "," "," "]
["Togo","Rainy Season: Usually from April to October, with peak rainfall between June and September.",2024,"No campaign this year",null," "," "," "," "," "," "," ","Multi-products",{"$f":"IF(M451=ITNs!$E$8, ITNs!E451, IF(M451=ITNs!$B$8, ITNs!B451, IF(M451=ITNs!$C$8, ITNs!C451, IF(M451=ITNs!$D$8, ITNs!D451, IF(M451=ITNs!$E$8, ITNs!E451, IF(M451=ITNs!$F$8, ITNs!F451, IF(M451=ITNs!$G$8, ITNs!G451, IF(M451=ITNs!$H$8, ITNs!H451, \"ERROR\"))))))))","v":" "}," "," "," "," "," "," "," "," "," "," "," "," "," "," "," "," "," "," "," "," "," "," "," "," "," "," "," "," "," "," "," "," "," "," "," "," "," "," "," "," "," "," "," "," "," "," "," "," "," "]
["Togo","Rainy Season: Usually from April to October, with peak rainfall between June and September.",2025,"No campaign this year",null," "," "," "," "," "," "," ","Dual a.i.",{"$f":"IF(M452=ITNs!$E$8, ITNs!E452, IF(M452=ITNs!$B$8, ITNs!B452, IF(M452=ITNs!$C$8, ITNs!C452, IF(M452=ITNs!$D$8, ITNs!D452, IF(M452=ITNs!$E$8, ITNs!E452, IF(M452=ITNs!$F$8, ITNs!F452, IF(M452=ITNs!$G$8, ITNs!G452, IF(M452=ITNs!$H$8, ITNs!H452, \"ERROR\"))))))))","v":"540’800"}," "," "," "," "," "," "," "," "," "," "," "," "," "," "," "," "," "," "," "," "," "," "," "," "," "," "," "," "," "," "," "," "," "," "," "," "," "," "," "," "," "," "," "," "," "," "," "," "," "]
["Togo","Rainy Season: Usually from April to October, with peak rainfall between June and September.",2026,"National - one phase",null," "," "," "," "," "," "," ","Dual a.i.",{"$f":"IF(M453=ITNs!$E$8, ITNs!E453, IF(M453=ITNs!$B$8, ITNs!B453, IF(M453=ITNs!$C$8, ITNs!C453, IF(M453=ITNs!$D$8, ITNs!D453, IF(M453=ITNs!$E$8, ITNs!E453, IF(M453=ITNs!$F$8, ITNs!F453, IF(M453=ITNs!$G$8, ITNs!G453, IF(M453=ITNs!$H$8, ITNs!H453, \"ERROR\"))))))))","v":4605800}," "," "," "," "," "," "," "," "," "," "," "," ","Next ITN campaign 2026"," "," "," "," "," "," "," "," "," "," "," "," "," "," "," "," "," "," "," "," "," "," "," "," "," "," "," "," "," "," "," "," "," "," "," "," "]
["Uganda","The long rainy seasoniusually occurs from March to May, with peak rainfall in April.\nShort Rains: Occur from September to November, with peak rainfall in October.",2024,"No campaign this year",null," "," "," "," "," "," "," ","Multi-products",{"$f":"IF(M454=ITNs!$E$8, ITNs!E454, IF(M454=ITNs!$B$8, ITNs!B454, IF(M454=ITNs!$C$8, ITNs!C454, IF(M454=ITNs!$D$8, ITNs!D454, IF(M454=ITNs!$E$8, ITNs!E454, IF(M454=ITNs!$F$8, ITNs!F454, IF(M454=ITNs!$G$8, ITNs!G454, IF(M454=ITNs!$H$8, ITNs!H454, \"ERROR\"))))))))","v":0}," "," "," "," "," "," "," "," "," "," "," "," "," "," "," "," "," "," "," "," "," "," "," "," "," "," "," "," "," "," "," "," "," "," "," "," "," "," "," "," "," "," "," "," "," "," "," "," "," "]
["Uganda","The long rainy seasoniusually occurs from March to May, with peak rainfall in April.\nShort Rains: Occur from September to November, with peak rainfall in October.",2025," ",null," "," "," "," "," "," "," ","Multi-products",{"$f":"IF(M455=ITNs!$E$8, ITNs!E455, IF(M455=ITNs!$B$8, ITNs!B455, IF(M455=ITNs!$C$8, ITNs!C455, IF(M455=ITNs!$D$8, ITNs!D455, IF(M455=ITNs!$E$8, ITNs!E455, IF(M455=ITNs!$F$8, ITNs!F455, IF(M455=ITNs!$G$8, ITNs!G455, IF(M455=ITNs!$H$8, ITNs!H455, \"ERROR\"))))))))","v":0}," "," "," "," "," "," "," "," "," "," "," "," "," "," "," "," "," "," "," "," "," "," "," "," "," "," "," "," "," "," "," "," "," "," "," "," "," "," "," "," "," "," "," "," "," "," "," "," "," "]
["Vanuatu"," ",2024,"No campaign this year",null," "," "," "," "," "," "," ","Multi-products",{"$f":"IF(M456=ITNs!$E$8, ITNs!E456, IF(M456=ITNs!$B$8, ITNs!B456, IF(M456=ITNs!$C$8, ITNs!C456, IF(M456=ITNs!$D$8, ITNs!D456, IF(M456=ITNs!$E$8, ITNs!E456, IF(M456=ITNs!$F$8, ITNs!F456, IF(M456=ITNs!$G$8, ITNs!G456, IF(M456=ITNs!$H$8, ITNs!H456, \"ERROR\"))))))))","v":0}," "," "," "," "," "," "," "," "," "," "," "," "," "," "," "," "," "," "," "," "," "," "," "," "," "," "," "," "," "," "," "," "," "," "," "," "," "," "," "," "," "," "," "," "," "," "," "," "," "]
["Venezuela","Typically occurs from May to November, with variations depending on the region.",2024,"No campaign this year",null," "," "," "," "," "," "," ","Pyrethroid-only",{"$f":"IF(M457=ITNs!$E$8, ITNs!E457, IF(M457=ITNs!$B$8, ITNs!B457, IF(M457=ITNs!$C$8, ITNs!C457, IF(M457=ITNs!$D$8, ITNs!D457, IF(M457=ITNs!$E$8, ITNs!E457, IF(M457=ITNs!$F$8, ITNs!F457, IF(M457=ITNs!$G$8, ITNs!G457, IF(M457=ITNs!$H$8, ITNs!H457, \"ERROR\"))))))))","v":"212’387"}," "," "," "," "," "," "," "," "," "," "," "," "," "," "," "," "," "," "," "," "," "," "," "," "," "," "," "," "," "," "," "," "," "," "," "," "," "," "," "," "," "," "," "," "," "," "," "," "," "]
["Venezuela"," ",2025," ",null," "," "," "," "," "," "," ","Pyrethroid-only",{"$f":"IF(M458=ITNs!$E$8, ITNs!E458, IF(M458=ITNs!$B$8, ITNs!B458, IF(M458=ITNs!$C$8, ITNs!C458, IF(M458=ITNs!$D$8, ITNs!D458, IF(M458=ITNs!$E$8, ITNs!E458, IF(M458=ITNs!$F$8, ITNs!F458, IF(M458=ITNs!$G$8, ITNs!G458, IF(M458=ITNs!$H$8, ITNs!H458, \"ERROR\"))))))))","v":"91’904"}," "," "," "," "," "," "," "," "," "," "," "," "," "," "," "," "," "," "," "," "," "," "," "," "," "," "," "," "," "," "," "," "," "," "," "," "," "," "," "," "," "," "," "," "," "," "," "," "," "]
["Yemen","Typically occurs from July to September, with variations depending on the region.",2024,"No campaign this year",null," "," "," "," "," "," "," ","Multi-products",{"$f":"IF(M459=ITNs!$E$8, ITNs!E459, IF(M459=ITNs!$B$8, ITNs!B459, IF(M459=ITNs!$C$8, ITNs!C459, IF(M459=ITNs!$D$8, ITNs!D459, IF(M459=ITNs!$E$8, ITNs!E459, IF(M459=ITNs!$F$8, ITNs!F459, IF(M459=ITNs!$G$8, ITNs!G459, IF(M459=ITNs!$H$8, ITNs!H459, \"ERROR\"))))))))","v":0}," "," "," "," "," "," "," "," "," "," "," "," "," "," "," "," "," "," "," "," "," "," "," "," "," "," "," "," "," "," "," "," "," "," "," "," "," "," "," "," "," "," "," "," "," "," "," "," "," "]
["Zambia","Rainy season occurs during the Southern Hemisphere summer, from November to March, with peak rainfall typically from December to February. The northern and eastern parts of Zambia receive more rainfall compared to the southern and western regions.",2024,"Sub-national",null," "," "," "," "," "," "," ","Multi-products",{"$f":"IF(M460=ITNs!$E$8, ITNs!E460, IF(M460=ITNs!$B$8, ITNs!B460, IF(M460=ITNs!$C$8, ITNs!C460, IF(M460=ITNs!$D$8, ITNs!D460, IF(M460=ITNs!$E$8, ITNs!E460, IF(M460=ITNs!$F$8, ITNs!F460, IF(M460=ITNs!$G$8, ITNs!G460, IF(M460=ITNs!$H$8, ITNs!H460, \"ERROR\"))))))))","v":"16’316’274"}," "," "," "," "," "," "," "," "," "," "," "," "," "," "," "," "," "," "," "," "," "," "," "," "," "," "," "," "," "," "," "," "," "," "," "," "," "," "," "," "," "," "," "," "," "," "," "," "," "]
["Zambia "," "," "," ",null," "," ","Muchinga"," "," ","2024-08-23","1’267’678","PBO",{"$f":"IF(M461=ITNs!$E$8, ITNs!E461, IF(M461=ITNs!$B$8, ITNs!B461, IF(M461=ITNs!$C$8, ITNs!C461, IF(M461=ITNs!$D$8, ITNs!D461, IF(M461=ITNs!$E$8, ITNs!E461, IF(M461=ITNs!$F$8, ITNs!F461, IF(M461=ITNs!$G$8, ITNs!G461, IF(M461=ITNs!$H$8, ITNs!H461, \"ERROR\"))))))))","v":"763’756"},"2024-01-24"," "," ","AMF/GF/PMI"," "," "," "," "," "," "," "," "," "]
["Zambia "," "," "," ",null," "," ","North-western"," "," ","2024-08-23","1’732’318","PBO",{"$f":"IF(M462=ITNs!$E$8, ITNs!E462, IF(M462=ITNs!$B$8, ITNs!B462, IF(M462=ITNs!$C$8, ITNs!C462, IF(M462=ITNs!$D$8, ITNs!D462, IF(M462=ITNs!$E$8, ITNs!E462, IF(M462=ITNs!$F$8, ITNs!F462, IF(M462=ITNs!$G$8, ITNs!G462, IF(M462=ITNs!$H$8, ITNs!H462, \"ERROR\"))))))))","v":"900’139"},"2024-02-24"," "," ","AMF/GF/PMI"," "," "," "," "," "," "," "," "," "]
["Zambia "," "," "," ",null," "," ","Western"," "," ","2024-08-23","1’195’138","PBO",{"$f":"IF(M463=ITNs!$E$8, ITNs!E463, IF(M463=ITNs!$B$8, ITNs!B463, IF(M463=ITNs!$C$8, ITNs!C463, IF(M463=ITNs!$D$8, ITNs!D463, IF(M463=ITNs!$E$8, ITNs!E463, IF(M463=ITNs!$F$8, ITNs!F463, IF(M463=ITNs!$G$8, ITNs!G463, IF(M463=ITNs!$H$8, ITNs!H463, \"ERROR\"))))))))","v":"880’995"},"2024-01-24"," "," ","AMF/GF/PMI"," "," "," "," "," "," "," "," "," "]
["Zambia "," "," "," ",null," "," ","Southern "," "," ","2024-08-23","3’008’389","PBO",{"$f":"IF(M464=ITNs!$E$8, ITNs!E464, IF(M464=ITNs!$B$8, ITNs!B464, IF(M464=ITNs!$C$8, ITNs!C464, IF(M464=ITNs!$D$8, ITNs!D464, IF(M464=ITNs!$E$8, ITNs!E464, IF(M464=ITNs!$F$8, ITNs!F464, IF(M464=ITNs!$G$8, ITNs!G464, IF(M464=ITNs!$H$8, ITNs!H464, \"ERROR\"))))))))","v":"1’483’127"},"2024-01-24"," "," ","Global Fund"," "," "," "," "," "," "," "," "," "]
["Zambia "," "," "," ",null," "," ","Central"," "," ","2024-08-23","3’096’274","PBO",{"$f":"IF(M465=ITNs!$E$8, ITNs!E465, IF(M465=ITNs!$B$8, ITNs!B465, IF(M465=ITNs!$C$8, ITNs!C465, IF(M465=ITNs!$D$8, ITNs!D465, IF(M465=ITNs!$E$8, ITNs!E465, IF(M465=ITNs!$F$8, ITNs!F465, IF(M465=ITNs!$G$8, ITNs!G465, IF(M465=ITNs!$H$8, ITNs!H465, \"ERROR\"))))))))","v":"1’870’205"},"2024-01-24"," "," ","Global Fund"," "," "," "," "," "," "," "," "," "]
["Zambia "," "," "," ",null," "," ","Copperbelt"," "," ","2024-08-23","3’589’226","PBO",{"$f":"IF(M466=ITNs!$E$8, ITNs!E466, IF(M466=ITNs!$B$8, ITNs!B466, IF(M466=ITNs!$C$8, ITNs!C466, IF(M466=ITNs!$D$8, ITNs!D466, IF(M466=ITNs!$E$8, ITNs!E466, IF(M466=ITNs!$F$8, ITNs!F466, IF(M466=ITNs!$G$8, ITNs!G466, IF(M466=ITNs!$H$8, ITNs!H466, \"ERROR\"))))))))","v":"1’928’149"},"2024-01-24"," "," ","Global Fund"," "," "," "," "," "," "," "," "," "]
["Zambia "," "," "," ",null," "," ","Lusaka"," "," ","2024-08-23","1’106’242","PBO",{"$f":"IF(M467=ITNs!$E$8, ITNs!E467, IF(M467=ITNs!$B$8, ITNs!B467, IF(M467=ITNs!$C$8, ITNs!C467, IF(M467=ITNs!$D$8, ITNs!D467, IF(M467=ITNs!$E$8, ITNs!E467, IF(M467=ITNs!$F$8, ITNs!F467, IF(M467=ITNs!$G$8, ITNs!G467, IF(M467=ITNs!$H$8, ITNs!H467, \"ERROR\"))))))))","v":"362’306"},"2024-02-24"," "," ","Global Fund"," "," "," "," "," "," "," "," "," "]
["Zambia"," ",2025," ",null," "," "," "," "," "," "," ","Dual a.i.",{"$f":"IF(M468=ITNs!$E$8, ITNs!E468, IF(M468=ITNs!$B$8, ITNs!B468, IF(M468=ITNs!$C$8, ITNs!C468, IF(M468=ITNs!$D$8, ITNs!D468, IF(M468=ITNs!$E$8, ITNs!E468, IF(M468=ITNs!$F$8, ITNs!F468, IF(M468=ITNs!$G$8, ITNs!G468, IF(M468=ITNs!$H$8, ITNs!H468, \"ERROR\"))))))))","v":"6’547’362"}," "," "," "," "," "," "," "," "," "," "," "," "," "," "," "," "," "," "," "," "," "," "," "," "," "," "," "," "," "," "," "," "," "," "," "," "," "," "," "," "," "," "," "," "," "," "," "," "," "]
["Zambia"," ",2026," ",null," "," "," "," "," "," "," ","Dual a.i.",{"$f":"IF(M469=ITNs!$E$8, ITNs!E469, IF(M469=ITNs!$B$8, ITNs!B469, IF(M469=ITNs!$C$8, ITNs!C469, IF(M469=ITNs!$D$8, ITNs!D469, IF(M469=ITNs!$E$8, ITNs!E469, IF(M469=ITNs!$F$8, ITNs!F469, IF(M469=ITNs!$G$8, ITNs!G469, IF(M469=ITNs!$H$8, ITNs!H469, \"ERROR\"))))))))","v":"1’580’235"}," "," "," "," "," "," "," "," "," "," "," "," "," "," "," "," "," "," "," "," "," "," "," "," "," "," "," "," "," "," "," "," "," "," "," "," "," "," "," "," "," "," "," "," "," "," "," "," "," "]
["Zanzibar","Typically occurs from March to May and from November to December.",2024,"No campaign this year",null," "," "," "," "," "," "," ","PBO",{"$f":"IF(M470=ITNs!$E$8, ITNs!E470, IF(M470=ITNs!$B$8, ITNs!B470, IF(M470=ITNs!$C$8, ITNs!C470, IF(M470=ITNs!$D$8, ITNs!D470, IF(M470=ITNs!$E$8, ITNs!E470, IF(M470=ITNs!$F$8, ITNs!F470, IF(M470=ITNs!$G$8, ITNs!G470, IF(M470=ITNs!$H$8, ITNs!H470, \"ERROR\"))))))))","v":" "}," "," "," "," "," "," "," "," "," "," "," "," "," "," "," "," "," "," "," "," "," "," "," "," "," "," "," "," "," "," "," "," "," "," "," "," "," "," "," "," "," "," "," "," "," "," "," "," "," "]
["Zanzibar","Typically occurs from March to May and from November to December.",2025," ",null," "," "," "," "," "," "," ","PBO",{"$f":"IF(M471=ITNs!$E$8, ITNs!E471, IF(M471=ITNs!$B$8, ITNs!B471, IF(M471=ITNs!$C$8, ITNs!C471, IF(M471=ITNs!$D$8, ITNs!D471, IF(M471=ITNs!$E$8, ITNs!E471, IF(M471=ITNs!$F$8, ITNs!F471, IF(M471=ITNs!$G$8, ITNs!G471, IF(M471=ITNs!$H$8, ITNs!H471, \"ERROR\"))))))))","v":"147’660"}," "," "," "," "," "," "," "," "," "," "," "," "," "," "," "," "," "," "," "," "," "," "," "," "," "," "," "," "," "," "," "," "," "," "," "," "," "," "," "," "," "," "," "," "," "," "," "," "," "]
["Zimbabwe","Rainy season occurs during the Southern Hemisphere summer, from November to March, with peak rainfall typically from December to February. The eastern highlands of Zimbabwe receive more rainfall compared to other regions.",2024,"Sub-national",null," "," "," "," "," "," "," ","Pyrethroid-only",{"$f":"IF(M472=ITNs!$E$8, ITNs!E472, IF(M472=ITNs!$B$8, ITNs!B472, IF(M472=ITNs!$C$8, ITNs!C472, IF(M472=ITNs!$D$8, ITNs!D472, IF(M472=ITNs!$E$8, ITNs!E472, IF(M472=ITNs!$F$8, ITNs!F472, IF(M472=ITNs!$G$8, ITNs!G472, IF(M472=ITNs!$H$8, ITNs!H472, \"ERROR\"))))))))","v":"213’648"}," "," "," "," "," "," "," "," "," "," "," "," "," "," "," "," "," "," "," "," "," "," "," "," "," "," "," "," "," "," "," "," "," "," "," "," "," "," "," "," "," "," "," "," "," "," "," "," "," "]
["Zimbabwe"," ",2024," ",null," "," "," ","Rushinga district"," ","2024-05-24"," 10’570 ","Pyrethroid-only",{"$f":"IF(M473=ITNs!$E$8, ITNs!E473, IF(M473=ITNs!$B$8, ITNs!B473, IF(M473=ITNs!$C$8, ITNs!C473, IF(M473=ITNs!$D$8, ITNs!D473, IF(M473=ITNs!$E$8, ITNs!E473, IF(M473=ITNs!$F$8, ITNs!F473, IF(M473=ITNs!$G$8, ITNs!G473, IF(M473=ITNs!$H$8, ITNs!H473, \"ERROR\"))))))))","v":"7’046"},"2024-05-24"," ","USAID/PMI "," ","Implementation"," ","On track"," "," "," "," "," "," "," "," "," "," "," "," "," "," "," "," "," "," "," "," "," "," "," "," "," "," "," "," "," "," "," "," "," "," "," "," "," "," "," "," "," "," "]
["Zimbabwe"," ",2024," ",null," "," "," ","Guruve district"," ","2024-05-24"," 11’301 ","Pyrethroid-only",{"$f":"IF(M474=ITNs!$E$8, ITNs!E474, IF(M474=ITNs!$B$8, ITNs!B474, IF(M474=ITNs!$C$8, ITNs!C474, IF(M474=ITNs!$D$8, ITNs!D474, IF(M474=ITNs!$E$8, ITNs!E474, IF(M474=ITNs!$F$8, ITNs!F474, IF(M474=ITNs!$G$8, ITNs!G474, IF(M474=ITNs!$H$8, ITNs!H474, \"ERROR\"))))))))","v":"7’534"},"2024-05-24"," ","USAID/PMI "," ","Implementation"," ","On track"," "," "," "," "," "," "," "," "," "," "," "," "," "," "," "," "," "," "," "," "," "," "," "," "," "," "," "," "," "," "," "," "," "," "," "," "," "," "," "," "," "," "]
["Zimbabwe"," ",2024," ",null," "," "," ","Shamva district"," ","2024-05-24"," 14’109 ","Pyrethroid-only",{"$f":"IF(M475=ITNs!$E$8, ITNs!E475, IF(M475=ITNs!$B$8, ITNs!B475, IF(M475=ITNs!$C$8, ITNs!C475, IF(M475=ITNs!$D$8, ITNs!D475, IF(M475=ITNs!$E$8, ITNs!E475, IF(M475=ITNs!$F$8, ITNs!F475, IF(M475=ITNs!$G$8, ITNs!G475, IF(M475=ITNs!$H$8, ITNs!H475, \"ERROR\"))))))))","v":"9’406"},"2024-05-24"," ","USAID/PMI "," ","Implementation"," ","On track"," "," "," "," "," "," "," "," "," "," "," "," "," "," "," "," "," "," "," "," "," "," "," "," "," "," "," "," "," "," "," "," "," "," "," "," "," "," "," "," "," "," "]
["Zimbabwe"," ",2024," ",null," "," "," ","Mt Darwin district"," ","2024-05-24"," 30’867 ","Pyrethroid-only",{"$f":"IF(M476=ITNs!$E$8, ITNs!E476, IF(M476=ITNs!$B$8, ITNs!B476, IF(M476=ITNs!$C$8, ITNs!C476, IF(M476=ITNs!$D$8, ITNs!D476, IF(M476=ITNs!$E$8, ITNs!E476, IF(M476=ITNs!$F$8, ITNs!F476, IF(M476=ITNs!$G$8, ITNs!G476, IF(M476=ITNs!$H$8, ITNs!H476, \"ERROR\"))))))))","v":"20’578"},"2024-05-24"," ","USAID/PMI "," ","Implementation"," ","On track"," "," "," "," "," "," "," "," "," "," "," "," "," "," "," "," "," "," "," "," "," "," "," "," "," "," "," "," "," "," "," "," "," "," "," "," "," "," "," "," "," "," "]
["Zimbabwe"," ",2024," ",null," "," "," ","Mazowe district"," ","2024-05-24"," 44’560 ","Pyrethroid-only",{"$f":"IF(M477=ITNs!$E$8, ITNs!E477, IF(M477=ITNs!$B$8, ITNs!B477, IF(M477=ITNs!$C$8, ITNs!C477, IF(M477=ITNs!$D$8, ITNs!D477, IF(M477=ITNs!$E$8, ITNs!E477, IF(M477=ITNs!$F$8, ITNs!F477, IF(M477=ITNs!$G$8, ITNs!G477, IF(M477=ITNs!$H$8, ITNs!H477, \"ERROR\"))))))))","v":"30’107"},"2024-05-24"," ","USAID/PMI "," ","Implementation"," ","On track"," "," "," "," "," "," "," "," "," "," "," "," "," "," "," "," "," "," "," "," "," "," "," "," "," "," "," "," "," "," "," "," "," "," "," "," "," "," "," "," "," "," "]
["Zimbabwe"," ",2024," ",null," "," "," ","Chiredzi district"," ","2024-05-24"," 17’625 ","Pyrethroid-only",{"$f":"IF(M478=ITNs!$E$8, ITNs!E478, IF(M478=ITNs!$B$8, ITNs!B478, IF(M478=ITNs!$C$8, ITNs!C478, IF(M478=ITNs!$D$8, ITNs!D478, IF(M478=ITNs!$E$8, ITNs!E478, IF(M478=ITNs!$F$8, ITNs!F478, IF(M478=ITNs!$G$8, ITNs!G478, IF(M478=ITNs!$H$8, ITNs!H478, \"ERROR\"))))))))","v":"11’750"},"2024-05-24"," ","Global Fund"," ","Implementation"," ","On track"," "," "," "," "," "," "," "," "," "," "," "," "," "," "," "," "," "," "," "," "," "," "," "," "," "," "," "," "," "," "," "," "," "," "," "," "," "," "," "," "," "," "]
["Zimbabwe"," ",2024," ",null," "," "," ","Mwenezi district"," ","2024-05-24"," 59’775 ","Pyrethroid-only",{"$f":"IF(M479=ITNs!$E$8, ITNs!E479, IF(M479=ITNs!$B$8, ITNs!B479, IF(M479=ITNs!$C$8, ITNs!C479, IF(M479=ITNs!$D$8, ITNs!D479, IF(M479=ITNs!$E$8, ITNs!E479, IF(M479=ITNs!$F$8, ITNs!F479, IF(M479=ITNs!$G$8, ITNs!G479, IF(M479=ITNs!$H$8, ITNs!H479, \"ERROR\"))))))))","v":"39’850"},"2024-05-24"," ","Global Fund"," ","Implementation"," ","On track"," "," "," "," "," "," "," "," "," "," "," "," "," "," "," "," "," "," "," "," "," "," "," "," "," "," "," "," "," "," "," "," "," "," "," "," "," "," "," "," "," "," "]
["Zimbabwe"," ",2024," ",null," "," "," ","Bikita district"," ","2024-05-24"," 6’675 ","Pyrethroid-only",{"$f":"IF(M480=ITNs!$E$8, ITNs!E480, IF(M480=ITNs!$B$8, ITNs!B480, IF(M480=ITNs!$C$8, ITNs!C480, IF(M480=ITNs!$D$8, ITNs!D480, IF(M480=ITNs!$E$8, ITNs!E480, IF(M480=ITNs!$F$8, ITNs!F480, IF(M480=ITNs!$G$8, ITNs!G480, IF(M480=ITNs!$H$8, ITNs!H480, \"ERROR\"))))))))","v":"4’450"},"2024-05-24"," ","Global Fund"," ","Implementation"," ","On track"," "," "," "," "," "," "," "," "," "," "," "," "," "," "," "," "," "," "," "," "," "," "," "," "," "," "," "," "," "," "," "," "," "," "," "," "," "," "," "," "," "," "]
["Zimbabwe"," ",2024," ",null," "," "," ","Zaka district"," ","2024-05-24"," 13’650 ","Pyrethroid-only",{"$f":"IF(M481=ITNs!$E$8, ITNs!E481, IF(M481=ITNs!$B$8, ITNs!B481, IF(M481=ITNs!$C$8, ITNs!C481, IF(M481=ITNs!$D$8, ITNs!D481, IF(M481=ITNs!$E$8, ITNs!E481, IF(M481=ITNs!$F$8, ITNs!F481, IF(M481=ITNs!$G$8, ITNs!G481, IF(M481=ITNs!$H$8, ITNs!H481, \"ERROR\"))))))))","v":"9’100"},"2024-05-24"," ","Global Fund"," ","Implementation"," ","On track"," "," "," "," "," "," "," "," "," "," "," "," "," "," "," "," "," "," "," "," "," "," "," "," "," "," "," "," "," "," "," "," "," "," "," "," "," "," "," "," "," "," "]
["Zimbabwe"," ",2024," ",null," "," "," ","Gwanda district"," ","2024-05-24"," 60’150 ","Pyrethroid-only",{"$f":"IF(M482=ITNs!$E$8, ITNs!E482, IF(M482=ITNs!$B$8, ITNs!B482, IF(M482=ITNs!$C$8, ITNs!C482, IF(M482=ITNs!$D$8, ITNs!D482, IF(M482=ITNs!$E$8, ITNs!E482, IF(M482=ITNs!$F$8, ITNs!F482, IF(M482=ITNs!$G$8, ITNs!G482, IF(M482=ITNs!$H$8, ITNs!H482, \"ERROR\"))))))))","v":"40’100"},"2024-05-24"," ","Global Fund"," ","Implementation"," ","On track"," "," "," "," "," "," "," "," "," "," "," "," "," "," "," "," "," "," "," "," "," "," "," "," "," "," "," "," "," "," "," "," "," "," "," "," "," "," "," "," "," "," "]
["Zimbabwe"," ",2024," ",null," "," "," ","Lupane district"," ","2024-05-24"," 118’556 ","Pyrethroid-only",{"$f":"IF(M483=ITNs!$E$8, ITNs!E483, IF(M483=ITNs!$B$8, ITNs!B483, IF(M483=ITNs!$C$8, ITNs!C483, IF(M483=ITNs!$D$8, ITNs!D483, IF(M483=ITNs!$E$8, ITNs!E483, IF(M483=ITNs!$F$8, ITNs!F483, IF(M483=ITNs!$G$8, ITNs!G483, IF(M483=ITNs!$H$8, ITNs!H483, \"ERROR\"))))))))","v":"79’037"},"2024-05-24"," ","Global Fund"," ","Implementation"," ","On track"," "," "," "," "," "," "," "," "," "," "," "," "," "," "," "," "," "," "," "," "," "," "," "," "," "," "," "," "," "," "," "," "," "," "," "," "," "," "," "," "," "," "]
["Zimbabwe"," ",2024," ",null," "," "," ","Gokwe South district"," ","2024-05-24"," 204’000 ","Pyrethroid-only",{"$f":"IF(M484=ITNs!$E$8, ITNs!E484, IF(M484=ITNs!$B$8, ITNs!B484, IF(M484=ITNs!$C$8, ITNs!C484, IF(M484=ITNs!$D$8, ITNs!D484, IF(M484=ITNs!$E$8, ITNs!E484, IF(M484=ITNs!$F$8, ITNs!F484, IF(M484=ITNs!$G$8, ITNs!G484, IF(M484=ITNs!$H$8, ITNs!H484, \"ERROR\"))))))))","v":"136’000"},"2024-05-24"," ","Global Fund"," ","Implementation"," ","On track"," "," "," "," "," "," "," "," "," "," "," "," "," "," "," "," "," "," "," "," "," "," "," "," "," "," "," "," "," "," "," "," "," "," "," "," "," "," "," "," "," "," "]
["Zimbabwe"," ",2024," ",null," "," "," ","Chegutu district"," ","2024-05-24"," 131’364 ","Pyrethroid-only",{"$f":"IF(M485=ITNs!$E$8, ITNs!E485, IF(M485=ITNs!$B$8, ITNs!B485, IF(M485=ITNs!$C$8, ITNs!C485, IF(M485=ITNs!$D$8, ITNs!D485, IF(M485=ITNs!$E$8, ITNs!E485, IF(M485=ITNs!$F$8, ITNs!F485, IF(M485=ITNs!$G$8, ITNs!G485, IF(M485=ITNs!$H$8, ITNs!H485, \"ERROR\"))))))))","v":"87’576"},"2024-05-24"," ","Global Fund"," ","Implementation"," ","On track"," "," "," "," "," "," "," "," "," "," "," "," "," "," "," "," "," "," "," "," "," "," "," "," "," "," "," "," "," "," "," "," "," "," "," "," "," "," "," "," "," "," "]
["Zimbabwe"," ",2024," ",null," "," "," ","Makonde district"," ","2024-05-24"," 28’977 ","Pyrethroid-only",{"$f":"IF(M486=ITNs!$E$8, ITNs!E486, IF(M486=ITNs!$B$8, ITNs!B486, IF(M486=ITNs!$C$8, ITNs!C486, IF(M486=ITNs!$D$8, ITNs!D486, IF(M486=ITNs!$E$8, ITNs!E486, IF(M486=ITNs!$F$8, ITNs!F486, IF(M486=ITNs!$G$8, ITNs!G486, IF(M486=ITNs!$H$8, ITNs!H486, \"ERROR\"))))))))","v":"19’318"},"2024-05-24"," ","Global Fund"," ","Implementation"," ","On track"," "," "," "," "," "," "," "," "," "," "," "," "," "," "," "," "," "," "," "," "," "," "," "," "," "," "," "," "," "," "," "," "," "," "," "," "," "," "," "," "," "," "]
["Zimbabwe"," ",2024," ",null," "," "," ","Mhondoro-Ngezi district"," ","2024-05-24"," 212’729 ","Pyrethroid-only",{"$f":"IF(M487=ITNs!$E$8, ITNs!E487, IF(M487=ITNs!$B$8, ITNs!B487, IF(M487=ITNs!$C$8, ITNs!C487, IF(M487=ITNs!$D$8, ITNs!D487, IF(M487=ITNs!$E$8, ITNs!E487, IF(M487=ITNs!$F$8, ITNs!F487, IF(M487=ITNs!$G$8, ITNs!G487, IF(M487=ITNs!$H$8, ITNs!H487, \"ERROR\"))))))))","v":"141’819"},"2024-05-24"," ","Global Fund"," ","Implementation"," ","On track"," "," "," "," "," "," "," "," "," "," "," "," "," "," "," "," "," "," "," "," "," "," "," "," "," "," "," "," "," "," "," "," "," "," "," "," "," "," "," "," "," "," "]
["Zimbabwe"," ",2024," ",null," "," "," ","Zvimba district"," ","2024-05-24"," 87’858 ","Pyrethroid-only",{"$f":"IF(M488=ITNs!$E$8, ITNs!E488, IF(M488=ITNs!$B$8, ITNs!B488, IF(M488=ITNs!$C$8, ITNs!C488, IF(M488=ITNs!$D$8, ITNs!D488, IF(M488=ITNs!$E$8, ITNs!E488, IF(M488=ITNs!$F$8, ITNs!F488, IF(M488=ITNs!$G$8, ITNs!G488, IF(M488=ITNs!$H$8, ITNs!H488, \"ERROR\"))))))))","v":"58’572"},"2024-05-24"," ","Global Fund"," ","Implementation"," ","On track"," "," "," "," "," "," "," "," "," "," "," "," "," "," "," "," "," "," "," "," "," "," "," "," "," "," "," "," "," "," "," "," "," "," "," "," "," "," "," "," "," "," "]
["Zimbabwe"," ",2024," ",null," "," "," ","Sanyati district"," ","2024-05-24"," 242’831 ","Pyrethroid-only",{"$f":"IF(M489=ITNs!$E$8, ITNs!E489, IF(M489=ITNs!$B$8, ITNs!B489, IF(M489=ITNs!$C$8, ITNs!C489, IF(M489=ITNs!$D$8, ITNs!D489, IF(M489=ITNs!$E$8, ITNs!E489, IF(M489=ITNs!$F$8, ITNs!F489, IF(M489=ITNs!$G$8, ITNs!G489, IF(M489=ITNs!$H$8, ITNs!H489, \"ERROR\"))))))))","v":"161’887"},"2024-05-24"," ","Global Fund"," ","Implementation"," ","On track"," "," "," "," "," "," "," "," "," "," "," "," "," "," "," "," "," "," "," "," "," "," "," "," "," "," "," "," "," "," "," "," "," "," "," "," "," "," "," "," "," "," "]
["Zimbabwe"," ",2025," ",null," "," "," "," "," "," "," ","Pyrethroid-only",{"$f":"IF(M490=ITNs!$E$8, ITNs!E490, IF(M490=ITNs!$B$8, ITNs!B490, IF(M490=ITNs!$C$8, ITNs!C490, IF(M490=ITNs!$D$8, ITNs!D490, IF(M490=ITNs!$E$8, ITNs!E490, IF(M490=ITNs!$F$8, ITNs!F490, IF(M490=ITNs!$G$8, ITNs!G490, IF(M490=ITNs!$H$8, ITNs!H490, \"ERROR\"))))))))","v":"1’676’527"}," "," "," "," "," "," "," "," "," "," "," "," "," "," "," "," "," "," "," "," "," "," "," "," "," "," "," "," "," "," "," "," "," "," "," "," "," "," "," "," "," "," "," "," "," "," "," "," "," "]

{"sheet":"ITNs","index":2,"n_rows":490,"n_cols":69,"rows_kept":490,"cut":false,"hidden":false,"merged":[]}
["ITNs Number by Type - table to fill-in"]
[]
[]
[]
[]
[]
[]
["Country ","Dual a.i.","Pyrethroid-only","PBO","Other type","Multi-products",null,null,null,"Dual a.i.","AlphaCypermethrin + Chlorfenapyr (IG2)"]
["Afghanistan",null,null,300000,null,{"$f":"SUM(B9:E9)","v":300000},null,null,null,null,"Pyrethroid-Chlorfenapyr (CFP Dual a.i.)"]
["Afghanistan",null,null,2579711,null,{"$f":"SUM(B10:E10)","v":2579711},null,null,null,null,"Piperonyl Butoxide and Pyrethroid (PPF Dual a.i)"]
["Afghanistan",null,null,211953,null,{"$f":"SUM(B11:E11)","v":211953},null,null,null,"Standard","Pyrethroid-ONLY (standard)"]
["Angola",99516,189127,null,null,{"$f":"SUM(B12:E12)","v":288643},null,null,null,"PBO","Pyrethroid+Piperonyl Butoxide (PBO)"]
["Angola",1751430,2764293,null,null,{"$f":"SUM(B13:E13)","v":4515723},null,null,null,"Other","i.e. Damara nets - for sleeping outside"]
["Angola",238422,449938,null,null,{"$f":"SUM(B14:E14)","v":688360}]
["Bangladesh",null,108155,null,null,{"$f":"SUM(B15:E15)","v":108155}]
["Bangladesh",null,84374,null,null,84374]
["Bangladesh",null,823614,null,null,823614]
["Benin - ROUTINE",27223,null,null,null,{"$f":"SUM(B18:E18)","v":27223}]
["Benin",6787230,null,null,null,{"$f":"SUM(B19:E19)","v":6787230}]
["Benin - ROUTINE",29167,null,null,null,{"$f":"SUM(B20:E20)","v":29167}]
["Bhutan",null,124000,null,null,124000]
["Botswana",null,null,null,null,0]
["Botswana",null,null,null,null,0]
["Burkina Faso",18972664,null,null,null,{"$f":"SUM(B24:E24)","v":18972664}]
["Burkina Faso",1879488,null,null,null,{"$f":"SUM(B25:E25)","v":1879488}]
["Burundi",{"$f":"SUM(B27:B73)","v":5054453},{"$f":"SUM(C27:C73)","v":2921668},{"$f":"SUM(D27:D73)","v":0},{"$f":"SUM(E27:E73)","v":0},{"$f":"SUM(B26:E26)","v":7976121}]
["Bubanza",180679,null,null,null,180679]
["Mpanda",177705,null,null,null,177705]
["Zone centre",null,164580,null,null,164580]
["Zone nord",null,255169,null,null,255169]
["Zone sud",null,127941,null,null,127941]
["Isare",null,200765,null,null,200765]
["Kabezi",null,177216,null,null,177216]
["Rwibaga",null,106537,null,null,106537]
["Bururi",null,120839,null,null,120839]
["Matana",null,105155,null,null,105155]
["Rutovu",null,101110,null,null,101110]
["Cankuzo",157752,null,null,null,157752]
["Murore",111152,null,null,null,111152]
["Bukinanyana",163094,null,null,null,163094]
["Cibitoke",159102,null,null,null,159102]
["Mabayi",159825,null,null,null,159825]
["Gitega",244531,null,null,null,244531]
["Kibuye",196964,null,null,null,196964]
["Mutaho",179359,null,null,null,179359]
["Ryansoro",null,136956,null,null,136956]
["Gahombo",177655,null,null,null,177655]
["Kayanza",224475,null,null,null,224475]
["Musema",206204,null,null,null,206204]
["Buhiga",239020,null,null,null,239020]
["Nyabikere",211538,null,null,null,211538]
["Busoni",152757,null,null,null,152757]
["Kirundo",188267,null,null,null,188267]
["Mukenke",128157,null,null,null,128157]
["Vumbi",182023,null,null,null,182023]
["Makamba",240205,null,null,null,240205]
["Nyanza-lac",210402,null,null,null,210402]
["Kiganda",null,155166,null,null,155166]
["Muramvya",null,152112,null,null,152112]
["Gashoho",null,152895,null,null,152895]
["Muyinga",null,249344,null,null,249344]
["Fota",null,135603,null,null,135603]
["Kibumbu",null,148257,null,null,148257]
["Buye",null,181559,null,null,181559]
["Kiremba",null,250464,null,null,250464]
["Bugarama",155892,null,null,null,155892]
["Rumonge",210333,null,null,null,210333]
["Gihofi",180131,null,null,null,180131]
["Rutana",166153,null,null,null,166153]
["Butezi",131122,null,null,null,131122]
["Gisuru",102678,null,null,null,102678]
["Kinyinya",107954,null,null,null,107954]
["Ruyigi",109324,null,null,null,109324]
["Cabo Verde",null,null,null,null,0]
["Cambodia",null,170000,null,null,{"$f":"SUM(B75:E75)","v":170000}]
["Cameroon",{"$f":"SUM(B77:B92)","v":794200},{"$f":"SUM(C77:C92)","v":0},0,0,794200]
["Ako ",35650,null,null,null,{"$f":"SUM(B77:E77)","v":35650}]
["Bali",16000,null,null,null,16000]
["Batibo",40950,null,null,null,40950]
["Fundong",91500,null,null,null,91500]
["Mbengwi",26750,null,null,null,26750]
["Ndop",140550,null,null,null,140550]
["Njikwa",11500,null,null,null,11500]
["Nkambe",75750,null,null,null,75750]
["Nwa",35450,null,null,null,35450]
["Oku",48950,null,null,null,48950]
["Wum",75350,null,null,null,75350]
["Akwaya",38250,null,null,null,38250]
["Bangem",13950,null,null,null,13950]
["Fontem",68900,null,null,null,68900]
["Tombel",47750,null,null,null,47750]
["Wabane",26950,null,null,null,26950]
["Cameroon",{"$f":"SUM(B94:B101)","v":10793346},null,null,null,10793346]
["Adamaoua",856541,null,null,null,856541]
["Littoral (Douala)",2120296,null,null,null,2120296]
["Est",713206,null,null,null,713206]
["Extreme Nord",3055063,null,null,null,3055063]
["Littoral rural",379076,null,null,null,379076]
["Nord",1936619,null,null,null,1936619]
["Ouest",1240468,null,null,null,1240468]
["Sud",492077,null,null,null,492077]
["Cameroon",{"$f":"SUM(B103:B106)","v":5697026},null,null,null,5697026]
["Centre",981169,null,null,null,981169]
["Nord Ouest",1381361,null,null,null,1381361]
["Sud Ouest",1193807,null,null,null,1193807]
["Yaounde",2140689,null,null,null,2140689]
["CAR",{"$f":"B108","v":0},0,{"$f":"D108","v":4290650},{"$f":"E108","v":0},4290650]
["CAR",null,null,4290650,null,4290650]
["CAR",744750,null,null,null,{"$f":"SUM(B109:E109)","v":744750}]
["Chad",null,null,null,null,0]
["Comoros",null,121400,null,null,121400]
["Congo Brazzaville",null,4554835,88426,null,4643261]
["Congo Brazzaville",null,430088,6207,null,436295]
["Congo (Democratic Republic)",{"$f":"B115","v":10164004},{"$f":"C115","v":0},0,{"$f":"E115","v":0},{"$f":"SUM(B114:E114)","v":10164004}]
["Kinshasa",10164004,null,null,null,10164004]
["Congo (Democratic Republic)",3841966,null,2800000,null,6641966]
["Cote d'Ivoire",14731533,null,null,null,14731533]
["Cote d'Ivoire",534276,167326,null,null,701602]
["Cote d'Ivoire",4401911,1037840,6769634,null,12209385]
["Djibouti",39858,null,null,null,39858]
["Djibouti",256779,null,null,null,256779]
["Djibouti",40580,null,null,null,40580]
["Equatorial Guinea - mainland",null,null,null,null,0]
["Equatorial Guinea (Bioko)",null,null,null,null,0]
["Eritrea",null,120276,null,null,120276]
["Eritrea",null,143773,null,null,143773]
["Eritrea",null,468284,null,null,468284]
["Eswatini",null,null,10000,null,10000]
["Eswatini",null,null,10500,null,10500]
["Ethiopia",{"$f":"SUM(B131:B139)","v":8066144},null,null,null,{"$f":"SUM(B130:E130)","v":8066144}]
["Oromia",3382612,null,null,null,3382612]
["Amhara",2424706,null,null,null,2424706]
["Somali",1553104,null,null,null,1553104]
["Gambella",77035,null,null,null,77035]
["South Ethiopia",190084,null,null,null,190084]
["Central Ethiopia",167144,null,null,null,167144]
["Dire Dawa Rural kebeles",100598,null,null,null,100598]
["Benishangul Gumuz",91285,null,null,null,91285]
["Tigray",79576,null,null,null,79576]
["Gabon",null,null,null,null,0]
["Gambia (The)",1608391,null,null,null,1608391]
["Gambia (The)",50000,null,null,null,50000]
["Gambia (The)",80000,null,null,null,80000]
["Ghana",null,274070,null,null,{"$f":"SUM(B144:E144)","v":274070}]
["Ghana",420368,1252776,741011,null,{"$f":"SUM(B145:E145)","v":2414155}]
["Ghana",1190960,1984925,1391027,null,{"$f":"SUM(B146:E146)","v":4566912}]
["Guinea",191350,null,null,null,{"$f":"SUM(B147:E147)","v":191350}]
["Guinea",5334800,null,null,null,{"$f":"SUM(B148:E148)","v":5334800}]
["Guinea Bissau",null,572974,1197886,null,1770860]
["Guinea Bissau",null,136950,53258,null,190208]
["Guinea Bissau",null,149063,57969,null,207032]
["Haiti",null,69099,null,null,69099]
["Haiti",null,101815,null,null,101815]
["Haiti",null,1052052,null,null,1052052]
["Honduras",null,23427,47804,null,71231]
["Honduras",null,82720,15916,null,98636]
["India",null,25221045,null,null,25221045]
["India",null,null,null,null,0]
["India",null,null,null,null,0]
["Indonesia",null,2285600,null,null,2285600]
["Indonesia",null,43600,null,null,43600]
["Indonesia",null,17650,null,null,17650]
["Kenya",null,null,{"$f":"SUM(D164:D183)","v":5921014},null,5921014]
["Kisumu",null,null,null,null,0]
["Siaya",null,null,null,null,0]
["Busia ",null,null,null,null,0]
["Migori",null,null,null,null,0]
["Lamu",null,null,null,null,0]
["Kilifi",null,null,null,null,0]
["Tana River",null,null,243770,null,243770]
[" Kwale",null,null,null,null,0]
["Taita Taveta",null,null,null,null,0]
["Mombasa",null,null,null,null,0]
["West Pokot",null,null,480275,null,480275]
["Turkana",null,null,716701,null,716701]
["Trans Nzoia",null,null,765631,null,765631]
["Kirinyaga ",null,null,174917,null,174917]
["Baringo",null,null,298808,null,298808]
["Bungoma ",null,null,1219674,null,1219674]
["Kakamega ",null,null,1363534,null,1363534]
["Vihiga ",null,null,430785,null,430785]
["Migori  - Kuria East ",null,null,71981,null,71981]
["Kuria West ",null,null,154938,null,154938]
["Kenya",null,null,null,null,0]
["Kenya",null,null,null,null,0]
["Liberia",{"$f":"SUM(B187:B201)","v":3093486},{"$f":"SUM(C187:C201)","v":0},0,0,3093486]
["Gbarpolu",56579,null,null,null,{"$f":"SUM(B187:E187)","v":56579}]
["Bomi",78783,null,null,null,78783]
["Grand Cape Mount",105382,null,null,null,105382]
["Montserrado",1132166,null,null,null,1132166]
["Margibi",179732,null,null,null,179732]
["Bong",275541,null,null,null,275541]
["Nimba",366507,null,null,null,366507]
["Lofa",216528,null,null,null,216528]
["Grand Gedeh",127716,null,null,null,127716]
["River Gee",73470,null,null,null,73470]
["Grand Kru",64445,null,null,null,64445]
["Maryland",101494,null,null,null,101494]
["Grand Bassa",173020,null,null,null,173020]
["Sinoe",88620,null,null,null,88620]
["Rivercess",53503,null,null,null,53503]
["Liberia",3281872,null,null,null,3281872]
["Madagascar",257850,11945070,null,null,12202920]
["Madagascar",28650,2241068,null,null,2269718]
["Malawi 2024",{"$f":"SUM(B206:B233)","v":11758609},{"$f":"SUM(C206:C233)","v":0},0,0,11758609]
["Lilongwe",1628529,null,null,null,{"$f":"SUM(B206:E206)","v":1628529}]
["Blantyre",657481,null,null,null,657481]
["Mzimba North and Sorth",790657,null,null,null,790657]
["Mangochi",832790,null,null,null,832790]
["Kasungu",583043,null,null,null,583043]
["Dowa",540665,null,null,null,540665]
["Zomba",579775,null,null,null,579775]
["Dedza",568424,null,null,null,568424]
["Thyolo",476051,null,null,null,476051]
["Machinga",542230,null,null,null,542230]
["Mchinji",411868,null,null,null,411868]
["Ntcheu",465285,null,null,null,465285]
["Mulanje",468887,null,null,null,468887]
["Chikwawa",384307,null,null,null,384307]
["Salima",339623,null,null,null,339623]
["Balaka",310658,null,null,null,310658]
["Nkhotakota",267480,null,null,null,267480]
["Phalombe",301555,null,null,null,301555]
["Karonga",248345,null,null,null,248345]
["Chiradzulu",237609,null,null,null,237609]
["Ntchisi",226048,null,null,null,226048]
["Nsanje",199186,null,null,null,199186]
["Nkhata-Bay",188799,null,null,null,188799]
["Chitipa",156278,null,null,null,156278]
["Rumphi",155563,null,null,null,155563]
["Neno",93574,null,null,null,93574]
["Mwanza",94122,null,null,null,94122]
["Likoma",9777,null,null,null,9777]
["Malawi",801809,null,null,null,{"$f":"SUM(B234:E234)","v":801809}]
["Mali",null,{"$f":"SUM(C236:C258)","v":1360437},null,null,{"$f":"SUM(B235:E235)","v":1360437}]
["DIRE",null,102809,null,null,102809]
["GOUNDAM",null,139451,null,null,139451]
["G-RHAROUS",null,104154,null,null,104154]
["NIAFUNKE",null,168287,null,null,168287]
["TOMBOUCTOU",null,119134,null,null,119134]
["ALMOUSTRAT",null,17912,null,null,17912]
["ANSONGO",null,124497,null,null,124497]
["BOUREM",null,90860,null,null,90860]
["Gao",null,220521,null,null,220521]
["ABEIBARA",null,19782,null,null,19782]
["KIDAL",null,49079,null,null,49079]
["TESSALIT",null,15728,null,null,15728]
["TIN-ESSAKO",null,5130,null,null,5130]
["ANDERABOUKANE",null,17753,null,null,17753]
["INEKAR",null,5084,null,null,5084]
["MENAKA",null,15792,null,null,15792]
["TINDERMENE",null,12444,null,null,12444]
["ACHOURATT",null,25499,null,null,25499]
["AL OURCHE",null,35625,null,null,35625]
["ARAOUANE",null,19924,null,null,19924]
["BOUJBEHA",null,22430,null,null,22430]
["FOUM ALBA",null,11738,null,null,11738]
["TAOUDENNI",null,16804,null,null,16804]
["Mali",null,null,null,null,0]
["Mauritania",null,null,null,null,0]
["Mauritania",null,1200187,null,null,1200187]
["Mauritania",null,605583,null,null,605583]
["Mozambique",1782457,null,null,null,{"$f":"SUM(B263:E263)","v":1782457}]
["Mozambique",13311718,null,null,null,{"$f":"SUM(B264:E264)","v":13311718}]
["Mozambique",6893451,null,null,null,{"$f":"SUM(B265:E265)","v":6893451}]
["Myanmar",null,null,null,null,0]
["Namibia",null,null,null,null,0]
["Nepal",null,500000,null,null,500000]
["Nepal",null,null,null,null,0]
["Nicaragua",null,282440,null,null,282440]
["Niger",3081700,8445692,3830064,null,15357456]
["Aderbissinat"," ",30207,null,null,{"$f":"SUM(B272:E272)","v":30207},null,null,null,null,null,null,null,null,null,null,null,null,null,null,null,null,null,null," "," "," "," "," "," "," "," "," "," "," "," "," "," "," "," "," "," "," "," "," "," "," "," "," "," "," "," "," "," "," "," "," "," "," "," "," "," "," "]
["Agadez"," ",101124,null,null,101124,null,null,null,null,null,null,null,null,null,null,null,null,null,null,null,null,null,null," "," "," "," "," "," "," "," "," "," "," "," "," "," "," "," "," "," "," "," "," "," "," "," "," "," "," "," "," "," "," "," "," "," "," "," "," "," "," "]
["Arlit"," ",89822,null,null,89822,null,null,null,null,null,null,null,null,null,null,null,null,null,null,null,null,null,null," "," "," "," "," "," "," "," "," "," "," "," "," "," "," "," "," "," "," "," "," "," "," "," "," "," "," "," "," "," "," "," "," "," "," "," "," "," "," "]
["Bilma"," ",15339,null,null,15339,null,null,null,null,null,null,null,null,null,null,null,null,null,null,null,null,null,null," "," "," "," "," "," "," "," "," "," "," "," "," "," "," "," "," "," "," "," "," "," "," "," "," "," "," "," "," "," "," "," "," "," "," "," "," "," "," "]
["Iférouane"," ",27993,null,null,27993,null,null,null,null,null,null,null,null,null,null,null,null,null,null,null,null,null,null," "," "," "," "," "," "," "," "," "," "," "," "," "," "," "," "," "," "," "," "," "," "," "," "," "," "," "," "," "," "," "," "," "," "," "," "," "," "," "]
["Ingall"," ",44390,null,null,44390,null,null,null,null,null,null,null,null,null,null,null,null,null,null,null,null,null,null," "," "," "," "," "," "," "," "," "," "," "," "," "," "," "," "," "," "," "," "," "," "," "," "," "," "," "," "," "," "," "," "," "," "," "," "," "," "," "]
["Tchirozérine"," ",108160,null,null,108160,null,null,null,null,null,null,null,null,null,null,null,null,null,null,null,null,null,null," "," "," "," "," "," "," "," "," "," "," "," "," "," "," "," "," "," "," "," "," "," "," "," "," "," "," "," "," "," "," "," "," "," "," "," "," "," "," "]
["Bosso"," ",65819,null,null,65819,null,null,null,null,null,null,null,null,null,null,null,null,null,null,null,null,null,null," "," "," "," "," "," "," "," "," "," "," "," "," "," "," "," "," "," "," "," "," "," "," "," "," "," "," "," "," "," "," "," "," "," "," "," "," "," "," "]
["Diffa"," ",137001,null,null,137001,null,null,null,null,null,null,null,null,null,null,null,null,null,null,null,null,null,null," "," "," "," "," "," "," "," "," "," "," "," "," "," "," "," "," "," "," "," "," "," "," "," "," "," "," "," "," "," "," "," "," "," "," "," "," "," "," "]
["Goudoumaria"," ",86254,null,null,86254,null,null,null,null,null,null,null,null,null,null,null,null,null,null,null,null,null,null," "," "," "," "," "," "," "," "," "," "," "," "," "," "," "," "," "," "," "," "," "," "," "," "," "," "," "," "," "," "," "," "," "," "," "," "," "," "," "]
["Maïne Soroa",null,112935,null,null,112935,null,null,null,null,null,null,null,null,null,null,null,null,null,null,null,null,null,null,null,null,null," "," "," "," "," "," "," "," "," "," "," "," "," "," "," "," "," "," "," "," "," "," "," "," "," "," "," "," "," "," "," "," "," "," "," "," "]
["N'gourti",null,44403,null,null,44403,null,null,null,null,null,null,null,null,null,null,null,null,null,null,null,null,null,null,null,null,null," "," "," "," "," "," "," "," "," "," "," "," "," "," "," "," "," "," "," "," "," "," "," "," "," "," "," "," "," "," "," "," "," "," "," "," "]
["N'guigmi",null,62936,null,null,62936,null,null,null,null,null,null,null,null,null,null,null,null,null,null,null,null,null,null,null,null,null," "," "," "," "," "," "," "," "," "," "," "," "," "," "," "," "," "," "," "," "," "," "," "," "," "," "," "," "," "," "," "," "," "," "," "," "]
["Boboye",229547,null,null,null,229547,null,null,null,null,null,null,null,null,null,null,null,null,null,null,null,null,null,null,null,null,null," "," "," "," "," "," "," "," "," "," "," "," "," "," "," "," "," "," "," "," "," "," "," "," "," "," "," "," "," "," "," "," "," "," "," "," "]
["Dioundiou",99612,null,null,null,99612,null,null,null,null,null,null,null,null,null,null,null,null,null,null,null,null,null,null,null,null,null," "," "," "," "," "," "," "," "," "," "," "," "," "," "," "," "," "," "," "," "," "," "," "," "," "," "," "," "," "," "," "," "," "," "," "," "]
["Dogon-Doutchi ",338484,null,null,null,338484,null,null,null,null,null,null,null,null,null,null,null,null,null,null,null,null,null,null,null,null,null," "," "," "," "," "," "," "," "," "," "," "," "," "," "," "," "," "," "," "," "," "," "," "," "," "," "," "," "," "," "," "," "," "," "," "," "]
["Dosso",447613,null,null,null,447613,null,null,null,null,null,null,null,null,null,null,null,null,null,null,null,null,null,null,null,null,null," "," "," "," "," "," "," "," "," "," "," "," "," "," "," "," "," "," "," "," "," "," "," "," "," "," "," "," "," "," "," "," "," "," "," "," "]
["Falmey ",93847,null,null,null,93847,null,null,null,null,null,null,null,null,null,null,null,null,null,null,null,null,null,null,null,null,null," "," "," "," "," "," "," "," "," "," "," "," "," "," "," "," "," "," "," "," "," "," "," "," "," "," "," "," "," "," "," "," "," "," "," "," "]
["Gaya ",237763,null,null,null,237763,null,null,null,null,null,null,null,null,null,null,null,null,null,null,null,null,null,null,null,null,null," "," "," "," "," "," "," "," "," "," "," "," "," "," "," "," "," "," "," "," "," "," "," "," "," "," "," "," "," "," "," "," "," "," "," "," "]
["Loga",159524,null,null,null,159524,null,null,null,null,null,null,null,null,null,null,null,null,null,null,null,null,null,null,null,null,null," "," "," "," "," "," "," "," "," "," "," "," "," "," "," "," "," "," "," "," "," "," "," "," "," "," "," "," "," "," "," "," "," "," "," "," "]
["Tibiri",245376,null,null,null,245376,null,null,null,null,null,null,null,null,null,null,null,null,null,null,null,null,null,null,null,null,null," "," "," "," "," "," "," "," "," "," "," "," "," "," "," "," "," "," "," "," "," "," "," "," "," "," "," "," "," "," "," "," "," "," "," "," "]
["Aguié",null,221543,null,null,221543,null,null,null,null,null,null,null,null,null,null,null,null,null,null,null,null,null,null,null,null,null," "," "," "," "," "," "," "," "," "," "," "," "," "," "," "," "," "," "," "," "," "," "," "," "," "," "," "," "," "," "," "," "," "," "," "," "]
["Bermo",null,null,47078,null,47078,null,null,null,null,null,null,null,null,null,null,null,null,null,null,null,null,null,null,null,null,null," "," "," "," "," "," "," "," "," "," "," "," "," "," "," "," "," "," "," "," "," "," "," "," "," "," "," "," "," "," "," "," "," "," "," "," "]
["Dakoro",null,null,567755,null,567755,null,null,null,null,null,null,null,null,null,null,null,null,null,null,null,null,null,null,null,null,null," "," "," "," "," "," "," "," "," "," "," "," "," "," "," "," "," "," "," "," "," "," "," "," "," "," "," "," "," "," "," "," "," "," "," "," "]
["Gazaoua",null,144578,null,null,144578,null,null,null,null,null,null,null,null,null,null,null,null,null,null,null,null,null,null,null,null,null," "," "," "," "," "," "," "," "," "," "," "," "," "," "," "," "," "," "," "," "," "," "," "," "," "," "," "," "," "," "," "," "," "," "," "," "]
["Guidan Roumdji",null,471657,null,null,471657,null,null,null,null,null,null,null,null,null,null,null,null,null,null,null,null,null,null,null,null,null," "," "," "," "," "," "," "," "," "," "," "," "," "," "," "," "," "," "," "," "," "," "," "," "," "," "," "," "," "," "," "," "," "," "," "," "]
["Madarounfa",null,404244,null,null,404244,null,null,null,null,null,null,null,null,null,null,null,null,null,null,null,null,null,null,null,null,null," "," "," "," "," "," "," "," "," "," "," "," "," "," "," "," "," "," "," "," "," "," "," "," "," "," "," "," "," "," "," "," "," "," "," "," "]
["Maradi comm",null,null,240683,null,240683,null,null,null,null,null,null,null,null,null,null,null,null,null,null,null,null,null,null,null,null,null," "," "," "," "," "," "," "," "," "," "," "," "," "," "," "," "," "," "," "," "," "," "," "," "," "," "," "," "," "," "," "," "," "," "," "," "]
["Mayahi",null,null,501799,null,501799,null,null,null,null,null,null,null,null,null,null,null,null,null,null,null,null,null,null,null,null,null," "," "," "," "," "," "," "," "," "," "," "," "," "," "," "," "," "," "," "," "," "," "," "," "," "," "," "," "," "," "," "," "," "," "," "," "]
["Tessaoua",null,null,464574,null,464574,null,null,null,null,null,null,null,null,null,null,null,null,null,null,null,null,null,null,null,null,null," "," "," "," "," "," "," "," "," "," "," "," "," "," "," "," "," "," "," "," "," "," "," "," "," "," "," "," "," "," "," "," "," "," "," "," "]
["Niamey 1",null,null,178159,null,178159,null,null,null,null,null,null,null,null,null,null,null,null,null,null,null,null,null,null,null,null,null," "," "," "," "," "," "," "," "," "," "," "," "," "," "," "," "," "," "," "," "," "," "," "," "," "," "," "," "," "," "," "," "," "," "," "," "]
["Niamey 2",null,null,209443,null,209443,null,null,null,null,null,null,null,null,null,null,null,null,null,null,null,null,null,null,null,null,null," "," "," "," "," "," "," "," "," "," "," "," "," "," "," "," "," "," "," "," "," "," "," "," "," "," "," "," "," "," "," "," "," "," "," "," "]
["Niamey 3",null,null,138421,null,138421,null,null,null,null,null,null,null,null,null,null,null,null,null,null,null,null,null,null,null,null,null," "," "," "," "," "," "," "," "," "," "," "," "," "," "," "," "," "," "," "," "," "," "," "," "," "," "," "," "," "," "," "," "," "," "," "," "]
["Niamey 4",null,null,232844,null,232844,null,null,null,null,null,null,null,null,null,null,null,null,null,null,null,null,null,null,null,null,null," "," "," "," "," "," "," "," "," "," "," "," "," "," "," "," "," "," "," "," "," "," "," "," "," "," "," "," "," "," "," "," "," "," "," "," "]
["Niamey 5",112205,null,null,null,112205,null,null,null,null,null,null,null,null,null,null,null,null,null,null,null,null,null,null,null,null,null," "," "," "," "," "," "," "," "," "," "," "," "," "," "," "," "," "," "," "," "," "," "," "," "," "," "," "," "," "," "," "," "," "," "," "," "]
[" Abalak",null,230954,null,null,230954,null,null,null,null,null,null,null,null,null,null,null,null,null,null,null,null,null,null,null,null,null," "," "," "," "," "," "," "," "," "," "," "," "," "," "," "," "," "," "," "," "," "," "," "," "," "," "," "," "," "," "," "," "," "," "," "," "]
["Bagaroua",null,65143,null,null,65143,null,null,null,null,null,null,null,null,null,null,null,null,null,null,null,null,null,null,null,null,null," "," "," "," "," "," "," "," "," "," "," "," "," "," "," "," "," "," "," "," "," "," "," "," "," "," "," "," "," "," "," "," "," "," "," "," "]
["Birni Konni",null,281943,null,null,281943,null,null,null,null,null,null,null,null,null,null,null,null,null,null,null,null,null,null,null,null,null," "," "," "," "," "," "," "," "," "," "," "," "," "," "," "," "," "," "," "," "," "," "," "," "," "," "," "," "," "," "," "," "," "," "," "," "]
["Bouza",null,401318,null,null,401318,null,null,null,null,null,null,null,null,null,null,null,null,null,null,null,null,null,null,null,null,null," "," "," "," "," "," "," "," "," "," "," "," "," "," "," "," "," "," "," "," "," "," "," "," "," "," "," "," "," "," "," "," "," "," "," "," "]
["Illéla",null,303330,null,null,303330,null,null,null,null,null,null,null,null,null,null,null,null,null,null,null,null,null,null,null,null,null," "," "," "," "," "," "," "," "," "," "," "," "," "," "," "," "," "," "," "," "," "," "," "," "," "," "," "," "," "," "," "," "," "," "," "," "]
["Keita",null,303760,null,null,303760,null,null,null,null,null,null,null,null,null,null,null,null,null,null,null,null,null,null,null,null,null," "," "," "," "," "," "," "," "," "," "," "," "," "," "," "," "," "," "," "," "," "," "," "," "," "," "," "," "," "," "," "," "," "," "," "," "]
["Madaoua",null,491586,null,null,491586,null,null,null,null,null,null,null,null,null,null,null,null,null,null,null,null,null,null,null,null,null," "," "," "," "," "," "," "," "," "," "," "," "," "," "," "," "," "," "," "," "," "," "," "," "," "," "," "," "," "," "," "," "," "," "," "," "]
["Malbaza",null,209423,null,null,209423,null,null,null,null,null,null,null,null,null,null,null,null,null,null,null,null,null,null,null,null,null," "," "," "," "," "," "," "," "," "," "," "," "," "," "," "," "," "," "," "," "," "," "," "," "," "," "," "," "," "," "," "," "," "," "," "," "]
["Tahoua Dep",null,389117,null,null,389117,null,null,null,null,null,null,null,null,null,null,null,null,null,null,null,null,null,null,null,null,null," "," "," "," "," "," "," "," "," "," "," "," "," "," "," "," "," "," "," "," "," "," "," "," "," "," "," "," "," "," "," "," "," "," "," "," "]
["Tahoua COM",null,130738,null,null,130738,null,null,null,null,null,null,null,null,null,null,null,null,null,null,null,null,null,null,null,null,null," "," "," "," "," "," "," "," "," "," "," "," "," "," "," "," "," "," "," "," "," "," "," "," "," "," "," "," "," "," "," "," "," "," "," "," "]
["Tassara",null,22038,null,null,22038,null,null,null,null,null,null,null,null,null,null,null,null,null,null,null,null,null,null,null,null,null," "," "," "," "," "," "," "," "," "," "," "," "," "," "," "," "," "," "," "," "," "," "," "," "," "," "," "," "," "," "," "," "," "," "," "," "]
["Tchintabaraden",null,134713,null,null,134713,null,null,null,null,null,null,null,null,null,null,null,null,null,null,null,null,null,null,null,null,null," "," "," "," "," "," "," "," "," "," "," "," "," "," "," "," "," "," "," "," "," "," "," "," "," "," "," "," "," "," "," "," "," "," "," "," "]
["Tillia",null,35138,null,null,35138,null,null,null,null,null,null,null,null,null,null,null,null,null,null,null,null,null,null,null,null,null," "," "," "," "," "," "," "," "," "," "," "," "," "," "," "," "," "," "," "," "," "," "," "," "," "," "," "," "," "," "," "," "," "," "," "," "]
["Abala",null,130008,null,null,130008,null,null,null,null,null,null,null,null,null,null,null,null,null,null,null,null,null,null,null,null,null," "," "," "," "," "," "," "," "," "," "," "," "," "," "," "," "," "," "," "," "," "," "," "," "," "," "," "," "," "," "," "," "," "," "," "," "]
["Ayorou",null,51386,null,null,51386,null,null,null,null,null,null,null,null,null,null,null,null,null,null,null,null,null,null,null,null,null," "," "," "," "," "," "," "," "," "," "," "," "," "," "," "," "," "," "," "," "," "," "," "," "," "," "," "," "," "," "," "," "," "," "," "," "]
["Balleyara",96532,null,null,null,96532,null,null,null,null,null,null,null,null,null,null,null,null,null,null,null,null,null,null,null,null,null," "," "," "," "," "," "," "," "," "," "," "," "," "," "," "," "," "," "," "," "," "," "," "," "," "," "," "," "," "," "," "," "," "," "," "," "]
["Banibangou",null,60323,null,null,60323,null,null,null,null,null,null,null,null,null,null,null,null,null,null,null,null,null,null,null,null,null," "," "," "," "," "," "," "," "," "," "," "," "," "," "," "," "," "," "," "," "," "," "," "," "," "," "," "," "," "," "," "," "," "," "," "," "]
["Bankilaré",null,76492,null,null,76492,null,null,null,null,null,null,null,null,null,null,null,null,null,null,null,null,null,null,null,null,null," "," "," "," "," "," "," "," "," "," "," "," "," "," "," "," "," "," "," "," "," "," "," "," "," "," "," "," "," "," "," "," "," "," "," "," "]
["Filingue",276371,null,null,null,276371,null,null,null,null,null,null,null,null,null,null,null,null,null,null,null,null,null,null,null,null,null," "," "," "," "," "," "," "," "," "," "," "," "," "," "," "," "," "," "," "," "," "," "," "," "," "," "," "," "," "," "," "," "," "," "," "," "]
["Gothèye ",217188,null,null,null,217188,null,null,null,null,null,null,null,null,null,null,null,null,null,null,null,null,null,null,null,null,null," "," "," "," "," "," "," "," "," "," "," "," "," "," "," "," "," "," "," "," "," "," "," "," "," "," "," "," "," "," "," "," "," "," "," "," "]
["Kollo",null,null,419341,null,419341,null,null,null,null,null,null,null,null,null,null,null,null,null,null,null,null,null,null,null,null,null," "," "," "," "," "," "," "," "," "," "," "," "," "," "," "," "," "," "," "," "," "," "," "," "," "," "," "," "," "," "," "," "," "," "," "," "]
["Ouallam",null,294841,null,null,294841,null,null,null,null,null,null,null,null,null,null,null,null,null,null,null,null,null,null,null,null,null," "," "," "," "," "," "," "," "," "," "," "," "," "," "," "," "," "," "," "," "," "," "," "," "," "," "," "," "," "," "," "," "," "," "," "," "]
["Say",158244,null,null,null,158244,null,null,null,null,null,null,null,null,null,null,null,null,null,null,null,null,null,null,null,null,null," "," "," "," "," "," "," "," "," "," "," "," "," "," "," "," "," "," "," "," "," "," "," "," "," "," "," "," "," "," "," "," "," "," "," "," "]
["Tera ",null,null,302935,null,302935,null,null,null,null,null,null,null,null,null,null,null,null,null,null,null,null,null,null,null,null,null," "," "," "," "," "," "," "," "," "," "," "," "," "," "," "," "," "," "," "," "," "," "," "," "," "," "," "," "," "," "," "," "," "," "," "," "]
["Tillaberi",204852,null,null,null,204852,null,null,null,null,null,null,null,null,null,null,null,null,null,null,null,null,null,null,null,null,null," "," "," "," "," "," "," "," "," "," "," "," "," "," "," "," "," "," "," "," "," "," "," "," "," "," "," "," "," "," "," "," "," "," "," "," "]
["Torodi ",164541,null,null,null,164541,null,null,null,null,null,null,null,null,null,null,null,null,null,null,null,null,null,null,null,null,null," "," "," "," "," "," "," "," "," "," "," "," "," "," "," "," "," "," "," "," "," "," "," "," "," "," "," "," "," "," "," "," "," "," "," "," "]
["Belbedji",null,null,86978,null,86978,null,null,null,null,null,null,null,null,null,null,null,null,null,null,null,null,null,null,null,null,null," "," "," "," "," "," "," "," "," "," "," "," "," "," "," "," "," "," "," "," "," "," "," "," "," "," "," "," "," "," "," "," "," "," "," "," "]
["Damagaran T",null,null,217480,null,217480,null,null,null,null,null,null,null,null,null,null,null,null,null,null,null,null,null,null,null,null,null," "," "," "," "," "," "," "," "," "," "," "," "," "," "," "," "," "," "," "," "," "," "," "," "," "," "," "," "," "," "," "," "," "," "," "," "]
["Dungass",null,319108,null,null,319108,null,null,null,null,null,null,null,null,null,null,null,null,null,null,null,null,null,null,null,null,null," "," "," "," "," "," "," "," "," "," "," "," "," "," "," "," "," "," "," "," "," "," "," "," "," "," "," "," "," "," "," "," "," "," "," "," "]
["Goure",null,295618,null,null,{"$f":"SUM(B336:E336)","v":295618},null,null,null,null,null,null,null,null,null,null,null,null,null,null,null,null,null,null,null,null,null," "," "," "," "," "," "," "," "," "," "," "," "," "," "," "," "," "," "," "," "," "," "," "," "," "," "," "," "," "," "," "," "," "," "," "," "]
["Matameye",null,359971,null,null,359971,null,null,null,null,null,null,null,null,null,null,null,null,null,null,null,null,null,null,null,null,null," "," "," "," "," "," "," "," "," "," "," "," "," "," "," "," "," "," "," "," "," "," "," "," "," "," "," "," "," "," "," "," "," "," "," "," "]
["Magaria",null,520994,null,null,520994,null,null,null,null,null,null,null,null,null,null,null,null,null,null,null,null,null,null,null,null,null," "," "," "," "," "," "," "," "," "," "," "," "," "," "," "," "," "," "," "," "," "," "," "," "," "," "," "," "," "," "," "," "," "," "," "," "]
["Mirriah",null,457649,null,null,457649,null,null,null,null,null,null,null,null,null,null,null,null,null,null,null,null,null,null," "," "," "," "," "," "," "," "," "," "," "," "," "," "," "," "," "," "," "," "," "," "," "," "," "," "," "," "," "," "," "," "," "," "," "," "," "," "," "]
["Takeita",null,null,222574,null,222574,null,null,null,null,null,null,null,null,null,null,null,null,null,null,null,null,null,null," "," "," "," "," "," "," "," "," "," "," "," "," "," "," "," "," "," "," "," "," "," "," "," "," "," "," "," "," "," "," "," "," "," "," "," "," "," "," "]
["Tanout",null,386996,null,null,386996,null,null,null,null,null,null,null,null,null,null,null,null,null,null,null,null,null,null," "," "," "," "," "," "," "," "," "," "," "," "," "," "," "," "," "," "," "," "," "," "," "," "," "," "," "," "," "," "," "," "," "," "," "," "," "," "," "]
["Tesker",null,33485,null,null,33485,null,null,null,null,null,null,null,null,null,null,null,null,null,null,null,null,null,null," "," "," "," "," "," "," "," "," "," "," "," "," "," "," "," "," "," "," "," "," "," "," "," "," "," "," "," "," "," "," "," "," "," "," "," "," "," "," "]
["Zinder",null,291214,null,null,{"$f":"SUM(B343:E343)","v":291214},null,null,null,null,null,null,null,null,null,null,null,null,null,null,null,null,null,null," "," "," "," "," "," "," "," "," "," "," "," "," "," "," "," "," "," "," "," "," "," "," "," "," "," "," "," "," "," "," "," "," "," "," "," "," "," "," "]
["Nigeria 2024",{"$f":"SUM(B345:B349)","v":10826981},{"$f":"SUM(C345:C349)","v":0},5093250,0,{"$f":"SUM(F345:F349)","v":15920231}," "," "," "," "," "," "," "," "," "," "," "," "," "," "," "," "," "," "," "," "," "," "," "," "," "," "," "," "," "," "," "," "," "," "," "," "," "," "," "," "," "," "," "," "," "," "," "," "," "," "," "," "," "," "," "," "," "," "," "," "," "," "," "]
["Nigeria"," "," ",3073314," ",{"$f":"SUM(B345:E345)","v":3073314}]
["Nigeria"," "," ",2019936," ",{"$f":"SUM(B346:E346)","v":2019936}]
["Nigeria",2157687," "," "," ",2157687]
["Nigeria",5670644," "," "," ",5670644]
["Nigeria",2998650," "," "," ",2998650]
["Nigeria 2025",1044857,2721145," "," ",{"$f":"SUM(B350:E350)","v":3766002}," "," "," "," "," "," "," "," "," "," "," "," "," "," "," "," "," "," "," "," "," "," "," "," "," "," "," "," "," "," "," "," "," "," "," "," "," "," "," "," "," "," "," "," "," "," "," "," "," "," "," "," "," "," "," "," "," "," "," "," "," "," "," "]
["Nigeria"," "," "," "," ",0]
["Nigeria 2026",1044857,2721145," "," ",{"$f":"SUM(B352:E352)","v":3766002}," "," "," "," "," "," "," "," "," "," "," "," "," "," "," "," "," "," "," "," "," "," "," "," "," "," "," "," "," "," "," "," "," "," "," "," "," "," "," "," "," "," "," "," "," "," "," "," "," "," "," "," "," "," "," "," "," "," "," "," "," "," "," "]
["Pakistan"," ","10’149’386"," "," ","10’149’386"]
["Pakistan"," ","143’276"," "," ","143’276"]
["Pakistan"," ","170’674"," "," ","170’674"]
["Pakistan"," ","126’738"," "," ","126’738"]
["Pakistan"," ","117’133"," "," ","117’133"]
["Pakistan"," ","340’520"," "," ","340’520"]
["Pakistan"," ","95’619"," "," ","95’619"]
["Pakistan"," ","420’608"," "," ","420’608"]
["Pakistan"," ","85’802"," "," ","85’802"]
["Pakistan"," ","209’899"," "," ","209’899"]
["Pakistan"," ","131’567"," "," ","131’567"]
["Pakistan"," ","333’123"," "," ","333’123"]
["Pakistan"," ","171’643"," "," ","171’643"]
["Pakistan"," ","397’179"," "," ","397’179"]
["Pakistan"," ","546’545"," "," ","546’545"]
["Pakistan"," ","321’344"," "," ","321’344"]
["Pakistan"," ","567’756"," "," ","567’756"]
["Pakistan"," ","938’343"," "," ","938’343"]
["Pakistan"," ","514’687"," "," ","514’687"]
["Pakistan"," ","709’890"," "," ","709’890"]
["Pakistan"," ","91’088"," "," ","91’088"]
["Pakistan"," ","615’192"," "," ","615’192"]
["Pakistan"," ","1’013’398"," "," ","1’013’398"]
["Pakistan"," ","147’762"," "," ","147’762"]
["Pakistan"," ","23’855"," "," ","23’855"]
["Pakistan"," ","22’499"," "," ","22’499"]
["Pakistan"," ","46’874"," "," ","46’874"]
["Pakistan"," ","32’011"," "," ","32’011"]
["Pakistan"," ","73’365"," "," ","73’365"]
["Pakistan"," ","293’338"," "," ","293’338"]
["Pakistan"," ","446’381"," "," ","446’381"]
["Pakistan"," ","613’939"," "," ","613’939"]
["Pakistan"," ","348’886"," "," ","348’886"]
["Pakistan"," ","38’452"," "," ","38’452"]
["Pakistan"," "," "," "," ",0]
["Pakistan"," "," "," "," ",0]
["Panama"," "," "," "," ",{"$f":"SUM(B389:E389)","v":0}]
["Papua New Guinea"," ","1’603’875","67’950"," ","1’671’825"]
["Madang Province"," ","197’375"," "," ","197’375"]
["East Sepik Province"," ","250’450"," "," ","250’450"]
["Sandaun Province "," ","154’100"," "," ","154’100"]
["Western Highlands Province "," ","47’700"," "," ","47’700"]
["Jiwaka Province "," ","32’500"," "," ","32’500"]
["Chimbu Province "," ","28’000"," "," ","28’000"]
["Eastern Highlands Province "," "," ","67’950"," ","67’950"]
["Morobe Province "," ","471’750"," "," ","471’750"]
["Madang Province "," ","182’750"," "," ","182’750"]
["East Sepik Province (Angoram, Maprik, Wewak and Yangoro Suassi Districts)"," ","107’950"," "," ","107’950"]
["Western Province "," ","101’200"," "," ","101’200"]
["Sandaun"," ","30’100"," "," ","30’100"]
["Papua New Guinea"," ","1’224’610"," "," ","1’224’610"]
["Papua New Guinea"," ","1’212’941"," "," ","1’212’941"]
["Philippines"," ","131’328"," "," ","131’328"]
["Philippines"," ","120’492"," "," ","120’492"]
["Philippines"," ","111’515"," "," ","111’515"]
["Rwanda 2024"," "," "," "," ",{"$f":"SUM(B408:E408)","v":0}]
["Rwanda 2025",null,null,700000,null,{"$f":"SUM(B409:E409)","v":700000}]
["Sao Tome Principe"," "," ",155950," ",155950]
["Sao Tome Principe"," "," ",12100," ",12100]
["Sao Tome Principe"," "," ",14050," ",14050]
["Senegal"," "," "," "," ",0]
["Senegal","3’698’400"," "," "," ","3’698’400"]
["Sierra Leone","2’787’135"," ","2’558’097"," ","5’345’232"]
["Sierra Leone","396’725"," "," "," ","396’725"]
["Sierra Leone","387’382"," "," "," ","387’382"]
["Sierra Leone","261’123"," "," "," ","261’123"]
["Sierra Leone","260’379"," "," "," ","260’379"]
["Sierra Leone","240’117"," "," "," ","240’117"]
["Sierra Leone","154’771"," "," "," ","154’771"]
["Sierra Leone","153’767"," "," "," ","153’767"]
["Sierra Leone","151’325"," "," "," ","151’325"]
["Sierra Leone","400’106"," "," "," ","400’106"]
["Sierra Leone","381’440"," "," "," ","381’440"]
["Sierra Leone"," "," ","318’779"," ","318’779"]
["Sierra Leone"," "," ","795’867"," ","795’867"]
["Sierra Leone"," "," ","334’841"," ","334’841"]
["Sierra Leone"," "," ","215’212"," ","215’212"]
["Sierra Leone"," "," ","433’731"," ","433’731"]
["Sierra Leone"," "," ","459’667"," ","459’667"]
["Sierra Leone"," "," ",5460747," ","5’460’747"]
["Sierra Leone"," "," ","705’875"," ","705’875"]
["Solomon Islands"," ","605’280"," "," ","605’280"]
["Somalia"," ","178’112"," "," ","178’112"]
["Somalia"," ","183’092"," "," ","183’092"]
["Somalia"," ","188’402"," "," ","188’402"]
["South Sudan"," "," "," "," ",{"$f":"SUM(B438:E438)","v":0}]
["Sudan"," ",null," "," ",0]
["Sudan","2’522’013","13’255’823"," "," ","15’777’836"]
["Tanzania (United Republic)"," "," ","6’705’848"," ","6’705’848"]
["Tanzania (United Republic)"," "," ","665’360"," ","665’360"]
["Tanzania (United Republic)"," "," ","1’529’671"," ","1’529’671"]
["Tanzania (United Republic)"," "," ","1’754’969"," ","1’754’969"]
["Tanzania (United Republic)"," "," ","1’341’597"," ","1’341’597"]
["Tanzania (United Republic)"," "," ","1’414’251"," ","1’414’251"]
["Tanzania (United Republic)"," "," ","5’259’066"," ","5’259’066"]
["Tanzania (United Republic)"," "," ","3’165’013"," ","3’165’013"]
["Timor Leste"," "," "," "," "," "]
["Timor Leste"," ","74’597"," "," ","74’597"]
["Togo"," "," "," "," "," "]
["Togo","540’800"," "," "," ","540’800"]
["Togo",{"$f":"3690800+915000","v":4605800}," "," "," ",{"$f":"SUM(B453:E453)","v":4605800}]
["Uganda"," "," "," "," ",0]
["Uganda"," "," "," "," ",0]
["Vanuatu"," "," "," "," ",0]
["Venezuela"," ","212’387"," "," ","212’387"]
["Venezuela"," ","91’904"," "," ","91’904"]
["Yemen"," "," "," "," ",{"$f":"SUM(B459:E459)","v":0}]
["Zambia","8’127’597"," ","8’188’677"," ","16’316’274"]
["Zambia "," "," ","763’756"," ","763’756"]
["Zambia "," "," ","900’139"," ","900’139"]
["Zambia "," "," ","880’995"," ","880’995"]
["Zambia "," "," ","1’483’127"," ","1’483’127"]
["Zambia "," "," ","1’870’205"," ","1’870’205"]
["Zambia "," "," ","1’928’149"," ","1’928’149"]
["Zambia "," "," ","362’306"," ","362’306"]
["Zambia","6’547’362"," "," "," ","6’547’362"]
["Zambia","1’580’235"," "," "," ","1’580’235"]
["Zanzibar"," "," "," "," "," "]
["Zanzibar"," "," ","147’660"," ","147’660"]
["Zimbabwe"," ","213’648"," "," ","213’648"]
["Zimbabwe"," ","7’046"," "," ","7’046"]
["Zimbabwe"," ","7’534"," "," ","7’534"]
["Zimbabwe"," ","9’406"," "," ","9’406"]
["Zimbabwe"," ","20’578"," "," ","20’578"]
["Zimbabwe"," ","30’107"," "," ","30’107"]
["Zimbabwe"," ","11’750"," "," ","11’750"]
["Zimbabwe"," ","39’850"," "," ","39’850"]
["Zimbabwe"," ","4’450"," "," ","4’450"]
["Zimbabwe"," ","9’100"," "," ","9’100"]
["Zimbabwe"," ","40’100"," "," ","40’100"]
["Zimbabwe"," ","79’037"," "," ","79’037"]
["Zimbabwe"," ","136’000"," "," ","136’000"]
["Zimbabwe"," ","87’576"," "," ","87’576"]
["Zimbabwe"," ","19’318"," "," ","19’318"]
["Zimbabwe"," ","141’819"," "," ","141’819"]
["Zimbabwe"," ","58’572"," "," ","58’572"]
["Zimbabwe"," ","161’887"," "," ","161’887"]
["Zimbabwe"," ","1’676’527"," "," ","1’676’527"]

{"sheet":"Drop down","index":3,"n_rows":28,"n_cols":19,"rows_kept":28,"cut":false,"hidden":false,"merged":[]}
[]
[]
["Region","Environment  - Rainy season period","Geographic target","Campaign rollout strategy","Distribution strategy","Detailed geographic target  (if prioritization of specific areas for ITN distribution)","Integration",null,"ITN type","Net brand \n(hidden on the AMP website)","Funding partner (if applicable)","Current campaign phase","ITN delivery status","Status ","Campaign components that will be digitalized","Scale of digital data collection","Platform being used","Packaging type of nets (individual/bale)","waste management approach (reverse logistics; incineration; combo etc)"]
["West Africa","Typically from May to October, with peak rainfall occurring between June and September.","National - one phase","Single phase","Door to door","National focus with prioritization of ITNs \"non urban specific\"","Internal NMP - SMC, IRS, Malaria vaccine, Other","Microplanning","Dual AI","Duranet - Shobikaa Impex Private\nLimited ","AMF","Not started","Pending ITN arrival","On track","Macroplanning","National","IASO - Bluesquare","Individual Packaging","Burial "]
["Central Africa","Generally from March to November, with heavy rainfall throughout this period. Some areas may experience two rainy seasons, one from March to May and another from September to November.","National - multi-phases","Rolling distribution","Fixed distribution sites","National focus with prioritization of ITNs in non-urban areas over urban areas","External NMP- EPI, NTDs, Vit A, Other","Digital platform","PBO","DuraNet Plus - Shobikaa Impex Private\nLimited ","Global Fund","Macroplanning","Delivered in-country","At risk","Microplanning","Selected province/region","Commcare (Dimagi)","Bale Packaging","Combination approach"]
["East Africa","Varied depending on the specific country and region. In general, the rainy season occurs from March to May (long rains) and from October to December (short rains), although there can be variations in timing and intensity","Sub-national - one phase ","Multi-phase","Hybrid approach","No prioritization","No integration","SBC","Standard ITN (pyrethroid-only)","Interceptor - BASF SE","Government","Microplanning","Other","Off track","Household registration ","Selected districts","DIGIT-HCM (eGov)",null,"Incineration"]
["Southern Africa","Rainfall patterns vary across different parts of Southern Africa. In general, the rainy season occurs during the Southern Hemisphere summer, from November to March, with peak rainfall typically from December to February.","Sub-national - multi phases","Not available",null,"Mixed ",null,"Supply chain/logistics ","Other","Interceptor G2 - BASF SE","Multiple","Implementation",null,"Complete","Distribution","Other","DHIS2",null,"Reverse Logistics"]
["North Africa","North Africa is generally characterized by arid and semi-arid climates, where rainfall is minimal and irregular. Some areas may experience a rainy season during the winter months, from November to February, but this can vary greatly from year to year.","No campaign this year",null,null,null,null,"Supervision ","Mixed","MAGNet - VKA Polymers pvt. Ltd","PMI ","Complete",null,"Planned","Logistics & in-country supply chain",null,"Kobo/ODK"]
[null,null,null,null,null,null,null,"Monitoring",null,"MiraNet LLIN - A to Z Textiles Mills Ltd","Not available","Not available",null,"Not available","Bale tracking (barcode/QR code scanning) ",null,"NetApp"]
[null,null,null,null,null,null,null,"Other",null,"Olyset Net - Sumitomo Chemical Co\nLtd ","Other","Postponed ",null,null,"Individual ITN tracking (barcode/QR code scanning)",null,"Redrose"]
[null,null,null,null,null,null,null,null,null,"Olyset Plus - Sumitomo Chemical Co\nLtd ",null,"No campaign",null,null,"Supervision",null,"Reveal"]
[null,null,null,null,null,null,null,null,null,"Panda Net 2.0 - Life Ideas Biological\nTechnology Co. Ltd",null,"Pilot implementation",null,null,"Payment ",null,"Bespoke/custom"]
[null,null,null,null,null,null,null,null,null,"PermaNet 2.0 - Vestergaard",null,null,null,null,"Attendance tracking",null,"Other (specify in comments)"]
[null,null,null,null,null,null,null,null,null,"PermaNet 3.0 - Vestergaard",null,null,null,null,"Campaign personnel tracking"]
[null,null,null,null,null,null,null,null,null,"PermaNet Dual - Vestergaard",null,null,null,null,"Training "]
[null,null,null,null,null,null,null,null,null,"Royal guard - Disease Control\nTechnologies LLC",null,null,null,null,"SBC"]
[null,null,"https://www.theglobalfund.org/media/11805/psm_insecticidetreatednets_list_en.pdf",null,null,null,null,null,null,"Royal Sentry - Disease Control\nTechnologies LLC"]
[null,null,null,null,null,null,null,null,null,"Royal Sentry 2.0 - Disease Control\nTechnologies LLC"]
[null,null,null,null,null,null,null,null,null,"SafeNet - Mainpol GmbH "]
[null,null,null,null,null,null,null,null,null,"Tsara Boost - PPP Hollandi DMCC "]
[null,null,null,null,null,null,null,null,null,"Tsara Net - PPP Hollandi DMCC "]
[null,null,null,null,null,null,null,null,null,"Tsara Plus - PPP Hollandi DMCC "]
[null,null,null,null,null,null,null,null,null,"Tsara Soft - PPP Hollandi DMCC "]
[null,null,"  ",null,null,null,null,null,null,"Vector Guard - Disease Control\nTechnologies LLC"]
[null,null,null,null,null,null,null,null,null,"Veeralin LLIN - VKA Polymers pvt. Ltd"]
[null,null,null,null,null,null,null,null,null,"Yahe LN - Fujian Yamei Industry &\nTrade Co"]
[null,null,null,null,null,null,null,null,null,"Yorkool G3 LN - Tianjin Yorkool\nInternational Trading\nCo. Ltd"]
[null,null,null,null,null,null,null,null,null,"Yorkool LN - Tianjin Yorkool\nInternational Trading\nCo. Ltd"]